Workbook

Sheet RESUMO GERAL
A3: QUADRO RESUMO
A6: SERVIÇO | B6: DESCRIÇÃO | C6: VALOR (R$) | D6: PERCENTUAL %
A7: 1 | B7: =INDEX(ORÇAMENTO!$E:$E,MATCH($A7,ORÇAMENTO!$A:$A,0)) -> SUBESTAÇÃO FLORESTA (SE-S0) | C7: =SUM(C8:C9) -> 6776316.434 | D7: =C7/$C$18 -> 0.8416571715
A8: 1.1 | B8: CIVIL | C8: ='RESUMO CIVIL'!C30 -> 693468.5199 | D8: 0.08613274759
A9: 1.2 | B9: ELÉTRICA | C9: ='RESUMO ELÉTRICA'!C8 -> 6082847.914 | D9: 0.7555244239
A10: 2 | B10: =INDEX(ORÇAMENTO!$E:$E,MATCH($A10,ORÇAMENTO!$A:$A,0)) -> SUBESTAÇÃO BOM NOME | C10: =SUM(C11:C12) -> 475457.3849 | D10: 0.0590545205
A11: 2.1 | B11: CIVIL | C11: ='RESUMO CIVIL'!C31 -> 1331.19 | D11: 0.0001653413947
A12: 2.2 | B12: ELÉTRICA | C12: ='RESUMO ELÉTRICA'!C13 -> 474126.1949 | D12: 0.05888917911
A13: 3 | B13: SUBESTAÇÃO PAULO AFONSO | C13: =C14 -> 43522.01339 | D13: 0.005405682431
A14: 3.1 | B14: ELÉTRICA | C14: ='RESUMO ELÉTRICA'!C18 -> 43522.01339 | D14: 0.005405682431
A15: 4 | B15: LINHA DE TRANSMISSÃO | C15: ='RESUMO ELÉTRICA'!C21 -> 755864.0262 | D15: 0.09388262555
A16: 4.1 | B16: ELÉTRICA | C16: =C15 -> 755864.0262 | D16: 0.09388262555
B18: T O T A L G E R A L | C18: =C15+C13+C10+C7 -> 8051159.858 | D18: =D15+D13+D10+D7 -> 1
B21: T O T A L G E R A L - SERVIÇO | C21: ='RESUMO CIVIL'!C38+'RESUMO CIVIL'!C41+'RESUMO ELÉTRICA'!C12+'RESUMO ELÉTRICA'!C17+'RESUMO ELÉTRICA'!C20 -> 1718903.845 | D21: =C21/$C$18 -> 0.2134976668
B22: T O T A L G E R A L - FORNECIMENTO | C22: ='RESUMO ELÉTRICA'!C22+'RESUMO ELÉTRICA'!C15+'RESUMO ELÉTRICA'!C14+'RESUMO ELÉTRICA'!C9+'RESUMO ELÉTRICA'!C10+'RESUMO ELÉTRICA'!C11+'RESUMO ELÉTRICA'!C16+'RESUMO ELÉTRICA'!C19+'RESUMO CIVIL'!C37+'RESUMO CIVIL'!C40 -> 6332256.014 | D22: =C22/$C$18 -> 0.7865023332
B25: T O T A L G E R A L - SERVIÇO CIVIL | C25: ='RESUMO CIVIL'!C43 -> 534501.7299 | D25: =C25/$C$29 -> 0.06638816509
B26: T O T A L G E R A L - SERVIÇO ELÉTRICO | C26: =SUM('RESUMO ELÉTRICA'!C12,'RESUMO ELÉTRICA'!C17,'RESUMO ELÉTRICA'!C20) -> 1184402.115 | D26: =C26/$C$29 -> 0.1471095017
B27: T O T A L G E R A L - SERVIÇOS | C27: =SUM(C25:C26) -> 1718903.845 | D27: =C27/$C$29 -> 0.2134976668
B28: T O T A L G E R A L - FORNECIMENTOS | C28: =C22 -> 6332256.014 | D28: =C28/$C$29 -> 0.7865023332
B29: T O T A L G E R A L | C29: =SUM(C27:C28) -> 8051159.858 | D29: =C29/$C$29 -> 1
C31: 8051159.858
C33: 10446569.56

Sheet RESUMO CIVIL
A3: QUADRO RESUMO
A7: SERVIÇO | B7: DESCRIÇÃO | C7: VALOR (R$) | D7: PERCENTUAL %
A8: 1 | B8: =INDEX(ORÇAMENTO!$E:$E,MATCH($A8,ORÇAMENTO!$A:$A,0)) -> SUBESTAÇÃO FLORESTA (SE-S0) | C8: =INDEX(ORÇAMENTO!$K:$K,MATCH($A8,ORÇAMENTO!$A:$A,0)) -> 693468.5199 | D8: =INDEX(ORÇAMENTO!$L:$L,MATCH($A8,ORÇAMENTO!$A:$A,0)) -> 0.9980840666
A9: 1.1 | B9: =INDEX(ORÇAMENTO!$E:$E,MATCH($A9,ORÇAMENTO!$A:$A,0)) -> SERVIÇOS PRELIMINARES | C9: =INDEX(ORÇAMENTO!$K:$K,MATCH($A9,ORÇAMENTO!$A:$A,0)) -> 289621.52 | D9: =INDEX(ORÇAMENTO!$L:$L,MATCH($A9,ORÇAMENTO!$A:$A,0)) -> 0.3925935433
A10: 1.1.1 | B10: =INDEX(ORÇAMENTO!$E:$E,MATCH($A10,ORÇAMENTO!$A:$A,0)) -> PLACA DA OBRA | C10: =INDEX(ORÇAMENTO!$K:$K,MATCH($A10,ORÇAMENTO!$A:$A,0)) -> 7742.1 | D10: =INDEX(ORÇAMENTO!$L:$L,MATCH($A10,ORÇAMENTO!$A:$A,0)) -> 0.01114292348
A11: 1.1.2 | B11: =INDEX(ORÇAMENTO!$E:$E,MATCH($A11,ORÇAMENTO!$A:$A,0)) -> CANTEIRO DE OBRAS | C11: =INDEX(ORÇAMENTO!$K:$K,MATCH($A11,ORÇAMENTO!$A:$A,0)) -> 10015.18 | D11: =INDEX(ORÇAMENTO!$L:$L,MATCH($A11,ORÇAMENTO!$A:$A,0)) -> 0.01441448501
A12: 1.1.3 | B12: =INDEX(ORÇAMENTO!$E:$E,MATCH($A12,ORÇAMENTO!$A:$A,0)) -> MOBILIZAÇÃO | C12: =INDEX(ORÇAMENTO!$K:$K,MATCH($A12,ORÇAMENTO!$A:$A,0)) -> 50834.96 | D12: =INDEX(ORÇAMENTO!$L:$L,MATCH($A12,ORÇAMENTO!$A:$A,0)) -> 0.07316491253
A13: 1.1.4 | B13: =INDEX(ORÇAMENTO!$E:$E,MATCH($A13,ORÇAMENTO!$A:$A,0)) -> DESMOBILIZAÇÃO | C13: =INDEX(ORÇAMENTO!$K:$K,MATCH($A13,ORÇAMENTO!$A:$A,0)) -> 50834.96 | D13: =INDEX(ORÇAMENTO!$L:$L,MATCH($A13,ORÇAMENTO!$A:$A,0)) -> 0.07316491253
A14: 1.1.5 | B14: =INDEX(ORÇAMENTO!$E:$E,MATCH($A14,ORÇAMENTO!$A:$A,0)) -> ADMINISTRAÇÃO DA OBRA | C14: =INDEX(ORÇAMENTO!$K:$K,MATCH($A14,ORÇAMENTO!$A:$A,0)) -> 170194.32 | D14: =INDEX(ORÇAMENTO!$L:$L,MATCH($A14,ORÇAMENTO!$A:$A,0)) -> 0.2449545064
A15: 1.2 | B15: =INDEX(ORÇAMENTO!$E:$E,MATCH($A15,ORÇAMENTO!$A:$A,0)) -> ESTRADA DE ACESSO A SUBESTAÇÃO | C15: =INDEX(ORÇAMENTO!$K:$K,MATCH($A15,ORÇAMENTO!$A:$A,0)) -> 19968 | D15: =INDEX(ORÇAMENTO!$L:$L,MATCH($A15,ORÇAMENTO!$A:$A,0)) -> 0.02873921753
A16: 1.3 | B16: =INDEX(ORÇAMENTO!$E:$E,MATCH($A16,ORÇAMENTO!$A:$A,0)) -> PASSAGEM MOLHADA | C16: =INDEX(ORÇAMENTO!$K:$K,MATCH($A16,ORÇAMENTO!$A:$A,0)) -> 20708.04839 | D16: =INDEX(ORÇAMENTO!$L:$L,MATCH($A16,ORÇAMENTO!$A:$A,0)) -> 0.02980434231
A17: 1.4 | B17: =INDEX(ORÇAMENTO!$E:$E,MATCH($A17,ORÇAMENTO!$A:$A,0)) -> PLANTIO DE MACAMBIRAS E CANALETAS | C17: =INDEX(ORÇAMENTO!$K:$K,MATCH($A17,ORÇAMENTO!$A:$A,0)) -> 62142.76 | D17: =INDEX(ORÇAMENTO!$L:$L,MATCH($A17,ORÇAMENTO!$A:$A,0)) -> 0.08943981858
A18: 1.5 | B18: =INDEX(ORÇAMENTO!$E:$E,MATCH($A18,ORÇAMENTO!$A:$A,0)) -> BRITAGEM DO PÁTIO | C18: =INDEX(ORÇAMENTO!$K:$K,MATCH($A18,ORÇAMENTO!$A:$A,0)) -> 229128.6715 | D18: =INDEX(ORÇAMENTO!$L:$L,MATCH($A18,ORÇAMENTO!$A:$A,0)) -> 0.3297765791
A19: 1.6 | B19: =INDEX(ORÇAMENTO!$E:$E,MATCH($A19,ORÇAMENTO!$A:$A,0)) -> TAMPAS DE CANALETAS DO GGE | C19: =INDEX(ORÇAMENTO!$K:$K,MATCH($A19,ORÇAMENTO!$A:$A,0)) -> 3460.44 | D19: =INDEX(ORÇAMENTO!$L:$L,MATCH($A19,ORÇAMENTO!$A:$A,0)) -> 0.004980485672
A20: 1.7 | B20: =INDEX(ORÇAMENTO!$E:$E,MATCH($A20,ORÇAMENTO!$A:$A,0)) -> EDIFÍCIO DE APOIO A MANUTENÇÃO | C20: =INDEX(ORÇAMENTO!$K:$K,MATCH($A20,ORÇAMENTO!$A:$A,0)) -> 53725.52 | D20: =INDEX(ORÇAMENTO!$L:$L,MATCH($A20,ORÇAMENTO!$A:$A,0)) -> 0.07732519061
A21: 1.8 | B21: =INDEX(ORÇAMENTO!$E:$E,MATCH($A21,ORÇAMENTO!$A:$A,0)) -> TRANSPORTES | C21: =INDEX(ORÇAMENTO!$K:$K,MATCH($A21,ORÇAMENTO!$A:$A,0)) -> 14713.56 | D21: =INDEX(ORÇAMENTO!$L:$L,MATCH($A21,ORÇAMENTO!$A:$A,0)) -> 0.02117669278
A22: 2 | B22: =INDEX(ORÇAMENTO!$E:$E,MATCH($A22,ORÇAMENTO!$A:$A,0)) -> SUBESTAÇÃO BOM NOME | C22: =INDEX(ORÇAMENTO!$K:$K,MATCH($A22,ORÇAMENTO!$A:$A,0)) -> 1331.19 | D22: =INDEX(ORÇAMENTO!$L:$L,MATCH($A22,ORÇAMENTO!$A:$A,0)) -> 0.001915933443
A23: 2.1 | B23: =INDEX(ORÇAMENTO!$E:$E,MATCH($A23,ORÇAMENTO!$A:$A,0)) -> CAIXA DE PASSAGEM (FIBRA OPTICA ENTRE CABANA / SIT) - PÁTIO | C23: =INDEX(ORÇAMENTO!$K:$K,MATCH($A23,ORÇAMENTO!$A:$A,0)) -> 1331.19 | D23: =INDEX(ORÇAMENTO!$L:$L,MATCH($A23,ORÇAMENTO!$A:$A,0)) -> 0.001915933443
B24: T O T A L G E R A L C I V I L | C24: =C8+C22 -> 694799.7099 | D24: =D8+D22 -> 1
A27: RESUMO
A29: ITEM | B29: DESCRIÇÃO | C29: VALOR (R$) | D29: PERCENTUAL %
A30: 1 | B30: SUBESTAÇAO FLORESTA (SE-S0) | C30: =INDEX(ORÇAMENTO!K:K,MATCH(A30,ORÇAMENTO!A:A,0)) -> 693468.5199 | D30: =INDEX(ORÇAMENTO!L:L,MATCH(A30,ORÇAMENTO!A:A,0)) -> 0.9980840666
A31: 2 | B31: SUBESTAÇÃO BOM NOME (SE-BNO) | C31: =INDEX(ORÇAMENTO!K:K,MATCH(A31,ORÇAMENTO!A:A,0)) -> 1331.19 | D31: =INDEX(ORÇAMENTO!L:L,MATCH(A31,ORÇAMENTO!A:A,0)) -> 0.001915933443
B32: T O T A L G E R A L | C32: =SUM(C30:C31) -> 694799.7099 | D32: =SUM(D30:D31) -> 1
A35: SERVIÇO | B35: DESCRIÇÃO | C35: VALOR (R$) | D35: PERCENTUAL %
A36: 1 | B36: SUBESTAÇAO FLORESTA (SE-S0) | C36: =SUM(C37:C38) -> 693468.5199 | D36: =SUM(D37:D38) -> 0.9980840666
B37: MATERIAIS | C37: =ORÇAMENTO!K555 -> 159323.7 | D37: =ORÇAMENTO!L555 -> 0.2293088177
B38: SERVIÇOS | C38: =ORÇAMENTO!K556 -> 534144.8199 | D38: =ORÇAMENTO!L556 -> 0.7687752489
A39: 2 | B39: SUBESTAÇÃO BOM NOME (SE-BNO) | C39: =SUM(C40:C41) -> 1331.19 | D39: =SUM(D40:D41) -> 0.001915933443
B40: MATERIAIS | C40: =ORÇAMENTO!K558 -> 974.28 | D40: =ORÇAMENTO!L558 -> 0.001402245836
B41: SERVIÇOS | C41: =ORÇAMENTO!K559 -> 356.91 | D41: =ORÇAMENTO!L559 -> 0.0005136876066
B42: TOTAL MATERIAIS | C42: =SUM(C37,C40) -> 160297.98 | D42: =SUM(D37,D40) -> 0.2307110635
B43: TOTAL SERVIÇOS | C43: =SUM(C38,C41) -> 534501.7299 | D43: =SUM(D38,D41) -> 0.7692889365
B44: T O T A L G E R A L | C44: =SUM(C42:C43) -> 694799.7099 | D44: =SUM(D42:D43) -> 1
B86: Grupo Motor Gerador com 155/170kVA cabinado (Fornecido com Databook, contendo: ensaios de rotinas, tipo, manual de instrução, desenhos elétricos, e mecânicos)

Sheet ORÇAMENTO
F3: PLANILHA ORÇAMENTÁRIA
J4: REFERENCIAS OFICIAIS
H5: BDI | I5: =BDI!E26 -> 0.2272 | J5: SINAPI | K5: PE_12/2022_Não Desonerado
H6: BDI DIF. | I6: =BDI!U26 -> 0.1352 | J6: SICRO | K6: PE_01/2022_Sem Desoneração
B7: SERVIÇO | C7: CÓDIGO | D7: BASE | E7: DESCRIÇÃO DOS SERVIÇOS | F7: UND | G7: QUANTIDADE | H7: PREÇO UNIT. SEM BDI (R$) | I7: BDI ADOTADO | J7: PREÇO UNIT. COM BDI (R$) | K7: PREÇO TOTAL COM BDI (R$) | L7: % | M7: PROJETO
A8: 1 | B8: 1 | E8: SUBESTAÇÃO FLORESTA (SE-S0) | K8: =SUBTOTAL(109,K9:K527) -> 693468.5199 | L8: =SUBTOTAL(109,L9:L527) -> 0.9980840666 | O8: =IF(I8=$I$6,"MATERIAL",IF(I8=$I$5,"SERVIÇOS"," ")) -> 
A9: 1.1 | B9: 1.1 | E9: SERVIÇOS PRELIMINARES | K9: =SUBTOTAL(109,K10:K39) -> 289621.52 | L9: =SUBTOTAL(109,L10:L38) -> 0.3925935433 | O9: =IF(I9=$I$6,"MATERIAL",IF(I9=$I$5,"SERVIÇOS"," ")) -> 
A10: 1.1.1 | B10: 1.1.1 | E10: PLACA DA OBRA | K10: =SUBTOTAL(109,K11:K25) -> 7742.1 | L10: =SUBTOTAL(109,L11:L25) -> 0.01114292348
A11: 1.1.1.1 | C11: 74209/001 | D11: SINAPI | E11: PLACA DA OBRA | F11: =INDEX('CPU - PROJETO'!$D:$D,MATCH($C11,'CPU - PROJETO'!$B:$B,0)) -> M2 | G11: =INDEX(MEMÓRIA!L:L,MATCH($A11,MEMÓRIA!A:A,0)) -> 16
A12: 1.1.1.1 4417 | C12: 4417 | D12: SINAPI | E12: =INDEX('CPU - PROJETO'!$C:$C,MATCH($C12,'CPU - PROJETO'!$B:$B,0)) -> SARRAFO DE MADEIRA NAO APARELHADA *2,5 X 7* CM, MACARANDUBA, ANGELIM OU EQUIVALENTE DA REGIAO | F12: =INDEX('CPU - PROJETO'!$D:$D,MATCH($C12,'CPU - PROJETO'!$B:$B,0)) -> M | G12: =INDEX('CPU - PROJETO'!T:T,MATCH(A12,'CPU - PROJETO'!W:W,0)) -> 16 | H12: =TRUNC(IF(INDEX('CPU - PROJETO'!$H:$H,MATCH($C12,'CPU - PROJETO'!$B:$B,0))=0,INDEX('CPU - PROJETO'!$I:$I,MATCH($C12,'CPU - PROJETO'!$B:$B,0)),INDEX('CPU - PROJETO'!$H:$H,MATCH($C12,'CPU - PROJETO'!$B:$B,0))),2) -> 8.43 | I12: =$I$6 -> 0.1352 | J12: =TRUNC(H12*(1+I12),2) -> 9.56 | K12: =TRUNC(G12*J12,2) -> 152.96 | L12: =K12/$K$550 -> 0.0002201497753 | O12: MATERIAL
A13: 1.1.1.1 4491 | C13: 4491 | D13: SINAPI | E13: =INDEX('CPU - PROJETO'!$C:$C,MATCH($C13,'CPU - PROJETO'!$B:$B,0)) -> PECA DE MADEIRA NATIVA / REGIONAL 7,5 X 7,5CM (3X3) NAO APARELHADA (P/FORMA) | F13: =INDEX('CPU - PROJETO'!$D:$D,MATCH($C13,'CPU - PROJETO'!$B:$B,0)) -> M | G13: =INDEX('CPU - PROJETO'!T:T,MATCH(C13,'CPU - PROJETO'!O:O,0)) -> 64 | H13: =TRUNC(IF(INDEX('CPU - PROJETO'!$H:$H,MATCH($C13,'CPU - PROJETO'!$B:$B,0))=0,INDEX('CPU - PROJETO'!$I:$I,MATCH($C13,'CPU - PROJETO'!$B:$B,0)),INDEX('CPU - PROJETO'!$H:$H,MATCH($C13,'CPU - PROJETO'!$B:$B,0))),2) -> 10.05 | I13: =$I$6 -> 0.1352 | J13: 11.4 | K13: =TRUNC(G13*J13,2) -> 729.6 | L13: =K13/$K$550 -> 0.001050086794 | O13: MATERIAL
A14: 1.1.1.1 4813 | C14: 4813 | D14: SINAPI | E14: =INDEX('CPU - PROJETO'!$C:$C,MATCH($C14,'CPU - PROJETO'!$B:$B,0)) -> PLACA DE OBRA (PARA CONSTRUCAO CIVIL) EM CHAPA GALVANIZADA *N. 22*, DE *2,0 X 1,125* M | F14: =INDEX('CPU - PROJETO'!$D:$D,MATCH($C14,'CPU - PROJETO'!$B:$B,0)) -> M2 | G14: =INDEX('CPU - PROJETO'!T:T,MATCH(C14,'CPU - PROJETO'!O:O,0)) -> 16 | H14: =TRUNC(IF(INDEX('CPU - PROJETO'!$H:$H,MATCH($C14,'CPU - PROJETO'!$B:$B,0))=0,INDEX('CPU - PROJETO'!$I:$I,MATCH($C14,'CPU - PROJETO'!$B:$B,0)),INDEX('CPU - PROJETO'!$H:$H,MATCH($C14,'CPU - PROJETO'!$B:$B,0))),2) -> 300 | I14: =$I$6 -> 0.1352 | J14: 340.56 | K14: 5448.96 | L14: =K14/$K$550 -> 0.007842490322 | O14: MATERIAL
A15: 1.1.1.1 5075 | C15: 5075 | D15: SINAPI | E15: =INDEX('CPU - PROJETO'!$C:$C,MATCH($C15,'CPU - PROJETO'!$B:$B,0)) -> PREGO DE ACO POLIDO COM CABECA 18 X 30 (2 3/4 X 10) | F15: =INDEX('CPU - PROJETO'!$D:$D,MATCH($C15,'CPU - PROJETO'!$B:$B,0)) -> KG | G15: =INDEX('CPU - PROJETO'!T:T,MATCH(C15,'CPU - PROJETO'!O:O,0)) -> 1.76 | H15: =TRUNC(IF(INDEX('CPU - PROJETO'!$H:$H,MATCH($C15,'CPU - PROJETO'!$B:$B,0))=0,INDEX('CPU - PROJETO'!$I:$I,MATCH($C15,'CPU - PROJETO'!$B:$B,0)),INDEX('CPU - PROJETO'!$H:$H,MATCH($C15,'CPU - PROJETO'!$B:$B,0))),2) -> 22.38 | I15: =$I$6 -> 0.1352 | J15: 25.4 | K15: 44.7 | L15: =K15/$K$550 -> 6.433508732e-05 | O15: MATERIAL
A16: 1.1.1.1 94962 | C16: 94962 | D16: SINAPI | E16: =INDEX('CPU - PROJETO'!$C:$C,MATCH($C16,'CPU - PROJETO'!$B:$B,0)) -> CONCRETO MAGRO PARA LASTRO, TRAÇO 1:4,5:4,5 (CIMENTO/ AREIA MÉDIA/ BRITA 1) - PREPARO MECÂNICO COM BETONEIRA 400 L. AF_07/2016 | F16: =INDEX('CPU - PROJETO'!$D:$D,MATCH($C16,'CPU - PROJETO'!$B:$B,0)) -> M3 | G16: =INDEX('CPU - PROJETO'!T:T,MATCH(C16,'CPU - PROJETO'!O:O,0)) -> 0.16
A17: 1.1.1.1 370 | C17: =MID(A17,9,20) -> 370 | D17: SINAPI | E17: =INDEX('CPU - PROJ.AUX'!$P:$P,MATCH($A17,'CPU - PROJ.AUX'!$W:$W,0)) -> AREIA MEDIA - POSTO JAZIDA/FORNECEDOR (RETIRADO NA JAZIDA, SEM TRANSPORTE) | F17: =INDEX('CPU - PROJ.AUX'!$R:$R,MATCH($A17,'CPU - PROJ.AUX'!$W:$W,0)) -> M3 | G17: =INDEX('CPU - PROJ.AUX'!T:T,MATCH(A17,'CPU - PROJ.AUX'!W:W,0))*$G$11 -> 0.132304 | H17: =TRUNC(IF(INDEX('CPU - PROJ.AUX'!$H:$H,MATCH($A17,'CPU - PROJ.AUX'!$W:$W,0))=0,INDEX('CPU - PROJ.AUX'!$I:$I,MATCH($A17,'CPU - PROJ.AUX'!$W:$W,0)),INDEX('CPU - PROJ.AUX'!$H:$H,MATCH($A17,'CPU - PROJ.AUX'!$W:$W,0))),2) -> 129 | I17: =$I$6 -> 0.1352 | J17: 146.44 | K17: =TRUNC(G17*J17,2) -> 19.37 | L17: =K17/$K$550 -> 2.787853784e-05 | O17: MATERIAL
A18: 1.1.1.1 1379 | C18: =MID(A18,9,20) -> 1379 | D18: SINAPI | E18: =INDEX('CPU - PROJ.AUX'!$P:$P,MATCH($A18,'CPU - PROJ.AUX'!$W:$W,0)) -> CIMENTO PORTLAND COMPOSTO CP II-32 | F18: =INDEX('CPU - PROJ.AUX'!$R:$R,MATCH($A18,'CPU - PROJ.AUX'!$W:$W,0)) -> KG | G18: =INDEX('CPU - PROJ.AUX'!T:T,MATCH(A18,'CPU - PROJ.AUX'!W:W,0))*$G$11 -> 33.923104 | H18: =TRUNC(IF(INDEX('CPU - PROJ.AUX'!$H:$H,MATCH($A18,'CPU - PROJ.AUX'!$W:$W,0))=0,INDEX('CPU - PROJ.AUX'!$I:$I,MATCH($A18,'CPU - PROJ.AUX'!$W:$W,0)),INDEX('CPU - PROJ.AUX'!$H:$H,MATCH($A18,'CPU - PROJ.AUX'!$W:$W,0))),2) -> 0.7 | I18: =$I$6 -> 0.1352 | J18: 0.79 | K18: 26.79 | L18: 3.855787448e-05 | O18: MATERIAL
A19: 1.1.1.1 4721 | C19: 4721 | D19: SINAPI | E19: =INDEX('CPU - PROJ.AUX'!$P:$P,MATCH($A19,'CPU - PROJ.AUX'!$W:$W,0)) -> PEDRA BRITADA N. 1 (9,5 a 19 MM) POSTO PEDREIRA/FORNECEDOR, SEM FRETE | F19: =INDEX('CPU - PROJ.AUX'!$R:$R,MATCH($A19,'CPU - PROJ.AUX'!$W:$W,0)) -> M3 | G19: =INDEX('CPU - PROJ.AUX'!T:T,MATCH(A19,'CPU - PROJ.AUX'!W:W,0))*$G$11 -> 0.092512 | H19: =TRUNC(IF(INDEX('CPU - PROJ.AUX'!$H:$H,MATCH($A19,'CPU - PROJ.AUX'!$W:$W,0))=0,INDEX('CPU - PROJ.AUX'!$I:$I,MATCH($A19,'CPU - PROJ.AUX'!$W:$W,0)),INDEX('CPU - PROJ.AUX'!$H:$H,MATCH($A19,'CPU - PROJ.AUX'!$W:$W,0))),2) -> 89 | I19: =$I$6 -> 0.1352 | J19: 101.03 | K19: 9.34 | L19: 1.344272294e-05 | O19: MATERIAL
A20: 1.1.1.1 88316 | C20: 88316 | D20: SINAPI | E20: =INDEX('CPU - PROJ.AUX'!$P:$P,MATCH($A20,'CPU - PROJ.AUX'!$W:$W,0)) -> SERVENTE COM ENCARGOS COMPLEMENTARES | F20: =INDEX('CPU - PROJ.AUX'!$R:$R,MATCH($A20,'CPU - PROJ.AUX'!$W:$W,0)) -> H | G20: =INDEX('CPU - PROJ.AUX'!T:T,MATCH(A20,'CPU - PROJ.AUX'!W:W,0))*$G$11 -> 0.374928 | H20: =TRUNC(IF(INDEX('CPU - PROJ.AUX'!$H:$H,MATCH($A20,'CPU - PROJ.AUX'!$W:$W,0))=0,INDEX('CPU - PROJ.AUX'!$I:$I,MATCH($A20,'CPU - PROJ.AUX'!$W:$W,0)),INDEX('CPU - PROJ.AUX'!$H:$H,MATCH($A20,'CPU - PROJ.AUX'!$W:$W,0))),2) -> 20.42 | I20: =$I$5 -> 0.2272 | J20: 25.05 | K20: 9.39 | L20: 1.351468613e-05 | O20: SERVIÇOS
A21: 1.1.1.1 88377 | C21: 88377 | D21: SINAPI | E21: =INDEX('CPU - PROJ.AUX'!$P:$P,MATCH($A21,'CPU - PROJ.AUX'!$W:$W,0)) -> OPERADOR DE BETONEIRA ESTACIONÁRIA/MISTURADOR COM ENCARGOS COMPLEMENTARES | F21: =INDEX('CPU - PROJ.AUX'!$R:$R,MATCH($A21,'CPU - PROJ.AUX'!$W:$W,0)) -> H | G21: =INDEX('CPU - PROJ.AUX'!T:T,MATCH(A21,'CPU - PROJ.AUX'!W:W,0))*$G$11 -> 0.236976 | H21: =TRUNC(IF(INDEX('CPU - PROJ.AUX'!$H:$H,MATCH($A21,'CPU - PROJ.AUX'!$W:$W,0))=0,INDEX('CPU - PROJ.AUX'!$I:$I,MATCH($A21,'CPU - PROJ.AUX'!$W:$W,0)),INDEX('CPU - PROJ.AUX'!$H:$H,MATCH($A21,'CPU - PROJ.AUX'!$W:$W,0))),2) -> 28.14 | I21: 0.2272 | J21: 34.53 | K21: 8.18 | L21: 1.177317705e-05 | O21: SERVIÇOS
A22: 1.1.1.1 88830 | C22: 88830 | D22: SINAPI | E22: =INDEX('CPU - PROJ.AUX'!$P:$P,MATCH($A22,'CPU - PROJ.AUX'!$W:$W,0)) -> BETONEIRA CAPACIDADE NOMINAL DE 400 L, CAPACIDADE DE MISTURA 280 L, MOTOR ELÉTRICO TRIFÁSICO POTÊNCIA DE 2 CV, SEM CARREGADOR - CHP DIURNO. AF_10/2014 | F22: =INDEX('CPU - PROJ.AUX'!$R:$R,MATCH($A22,'CPU - PROJ.AUX'!$W:$W,0)) -> CHP | G22: =INDEX('CPU - PROJ.AUX'!T:T,MATCH(A22,'CPU - PROJ.AUX'!W:W,0))*$G$11 -> 0.121968 | H22: =TRUNC(IF(INDEX('CPU - PROJ.AUX'!$H:$H,MATCH($A22,'CPU - PROJ.AUX'!$W:$W,0))=0,INDEX('CPU - PROJ.AUX'!$I:$I,MATCH($A22,'CPU - PROJ.AUX'!$W:$W,0)),INDEX('CPU - PROJ.AUX'!$H:$H,MATCH($A22,'CPU - PROJ.AUX'!$W:$W,0))),2) -> 1.88 | I22: 0.2272 | J22: 2.3 | K22: 0.28 | L22: 4.029938355e-07 | O22: SERVIÇOS
A23: 1.1.1.1 88831 | C23: 88831 | D23: SINAPI | E23: =INDEX('CPU - PROJ.AUX'!$P:$P,MATCH($A23,'CPU - PROJ.AUX'!$W:$W,0)) -> BETONEIRA CAPACIDADE NOMINAL DE 400 L, CAPACIDADE DE MISTURA 280 L, MOTOR ELÉTRICO TRIFÁSICO POTÊNCIA DE 2 CV, SEM CARREGADOR - CHI DIURNO. AF_10/2014 | F23: =INDEX('CPU - PROJ.AUX'!$R:$R,MATCH($A23,'CPU - PROJ.AUX'!$W:$W,0)) -> CHI | G23: =INDEX('CPU - PROJ.AUX'!T:T,MATCH(A23,'CPU - PROJ.AUX'!W:W,0))*$G$11 -> 0.115008 | H23: =TRUNC(IF(INDEX('CPU - PROJ.AUX'!$H:$H,MATCH($A23,'CPU - PROJ.AUX'!$W:$W,0))=0,INDEX('CPU - PROJ.AUX'!$I:$I,MATCH($A23,'CPU - PROJ.AUX'!$W:$W,0)),INDEX('CPU - PROJ.AUX'!$H:$H,MATCH($A23,'CPU - PROJ.AUX'!$W:$W,0))),2) -> 0.39 | I23: 0.2272 | J23: 0.47 | K23: 0.05 | L23: 7.196318492e-08 | O23: SERVIÇOS
A24: 1.1.1.1 | C24: 88262 | D24: SINAPI | E24: =INDEX('CPU - PROJETO'!$C:$C,MATCH($C24,'CPU - PROJETO'!$B:$B,0)) -> CARPINTEIRO DE FORMAS COM ENCARGOS COMPLEMENTARES | F24: =INDEX('CPU - PROJETO'!$D:$D,MATCH($C24,'CPU - PROJETO'!$B:$B,0)) -> H | G24: =INDEX('CPU - PROJETO'!T:T,MATCH(C24,'CPU - PROJETO'!O:O,0)) -> 16 | H24: =TRUNC(IF(INDEX('CPU - PROJETO'!$H:$H,MATCH($C24,'CPU - PROJETO'!$B:$B,0))=0,INDEX('CPU - PROJETO'!$I:$I,MATCH($C24,'CPU - PROJETO'!$B:$B,0)),INDEX('CPU - PROJETO'!$H:$H,MATCH($C24,'CPU - PROJETO'!$B:$B,0))),2) -> 25 | I24: 0.2272 | J24: 30.68 | K24: 490.88 | L24: 0.0007065057642 | O24: SERVIÇOS
A25: 1.1.1.1 | C25: 88316 | D25: SINAPI | E25: =INDEX('CPU - PROJETO'!$C:$C,MATCH($C25,'CPU - PROJETO'!$B:$B,0)) -> SERVENTE COM ENCARGOS COMPLEMENTARES | F25: =INDEX('CPU - PROJETO'!$D:$D,MATCH($C25,'CPU - PROJETO'!$B:$B,0)) -> H | G25: =INDEX('CPU - PROJETO'!T:T,MATCH(C25,'CPU - PROJETO'!O:O,0)) -> 32 | H25: =TRUNC(IF(INDEX('CPU - PROJETO'!$H:$H,MATCH($C25,'CPU - PROJETO'!$B:$B,0))=0,INDEX('CPU - PROJETO'!$I:$I,MATCH($C25,'CPU - PROJETO'!$B:$B,0)),INDEX('CPU - PROJETO'!$H:$H,MATCH($C25,'CPU - PROJETO'!$B:$B,0))),2) -> 20.42 | I25: 0.2272 | J25: 25.05 | K25: 801.6 | L25: 0.001153713781 | O25: SERVIÇOS
A26: 1.1.2 | B26: 1.1.2 | E26: CANTEIRO DE OBRAS | K26: =SUBTOTAL(109,K27:K31) -> 10015.18 | L26: =SUBTOTAL(109,L27:L31) -> 0.01441448501
A27: 1.1.2.1 | C27: 10776 | D27: SINAPI | E27: =INDEX('CPU - PROJETO'!$C:$C,MATCH($C27,'CPU - PROJETO'!$B:$B,0)) -> LOCACAO DE CONTAINER 2,30 X 6,00 M, ALT. 2,50 M, PARA ESCRITORIO, SEM DIVISORIAS INTERNAS E SEM SANITARIO | F27: =INDEX('CPU - PROJETO'!$D:$D,MATCH($C27,'CPU - PROJETO'!$B:$B,0)) -> MÊS | G27: =INDEX(MEMÓRIA!L:L,MATCH($A27,MEMÓRIA!A:A,0)) -> 3 | H27: =TRUNC(IF(INDEX('CPU - PROJETO'!$I:$I,MATCH($C27,'CPU - PROJETO'!$B:$B,0))=0,INDEX('CPU - PROJETO'!$J:$J,MATCH($C27,'CPU - PROJETO'!$B:$B,0)),INDEX('CPU - PROJETO'!$I:$I,MATCH($C27,'CPU - PROJETO'!$B:$B,0))),2) -> 619.53 | I27: =$I$6 -> 0.1352 | J27: =TRUNC(H27*(1+I27),2) -> 703.29 | K27: =TRUNC(G27*J27,2) -> 2109.87 | L27: =K27/$K$550 -> 0.003036659299 | O27: MATERIAL
A28: 1.1.2.2 | C28: COMP9 | D28: SINAPI | E28: =INDEX('CPU - PROJETO'!$C:$C,MATCH($C28,'CPU - PROJETO'!$B:$B,0)) -> LOCACAO DE CONTAINER PARA ALMOXARIFADO | F28: =INDEX('CPU - PROJETO'!$D:$D,MATCH($C28,'CPU - PROJETO'!$B:$B,0)) -> MÊS | G28: =INDEX(MEMÓRIA!L:L,MATCH($A28,MEMÓRIA!A:A,0)) -> 3 | H28: =TRUNC(IF(INDEX('CPU - PROJETO'!$I:$I,MATCH($C28,'CPU - PROJETO'!$B:$B,0))=0,INDEX('CPU - PROJETO'!$J:$J,MATCH($C28,'CPU - PROJETO'!$B:$B,0)),INDEX('CPU - PROJETO'!$I:$I,MATCH($C28,'CPU - PROJETO'!$B:$B,0))),2) -> 619.53 | I28: =$I$6 -> 0.1352 | J28: 703.29 | K28: 2109.87 | L28: 0.003036659299 | O28: MATERIAL
A29: 1.1.2.3 | C29: COMP10 | D29: SINAPI | E29: =INDEX('CPU - PROJETO'!$C:$C,MATCH($C29,'CPU - PROJETO'!$B:$B,0)) -> LOCACAO DE CONTAINER PARA REFEITÓRIO | F29: =INDEX('CPU - PROJETO'!$D:$D,MATCH($C29,'CPU - PROJETO'!$B:$B,0)) -> MÊS | G29: =INDEX(MEMÓRIA!L:L,MATCH($A29,MEMÓRIA!A:A,0)) -> 3 | H29: =TRUNC(IF(INDEX('CPU - PROJETO'!$I:$I,MATCH($C29,'CPU - PROJETO'!$B:$B,0))=0,INDEX('CPU - PROJETO'!$J:$J,MATCH($C29,'CPU - PROJETO'!$B:$B,0)),INDEX('CPU - PROJETO'!$I:$I,MATCH($C29,'CPU - PROJETO'!$B:$B,0))),2) -> 619.53 | I29: =$I$6 -> 0.1352 | J29: 703.29 | K29: 2109.87 | L29: 0.003036659299 | O29: MATERIAL
A30: 1.1.2.4 | C30: 10779 | D30: SINAPI | E30: =INDEX('CPU - PROJETO'!$C:$C,MATCH($C30,'CPU - PROJETO'!$B:$B,0)) -> LOCACAO DE CONTAINER 2,30 X 4,30 M, ALT. 2,50 M, P/ SANITARIO, C/ 5 BACIAS, 1 LAVATORIO E 4 MICTORIOS | F30: =INDEX('CPU - PROJETO'!$D:$D,MATCH($C30,'CPU - PROJETO'!$B:$B,0)) -> MÊS | G30: =INDEX(MEMÓRIA!L:L,MATCH($A30,MEMÓRIA!A:A,0)) -> 3 | H30: =TRUNC(IF(INDEX('CPU - PROJETO'!$I:$I,MATCH($C30,'CPU - PROJETO'!$B:$B,0))=0,INDEX('CPU - PROJETO'!$J:$J,MATCH($C30,'CPU - PROJETO'!$B:$B,0)),INDEX('CPU - PROJETO'!$I:$I,MATCH($C30,'CPU - PROJETO'!$B:$B,0))),2) -> 991.25 | I30: =$I$6 -> 0.1352 | J30: 1125.26 | K30: 3375.78 | L30: 0.004858637608 | O30: MATERIAL
A31: 1.1.2.5 | C31: 83635 | D31: SINAPI | E31: =INDEX('CPU - PROJETO'!$C:$C,MATCH($C31,'CPU - PROJETO'!$B:$B,0)) -> EXTINTOR INCENDIO TP PO QUIMICO 6KG - FORNECIMENTO E INSTALACAO | F31: =INDEX('CPU - PROJETO'!$D:$D,MATCH($C31,'CPU - PROJETO'!$B:$B,0)) -> UN | G31: =INDEX(MEMÓRIA!L:L,MATCH($A31,MEMÓRIA!A:A,0)) -> 1 | H31: =TRUNC(IF(INDEX('CPU - PROJETO'!$I:$I,MATCH($C31,'CPU - PROJETO'!$B:$B,0))=0,INDEX('CPU - PROJETO'!$J:$J,MATCH($C31,'CPU - PROJETO'!$B:$B,0)),INDEX('CPU - PROJETO'!$I:$I,MATCH($C31,'CPU - PROJETO'!$B:$B,0))),2) -> 272.9 | I31: =$I$6 -> 0.1352 | J31: =TRUNC(H31*(1+I31),2) -> 309.79 | K31: =TRUNC(G31*J31,2) -> 309.79 | L31: 0.0004458695011 | O31: MATERIAL
A32: 1.1.3 | B32: 1.1.3 | E32: MOBILIZAÇÃO | I32: =$I$5 -> 0.2272 | K32: =MEMÓRIA!L36 -> 50834.96 | L32: 0.07316491253 | O32: SERVIÇOS
A33: 1.1.4 | B33: 1.1.4 | E33: DESMOBILIZAÇÃO | I33: =$I$5 -> 0.2272 | K33: =MEMÓRIA!L49 -> 50834.96 | L33: 0.07316491253 | O33: SERVIÇOS
A34: 1.1.5 | B34: 1.1.5 | E34: ADMINISTRAÇÃO DA OBRA | K34: =SUBTOTAL(109,K35:K39) -> 170194.32 | L34: =SUBTOTAL(109,L35:L39) -> 0.2449545064
A35: 1.1.5.1 | C35: 93567 | D35: SINAPI | E35: =INDEX('CPU - PROJETO'!$C:$C,MATCH($C35,'CPU - PROJETO'!$B:$B,0)) -> ENGENHEIRO CIVIL DE OBRA PLENO COM ENCARGOS COMPLEMENTARES | F35: =INDEX('CPU - PROJETO'!$D:$D,MATCH($C35,'CPU - PROJETO'!$B:$B,0)) -> MES | G35: =INDEX(MEMÓRIA!L:L,MATCH($A35,MEMÓRIA!A:A,0)) -> 3 | H35: =TRUNC(IF(INDEX('CPU - PROJETO'!$I:$I,MATCH($C35,'CPU - PROJETO'!$B:$B,0))=0,INDEX('CPU - PROJETO'!$J:$J,MATCH($C35,'CPU - PROJETO'!$B:$B,0)),INDEX('CPU - PROJETO'!$I:$I,MATCH($C35,'CPU - PROJETO'!$B:$B,0))),2) -> 22031.7 | I35: =$I$5 -> 0.2272 | J35: =TRUNC(H35*(1+I35),2) -> 27037.3 | K35: =TRUNC(G35*J35,2) -> 81111.9 | L35: =K35/$K$550 -> 0.1167414132 | O35: SERVIÇOS
A36: 1.1.5.2 | C36: 94295 | D36: SINAPI | E36: =INDEX('CPU - PROJETO'!$C:$C,MATCH($C36,'CPU - PROJETO'!$B:$B,0)) -> MESTRE DE OBRAS COM ENCARGOS COMPLEMENTARES | F36: =INDEX('CPU - PROJETO'!$D:$D,MATCH($C36,'CPU - PROJETO'!$B:$B,0)) -> MES | G36: =INDEX(MEMÓRIA!L:L,MATCH($A36,MEMÓRIA!A:A,0)) -> 3 | H36: =TRUNC(IF(INDEX('CPU - PROJETO'!$I:$I,MATCH($C36,'CPU - PROJETO'!$B:$B,0))=0,INDEX('CPU - PROJETO'!$J:$J,MATCH($C36,'CPU - PROJETO'!$B:$B,0)),INDEX('CPU - PROJETO'!$I:$I,MATCH($C36,'CPU - PROJETO'!$B:$B,0))),2) -> 10332 | I36: =$I$5 -> 0.2272 | J36: =TRUNC(H36*(1+I36),2) -> 12679.43 | K36: =TRUNC(G36*J36,2) -> 38038.29 | L36: =K36/$K$550 -> 0.05474712994 | O36: SERVIÇOS
A37: 1.1.5.3 | C37: 88326 | D37: SINAPI | E37: =INDEX('CPU - PROJETO'!$C:$C,MATCH($C37,'CPU - PROJETO'!$B:$B,0)) -> VIGIA NOTURNO COM ENCARGOS COMPLEMENTARES | F37: =INDEX('CPU - PROJETO'!$D:$D,MATCH($C37,'CPU - PROJETO'!$B:$B,0)) -> H | G37: =INDEX(MEMÓRIA!L:L,MATCH($A37,MEMÓRIA!A:A,0)) -> 660 | H37: =TRUNC(IF(INDEX('CPU - PROJETO'!$I:$I,MATCH($C37,'CPU - PROJETO'!$B:$B,0))=0,INDEX('CPU - PROJETO'!$J:$J,MATCH($C37,'CPU - PROJETO'!$B:$B,0)),INDEX('CPU - PROJETO'!$I:$I,MATCH($C37,'CPU - PROJETO'!$B:$B,0))),2) -> 25.49 | I37: =$I$5 -> 0.2272 | J37: =TRUNC(H37*(1+I37),2) -> 31.28 | K37: =TRUNC(G37*J37,2) -> 20644.8 | L37: =K37/$K$550 -> 0.0297133112 | O37: SERVIÇOS
A38: 1.1.5.4 | C38: 93563 | D38: SINAPI | E38: =INDEX('CPU - PROJETO'!$C:$C,MATCH($C38,'CPU - PROJETO'!$B:$B,0)) -> ALMOXARIFE COM ENCARGOS COMPLEMENTARES | F38: =INDEX('CPU - PROJETO'!$D:$D,MATCH($C38,'CPU - PROJETO'!$B:$B,0)) -> MES | G38: =INDEX(MEMÓRIA!L:L,MATCH($A38,MEMÓRIA!A:A,0)) -> 3 | H38: =TRUNC(IF(INDEX('CPU - PROJETO'!$I:$I,MATCH($C38,'CPU - PROJETO'!$B:$B,0))=0,INDEX('CPU - PROJETO'!$J:$J,MATCH($C38,'CPU - PROJETO'!$B:$B,0)),INDEX('CPU - PROJETO'!$I:$I,MATCH($C38,'CPU - PROJETO'!$B:$B,0))),2) -> 3680.93 | I38: =$I$5 -> 0.2272 | J38: =TRUNC(H38*(1+I38),2) -> 4517.23 | K38: =TRUNC(G38*J38,2) -> 13551.69 | L38: =K38/$K$550 -> 0.01950445547 | O38: SERVIÇOS
A39: 1.1.5.5 | C39: 100321 | D39: SINAPI | E39: =INDEX('CPU - PROJETO'!$C:$C,MATCH($C39,'CPU - PROJETO'!$B:$B,0)) -> TÉCNICO EM SEGURANÇA DO TRABALHO COM ENCARGOS COMPLEMENTARES | F39: =INDEX('CPU - PROJETO'!$D:$D,MATCH($C39,'CPU - PROJETO'!$B:$B,0)) -> MES | G39: =INDEX(MEMÓRIA!L:L,MATCH($A39,MEMÓRIA!A:A,0)) -> 3 | H39: =TRUNC(IF(INDEX('CPU - PROJETO'!$I:$I,MATCH($C39,'CPU - PROJETO'!$B:$B,0))=0,INDEX('CPU - PROJETO'!$J:$J,MATCH($C39,'CPU - PROJETO'!$B:$B,0)),INDEX('CPU - PROJETO'!$I:$I,MATCH($C39,'CPU - PROJETO'!$B:$B,0))),2) -> 4576.18 | I39: =$I$5 -> 0.2272 | J39: =TRUNC(H39*(1+I39),2) -> 5615.88 | K39: =TRUNC(G39*J39,2) -> 16847.64 | L39: =K39/$K$550 -> 0.02424819665 | O39: =IF(I39=$I$6,"MATERIAL",IF(I39=$I$5,"SERVIÇOS"," ")) -> SERVIÇOS
A40: 1.2 | B40: 1.2 | E40: ESTRADA DE ACESSO A SUBESTAÇÃO | K40: =SUBTOTAL(109,K41) -> 19968 | L40: =SUBTOTAL(109,L41) -> 0.02873921753
A41: 1.2.1 | C41: 79472 | D41: SINAPI | E41: =INDEX('CPU - PROJETO'!$C:$C,MATCH($C41,'CPU - PROJETO'!$B:$B,0)) -> REGULARIZACAO DE SUPERFICIES EM TERRA COM MOTONIVELADORA | F41: =INDEX('CPU - PROJETO'!$D:$D,MATCH($C41,'CPU - PROJETO'!$B:$B,0)) -> M2 | G41: =INDEX(MEMÓRIA!L:L,MATCH($A41,MEMÓRIA!A:A,0)) -> 19200 | H41: =TRUNC(IF(INDEX('CPU - PROJETO'!$I:$I,MATCH($C41,'CPU - PROJETO'!$B:$B,0))=0,INDEX('CPU - PROJETO'!$J:$J,MATCH($C41,'CPU - PROJETO'!$B:$B,0)),INDEX('CPU - PROJETO'!$I:$I,MATCH($C41,'CPU - PROJETO'!$B:$B,0))),2) -> 0.85 | I41: =$I$5 -> 0.2272 | J41: =TRUNC(H41*(1+I41),2) -> 1.04 | K41: =TRUNC(G41*J41,2) -> 19968 | L41: =K41/$K$550 -> 0.02873921753 | O41: SERVIÇOS
A42: 1.3 | B42: 1.3 | E42: PASSAGEM MOLHADA | K42: =SUBTOTAL(109,K43:K52) -> 20708.04839 | L42: =SUBTOTAL(109,L43:L52) -> 0.02980434231
A43: 1.3.1 | C43: 1600436 | D43: SICRO | E43: DEMOLIÇÃO DE CONCRETO SIMPLES | F43: M3 | G43: =INDEX(MEMÓRIA!L:L,MATCH($A43,MEMÓRIA!A:A,0)) -> 4.5 | H43: =INDEX('SICRO - PASSAGEM MOLHADA'!I:I,MATCH(C43,'SICRO - PASSAGEM MOLHADA'!L:L,0)) -> 365.56 | I43: =$I$5 -> 0.2272 | J43: =TRUNC(H43*(1+I43),2) -> 448.61 | K43: =TRUNC(G43*J43,2) -> 2018.74 | L43: =K43/$K$550 -> 0.002905499198 | O43: SERVIÇOS
A44: 1.3.2 | C44: 5502109 | D44: SICRO | E44: ESCAVAÇÃO, CARGA E TRANSPORTE DE MATERIAL DE 1ª CATEGORIA - DMT de 50 a 200 m - CAMINHO DE SERVIÇO EM LEITO NATURAL - COM ESCAVADEIRA E CAMINHÃO BASCULANTE DE 14 m³ | F44: M3 | G44: =INDEX(MEMÓRIA!L:L,MATCH($A44,MEMÓRIA!A:A,0)) -> 343.65 | H44: =INDEX('SICRO - PASSAGEM MOLHADA'!I:I,MATCH(C44,'SICRO - PASSAGEM MOLHADA'!L:L,0)) -> 6.01 | I44: =$I$5 -> 0.2272 | J44: 7.37 | K44: 2532.7 | L44: =K44/$K$550 -> 0.003645223169 | O44: SERVIÇOS
A45: 1.3.3 | C45: 815671 | D45: SICRO | E45: REATERRO E COMPACTAÇÃO COM SOQUETE VIBRATÓRIO | F45: M3 | G45: =INDEX(MEMÓRIA!L:L,MATCH($A45,MEMÓRIA!A:A,0)) -> 21.79 | H45: =INDEX('SICRO - PASSAGEM MOLHADA'!I:I,MATCH(C45,'SICRO - PASSAGEM MOLHADA'!L:L,0)) -> 15.03 | I45: 0.2272 | J45: 18.44 | K45: 401.8 | L45: =K45/$K$550 -> 0.000578296154 | O45: SERVIÇOS
A46: 1.3.4 | C46: 1506055 | D46: SICRO | E46: PEDRA ARGAMASSADA COM CIMENTO E AREIA 1:3 - AREIA E PEDRA DE MÃO COMERCIAL - FORNECIMENTO E ASSENTAMENTO | F46: M3 | G46: =INDEX(MEMÓRIA!L:L,MATCH($A46,MEMÓRIA!A:A,0)) -> 30.95 | N46: =G46*'SICRO - PASSAGEM MOLHADA'!I153 -> 12743.0435
A47: 1.3.4 | C47: M1097 | D47: SICRO | E47: PEDRA DE MÃO | F47: M3 | G47: =0.8*G46 -> 24.76 | H47: =INDEX('SICRO - PASSAGEM MOLHADA'!F:F,MATCH(C47,'SICRO - PASSAGEM MOLHADA'!L:L,0)) -> 98.3227 | I47: =$I$6 -> 0.1352 | J47: =TRUNC(H47*(1+I47),2) -> 111.61 | K47: =TRUNC(G47*J47,2) -> 2763.46 | L47: =K47/$K$550 -> 0.00397734766 | O47: MATERIAL
A48: 1.3.4 | C48: M0082 | D48: SICRO | E48: AREIA MÉDIA LAVADA | F48: M3 | G48: =0.32*1.00435*G46 -> 9.9470824 | H48: =INDEX('SICRO - PASSAGEM MOLHADA'!F:F,MATCH(C48,'SICRO - PASSAGEM MOLHADA'!L:L,0)) -> 144.1929 | I48: =$I$6 -> 0.1352 | J48: =TRUNC(H48*(1+I48),2) -> 163.68 | K48: =TRUNC(G48*J48,2) -> 1628.13 | L48: 0.002343308405 | O48: MATERIAL
A49: 1.3.4 | C49: M0424 | D49: SICRO | E49: CIMENTO PORTLAND CP II - 32 | F49: KG | G49: =0.32*458.01187*G46 -> 4536.14956 | H49: =INDEX('SICRO - PASSAGEM MOLHADA'!F:F,MATCH(C49,'SICRO - PASSAGEM MOLHADA'!L:L,0)) -> 0.5631 | I49: =$I$6 -> 0.1352 | J49: 0.63 | K49: 2857.77 | L49: 0.004113084619 | O49: MATERIAL
A50: 1.3.4 | D50: SICRO | E50: INSUMOS: EQUIPAMENTO, MÃO DE OBRA E TRANSPORTE | I50: 0.2272 | K50: =(N46-SUM(K47:K49))*(1+I50) -> 6741.848391 | L50: 0.009703297649 | O50: SERVIÇOS
A51: 1.3.5 | C51: 5213464 | D51: SICRO | E51: FORNECIMENTO E IMPLANTAÇÃO DE PLACA DE ADVERTÊNCIA EM AÇO, LADO DE 0,60 m - PELÍCULA RETRORREFLETIVA TIPO I e SI | F51: UND | G51: =INDEX(MEMÓRIA!L:L,MATCH($A51,MEMÓRIA!A:A,0)) -> 4 | H51: =INDEX('SICRO - PASSAGEM MOLHADA'!I:I,MATCH(C51,'SICRO - PASSAGEM MOLHADA'!L:L,0)) -> 228.54 | I51: 0.2272 | J51: =TRUNC(H51*(1+I51),2) -> 280.46 | K51: =TRUNC(G51*J51,2) -> 1121.84 | L51: 0.001614623587 | O51: SERVIÇOS
A52: 1.3.6 | C52: 5216111 | D52: SICRO | E52: FORNECIMENTO E IMPLANTAÇÃO DE SUPORTE E TRAVESSA PARA PLACA DE SINALIZAÇÃO EM MADEIRA DE LEI TRATADA 8 x 8 CM | F52: UND | G52: =INDEX(MEMÓRIA!L:L,MATCH($A52,MEMÓRIA!A:A,0)) -> 4 | H52: =INDEX('SICRO - PASSAGEM MOLHADA'!I:I,MATCH(C52,'SICRO - PASSAGEM MOLHADA'!L:L,0)) -> 130.74 | I52: 0.2272 | J52: 160.44 | K52: 641.76 | L52: 0.000923661871 | O52: SERVIÇOS
A53: 1.4 | B53: 1.4 | E53: PLANTIO DE MACAMBIRAS E CANALETAS | K53: =SUBTOTAL(109,K54:K56) -> 62142.76 | L53: =SUBTOTAL(109,L54:L56) -> 0.08943981858
A54: 1.4.1 | C54: 4413990 | D54: SICRO | E54: PLANTIO DE MUDAS ARBUSTIVAS COM PORTE DE 50 CM EM COVAS DE 0,40 X 0,40 X 0,40 M | F54: UND | G54: =INDEX(MEMÓRIA!L:L,MATCH($A54,MEMÓRIA!A:A,0)) -> 1114 | H54: =INDEX('SICRO - MACAMBIRA'!I:I,MATCH(C54,'SICRO - MACAMBIRA'!L:L,0)) -> 35.79 | I54: =$I$5 -> 0.2272 | J54: =TRUNC(H54*(1+I54),2) -> 43.92 | K54: =TRUNC(G54*J54,2) -> 48926.88 | L54: =K54/$K$550 -> 0.07041868226 | M54: 1635-DEP-2812-04-24-001-R03; 1635-DEP-2812-04-35-001-R02 | O54: SERVIÇOS
A55: 1.4.2 | C55: 4805749 | D55: SICRO | E55: ESCAVAÇÃO MANUAL DE VALA EM MATERIAL DE 1ª CATEGORIA | F55: M3 | G55: =INDEX(MEMÓRIA!L:L,MATCH($A55,MEMÓRIA!A:A,0)) -> 20.75 | H55: =INDEX('SICRO - CANALETA'!I:I,MATCH(C55,'SICRO - CANALETA'!L:L,0)) -> 64.96 | I55: =$I$5 -> 0.2272 | J55: =TRUNC(H55*(1+I55),2) -> 79.71 | K55: =TRUNC(G55*J55,2) -> 1653.98 | L55: =K55/$K$550 -> 0.002380513372 | M55: 1635-DEP-2812-04-24-001-R03; 1635-DEP-2812-04-35-001-R02 | O55: SERVIÇOS
A56: 1.4.3 | C56: 2003799 | D56: SICRO | E56: DRENAGEM EM CANALETA MEIA CANA D = 30 cm ASSENTE SOBRE LASTRO DE AREIA - AREIA E BRITA COMERCIAIS | F56: M | G56: =INDEX(MEMÓRIA!L:L,MATCH($A56,MEMÓRIA!A:A,0)) -> 166 | H56: =INDEX('SICRO - CANALETA'!I:I,MATCH(C56,'SICRO - CANALETA'!L:L,0)) -> 56.76 | I56: =$I$5 -> 0.2272 | J56: =TRUNC(H56*(1+I56),2) -> 69.65 | K56: =TRUNC(G56*J56,2) -> 11561.9 | L56: =K56/$K$550 -> 0.01664062295 | M56: 1635-DEP-2812-04-24-001-R03; 1635-DEP-2812-04-35-001-R02 | O56: SERVIÇOS
A57: 1.5 | B57: 1.5 | E57: BRITAGEM DO PÁTIO | K57: =SUBTOTAL(109,K58:K60) -> 229128.6715 | L57: =SUBTOTAL(109,L58:L60) -> 0.3297765791
A58: 1.5.1 | C58: 2003850 | D58: SICRO | E58: LASTRO DE BRITA COMERCIAL | F58: M3 | G58: =INDEX(MEMÓRIA!L:L,MATCH($A58,MEMÓRIA!A:A,0)) -> 693.57 | N58: =G58*'SICRO - LASTRO DE BRITA'!I36 -> 205303.6557
A59: 1.5.1 | C59: M0192 | D59: SICRO | E59: BRITA 2 | F59: M3 | G59: =1.05*G58 -> 728.2485 | H59: =INDEX('SICRO - LASTRO DE BRITA'!I:I,MATCH(C59,'SICRO - LASTRO DE BRITA'!L:L,0)) -> 121.4985 | I59: =$I$6 -> 0.1352 | J59: =TRUNC(H59*(1+I59),2) -> 137.92 | K59: =TRUNC(G59*J59,2) -> 100440.03 | L59: =K59/$K$550 -> 0.144559689 | O59: MATERIAL
A60: 1.5.1 | D60: SICRO | E60: INSUMOS: EQUIPAMENTO, MÃO DE OBRA E TRANSPORTE | I60: =$I$5 -> 0.2272 | K60: =(N58-K59)*(1+I60) -> 128688.6415 | L60: =K60/$K$550 -> 0.18521689 | O60: SERVIÇOS
A61: 1.6 | B61: 1.6 | E61: TAMPAS DE CANALETAS DO GGE | K61: =SUBTOTAL(109,K62:K66) -> 3460.44 | L61: =SUBTOTAL(109,L62:L66) -> 0.004980485672
A62: 1.6.1 | B62: 1.6.1 | C62: COMP1 | D62: P/SINAPI | E62: =INDEX('CPU - PROJETO'!$C:$C,MATCH($C62,'CPU - PROJETO'!$B:$B,0)) -> FORNEC. E ASSENT. DE TAMPA METALICA EM CHAPA DE ACO XADREZ COM SUPORTE PARA TRAFEGO | F62: =INDEX('CPU - PROJETO'!$D:$D,MATCH($C62,'CPU - PROJETO'!$B:$B,0)) -> M2 | G62: =INDEX(MEMÓRIA!L:L,MATCH($A62,MEMÓRIA!A:A,0)) -> 4
A63: 1.6.1 88309 | C63: 88309 | D63: P/SINAPI | E63: =INDEX('CPU - PROJETO'!$C:$C,MATCH($C63,'CPU - PROJETO'!$B:$B,0)) -> PEDREIRO COM ENCARGOS COMPLEMENTARES | F63: =INDEX('CPU - PROJETO'!$D:$D,MATCH($C63,'CPU - PROJETO'!$B:$B,0)) -> H | G63: =INDEX('CPU - PROJETO'!T:T,MATCH(A63,'CPU - PROJETO'!W:W,0)) -> 2.4 | H63: =TRUNC(IF(INDEX('CPU - PROJETO'!$H:$H,MATCH($C63,'CPU - PROJETO'!$B:$B,0))=0,INDEX('CPU - PROJETO'!$I:$I,MATCH($C63,'CPU - PROJETO'!$B:$B,0)),INDEX('CPU - PROJETO'!$H:$H,MATCH($C63,'CPU - PROJETO'!$B:$B,0))),2) -> 25.38 | I63: 0.2272 | J63: =TRUNC(H63*(1+I63),2) -> 31.14 | K63: =TRUNC(G63*J63,2) -> 74.73 | L63: =K63/$K$550 -> 0.0001075561762 | O63: SERVIÇOS
A64: 1.6.1 88316 | C64: 88316 | D64: P/SINAPI | E64: =INDEX('CPU - PROJETO'!$C:$C,MATCH($C64,'CPU - PROJETO'!$B:$B,0)) -> SERVENTE COM ENCARGOS COMPLEMENTARES | F64: =INDEX('CPU - PROJETO'!$D:$D,MATCH($C64,'CPU - PROJETO'!$B:$B,0)) -> H | G64: =INDEX('CPU - PROJETO'!T:T,MATCH(A64,'CPU - PROJETO'!W:W,0)) -> 2.4 | H64: =TRUNC(IF(INDEX('CPU - PROJETO'!$H:$H,MATCH($C64,'CPU - PROJETO'!$B:$B,0))=0,INDEX('CPU - PROJETO'!$I:$I,MATCH($C64,'CPU - PROJETO'!$B:$B,0)),INDEX('CPU - PROJETO'!$H:$H,MATCH($C64,'CPU - PROJETO'!$B:$B,0))),2) -> 20.42 | I64: 0.2272 | J64: =TRUNC(H64*(1+I64),2) -> 25.05 | K64: =TRUNC(G64*J64,2) -> 60.12 | L64: =K64/$K$550 -> 8.652853354e-05 | O64: SERVIÇOS
A65: 1.6.1 88315 | C65: 88315 | D65: P/SINAPI | E65: =INDEX('CPU - PROJETO'!$C:$C,MATCH($C65,'CPU - PROJETO'!$B:$B,0)) -> SERRALHEIRO COM ENCARGOS COMPLEMENTARES | F65: =INDEX('CPU - PROJETO'!$D:$D,MATCH($C65,'CPU - PROJETO'!$B:$B,0)) -> H | G65: =INDEX('CPU - PROJETO'!T:T,MATCH(A65,'CPU - PROJETO'!W:W,0)) -> 16 | H65: =TRUNC(IF(INDEX('CPU - PROJETO'!$H:$H,MATCH($C65,'CPU - PROJETO'!$B:$B,0))=0,INDEX('CPU - PROJETO'!$I:$I,MATCH($C65,'CPU - PROJETO'!$B:$B,0)),INDEX('CPU - PROJETO'!$H:$H,MATCH($C65,'CPU - PROJETO'!$B:$B,0))),2) -> 25.18 | I65: 0.2272 | J65: 30.9 | K65: 494.4 | L65: =K65/$K$550 -> 0.0007115719725 | O65: SERVIÇOS
A66: 1.6.1 1337 | C66: 1337 | D66: P/SINAPI | E66: =INDEX('CPU - PROJETO'!$C:$C,MATCH($C66,'CPU - PROJETO'!$B:$B,0)) -> CHAPA DE ACO XADREZ PARA PISOS, E = 1/4 " (6,30 MM) 54,53 KG/M2 | F66: =INDEX('CPU - PROJETO'!$D:$D,MATCH($C66,'CPU - PROJETO'!$B:$B,0)) -> KG | G66: =INDEX('CPU - PROJETO'!T:T,MATCH(A66,'CPU - PROJETO'!W:W,0)) -> 218.12 | H66: =TRUNC(IF(INDEX('CPU - PROJETO'!$H:$H,MATCH($C66,'CPU - PROJETO'!$B:$B,0))=0,INDEX('CPU - PROJETO'!$I:$I,MATCH($C66,'CPU - PROJETO'!$B:$B,0)),INDEX('CPU - PROJETO'!$H:$H,MATCH($C66,'CPU - PROJETO'!$B:$B,0))),2) -> 11.44 | I66: =$I$6 -> 0.1352 | J66: 12.98 | K66: 2831.19 | L66: =K66/$K$550 -> 0.00407482899 | O66: MATERIAL
A67: 1.7 | B67: 1.7 | E67: EDIFÍCIO DE APOIO A MANUTENÇÃO | K67: =SUBTOTAL(109,K68:K524) -> 53725.52 | L67: =SUBTOTAL(109,L68:L524) -> 0.07732519061
A68: 1.7.1 | B68: 1.7.1 | E68: PISOS E PAVIMENTAÇÃO | K68: =SUBTOTAL(109,K69:K112) -> 6378.91 | L68: =SUBTOTAL(109,L69:L112) -> 0.009180933598
A69: 1.7.1.1 | B69: 1.7.1.1 | C69: 87620 | D69: SINAPI | E69: =INDEX('CPU - PROJETO'!$C:$C,MATCH($C69,'CPU - PROJETO'!$B:$B,0)) -> CONTRAPISO EM ARGAMASSA TRAÇO 1:4 (CIMENTO E AREIA), PREPARO MECÂNICO COM BETONEIRA 400 L, APLICADO EM ÁREAS SECAS SOBRE LAJE, ADERIDO, ESPESSURA 2CM. AF_06/2014 | F69: =INDEX('CPU - PROJETO'!$D:$D,MATCH($C69,'CPU - PROJETO'!$B:$B,0)) -> M2 | G69: =INDEX(MEMÓRIA!L:L,MATCH($A69,MEMÓRIA!A:A,0)) -> 31
A70: 1.7.1.1 1379 | C70: 1379 | D70: SINAPI | E70: =INDEX('CPU - PROJETO'!$C:$C,MATCH($C70,'CPU - PROJETO'!$B:$B,0)) -> CIMENTO PORTLAND COMPOSTO CP II-32 | F70: =INDEX('CPU - PROJETO'!$D:$D,MATCH($C70,'CPU - PROJETO'!$B:$B,0)) -> KG | G70: =INDEX('CPU - PROJETO'!T:T,MATCH(A70,'CPU - PROJETO'!W:W,0)) -> 15.5 | H70: =TRUNC(IF(INDEX('CPU - PROJETO'!$H:$H,MATCH($C70,'CPU - PROJETO'!$B:$B,0))=0,INDEX('CPU - PROJETO'!$I:$I,MATCH($C70,'CPU - PROJETO'!$B:$B,0)),INDEX('CPU - PROJETO'!$H:$H,MATCH($C70,'CPU - PROJETO'!$B:$B,0))),2) -> 0.7 | I70: =$I$6 -> 0.1352 | J70: =TRUNC(H70*(1+I70),2) -> 0.79 | K70: =TRUNC(G70*J70,2) -> 12.24 | L70: =K70/$K$550 -> 1.761658767e-05 | O70: MATERIAL
A71: 1.7.1.1 7334 | C71: 7334 | D71: SINAPI | E71: =INDEX('CPU - PROJETO'!$C:$C,MATCH($C71,'CPU - PROJETO'!$B:$B,0)) -> ADITIVO ADESIVO LIQUIDO PARA ARGAMASSAS DE REVESTIMENTOS CIMENTICIOS | F71: =INDEX('CPU - PROJETO'!$D:$D,MATCH($C71,'CPU - PROJETO'!$B:$B,0)) -> L | G71: =INDEX('CPU - PROJETO'!T:T,MATCH(A71,'CPU - PROJETO'!W:W,0)) -> 6.51 | H71: =TRUNC(IF(INDEX('CPU - PROJETO'!$H:$H,MATCH($C71,'CPU - PROJETO'!$B:$B,0))=0,INDEX('CPU - PROJETO'!$I:$I,MATCH($C71,'CPU - PROJETO'!$B:$B,0)),INDEX('CPU - PROJETO'!$H:$H,MATCH($C71,'CPU - PROJETO'!$B:$B,0))),2) -> 16.08 | I71: =$I$6 -> 0.1352 | J71: =TRUNC(H71*(1+I71),2) -> 18.25 | K71: =TRUNC(G71*J71,2) -> 118.8 | L71: 0.0001709845274 | O71: MATERIAL
A72: 1.7.1.1 87301 | C72: 87301 | D72: SINAPI | E72: =INDEX('CPU - PROJETO'!$C:$C,MATCH($C72,'CPU - PROJETO'!$B:$B,0)) -> ARGAMASSA TRAÇO 1:4 (EM VOLUME DE CIMENTO E AREIA MÉDIA ÚMIDA) PARA CONTRAPISO, PREPARO MECÂNICO COM BETONEIRA 400 L. AF_08/2019 | F72: =INDEX('CPU - PROJETO'!$D:$D,MATCH($C72,'CPU - PROJETO'!$B:$B,0)) -> M3 | G72: =INDEX('CPU - PROJETO'!T:T,MATCH(A72,'CPU - PROJETO'!W:W,0)) -> 0.961
A73: 1.7.1.1 370 | C73: =MID(A73,9,20) -> 370 | D73: SINAPI | E73: =INDEX('CPU - PROJ.AUX'!$P:$P,MATCH($A73,'CPU - PROJ.AUX'!$W:$W,0)) -> AREIA MEDIA - POSTO JAZIDA/FORNECEDOR (RETIRADO NA JAZIDA, SEM TRANSPORTE) | F73: =INDEX('CPU - PROJ.AUX'!$R:$R,MATCH($A73,'CPU - PROJ.AUX'!$W:$W,0)) -> M3 | G73: =INDEX('CPU - PROJ.AUX'!T:T,MATCH(A73,'CPU - PROJ.AUX'!W:W,0))*$G$69 -> 1.30696 | H73: =TRUNC(IF(INDEX('CPU - PROJ.AUX'!$H:$H,MATCH($A73,'CPU - PROJ.AUX'!$W:$W,0))=0,INDEX('CPU - PROJ.AUX'!$I:$I,MATCH($A73,'CPU - PROJ.AUX'!$W:$W,0)),INDEX('CPU - PROJ.AUX'!$H:$H,MATCH($A73,'CPU - PROJ.AUX'!$W:$W,0))),2) -> 129 | I73: =$I$6 -> 0.1352 | J73: 146.44 | K73: 191.39 | L73: 0.0002754606792 | O73: MATERIAL
A74: 1.7.1.1 1379 | C74: =MID(A74,9,20) -> 1379 | D74: SINAPI | E74: =INDEX('CPU - PROJ.AUX'!$P:$P,MATCH($A74,'CPU - PROJ.AUX'!$W:$W,0)) -> CIMENTO PORTLAND COMPOSTO CP II-32 | F74: =INDEX('CPU - PROJ.AUX'!$R:$R,MATCH($A74,'CPU - PROJ.AUX'!$W:$W,0)) -> KG | G74: =INDEX('CPU - PROJ.AUX'!T:T,MATCH(A74,'CPU - PROJ.AUX'!W:W,0))*$G$69 -> 441.91585 | H74: =TRUNC(IF(INDEX('CPU - PROJ.AUX'!$H:$H,MATCH($A74,'CPU - PROJ.AUX'!$W:$W,0))=0,INDEX('CPU - PROJ.AUX'!$I:$I,MATCH($A74,'CPU - PROJ.AUX'!$W:$W,0)),INDEX('CPU - PROJ.AUX'!$H:$H,MATCH($A74,'CPU - PROJ.AUX'!$W:$W,0))),2) -> 0.7 | I74: =$I$6 -> 0.1352 | J74: =TRUNC(H74*(1+I74),2) -> 0.79 | K74: =TRUNC(G74*J74,2) -> 349.11 | L74: 0.0005024613497 | O74: =IF(I74=$I$6,"MATERIAL",IF(I74=$I$5,"SERVIÇOS"," ")) -> MATERIAL
A75: 1.7.1.1 88377 | C75: 88377 | D75: SINAPI | E75: =INDEX('CPU - PROJ.AUX'!$P:$P,MATCH($A75,'CPU - PROJ.AUX'!$W:$W,0)) -> OPERADOR DE BETONEIRA ESTACIONÁRIA/MISTURADOR COM ENCARGOS COMPLEMENTARES | F75: =INDEX('CPU - PROJ.AUX'!$R:$R,MATCH($A75,'CPU - PROJ.AUX'!$W:$W,0)) -> H | G75: =INDEX('CPU - PROJ.AUX'!T:T,MATCH(A75,'CPU - PROJ.AUX'!W:W,0))*$G$69 -> 4.66085 | H75: =TRUNC(IF(INDEX('CPU - PROJ.AUX'!$H:$H,MATCH($A75,'CPU - PROJ.AUX'!$W:$W,0))=0,INDEX('CPU - PROJ.AUX'!$I:$I,MATCH($A75,'CPU - PROJ.AUX'!$W:$W,0)),INDEX('CPU - PROJ.AUX'!$H:$H,MATCH($A75,'CPU - PROJ.AUX'!$W:$W,0))),2) -> 28.14 | I75: 0.2272 | J75: 34.53 | K75: 160.93 | L75: 0.000231620707 | O75: SERVIÇOS
A76: 1.7.1.1 88830 | C76: 88830 | D76: SINAPI | E76: =INDEX('CPU - PROJ.AUX'!$P:$P,MATCH($A76,'CPU - PROJ.AUX'!$W:$W,0)) -> BETONEIRA CAPACIDADE NOMINAL DE 400 L, CAPACIDADE DE MISTURA 280 L, MOTOR ELÉTRICO TRIFÁSICO POTÊNCIA DE 2 CV, SEM CARREGADOR - CHP DIURNO. AF_10/2014 | F76: =INDEX('CPU - PROJ.AUX'!$R:$R,MATCH($A76,'CPU - PROJ.AUX'!$W:$W,0)) -> CHP | G76: =INDEX('CPU - PROJ.AUX'!T:T,MATCH(A76,'CPU - PROJ.AUX'!W:W,0))*$G$69 -> 1.08593 | H76: =TRUNC(IF(INDEX('CPU - PROJ.AUX'!$H:$H,MATCH($A76,'CPU - PROJ.AUX'!$W:$W,0))=0,INDEX('CPU - PROJ.AUX'!$I:$I,MATCH($A76,'CPU - PROJ.AUX'!$W:$W,0)),INDEX('CPU - PROJ.AUX'!$H:$H,MATCH($A76,'CPU - PROJ.AUX'!$W:$W,0))),2) -> 1.88 | I76: 0.2272 | J76: 2.3 | K76: 2.49 | L76: 3.583766609e-06 | O76: SERVIÇOS
A77: 1.7.1.1 88831 | C77: 88831 | D77: SINAPI | E77: =INDEX('CPU - PROJ.AUX'!$P:$P,MATCH($A77,'CPU - PROJ.AUX'!$W:$W,0)) -> BETONEIRA CAPACIDADE NOMINAL DE 400 L, CAPACIDADE DE MISTURA 280 L, MOTOR ELÉTRICO TRIFÁSICO POTÊNCIA DE 2 CV, SEM CARREGADOR - CHI DIURNO. AF_10/2014 | F77: =INDEX('CPU - PROJ.AUX'!$R:$R,MATCH($A77,'CPU - PROJ.AUX'!$W:$W,0)) -> CHI | G77: =INDEX('CPU - PROJ.AUX'!T:T,MATCH(A77,'CPU - PROJ.AUX'!W:W,0))*$G$69 -> 3.57492 | H77: =TRUNC(IF(INDEX('CPU - PROJ.AUX'!$H:$H,MATCH($A77,'CPU - PROJ.AUX'!$W:$W,0))=0,INDEX('CPU - PROJ.AUX'!$I:$I,MATCH($A77,'CPU - PROJ.AUX'!$W:$W,0)),INDEX('CPU - PROJ.AUX'!$H:$H,MATCH($A77,'CPU - PROJ.AUX'!$W:$W,0))),2) -> 0.39 | I77: 0.2272 | J77: 0.47 | K77: 1.68 | L77: 2.417963013e-06 | O77: SERVIÇOS
A78: 1.7.1.1 88309 | C78: 88309 | D78: SINAPI | E78: =INDEX('CPU - PROJETO'!$C:$C,MATCH($C78,'CPU - PROJETO'!$B:$B,0)) -> PEDREIRO COM ENCARGOS COMPLEMENTARES | F78: =INDEX('CPU - PROJETO'!$D:$D,MATCH($C78,'CPU - PROJETO'!$B:$B,0)) -> H | G78: =INDEX('CPU - PROJETO'!T:T,MATCH(A78,'CPU - PROJETO'!W:W,0)) -> 6.634 | H78: =TRUNC(IF(INDEX('CPU - PROJETO'!$H:$H,MATCH($C78,'CPU - PROJETO'!$B:$B,0))=0,INDEX('CPU - PROJETO'!$I:$I,MATCH($C78,'CPU - PROJETO'!$B:$B,0)),INDEX('CPU - PROJETO'!$H:$H,MATCH($C78,'CPU - PROJETO'!$B:$B,0))),2) -> 25.38 | I78: 0.2272 | J78: =TRUNC(H78*(1+I78),2) -> 31.14 | K78: =TRUNC(G78*J78,2) -> 206.58 | L78: 0.0002973230948 | O78: SERVIÇOS
A79: 1.7.1.1 88316 | C79: 88316 | D79: SINAPI | E79: =INDEX('CPU - PROJETO'!$C:$C,MATCH($C79,'CPU - PROJETO'!$B:$B,0)) -> SERVENTE COM ENCARGOS COMPLEMENTARES | F79: =INDEX('CPU - PROJETO'!$D:$D,MATCH($C79,'CPU - PROJETO'!$B:$B,0)) -> H | G79: =INDEX('CPU - PROJETO'!T:T,MATCH(A79,'CPU - PROJETO'!W:W,0)) -> 3.317 | H79: =TRUNC(IF(INDEX('CPU - PROJETO'!$H:$H,MATCH($C79,'CPU - PROJETO'!$B:$B,0))=0,INDEX('CPU - PROJETO'!$I:$I,MATCH($C79,'CPU - PROJETO'!$B:$B,0)),INDEX('CPU - PROJETO'!$H:$H,MATCH($C79,'CPU - PROJETO'!$B:$B,0))),2) -> 20.42 | I79: 0.2272 | J79: =TRUNC(H79*(1+I79),2) -> 25.05 | K79: =TRUNC(G79*J79,2) -> 83.09 | L79: 0.0001195884207 | O79: SERVIÇOS
A80: 1.7.1.2 | B80: 1.7.1.2 | C80: 87248 | D80: SINAPI | E80: =INDEX('CPU - PROJETO'!$C:$C,MATCH($C80,'CPU - PROJETO'!$B:$B,0)) -> REVESTIMENTO CERÂMICO PARA PISO COM PLACAS TIPO ESMALTADA EXTRA DE DIMENSÕES 35X35 CM APLICADA EM AMBIENTES DE ÁREA MAIOR QUE 10 M2. AF_06/2014 | F80: =INDEX('CPU - PROJETO'!$D:$D,MATCH($C80,'CPU - PROJETO'!$B:$B,0)) -> M2 | G80: =INDEX(MEMÓRIA!L:L,MATCH($A80,MEMÓRIA!A:A,0)) -> 61.25
A81: 1.7.1.2 1287 | C81: 1287 | D81: SINAPI | E81: =INDEX('CPU - PROJETO'!$C:$C,MATCH($C81,'CPU - PROJETO'!$B:$B,0)) -> PISO EM CERAMICA ESMALTADA EXTRA, PEI MAIOR OU IGUAL A 4, FORMATO MENOR OU IGUAL A 2025 CM2 | F81: =INDEX('CPU - PROJETO'!$D:$D,MATCH($C81,'CPU - PROJETO'!$B:$B,0)) -> M2 | G81: =INDEX('CPU - PROJETO'!T:T,MATCH(A81,'CPU - PROJETO'!W:W,0)) -> 64.925 | H81: =TRUNC(IF(INDEX('CPU - PROJETO'!$H:$H,MATCH($C81,'CPU - PROJETO'!$B:$B,0))=0,INDEX('CPU - PROJETO'!$I:$I,MATCH($C81,'CPU - PROJETO'!$B:$B,0)),INDEX('CPU - PROJETO'!$H:$H,MATCH($C81,'CPU - PROJETO'!$B:$B,0))),2) -> 33.9 | I81: =$I$6 -> 0.1352 | J81: =TRUNC(H81*(1+I81),2) -> 38.48 | K81: =TRUNC(G81*J81,2) -> 2498.31 | L81: 0.00359572689 | O81: MATERIAL
A82: 1.7.1.2 1381 | C82: 1381 | D82: SINAPI | E82: =INDEX('CPU - PROJETO'!$C:$C,MATCH($C82,'CPU - PROJETO'!$B:$B,0)) -> ARGAMASSA COLANTE AC I PARA CERAMICAS | F82: =INDEX('CPU - PROJETO'!$D:$D,MATCH($C82,'CPU - PROJETO'!$B:$B,0)) -> KG | G82: =INDEX('CPU - PROJETO'!T:T,MATCH(A82,'CPU - PROJETO'!W:W,0)) -> 297.675 | H82: =TRUNC(IF(INDEX('CPU - PROJETO'!$H:$H,MATCH($C82,'CPU - PROJETO'!$B:$B,0))=0,INDEX('CPU - PROJETO'!$I:$I,MATCH($C82,'CPU - PROJETO'!$B:$B,0)),INDEX('CPU - PROJETO'!$H:$H,MATCH($C82,'CPU - PROJETO'!$B:$B,0))),2) -> 0.95 | I82: =$I$6 -> 0.1352 | J82: =TRUNC(H82*(1+I82),2) -> 1.07 | K82: =TRUNC(G82*J82,2) -> 318.51 | L82: 0.0004584198806 | O82: MATERIAL
A83: 1.7.1.2 34357 | C83: 34357 | D83: SINAPI | E83: =INDEX('CPU - PROJETO'!$C:$C,MATCH($C83,'CPU - PROJETO'!$B:$B,0)) -> REJUNTE CIMENTICIO, QUALQUER COR | F83: =INDEX('CPU - PROJETO'!$D:$D,MATCH($C83,'CPU - PROJETO'!$B:$B,0)) -> KG | G83: =INDEX('CPU - PROJETO'!T:T,MATCH(A83,'CPU - PROJETO'!W:W,0)) -> 14.7 | H83: =TRUNC(IF(INDEX('CPU - PROJETO'!$H:$H,MATCH($C83,'CPU - PROJETO'!$B:$B,0))=0,INDEX('CPU - PROJETO'!$I:$I,MATCH($C83,'CPU - PROJETO'!$B:$B,0)),INDEX('CPU - PROJETO'!$H:$H,MATCH($C83,'CPU - PROJETO'!$B:$B,0))),2) -> 5.57 | I83: =$I$6 -> 0.1352 | J83: 6.32 | K83: 92.9 | L83: 0.0001337075976 | O83: MATERIAL
A84: 1.7.1.2 88256 | C84: 88256 | D84: SINAPI | E84: =INDEX('CPU - PROJETO'!$C:$C,MATCH($C84,'CPU - PROJETO'!$B:$B,0)) -> AZULEJISTA OU LADRILHISTA COM ENCARGOS COMPLEMENTARES | F84: =INDEX('CPU - PROJETO'!$D:$D,MATCH($C84,'CPU - PROJETO'!$B:$B,0)) -> H | G84: =INDEX('CPU - PROJETO'!T:T,MATCH(A84,'CPU - PROJETO'!W:W,0)) -> 14.7 | H84: =TRUNC(IF(INDEX('CPU - PROJETO'!$H:$H,MATCH($C84,'CPU - PROJETO'!$B:$B,0))=0,INDEX('CPU - PROJETO'!$I:$I,MATCH($C84,'CPU - PROJETO'!$B:$B,0)),INDEX('CPU - PROJETO'!$H:$H,MATCH($C84,'CPU - PROJETO'!$B:$B,0))),2) -> 25.25 | I84: 0.2272 | J84: =TRUNC(H84*(1+I84),2) -> 30.98 | K84: =TRUNC(G84*J84,2) -> 455.4 | L84: 0.0006554406882 | O84: SERVIÇOS
A85: 1.7.1.2 88316 | B85: Grupo Motor Gerador com 155/170kVA cabinado (Fornecido com Databook, contendo: ensaios de rotinas, tipo, manual de instrução, desenhos elétricos, e mecânicos) | C85: 88316 | D85: SINAPI | E85: =INDEX('CPU - PROJETO'!$C:$C,MATCH($C85,'CPU - PROJETO'!$B:$B,0)) -> SERVENTE COM ENCARGOS COMPLEMENTARES | F85: =INDEX('CPU - PROJETO'!$D:$D,MATCH($C85,'CPU - PROJETO'!$B:$B,0)) -> H | G85: =INDEX('CPU - PROJETO'!T:T,MATCH(A85,'CPU - PROJETO'!W:W,0)) -> 9.1875 | H85: =TRUNC(IF(INDEX('CPU - PROJETO'!$H:$H,MATCH($C85,'CPU - PROJETO'!$B:$B,0))=0,INDEX('CPU - PROJETO'!$I:$I,MATCH($C85,'CPU - PROJETO'!$B:$B,0)),INDEX('CPU - PROJETO'!$H:$H,MATCH($C85,'CPU - PROJETO'!$B:$B,0))),2) -> 20.42 | I85: 0.2272 | J85: =TRUNC(H85*(1+I85),2) -> 25.05 | K85: =TRUNC(G85*J85,2) -> 230.14 | L85: 0.0003312321475 | O85: SERVIÇOS
A86: 1.7.1.3 | B86: 1.7.1.3 | C86: 88648 | D86: SINAPI | E86: =INDEX('CPU - PROJETO'!$C:$C,MATCH($C86,'CPU - PROJETO'!$B:$B,0)) -> RODAPÉ CERÂMICO DE 7CM DE ALTURA COM PLACAS TIPO ESMALTADA EXTRA DE DIMENSÕES 35X35CM. AF_06/2014 | F86: =INDEX('CPU - PROJETO'!$D:$D,MATCH($C86,'CPU - PROJETO'!$B:$B,0)) -> M | G86: =INDEX(MEMÓRIA!L:L,MATCH($A86,MEMÓRIA!A:A,0)) -> 19.36
A87: 1.7.1.3 1287 | C87: 1287 | D87: SINAPI | E87: =INDEX('CPU - PROJETO'!$C:$C,MATCH($C87,'CPU - PROJETO'!$B:$B,0)) -> PISO EM CERAMICA ESMALTADA EXTRA, PEI MAIOR OU IGUAL A 4, FORMATO MENOR OU IGUAL A 2025 CM2 | F87: =INDEX('CPU - PROJETO'!$D:$D,MATCH($C87,'CPU - PROJETO'!$B:$B,0)) -> M2 | G87: =INDEX('CPU - PROJETO'!T:T,MATCH(A87,'CPU - PROJETO'!W:W,0)) -> 2.38128 | H87: =TRUNC(IF(INDEX('CPU - PROJETO'!$H:$H,MATCH($C87,'CPU - PROJETO'!$B:$B,0))=0,INDEX('CPU - PROJETO'!$I:$I,MATCH($C87,'CPU - PROJETO'!$B:$B,0)),INDEX('CPU - PROJETO'!$H:$H,MATCH($C87,'CPU - PROJETO'!$B:$B,0))),2) -> 33.9 | I87: =$I$6 -> 0.1352 | J87: =TRUNC(H87*(1+I87),2) -> 38.48 | K87: =TRUNC(G87*J87,2) -> 91.63 | L87: 0.0001318797327 | O87: MATERIAL
A88: 1.7.1.3 1381 | C88: 1381 | D88: SINAPI | E88: =INDEX('CPU - PROJETO'!$C:$C,MATCH($C88,'CPU - PROJETO'!$B:$B,0)) -> ARGAMASSA COLANTE AC I PARA CERAMICAS | F88: =INDEX('CPU - PROJETO'!$D:$D,MATCH($C88,'CPU - PROJETO'!$B:$B,0)) -> KG | G88: =INDEX('CPU - PROJETO'!T:T,MATCH(A88,'CPU - PROJETO'!W:W,0)) -> 11.67408 | H88: =TRUNC(IF(INDEX('CPU - PROJETO'!$H:$H,MATCH($C88,'CPU - PROJETO'!$B:$B,0))=0,INDEX('CPU - PROJETO'!$I:$I,MATCH($C88,'CPU - PROJETO'!$B:$B,0)),INDEX('CPU - PROJETO'!$H:$H,MATCH($C88,'CPU - PROJETO'!$B:$B,0))),2) -> 0.95 | I88: =$I$6 -> 0.1352 | J88: 1.07 | K88: 12.49 | L88: 1.797640359e-05 | O88: MATERIAL
A89: 1.7.1.3 34357 | C89: 34357 | D89: SINAPI | E89: =INDEX('CPU - PROJETO'!$C:$C,MATCH($C89,'CPU - PROJETO'!$B:$B,0)) -> REJUNTE CIMENTICIO, QUALQUER COR | F89: =INDEX('CPU - PROJETO'!$D:$D,MATCH($C89,'CPU - PROJETO'!$B:$B,0)) -> KG | G89: =INDEX('CPU - PROJETO'!T:T,MATCH(A89,'CPU - PROJETO'!W:W,0)) -> 1.6456 | H89: =TRUNC(IF(INDEX('CPU - PROJETO'!$H:$H,MATCH($C89,'CPU - PROJETO'!$B:$B,0))=0,INDEX('CPU - PROJETO'!$I:$I,MATCH($C89,'CPU - PROJETO'!$B:$B,0)),INDEX('CPU - PROJETO'!$H:$H,MATCH($C89,'CPU - PROJETO'!$B:$B,0))),2) -> 5.57 | I89: =$I$6 -> 0.1352 | J89: 6.32 | K89: 10.4 | L89: 1.496834246e-05 | O89: MATERIAL
A90: 1.7.1.3 88256 | C90: 88256 | D90: SINAPI | E90: =INDEX('CPU - PROJETO'!$C:$C,MATCH($C90,'CPU - PROJETO'!$B:$B,0)) -> AZULEJISTA OU LADRILHISTA COM ENCARGOS COMPLEMENTARES | F90: =INDEX('CPU - PROJETO'!$D:$D,MATCH($C90,'CPU - PROJETO'!$B:$B,0)) -> H | G90: =INDEX('CPU - PROJETO'!T:T,MATCH(A90,'CPU - PROJETO'!W:W,0)) -> 1.3552 | H90: =TRUNC(IF(INDEX('CPU - PROJETO'!$H:$H,MATCH($C90,'CPU - PROJETO'!$B:$B,0))=0,INDEX('CPU - PROJETO'!$I:$I,MATCH($C90,'CPU - PROJETO'!$B:$B,0)),INDEX('CPU - PROJETO'!$H:$H,MATCH($C90,'CPU - PROJETO'!$B:$B,0))),2) -> 25.25 | I90: 0.2272 | J90: 30.98 | K90: 41.98 | L90: 6.042029006e-05 | O90: SERVIÇOS
A91: 1.7.1.3 88316 | C91: 88316 | D91: SINAPI | E91: =INDEX('CPU - PROJETO'!$C:$C,MATCH($C91,'CPU - PROJETO'!$B:$B,0)) -> SERVENTE COM ENCARGOS COMPLEMENTARES | F91: =INDEX('CPU - PROJETO'!$D:$D,MATCH($C91,'CPU - PROJETO'!$B:$B,0)) -> H | G91: =INDEX('CPU - PROJETO'!T:T,MATCH(A91,'CPU - PROJETO'!W:W,0)) -> 0.60016 | H91: =TRUNC(IF(INDEX('CPU - PROJETO'!$H:$H,MATCH($C91,'CPU - PROJETO'!$B:$B,0))=0,INDEX('CPU - PROJETO'!$I:$I,MATCH($C91,'CPU - PROJETO'!$B:$B,0)),INDEX('CPU - PROJETO'!$H:$H,MATCH($C91,'CPU - PROJETO'!$B:$B,0))),2) -> 20.42 | I91: 0.2272 | J91: 25.05 | K91: 15.03 | L91: 2.163213339e-05 | O91: SERVIÇOS
A92: 1.7.1.4 | B92: 1.7.1.4 | C92: CPU-94998 | D92: SINAPI | E92: =INDEX('CPU - PROJETO'!$C:$C,MATCH($C92,'CPU - PROJETO'!$B:$B,0)) -> EXECUÇÃO DE PASSEIO (CALÇADA) OU PISO DE CONCRETO COM CONCRETO MOLDADO IN LOCO, FEITO EM OBRA, ACABAMENTO CONVENCIONAL, ESPESSURA 12 CM, ARMADO. AF_07/2016 | F92: =INDEX('CPU - PROJETO'!$D:$D,MATCH($C92,'CPU - PROJETO'!$B:$B,0)) -> M2 | G92: =INDEX(MEMÓRIA!L:L,MATCH($A92,MEMÓRIA!A:A,0)) -> 6.3
A93: 1.7.1.4 3777 | C93: 3777 | D93: SINAPI | E93: =INDEX('CPU - PROJETO'!$C:$C,MATCH($C93,'CPU - PROJETO'!$B:$B,0)) -> LONA PLASTICA PESADA PRETA, E = 150 MICRA | F93: =INDEX('CPU - PROJETO'!$D:$D,MATCH($C93,'CPU - PROJETO'!$B:$B,0)) -> M2 | G93: =INDEX('CPU - PROJETO'!T:T,MATCH(A93,'CPU - PROJETO'!W:W,0)) -> 7.1064 | H93: =TRUNC(IF(INDEX('CPU - PROJETO'!$H:$H,MATCH($C93,'CPU - PROJETO'!$B:$B,0))=0,INDEX('CPU - PROJETO'!$I:$I,MATCH($C93,'CPU - PROJETO'!$B:$B,0)),INDEX('CPU - PROJETO'!$H:$H,MATCH($C93,'CPU - PROJETO'!$B:$B,0))),2) -> 2.35 | I93: =$I$6 -> 0.1352 | J93: =TRUNC(H93*(1+I93),2) -> 2.66 | K93: =TRUNC(G93*J93,2) -> 18.9 | L93: 2.72020839e-05 | O93: MATERIAL
A94: 1.7.1.4 4517 | C94: 4517 | D94: SINAPI | E94: =INDEX('CPU - PROJETO'!$C:$C,MATCH($C94,'CPU - PROJETO'!$B:$B,0)) -> SARRAFO *2,5 X 7,5* CM EM PINUS, MISTA OU EQUIVALENTE DA REGIAO - BRUTA | F94: =INDEX('CPU - PROJETO'!$D:$D,MATCH($C94,'CPU - PROJETO'!$B:$B,0)) -> M | G94: =INDEX('CPU - PROJETO'!T:T,MATCH(A94,'CPU - PROJETO'!W:W,0)) -> 1.26 | H94: =TRUNC(IF(INDEX('CPU - PROJETO'!$H:$H,MATCH($C94,'CPU - PROJETO'!$B:$B,0))=0,INDEX('CPU - PROJETO'!$I:$I,MATCH($C94,'CPU - PROJETO'!$B:$B,0)),INDEX('CPU - PROJETO'!$H:$H,MATCH($C94,'CPU - PROJETO'!$B:$B,0))),2) -> 3.52 | I94: =$I$6 -> 0.1352 | J94: 3.99 | K94: 5.02 | L94: 7.225103766e-06 | O94: MATERIAL
A95: 1.7.1.4 6189 | C95: 6189 | D95: SINAPI | E95: =INDEX('CPU - PROJETO'!$C:$C,MATCH($C95,'CPU - PROJETO'!$B:$B,0)) -> TABUA NAO APARELHADA *2,5 X 30* CM, EM MACARANDUBA, ANGELIM OU EQUIVALENTE DA REGIAO - BRUTA | F95: =INDEX('CPU - PROJETO'!$D:$D,MATCH($C95,'CPU - PROJETO'!$B:$B,0)) -> M | G95: =INDEX('CPU - PROJETO'!T:T,MATCH(A95,'CPU - PROJETO'!W:W,0)) -> 0.7875 | H95: =TRUNC(IF(INDEX('CPU - PROJETO'!$H:$H,MATCH($C95,'CPU - PROJETO'!$B:$B,0))=0,INDEX('CPU - PROJETO'!$I:$I,MATCH($C95,'CPU - PROJETO'!$B:$B,0)),INDEX('CPU - PROJETO'!$H:$H,MATCH($C95,'CPU - PROJETO'!$B:$B,0))),2) -> 31.97 | I95: =$I$6 -> 0.1352 | J95: 36.29 | K95: 28.57 | L95: 4.111976386e-05 | O95: MATERIAL
A96: 1.7.1.4 7156 | C96: 7156 | D96: SINAPI | E96: =INDEX('CPU - PROJETO'!$C:$C,MATCH($C96,'CPU - PROJETO'!$B:$B,0)) -> TELA DE ACO SOLDADA NERVURADA, CA-60, Q-196, (3,11 KG/M2), DIAMETRO DO FIO = 5,0 MM, LARGURA = 2,45 M, ESPACAMENTO DA MALHA = 10 X 10 CM | F96: =INDEX('CPU - PROJETO'!$D:$D,MATCH($C96,'CPU - PROJETO'!$B:$B,0)) -> M2 | G96: =INDEX('CPU - PROJETO'!T:T,MATCH(A96,'CPU - PROJETO'!W:W,0)) -> 7.07112 | H96: =TRUNC(IF(INDEX('CPU - PROJETO'!$H:$H,MATCH($C96,'CPU - PROJETO'!$B:$B,0))=0,INDEX('CPU - PROJETO'!$I:$I,MATCH($C96,'CPU - PROJETO'!$B:$B,0)),INDEX('CPU - PROJETO'!$H:$H,MATCH($C96,'CPU - PROJETO'!$B:$B,0))),2) -> 33.91 | I96: =$I$6 -> 0.1352 | J96: 38.49 | K96: 272.16 | L96: 0.0003917100081 | O96: MATERIAL
A97: 1.7.1.4 88262 | C97: 88262 | D97: SINAPI | E97: =INDEX('CPU - PROJETO'!$C:$C,MATCH($C97,'CPU - PROJETO'!$B:$B,0)) -> CARPINTEIRO DE FORMAS COM ENCARGOS COMPLEMENTARES | F97: =INDEX('CPU - PROJETO'!$D:$D,MATCH($C97,'CPU - PROJETO'!$B:$B,0)) -> H | G97: =INDEX('CPU - PROJETO'!T:T,MATCH(A97,'CPU - PROJETO'!W:W,0)) -> 1.70541 | H97: =TRUNC(IF(INDEX('CPU - PROJETO'!$H:$H,MATCH($C97,'CPU - PROJETO'!$B:$B,0))=0,INDEX('CPU - PROJETO'!$I:$I,MATCH($C97,'CPU - PROJETO'!$B:$B,0)),INDEX('CPU - PROJETO'!$H:$H,MATCH($C97,'CPU - PROJETO'!$B:$B,0))),2) -> 25 | I97: 0.2272 | J97: 30.68 | K97: 52.32 | L97: 7.53022767e-05 | O97: SERVIÇOS
A98: 1.7.1.4 88309 | C98: 88309 | D98: SINAPI | E98: =INDEX('CPU - PROJETO'!$C:$C,MATCH($C98,'CPU - PROJETO'!$B:$B,0)) -> PEDREIRO COM ENCARGOS COMPLEMENTARES | F98: =INDEX('CPU - PROJETO'!$D:$D,MATCH($C98,'CPU - PROJETO'!$B:$B,0)) -> H | G98: =INDEX('CPU - PROJETO'!T:T,MATCH(A98,'CPU - PROJETO'!W:W,0)) -> 2.43558 | H98: =TRUNC(IF(INDEX('CPU - PROJETO'!$H:$H,MATCH($C98,'CPU - PROJETO'!$B:$B,0))=0,INDEX('CPU - PROJETO'!$I:$I,MATCH($C98,'CPU - PROJETO'!$B:$B,0)),INDEX('CPU - PROJETO'!$H:$H,MATCH($C98,'CPU - PROJETO'!$B:$B,0))),2) -> 25.38 | I98: 0.2272 | J98: =TRUNC(H98*(1+I98),2) -> 31.14 | K98: =TRUNC(G98*J98,2) -> 75.84 | L98: 0.0001091537589 | O98: SERVIÇOS
A99: 1.7.1.4 88316 | C99: 88316 | D99: SINAPI | E99: =INDEX('CPU - PROJETO'!$C:$C,MATCH($C99,'CPU - PROJETO'!$B:$B,0)) -> SERVENTE COM ENCARGOS COMPLEMENTARES | F99: =INDEX('CPU - PROJETO'!$D:$D,MATCH($C99,'CPU - PROJETO'!$B:$B,0)) -> H | G99: =INDEX('CPU - PROJETO'!T:T,MATCH(A99,'CPU - PROJETO'!W:W,0)) -> 4.14162 | H99: =TRUNC(IF(INDEX('CPU - PROJETO'!$H:$H,MATCH($C99,'CPU - PROJETO'!$B:$B,0))=0,INDEX('CPU - PROJETO'!$I:$I,MATCH($C99,'CPU - PROJETO'!$B:$B,0)),INDEX('CPU - PROJETO'!$H:$H,MATCH($C99,'CPU - PROJETO'!$B:$B,0))),2) -> 20.42 | I99: 0.2272 | J99: 25.05 | K99: 103.74 | L99: 0.0001493092161 | O99: SERVIÇOS
A100: 1.7.1.4 94964 | C100: 94964 | D100: SINAPI | E100: =INDEX('CPU - PROJETO'!$C:$C,MATCH($C100,'CPU - PROJETO'!$B:$B,0)) -> CONCRETO FCK = 20MPA, TRAÇO 1:2,7:3 (CIMENTO/ AREIA MÉDIA/ BRITA 1) - PREPARO MECÂNICO COM BETONEIRA 400 L. AF_07/2016 | F100: =INDEX('CPU - PROJETO'!$D:$D,MATCH($C100,'CPU - PROJETO'!$B:$B,0)) -> M3 | G100: =INDEX('CPU - PROJETO'!T:T,MATCH(A100,'CPU - PROJETO'!W:W,0)) -> 0.91665
A101: 1.7.1.4 370 | C101: 370 | D101: SINAPI | E101: =INDEX('CPU - PROJ.AUX'!$P:$P,MATCH($A101,'CPU - PROJ.AUX'!$W:$W,0)) -> AREIA MEDIA - POSTO JAZIDA/FORNECEDOR (RETIRADO NA JAZIDA, SEM TRANSPORTE) | F101: =INDEX('CPU - PROJ.AUX'!$R:$R,MATCH($A101,'CPU - PROJ.AUX'!$W:$W,0)) -> M3 | G101: =INDEX('CPU - PROJ.AUX'!T:T,MATCH(A101,'CPU - PROJ.AUX'!W:W,0))*$G$92 -> 0.69280407 | H101: =TRUNC(IF(INDEX('CPU - PROJ.AUX'!$H:$H,MATCH($A101,'CPU - PROJ.AUX'!$W:$W,0))=0,INDEX('CPU - PROJ.AUX'!$I:$I,MATCH($A101,'CPU - PROJ.AUX'!$W:$W,0)),INDEX('CPU - PROJ.AUX'!$H:$H,MATCH($A101,'CPU - PROJ.AUX'!$W:$W,0))),2) -> 129 | I101: =$I$6 -> 0.1352 | J101: 146.44 | K101: 101.45 | L101: 0.0001460133022 | O101: MATERIAL
A102: 1.7.1.4 1379 | C102: 1379 | D102: SINAPI | E102: =INDEX('CPU - PROJ.AUX'!$P:$P,MATCH($A102,'CPU - PROJ.AUX'!$W:$W,0)) -> CIMENTO PORTLAND COMPOSTO CP II-32 | F102: =INDEX('CPU - PROJ.AUX'!$R:$R,MATCH($A102,'CPU - PROJ.AUX'!$W:$W,0)) -> KG | G102: =INDEX('CPU - PROJ.AUX'!T:T,MATCH(A102,'CPU - PROJ.AUX'!W:W,0))*$G$92 -> 296.0575087 | H102: =TRUNC(IF(INDEX('CPU - PROJ.AUX'!$H:$H,MATCH($A102,'CPU - PROJ.AUX'!$W:$W,0))=0,INDEX('CPU - PROJ.AUX'!$I:$I,MATCH($A102,'CPU - PROJ.AUX'!$W:$W,0)),INDEX('CPU - PROJ.AUX'!$H:$H,MATCH($A102,'CPU - PROJ.AUX'!$W:$W,0))),2) -> 0.7 | I102: =$I$6 -> 0.1352 | J102: =TRUNC(H102*(1+I102),2) -> 0.79 | K102: =TRUNC(G102*J102,2) -> 233.88 | L102: 0.0003366149938 | O102: MATERIAL
A103: 1.7.1.4 4721 | C103: 4721 | D103: SINAPI | E103: =INDEX('CPU - PROJ.AUX'!$P:$P,MATCH($A103,'CPU - PROJ.AUX'!$W:$W,0)) -> PEDRA BRITADA N. 1 (9,5 a 19 MM) POSTO PEDREIRA/FORNECEDOR, SEM FRETE | F103: =INDEX('CPU - PROJ.AUX'!$R:$R,MATCH($A103,'CPU - PROJ.AUX'!$W:$W,0)) -> M3 | G103: =INDEX('CPU - PROJ.AUX'!T:T,MATCH(A103,'CPU - PROJ.AUX'!W:W,0))*$G$92 -> 0.53825688 | H103: =TRUNC(IF(INDEX('CPU - PROJ.AUX'!$H:$H,MATCH($A103,'CPU - PROJ.AUX'!$W:$W,0))=0,INDEX('CPU - PROJ.AUX'!$I:$I,MATCH($A103,'CPU - PROJ.AUX'!$W:$W,0)),INDEX('CPU - PROJ.AUX'!$H:$H,MATCH($A103,'CPU - PROJ.AUX'!$W:$W,0))),2) -> 89 | I103: =$I$6 -> 0.1352 | J103: 101.03 | K103: 54.38 | L103: 7.826715992e-05 | O103: MATERIAL
A104: 1.7.1.4 88316 | C104: 88316 | D104: SINAPI | E104: =INDEX('CPU - PROJ.AUX'!$P:$P,MATCH($A104,'CPU - PROJ.AUX'!$W:$W,0)) -> SERVENTE COM ENCARGOS COMPLEMENTARES | F104: =INDEX('CPU - PROJ.AUX'!$R:$R,MATCH($A104,'CPU - PROJ.AUX'!$W:$W,0)) -> H | G104: =INDEX('CPU - PROJ.AUX'!T:T,MATCH(A104,'CPU - PROJ.AUX'!W:W,0))*$G$92 -> 2.322149445 | H104: =TRUNC(IF(INDEX('CPU - PROJ.AUX'!$H:$H,MATCH($A104,'CPU - PROJ.AUX'!$W:$W,0))=0,INDEX('CPU - PROJ.AUX'!$I:$I,MATCH($A104,'CPU - PROJ.AUX'!$W:$W,0)),INDEX('CPU - PROJ.AUX'!$H:$H,MATCH($A104,'CPU - PROJ.AUX'!$W:$W,0))),2) -> 20.42 | I104: 0.2272 | J104: 25.05 | K104: 58.16 | L104: 8.37075767e-05 | O104: SERVIÇOS
A105: 1.7.1.4 88377 | C105: 88377 | D105: SINAPI | E105: =INDEX('CPU - PROJ.AUX'!$P:$P,MATCH($A105,'CPU - PROJ.AUX'!$W:$W,0)) -> OPERADOR DE BETONEIRA ESTACIONÁRIA/MISTURADOR COM ENCARGOS COMPLEMENTARES | F105: =INDEX('CPU - PROJ.AUX'!$R:$R,MATCH($A105,'CPU - PROJ.AUX'!$W:$W,0)) -> H | G105: =INDEX('CPU - PROJ.AUX'!T:T,MATCH(A105,'CPU - PROJ.AUX'!W:W,0))*$G$92 -> 1.47085659 | H105: =TRUNC(IF(INDEX('CPU - PROJ.AUX'!$H:$H,MATCH($A105,'CPU - PROJ.AUX'!$W:$W,0))=0,INDEX('CPU - PROJ.AUX'!$I:$I,MATCH($A105,'CPU - PROJ.AUX'!$W:$W,0)),INDEX('CPU - PROJ.AUX'!$H:$H,MATCH($A105,'CPU - PROJ.AUX'!$W:$W,0))),2) -> 28.14 | I105: 0.2272 | J105: 34.53 | K105: 50.78 | L105: 7.30858106e-05 | O105: SERVIÇOS
A106: 1.7.1.4 88830 | C106: 88830 | D106: SINAPI | E106: =INDEX('CPU - PROJ.AUX'!$P:$P,MATCH($A106,'CPU - PROJ.AUX'!$W:$W,0)) -> BETONEIRA CAPACIDADE NOMINAL DE 400 L, CAPACIDADE DE MISTURA 280 L, MOTOR ELÉTRICO TRIFÁSICO POTÊNCIA DE 2 CV, SEM CARREGADOR - CHP DIURNO. AF_10/2014 | F106: =INDEX('CPU - PROJ.AUX'!$R:$R,MATCH($A106,'CPU - PROJ.AUX'!$W:$W,0)) -> CHP | G106: =INDEX('CPU - PROJ.AUX'!T:T,MATCH(A106,'CPU - PROJ.AUX'!W:W,0))*$G$92 -> 0.757061235 | H106: =TRUNC(IF(INDEX('CPU - PROJ.AUX'!$H:$H,MATCH($A106,'CPU - PROJ.AUX'!$W:$W,0))=0,INDEX('CPU - PROJ.AUX'!$I:$I,MATCH($A106,'CPU - PROJ.AUX'!$W:$W,0)),INDEX('CPU - PROJ.AUX'!$H:$H,MATCH($A106,'CPU - PROJ.AUX'!$W:$W,0))),2) -> 1.88 | I106: 0.2272 | J106: 2.3 | K106: 1.74 | L106: 2.504318835e-06 | O106: SERVIÇOS
A107: 1.7.1.4 88831 | C107: 88831 | D107: SINAPI | E107: =INDEX('CPU - PROJ.AUX'!$P:$P,MATCH($A107,'CPU - PROJ.AUX'!$W:$W,0)) -> BETONEIRA CAPACIDADE NOMINAL DE 400 L, CAPACIDADE DE MISTURA 280 L, MOTOR ELÉTRICO TRIFÁSICO POTÊNCIA DE 2 CV, SEM CARREGADOR - CHI DIURNO. AF_10/2014 | F107: =INDEX('CPU - PROJ.AUX'!$R:$R,MATCH($A107,'CPU - PROJ.AUX'!$W:$W,0)) -> CHI | G107: =INDEX('CPU - PROJ.AUX'!T:T,MATCH(A107,'CPU - PROJ.AUX'!W:W,0))*$G$92 -> 0.713795355 | H107: =TRUNC(IF(INDEX('CPU - PROJ.AUX'!$H:$H,MATCH($A107,'CPU - PROJ.AUX'!$W:$W,0))=0,INDEX('CPU - PROJ.AUX'!$I:$I,MATCH($A107,'CPU - PROJ.AUX'!$W:$W,0)),INDEX('CPU - PROJ.AUX'!$H:$H,MATCH($A107,'CPU - PROJ.AUX'!$W:$W,0))),2) -> 0.39 | I107: 0.2272 | J107: 0.47 | K107: 0.33 | L107: 4.749570205e-07 | O107: SERVIÇOS
A108: 1.7.1.5 | B108: 1.7.1.5 | C108: 98689 | D108: SINAPI | E108: =INDEX('CPU - PROJETO'!$C:$C,MATCH($C108,'CPU - PROJETO'!$B:$B,0)) -> SOLEIRA EM GRANITO, LARGURA 15 CM, ESPESSURA 2,0 CM. AF_09/2020 | F108: =INDEX('CPU - PROJETO'!$D:$D,MATCH($C108,'CPU - PROJETO'!$B:$B,0)) -> M | G108: =INDEX(MEMÓRIA!L:L,MATCH($A108,MEMÓRIA!A:A,0)) -> 3
A109: 1.7.1.5 20232 | C109: 20232 | D109: SINAPI | E109: =INDEX('CPU - PROJETO'!$C:$C,MATCH($C109,'CPU - PROJETO'!$B:$B,0)) -> SOLEIRA EM GRANITO, POLIDO, TIPO ANDORINHA/ QUARTZ/ CASTELO/ CORUMBA OU OUTROS EQUIVALENTES DA REGIAO, L= *15* CM, E= *2,0* CM | F109: =INDEX('CPU - PROJETO'!$D:$D,MATCH($C109,'CPU - PROJETO'!$B:$B,0)) -> M | G109: =INDEX('CPU - PROJETO'!T:T,MATCH(A109,'CPU - PROJETO'!W:W,0)) -> 3 | H109: =TRUNC(IF(INDEX('CPU - PROJETO'!$H:$H,MATCH($C109,'CPU - PROJETO'!$B:$B,0))=0,INDEX('CPU - PROJETO'!$I:$I,MATCH($C109,'CPU - PROJETO'!$B:$B,0)),INDEX('CPU - PROJETO'!$H:$H,MATCH($C109,'CPU - PROJETO'!$B:$B,0))),2) -> 101.13 | I109: =$I$6 -> 0.1352 | J109: =TRUNC(H109*(1+I109),2) -> 114.8 | K109: =TRUNC(G109*J109,2) -> 344.4 | L109: 0.0004956824177 | O109: MATERIAL
A110: 1.7.1.5 37595 | C110: 37595 | D110: SINAPI | E110: =INDEX('CPU - PROJETO'!$C:$C,MATCH($C110,'CPU - PROJETO'!$B:$B,0)) -> ARGAMASSA COLANTE TIPO AC III | F110: =INDEX('CPU - PROJETO'!$D:$D,MATCH($C110,'CPU - PROJETO'!$B:$B,0)) -> KG | G110: =INDEX('CPU - PROJETO'!T:T,MATCH(A110,'CPU - PROJETO'!W:W,0)) -> 3.87 | H110: =TRUNC(IF(INDEX('CPU - PROJETO'!$H:$H,MATCH($C110,'CPU - PROJETO'!$B:$B,0))=0,INDEX('CPU - PROJETO'!$I:$I,MATCH($C110,'CPU - PROJETO'!$B:$B,0)),INDEX('CPU - PROJETO'!$H:$H,MATCH($C110,'CPU - PROJETO'!$B:$B,0))),2) -> 2.92 | I110: =$I$6 -> 0.1352 | J110: 3.31 | K110: 12.8 | L110: 1.842257534e-05 | O110: MATERIAL
A111: 1.7.1.5 88274 | C111: 88274 | D111: SINAPI | E111: =INDEX('CPU - PROJETO'!$C:$C,MATCH($C111,'CPU - PROJETO'!$B:$B,0)) -> MARMORISTA/GRANITEIRO COM ENCARGOS COMPLEMENTARES | F111: =INDEX('CPU - PROJETO'!$D:$D,MATCH($C111,'CPU - PROJETO'!$B:$B,0)) -> H | G111: =INDEX('CPU - PROJETO'!T:T,MATCH(A111,'CPU - PROJETO'!W:W,0)) -> 1.641 | H111: =TRUNC(IF(INDEX('CPU - PROJETO'!$H:$H,MATCH($C111,'CPU - PROJETO'!$B:$B,0))=0,INDEX('CPU - PROJETO'!$I:$I,MATCH($C111,'CPU - PROJETO'!$B:$B,0)),INDEX('CPU - PROJETO'!$H:$H,MATCH($C111,'CPU - PROJETO'!$B:$B,0))),2) -> 25.25 | I111: =$I$5 -> 0.2272 | J111: 30.98 | K111: 50.83 | L111: 7.315777379e-05 | O111: SERVIÇOS
A112: 1.7.1.5 88316 | C112: 88316 | D112: SINAPI | E112: =INDEX('CPU - PROJETO'!$C:$C,MATCH($C112,'CPU - PROJETO'!$B:$B,0)) -> SERVENTE COM ENCARGOS COMPLEMENTARES | F112: =INDEX('CPU - PROJETO'!$D:$D,MATCH($C112,'CPU - PROJETO'!$B:$B,0)) -> H | G112: =INDEX('CPU - PROJETO'!T:T,MATCH(A112,'CPU - PROJETO'!W:W,0)) -> 0.819 | H112: =TRUNC(IF(INDEX('CPU - PROJETO'!$H:$H,MATCH($C112,'CPU - PROJETO'!$B:$B,0))=0,INDEX('CPU - PROJETO'!$I:$I,MATCH($C112,'CPU - PROJETO'!$B:$B,0)),INDEX('CPU - PROJETO'!$H:$H,MATCH($C112,'CPU - PROJETO'!$B:$B,0))),2) -> 20.42 | I112: 0.2272 | J112: 25.05 | K112: 20.51 | L112: 2.951929845e-05 | O112: SERVIÇOS
A113: 1.7.2 | B113: 1.7.2 | E113: PAREDES | K113: =SUBTOTAL(109,K114:K288) -> 10543.3 | L113: =SUBTOTAL(109,L114:L288) -> 0.01517458895
A114: 1.7.2.1 | B114: 1.7.2.1 | C114: 101163 | D114: SINAPI | E114: =INDEX('CPU - PROJETO'!$C:$C,MATCH($C114,'CPU - PROJETO'!$B:$B,0)) -> ALVENARIA DE VEDAÇÃO COM BLOCO DE VIDRO VAZADO, TIPO VENEZIANA, DE 6X20X20CM E ARGAMASSA DE ASSENTAMENTO COM PREPARO EM BETONEIRA. AF_05/2020 | F114: =INDEX('CPU - PROJETO'!$D:$D,MATCH($C114,'CPU - PROJETO'!$B:$B,0)) -> M2 | G114: =INDEX(MEMÓRIA!L:L,MATCH($A114,MEMÓRIA!A:A,0)) -> 7.82 | M114: 1635-DEP-2812-10-25-201-R04
A115: 1.7.2.1 718 | C115: 718 | D115: SINAPI | E115: =INDEX('CPU - PROJETO'!$C:$C,MATCH($C115,'CPU - PROJETO'!$B:$B,0)) -> BLOCO DE VIDRO/ELEMENTO VAZADO INCOLOR, VENEZIANA, DE *20 X 20 X 6* CM | F115: =INDEX('CPU - PROJETO'!$D:$D,MATCH($C115,'CPU - PROJETO'!$B:$B,0)) -> UN | G115: =INDEX('CPU - PROJETO'!T:T,MATCH(A115,'CPU - PROJETO'!W:W,0)) -> 200.8176 | H115: =TRUNC(IF(INDEX('CPU - PROJETO'!$H:$H,MATCH($C115,'CPU - PROJETO'!$B:$B,0))=0,INDEX('CPU - PROJETO'!$I:$I,MATCH($C115,'CPU - PROJETO'!$B:$B,0)),INDEX('CPU - PROJETO'!$H:$H,MATCH($C115,'CPU - PROJETO'!$B:$B,0))),2) -> 22.63 | I115: =$I$6 -> 0.1352 | J115: =TRUNC(H115*(1+I115),2) -> 25.68 | K115: =TRUNC(G115*J115,2) -> 5156.99 | L115: =K115/$K$550 -> 0.0074222685 | O115: MATERIAL
A116: 1.7.2.1 43059 | C116: 43059 | D116: SINAPI | E116: =INDEX('CPU - PROJETO'!$C:$C,MATCH($C116,'CPU - PROJETO'!$B:$B,0)) -> ACO CA-60, 4,2 MM, OU 5,0 MM, OU 6,0 MM, OU 7,0 MM, VERGALHAO | F116: =INDEX('CPU - PROJETO'!$D:$D,MATCH($C116,'CPU - PROJETO'!$B:$B,0)) -> KG | G116: =INDEX('CPU - PROJETO'!T:T,MATCH(A116,'CPU - PROJETO'!W:W,0)) -> 4.2619 | H116: =TRUNC(IF(INDEX('CPU - PROJETO'!$H:$H,MATCH($C116,'CPU - PROJETO'!$B:$B,0))=0,INDEX('CPU - PROJETO'!$I:$I,MATCH($C116,'CPU - PROJETO'!$B:$B,0)),INDEX('CPU - PROJETO'!$H:$H,MATCH($C116,'CPU - PROJETO'!$B:$B,0))),2) -> 10.77 | I116: =$I$6 -> 0.1352 | J116: =TRUNC(H116*(1+I116),2) -> 12.22 | K116: =TRUNC(G116*J116,2) -> 52.08 | L116: 7.495685341e-05 | O116: MATERIAL
A117: 1.7.2.1 87292 | C117: 87292 | D117: SINAPI | E117: =INDEX('CPU - PROJETO'!$C:$C,MATCH($C117,'CPU - PROJETO'!$B:$B,0)) -> ARGAMASSA TRAÇO 1:2:8 (EM VOLUME DE CIMENTO, CAL E AREIA MÉDIA ÚMIDA) PARA EMBOÇO/MASSA ÚNICA/ASSENTAMENTO DE ALVENARIA DE VEDAÇÃO, PREPARO MECÂNICO COM BETONEIRA 400 L. AF_08/2019 | F117: =INDEX('CPU - PROJETO'!$D:$D,MATCH($C117,'CPU - PROJETO'!$B:$B,0)) -> M3 | G117: =INDEX('CPU - PROJETO'!T:T,MATCH(A117,'CPU - PROJETO'!W:W,0)) -> 0.0782
A118: 1.7.2.1 370 | C118: 370 | D118: SINAPI | E118: =INDEX('CPU - PROJ.AUX'!$P:$P,MATCH($A118,'CPU - PROJ.AUX'!$W:$W,0)) -> AREIA MEDIA - POSTO JAZIDA/FORNECEDOR (RETIRADO NA JAZIDA, SEM TRANSPORTE) | F118: =INDEX('CPU - PROJ.AUX'!$R:$R,MATCH($A118,'CPU - PROJ.AUX'!$W:$W,0)) -> M3 | G118: =INDEX('CPU - PROJ.AUX'!T:T,MATCH(A118,'CPU - PROJ.AUX'!W:W,0))*$G$114 -> 0.090712 | H118: =TRUNC(IF(INDEX('CPU - PROJ.AUX'!$H:$H,MATCH($A118,'CPU - PROJ.AUX'!$W:$W,0))=0,INDEX('CPU - PROJ.AUX'!$I:$I,MATCH($A118,'CPU - PROJ.AUX'!$W:$W,0)),INDEX('CPU - PROJ.AUX'!$H:$H,MATCH($A118,'CPU - PROJ.AUX'!$W:$W,0))),2) -> 129 | I118: =$I$6 -> 0.1352 | J118: 146.44 | K118: 13.28 | L118: 1.911342191e-05 | O118: MATERIAL
A119: 1.7.2.1 1106 | C119: 1106 | D119: SINAPI | E119: =INDEX('CPU - PROJ.AUX'!$P:$P,MATCH($A119,'CPU - PROJ.AUX'!$W:$W,0)) -> CAL HIDRATADA CH-I PARA ARGAMASSAS | F119: =INDEX('CPU - PROJ.AUX'!$R:$R,MATCH($A119,'CPU - PROJ.AUX'!$W:$W,0)) -> KG | G119: =INDEX('CPU - PROJ.AUX'!T:T,MATCH(A119,'CPU - PROJ.AUX'!W:W,0))*$G$114 -> 13.61462 | H119: =TRUNC(IF(INDEX('CPU - PROJ.AUX'!$H:$H,MATCH($A119,'CPU - PROJ.AUX'!$W:$W,0))=0,INDEX('CPU - PROJ.AUX'!$I:$I,MATCH($A119,'CPU - PROJ.AUX'!$W:$W,0)),INDEX('CPU - PROJ.AUX'!$H:$H,MATCH($A119,'CPU - PROJ.AUX'!$W:$W,0))),2) -> 1.4 | I119: =$I$6 -> 0.1352 | J119: 1.58 | K119: 21.51 | L119: 3.095856215e-05 | O119: MATERIAL
A120: 1.7.2.1 1379 | C120: 1379 | D120: SINAPI | E120: =INDEX('CPU - PROJ.AUX'!$P:$P,MATCH($A120,'CPU - PROJ.AUX'!$W:$W,0)) -> CIMENTO PORTLAND COMPOSTO CP II-32 | F120: =INDEX('CPU - PROJ.AUX'!$R:$R,MATCH($A120,'CPU - PROJ.AUX'!$W:$W,0)) -> KG | G120: =INDEX('CPU - PROJ.AUX'!T:T,MATCH(A120,'CPU - PROJ.AUX'!W:W,0))*$G$114 -> 15.316252 | H120: =TRUNC(IF(INDEX('CPU - PROJ.AUX'!$H:$H,MATCH($A120,'CPU - PROJ.AUX'!$W:$W,0))=0,INDEX('CPU - PROJ.AUX'!$I:$I,MATCH($A120,'CPU - PROJ.AUX'!$W:$W,0)),INDEX('CPU - PROJ.AUX'!$H:$H,MATCH($A120,'CPU - PROJ.AUX'!$W:$W,0))),2) -> 0.7 | I120: =$I$6 -> 0.1352 | J120: 0.79 | K120: 12.09 | L120: 1.740069811e-05 | O120: MATERIAL
A121: 1.7.2.1 88377 | C121: 88377 | D121: SINAPI | E121: =INDEX('CPU - PROJ.AUX'!$P:$P,MATCH($A121,'CPU - PROJ.AUX'!$W:$W,0)) -> OPERADOR DE BETONEIRA ESTACIONÁRIA/MISTURADOR COM ENCARGOS COMPLEMENTARES | F121: =INDEX('CPU - PROJ.AUX'!$R:$R,MATCH($A121,'CPU - PROJ.AUX'!$W:$W,0)) -> H | G121: =INDEX('CPU - PROJ.AUX'!T:T,MATCH(A121,'CPU - PROJ.AUX'!W:W,0))*$G$114 -> 0.3519 | H121: =TRUNC(IF(INDEX('CPU - PROJ.AUX'!$H:$H,MATCH($A121,'CPU - PROJ.AUX'!$W:$W,0))=0,INDEX('CPU - PROJ.AUX'!$I:$I,MATCH($A121,'CPU - PROJ.AUX'!$W:$W,0)),INDEX('CPU - PROJ.AUX'!$H:$H,MATCH($A121,'CPU - PROJ.AUX'!$W:$W,0))),2) -> 28.14 | I121: 0.2272 | J121: 34.53 | K121: 12.15 | L121: 1.748705393e-05 | O121: SERVIÇOS
A122: 1.7.2.1 88830 | C122: 88830 | D122: SINAPI | E122: =INDEX('CPU - PROJ.AUX'!$P:$P,MATCH($A122,'CPU - PROJ.AUX'!$W:$W,0)) -> BETONEIRA CAPACIDADE NOMINAL DE 400 L, CAPACIDADE DE MISTURA 280 L, MOTOR ELÉTRICO TRIFÁSICO POTÊNCIA DE 2 CV, SEM CARREGADOR - CHP DIURNO. AF_10/2014 | F122: =INDEX('CPU - PROJ.AUX'!$R:$R,MATCH($A122,'CPU - PROJ.AUX'!$W:$W,0)) -> CHP | G122: =INDEX('CPU - PROJ.AUX'!T:T,MATCH(A122,'CPU - PROJ.AUX'!W:W,0))*$G$114 -> 0.08211 | H122: =TRUNC(IF(INDEX('CPU - PROJ.AUX'!$H:$H,MATCH($A122,'CPU - PROJ.AUX'!$W:$W,0))=0,INDEX('CPU - PROJ.AUX'!$I:$I,MATCH($A122,'CPU - PROJ.AUX'!$W:$W,0)),INDEX('CPU - PROJ.AUX'!$H:$H,MATCH($A122,'CPU - PROJ.AUX'!$W:$W,0))),2) -> 1.88 | I122: 0.2272 | J122: 2.3 | K122: 0.18 | L122: 2.590674657e-07 | O122: SERVIÇOS
A123: 1.7.2.1 88831 | C123: 88831 | D123: SINAPI | E123: =INDEX('CPU - PROJ.AUX'!$P:$P,MATCH($A123,'CPU - PROJ.AUX'!$W:$W,0)) -> BETONEIRA CAPACIDADE NOMINAL DE 400 L, CAPACIDADE DE MISTURA 280 L, MOTOR ELÉTRICO TRIFÁSICO POTÊNCIA DE 2 CV, SEM CARREGADOR - CHI DIURNO. AF_10/2014 | F123: =INDEX('CPU - PROJ.AUX'!$R:$R,MATCH($A123,'CPU - PROJ.AUX'!$W:$W,0)) -> CHI | G123: =INDEX('CPU - PROJ.AUX'!T:T,MATCH(A123,'CPU - PROJ.AUX'!W:W,0))*$G$114 -> 0.26979 | H123: =TRUNC(IF(INDEX('CPU - PROJ.AUX'!$H:$H,MATCH($A123,'CPU - PROJ.AUX'!$W:$W,0))=0,INDEX('CPU - PROJ.AUX'!$I:$I,MATCH($A123,'CPU - PROJ.AUX'!$W:$W,0)),INDEX('CPU - PROJ.AUX'!$H:$H,MATCH($A123,'CPU - PROJ.AUX'!$W:$W,0))),2) -> 0.39 | I123: 0.2272 | J123: 0.47 | K123: 0.12 | L123: 1.727116438e-07 | O123: SERVIÇOS
A124: 1.7.2.1 88309 | C124: 88309 | D124: SINAPI | E124: =INDEX('CPU - PROJETO'!$C:$C,MATCH($C124,'CPU - PROJETO'!$B:$B,0)) -> PEDREIRO COM ENCARGOS COMPLEMENTARES | F124: =INDEX('CPU - PROJETO'!$D:$D,MATCH($C124,'CPU - PROJETO'!$B:$B,0)) -> H | G124: =INDEX('CPU - PROJETO'!T:T,MATCH(A124,'CPU - PROJETO'!W:W,0)) -> 32.83618 | H124: =TRUNC(IF(INDEX('CPU - PROJETO'!$H:$H,MATCH($C124,'CPU - PROJETO'!$B:$B,0))=0,INDEX('CPU - PROJETO'!$I:$I,MATCH($C124,'CPU - PROJETO'!$B:$B,0)),INDEX('CPU - PROJETO'!$H:$H,MATCH($C124,'CPU - PROJETO'!$B:$B,0))),2) -> 25.38 | I124: =$I$5 -> 0.2272 | J124: 31.14 | K124: 1022.51 | L124: 0.001471661524 | O124: SERVIÇOS
A125: 1.7.2.1 88316 | C125: 88316 | D125: SINAPI | E125: =INDEX('CPU - PROJETO'!$C:$C,MATCH($C125,'CPU - PROJETO'!$B:$B,0)) -> SERVENTE COM ENCARGOS COMPLEMENTARES | F125: =INDEX('CPU - PROJETO'!$D:$D,MATCH($C125,'CPU - PROJETO'!$B:$B,0)) -> H | G125: =INDEX('CPU - PROJETO'!T:T,MATCH(A125,'CPU - PROJETO'!W:W,0)) -> 16.422 | H125: =TRUNC(IF(INDEX('CPU - PROJETO'!$H:$H,MATCH($C125,'CPU - PROJETO'!$B:$B,0))=0,INDEX('CPU - PROJETO'!$I:$I,MATCH($C125,'CPU - PROJETO'!$B:$B,0)),INDEX('CPU - PROJETO'!$H:$H,MATCH($C125,'CPU - PROJETO'!$B:$B,0))),2) -> 20.42 | I125: 0.2272 | J125: 25.05 | K125: 411.37 | L125: 0.0005920699076 | O125: SERVIÇOS
A126: 1.7.2.2 | B126: 1.7.2.2 | C126: 103330 | D126: SINAPI | E126: =INDEX('CPU - PROJETO'!$C:$C,MATCH($C126,'CPU - PROJETO'!$B:$B,0)) -> ALVENARIA DE VEDAÇÃO DE BLOCOS CERÂMICOS FURADOS NA HORIZONTAL DE 11,5X19X19 CM (ESPESSURA 11,5 CM) E ARGAMASSA DE ASSENTAMENTO COM PREPARO EM BETONEIRA. AF_12/2021 | F126: =INDEX('CPU - PROJETO'!$D:$D,MATCH($C126,'CPU - PROJETO'!$B:$B,0)) -> M2 | G126: =INDEX(MEMÓRIA!L:L,MATCH($A126,MEMÓRIA!A:A,0)) -> 16.18 | M126: 1635-DEP-2812-10-25-201-R04
A127: 1.7.2.2 34558 | C127: 34558 | D127: SINAPI | E127: =INDEX('CPU - PROJETO'!$C:$C,MATCH($C127,'CPU - PROJETO'!$B:$B,0)) -> TELA DE ACO SOLDADA GALVANIZADA/ZINCADA PARA ALVENARIA, FIO D = *1,20 A 1,70* MM, MALHA 15 X 15 MM, (C X L) *50 X 10,5* CM | F127: =INDEX('CPU - PROJETO'!$D:$D,MATCH($C127,'CPU - PROJETO'!$B:$B,0)) -> M | G127: =INDEX('CPU - PROJETO'!T:T,MATCH(A127,'CPU - PROJETO'!W:W,0)) -> 6.7956 | H127: =TRUNC(IF(INDEX('CPU - PROJETO'!$H:$H,MATCH($C127,'CPU - PROJETO'!$B:$B,0))=0,INDEX('CPU - PROJETO'!$I:$I,MATCH($C127,'CPU - PROJETO'!$B:$B,0)),INDEX('CPU - PROJETO'!$H:$H,MATCH($C127,'CPU - PROJETO'!$B:$B,0))),2) -> 3.86 | I127: =$I$6 -> 0.1352 | J127: =TRUNC(H127*(1+I127),2) -> 4.38 | K127: =TRUNC(G127*J127,2) -> 29.76 | L127: 4.283248766e-05 | O127: MATERIAL
A128: 1.7.2.2 37395 | C128: 37395 | D128: SINAPI | E128: =INDEX('CPU - PROJETO'!$C:$C,MATCH($C128,'CPU - PROJETO'!$B:$B,0)) -> PINO DE ACO COM FURO, HASTE = 27 MM (ACAO DIRETA) | F128: =INDEX('CPU - PROJETO'!$D:$D,MATCH($C128,'CPU - PROJETO'!$B:$B,0)) -> CENTO | G128: =INDEX('CPU - PROJETO'!T:T,MATCH(A128,'CPU - PROJETO'!W:W,0)) -> 0.1618 | H128: =TRUNC(IF(INDEX('CPU - PROJETO'!$H:$H,MATCH($C128,'CPU - PROJETO'!$B:$B,0))=0,INDEX('CPU - PROJETO'!$I:$I,MATCH($C128,'CPU - PROJETO'!$B:$B,0)),INDEX('CPU - PROJETO'!$H:$H,MATCH($C128,'CPU - PROJETO'!$B:$B,0))),2) -> 41.52 | I128: =$I$6 -> 0.1352 | J128: 47.13 | K128: 7.62 | L128: 1.096718938e-05 | O128: MATERIAL
A129: 1.7.2.2 38783 | C129: 38783 | D129: SINAPI | E129: =INDEX('CPU - PROJETO'!$C:$C,MATCH($C129,'CPU - PROJETO'!$B:$B,0)) -> BLOCO CERAMICO / TIJOLO VAZADO PARA ALVENARIA DE VEDACAO, FUROS NA HORIZONTAL, 11,5 X 19 X 19 CM (NBR 15270) | F129: =INDEX('CPU - PROJETO'!$D:$D,MATCH($C129,'CPU - PROJETO'!$B:$B,0)) -> UN | G129: =INDEX('CPU - PROJETO'!T:T,MATCH(A129,'CPU - PROJETO'!W:W,0)) -> 458.0558 | H129: =TRUNC(IF(INDEX('CPU - PROJETO'!$H:$H,MATCH($C129,'CPU - PROJETO'!$B:$B,0))=0,INDEX('CPU - PROJETO'!$I:$I,MATCH($C129,'CPU - PROJETO'!$B:$B,0)),INDEX('CPU - PROJETO'!$H:$H,MATCH($C129,'CPU - PROJETO'!$B:$B,0))),2) -> 0.67 | I129: =$I$6 -> 0.1352 | J129: 0.76 | K129: 348.12 | L129: 0.0005010364787 | O129: MATERIAL
A130: 1.7.2.2 87292 | C130: 87292 | D130: SINAPI | E130: =INDEX('CPU - PROJETO'!$C:$C,MATCH($C130,'CPU - PROJETO'!$B:$B,0)) -> ARGAMASSA TRAÇO 1:2:8 (EM VOLUME DE CIMENTO, CAL E AREIA MÉDIA ÚMIDA) PARA EMBOÇO/MASSA ÚNICA/ASSENTAMENTO DE ALVENARIA DE VEDAÇÃO, PREPARO MECÂNICO COM BETONEIRA 400 L. AF_08/2019 | F130: =INDEX('CPU - PROJETO'!$D:$D,MATCH($C130,'CPU - PROJETO'!$B:$B,0)) -> M3 | G130: =INDEX('CPU - PROJETO'!T:T,MATCH(A130,'CPU - PROJETO'!W:W,0)) -> 0.158564
A131: 1.7.2.2 370 | C131: 370 | D131: SINAPI | E131: =INDEX('CPU - PROJ.AUX'!$P:$P,MATCH($A131,'CPU - PROJ.AUX'!$W:$W,0)) -> AREIA MEDIA - POSTO JAZIDA/FORNECEDOR (RETIRADO NA JAZIDA, SEM TRANSPORTE) | F131: =INDEX('CPU - PROJ.AUX'!$R:$R,MATCH($A131,'CPU - PROJ.AUX'!$W:$W,0)) -> M3 | G131: =INDEX('CPU - PROJ.AUX'!T:T,MATCH(A131,'CPU - PROJ.AUX'!W:W,0))*$G$126 -> 0.18393424 | H131: =TRUNC(IF(INDEX('CPU - PROJ.AUX'!$H:$H,MATCH($A131,'CPU - PROJ.AUX'!$W:$W,0))=0,INDEX('CPU - PROJ.AUX'!$I:$I,MATCH($A131,'CPU - PROJ.AUX'!$W:$W,0)),INDEX('CPU - PROJ.AUX'!$H:$H,MATCH($A131,'CPU - PROJ.AUX'!$W:$W,0))),2) -> 129 | I131: =$I$6 -> 0.1352 | J131: 146.44 | K131: 26.93 | L131: 3.87593714e-05 | O131: MATERIAL
A132: 1.7.2.2 1106 | C132: 1106 | D132: SINAPI | E132: =INDEX('CPU - PROJ.AUX'!$P:$P,MATCH($A132,'CPU - PROJ.AUX'!$W:$W,0)) -> CAL HIDRATADA CH-I PARA ARGAMASSAS | F132: =INDEX('CPU - PROJ.AUX'!$R:$R,MATCH($A132,'CPU - PROJ.AUX'!$W:$W,0)) -> KG | G132: =INDEX('CPU - PROJ.AUX'!T:T,MATCH(A132,'CPU - PROJ.AUX'!W:W,0))*$G$126 -> 27.6059924 | H132: =TRUNC(IF(INDEX('CPU - PROJ.AUX'!$H:$H,MATCH($A132,'CPU - PROJ.AUX'!$W:$W,0))=0,INDEX('CPU - PROJ.AUX'!$I:$I,MATCH($A132,'CPU - PROJ.AUX'!$W:$W,0)),INDEX('CPU - PROJ.AUX'!$H:$H,MATCH($A132,'CPU - PROJ.AUX'!$W:$W,0))),2) -> 1.4 | I132: =$I$6 -> 0.1352 | J132: 1.58 | K132: 43.61 | L132: 6.276628988e-05 | O132: MATERIAL
A133: 1.7.2.2 1379 | C133: 1379 | D133: SINAPI | E133: =INDEX('CPU - PROJ.AUX'!$P:$P,MATCH($A133,'CPU - PROJ.AUX'!$W:$W,0)) -> CIMENTO PORTLAND COMPOSTO CP II-32 | F133: =INDEX('CPU - PROJ.AUX'!$R:$R,MATCH($A133,'CPU - PROJ.AUX'!$W:$W,0)) -> KG | G133: =INDEX('CPU - PROJ.AUX'!T:T,MATCH(A133,'CPU - PROJ.AUX'!W:W,0))*$G$126 -> 31.05634504 | H133: =TRUNC(IF(INDEX('CPU - PROJ.AUX'!$H:$H,MATCH($A133,'CPU - PROJ.AUX'!$W:$W,0))=0,INDEX('CPU - PROJ.AUX'!$I:$I,MATCH($A133,'CPU - PROJ.AUX'!$W:$W,0)),INDEX('CPU - PROJ.AUX'!$H:$H,MATCH($A133,'CPU - PROJ.AUX'!$W:$W,0))),2) -> 0.7 | I133: =$I$6 -> 0.1352 | J133: 0.79 | K133: 24.53 | L133: 3.530513852e-05 | O133: MATERIAL
A134: 1.7.2.2 88377 | C134: 88377 | D134: SINAPI | E134: =INDEX('CPU - PROJ.AUX'!$P:$P,MATCH($A134,'CPU - PROJ.AUX'!$W:$W,0)) -> OPERADOR DE BETONEIRA ESTACIONÁRIA/MISTURADOR COM ENCARGOS COMPLEMENTARES | F134: =INDEX('CPU - PROJ.AUX'!$R:$R,MATCH($A134,'CPU - PROJ.AUX'!$W:$W,0)) -> H | G134: =INDEX('CPU - PROJ.AUX'!T:T,MATCH(A134,'CPU - PROJ.AUX'!W:W,0))*$G$126 -> 0.713538 | H134: =TRUNC(IF(INDEX('CPU - PROJ.AUX'!$H:$H,MATCH($A134,'CPU - PROJ.AUX'!$W:$W,0))=0,INDEX('CPU - PROJ.AUX'!$I:$I,MATCH($A134,'CPU - PROJ.AUX'!$W:$W,0)),INDEX('CPU - PROJ.AUX'!$H:$H,MATCH($A134,'CPU - PROJ.AUX'!$W:$W,0))),2) -> 28.14 | I134: 0.2272 | J134: 34.53 | K134: 24.63 | L134: 3.544906489e-05 | O134: SERVIÇOS
A135: 1.7.2.2 88830 | C135: 88830 | D135: SINAPI | E135: =INDEX('CPU - PROJ.AUX'!$P:$P,MATCH($A135,'CPU - PROJ.AUX'!$W:$W,0)) -> BETONEIRA CAPACIDADE NOMINAL DE 400 L, CAPACIDADE DE MISTURA 280 L, MOTOR ELÉTRICO TRIFÁSICO POTÊNCIA DE 2 CV, SEM CARREGADOR - CHP DIURNO. AF_10/2014 | F135: =INDEX('CPU - PROJ.AUX'!$R:$R,MATCH($A135,'CPU - PROJ.AUX'!$W:$W,0)) -> CHP | G135: =INDEX('CPU - PROJ.AUX'!T:T,MATCH(A135,'CPU - PROJ.AUX'!W:W,0))*$G$126 -> 0.1664922 | H135: =TRUNC(IF(INDEX('CPU - PROJ.AUX'!$H:$H,MATCH($A135,'CPU - PROJ.AUX'!$W:$W,0))=0,INDEX('CPU - PROJ.AUX'!$I:$I,MATCH($A135,'CPU - PROJ.AUX'!$W:$W,0)),INDEX('CPU - PROJ.AUX'!$H:$H,MATCH($A135,'CPU - PROJ.AUX'!$W:$W,0))),2) -> 1.88 | I135: 0.2272 | J135: 2.3 | K135: 0.38 | L135: 5.469202054e-07 | O135: SERVIÇOS
A136: 1.7.2.2 88831 | C136: 88831 | D136: SINAPI | E136: =INDEX('CPU - PROJ.AUX'!$P:$P,MATCH($A136,'CPU - PROJ.AUX'!$W:$W,0)) -> BETONEIRA CAPACIDADE NOMINAL DE 400 L, CAPACIDADE DE MISTURA 280 L, MOTOR ELÉTRICO TRIFÁSICO POTÊNCIA DE 2 CV, SEM CARREGADOR - CHI DIURNO. AF_10/2014 | F136: =INDEX('CPU - PROJ.AUX'!$R:$R,MATCH($A136,'CPU - PROJ.AUX'!$W:$W,0)) -> CHI | G136: =INDEX('CPU - PROJ.AUX'!T:T,MATCH(A136,'CPU - PROJ.AUX'!W:W,0))*$G$126 -> 0.5470458 | H136: =TRUNC(IF(INDEX('CPU - PROJ.AUX'!$H:$H,MATCH($A136,'CPU - PROJ.AUX'!$W:$W,0))=0,INDEX('CPU - PROJ.AUX'!$I:$I,MATCH($A136,'CPU - PROJ.AUX'!$W:$W,0)),INDEX('CPU - PROJ.AUX'!$H:$H,MATCH($A136,'CPU - PROJ.AUX'!$W:$W,0))),2) -> 0.39 | I136: 0.2272 | J136: 0.47 | K136: 0.25 | L136: 3.598159246e-07 | O136: SERVIÇOS
A137: 1.7.2.2 88309 | C137: 88309 | D137: SINAPI | E137: =INDEX('CPU - PROJETO'!$C:$C,MATCH($C137,'CPU - PROJETO'!$B:$B,0)) -> PEDREIRO COM ENCARGOS COMPLEMENTARES | F137: =INDEX('CPU - PROJETO'!$D:$D,MATCH($C137,'CPU - PROJETO'!$B:$B,0)) -> H | G137: =INDEX('CPU - PROJETO'!T:T,MATCH(A137,'CPU - PROJETO'!W:W,0)) -> 19.416 | H137: =TRUNC(IF(INDEX('CPU - PROJETO'!$H:$H,MATCH($C137,'CPU - PROJETO'!$B:$B,0))=0,INDEX('CPU - PROJETO'!$I:$I,MATCH($C137,'CPU - PROJETO'!$B:$B,0)),INDEX('CPU - PROJETO'!$H:$H,MATCH($C137,'CPU - PROJETO'!$B:$B,0))),2) -> 25.38 | I137: 0.2272 | J137: 31.14 | K137: 604.61 | L137: 0.0008701932246 | O137: SERVIÇOS
A138: 1.7.2.2 88316 | C138: 88316 | D138: SINAPI | E138: =INDEX('CPU - PROJETO'!$C:$C,MATCH($C138,'CPU - PROJETO'!$B:$B,0)) -> SERVENTE COM ENCARGOS COMPLEMENTARES | F138: =INDEX('CPU - PROJETO'!$D:$D,MATCH($C138,'CPU - PROJETO'!$B:$B,0)) -> H | G138: =INDEX('CPU - PROJETO'!T:T,MATCH(A138,'CPU - PROJETO'!W:W,0)) -> 9.708 | H138: =TRUNC(IF(INDEX('CPU - PROJETO'!$H:$H,MATCH($C138,'CPU - PROJETO'!$B:$B,0))=0,INDEX('CPU - PROJETO'!$I:$I,MATCH($C138,'CPU - PROJETO'!$B:$B,0)),INDEX('CPU - PROJETO'!$H:$H,MATCH($C138,'CPU - PROJETO'!$B:$B,0))),2) -> 20.42 | I138: 0.2272 | J138: 25.05 | K138: 243.18 | L138: 0.0003500001462 | O138: =IF(I138=$I$6,"MATERIAL",IF(I138=$I$5,"SERVIÇOS"," ")) -> SERVIÇOS
A139: 1.7.2.3 | B139: 1.7.2.3 | C139: 93186 | D139: SINAPI | E139: =INDEX('CPU - PROJETO'!$C:$C,MATCH($C139,'CPU - PROJETO'!$B:$B,0)) -> VERGA MOLDADA IN LOCO EM CONCRETO PARA JANELAS COM ATÉ 1,5 M DE VÃO. AF_03/2016 | F139: =INDEX('CPU - PROJETO'!$D:$D,MATCH($C139,'CPU - PROJETO'!$B:$B,0)) -> M | G139: =INDEX(MEMÓRIA!L:L,MATCH($A139,MEMÓRIA!A:A,0)) -> 2
A140: 1.7.2.3 2692 | C140: 2692 | D140: SINAPI | E140: =INDEX('CPU - PROJETO'!$C:$C,MATCH($C140,'CPU - PROJETO'!$B:$B,0)) -> DESMOLDANTE PROTETOR PARA FORMAS DE MADEIRA, DE BASE OLEOSA EMULSIONADA EM AGUA | F140: =INDEX('CPU - PROJETO'!$D:$D,MATCH($C140,'CPU - PROJETO'!$B:$B,0)) -> L | G140: =INDEX('CPU - PROJETO'!T:T,MATCH(A140,'CPU - PROJETO'!W:W,0)) -> 0.012 | H140: =TRUNC(IF(INDEX('CPU - PROJETO'!$H:$H,MATCH($C140,'CPU - PROJETO'!$B:$B,0))=0,INDEX('CPU - PROJETO'!$I:$I,MATCH($C140,'CPU - PROJETO'!$B:$B,0)),INDEX('CPU - PROJETO'!$H:$H,MATCH($C140,'CPU - PROJETO'!$B:$B,0))),2) -> 7.5 | I140: =$I$6 -> 0.1352 | J140: 8.51 | K140: 0.1 | L140: 1.439263698e-07 | O140: MATERIAL
A141: 1.7.2.3 4491 | C141: 4491 | D141: SINAPI | E141: =INDEX('CPU - PROJETO'!$C:$C,MATCH($C141,'CPU - PROJETO'!$B:$B,0)) -> PECA DE MADEIRA NATIVA / REGIONAL 7,5 X 7,5CM (3X3) NAO APARELHADA (P/FORMA) | F141: =INDEX('CPU - PROJETO'!$D:$D,MATCH($C141,'CPU - PROJETO'!$B:$B,0)) -> M | G141: =INDEX('CPU - PROJETO'!T:T,MATCH(A141,'CPU - PROJETO'!W:W,0)) -> 0.704 | H141: =TRUNC(IF(INDEX('CPU - PROJETO'!$H:$H,MATCH($C141,'CPU - PROJETO'!$B:$B,0))=0,INDEX('CPU - PROJETO'!$I:$I,MATCH($C141,'CPU - PROJETO'!$B:$B,0)),INDEX('CPU - PROJETO'!$H:$H,MATCH($C141,'CPU - PROJETO'!$B:$B,0))),2) -> 10.05 | I141: =$I$6 -> 0.1352 | J141: 11.4 | K141: 8.02 | L141: 1.154289486e-05 | O141: MATERIAL
A142: 1.7.2.3 39017 | C142: 39017 | D142: SINAPI | E142: =INDEX('CPU - PROJETO'!$C:$C,MATCH($C142,'CPU - PROJETO'!$B:$B,0)) -> ESPACADOR / DISTANCIADOR CIRCULAR COM ENTRADA LATERAL, EM PLASTICO, PARA VERGALHAO *4,2 A 12,5* MM, COBRIMENTO 20 MM | F142: =INDEX('CPU - PROJETO'!$D:$D,MATCH($C142,'CPU - PROJETO'!$B:$B,0)) -> UN | G142: =INDEX('CPU - PROJETO'!T:T,MATCH(A142,'CPU - PROJETO'!W:W,0)) -> 12 | H142: =TRUNC(IF(INDEX('CPU - PROJETO'!$H:$H,MATCH($C142,'CPU - PROJETO'!$B:$B,0))=0,INDEX('CPU - PROJETO'!$I:$I,MATCH($C142,'CPU - PROJETO'!$B:$B,0)),INDEX('CPU - PROJETO'!$H:$H,MATCH($C142,'CPU - PROJETO'!$B:$B,0))),2) -> 0.18 | I142: =$I$6 -> 0.1352 | J142: =TRUNC(H142*(1+I142),2) -> 0.2 | K142: =TRUNC(G142*J142,2) -> 2.4 | L142: 3.454232876e-06 | O142: MATERIAL
A143: 1.7.2.3 88309 | C143: 88309 | D143: SINAPI | E143: =INDEX('CPU - PROJETO'!$C:$C,MATCH($C143,'CPU - PROJETO'!$B:$B,0)) -> PEDREIRO COM ENCARGOS COMPLEMENTARES | F143: =INDEX('CPU - PROJETO'!$D:$D,MATCH($C143,'CPU - PROJETO'!$B:$B,0)) -> H | G143: =INDEX('CPU - PROJETO'!T:T,MATCH(A143,'CPU - PROJETO'!W:W,0)) -> 0.752 | H143: =TRUNC(IF(INDEX('CPU - PROJETO'!$H:$H,MATCH($C143,'CPU - PROJETO'!$B:$B,0))=0,INDEX('CPU - PROJETO'!$I:$I,MATCH($C143,'CPU - PROJETO'!$B:$B,0)),INDEX('CPU - PROJETO'!$H:$H,MATCH($C143,'CPU - PROJETO'!$B:$B,0))),2) -> 25.38 | I143: 0.2272 | J143: =TRUNC(H143*(1+I143),2) -> 31.14 | K143: =TRUNC(G143*J143,2) -> 23.41 | L143: 3.369316318e-05 | O143: SERVIÇOS
A144: 1.7.2.3 88316 | C144: 88316 | D144: SINAPI | E144: =INDEX('CPU - PROJETO'!$C:$C,MATCH($C144,'CPU - PROJETO'!$B:$B,0)) -> SERVENTE COM ENCARGOS COMPLEMENTARES | F144: =INDEX('CPU - PROJETO'!$D:$D,MATCH($C144,'CPU - PROJETO'!$B:$B,0)) -> H | G144: =INDEX('CPU - PROJETO'!T:T,MATCH(A144,'CPU - PROJETO'!W:W,0)) -> 0.376 | H144: =TRUNC(IF(INDEX('CPU - PROJETO'!$H:$H,MATCH($C144,'CPU - PROJETO'!$B:$B,0))=0,INDEX('CPU - PROJETO'!$I:$I,MATCH($C144,'CPU - PROJETO'!$B:$B,0)),INDEX('CPU - PROJETO'!$H:$H,MATCH($C144,'CPU - PROJETO'!$B:$B,0))),2) -> 20.42 | I144: 0.2272 | J144: 25.05 | K144: 9.41 | L144: 1.35434714e-05 | O144: SERVIÇOS
A145: 1.7.2.3 92270 | C145: 92270 | D145: SINAPI | E145: =INDEX('CPU - PROJETO'!$C:$C,MATCH($C145,'CPU - PROJETO'!$B:$B,0)) -> FABRICAÇÃO DE FÔRMA PARA VIGAS, COM MADEIRA SERRADA, E = 25 MM. AF_09/2020 | F145: =INDEX('CPU - PROJETO'!$D:$D,MATCH($C145,'CPU - PROJETO'!$B:$B,0)) -> M2 | G145: =INDEX('CPU - PROJETO'!T:T,MATCH(A145,'CPU - PROJETO'!W:W,0)) -> 0.7
A146: 1.7.2.3 4517 | C146: 4517 | D146: SINAPI | E146: =INDEX('CPU - PROJ.AUX'!$P:$P,MATCH($A146,'CPU - PROJ.AUX'!$W:$W,0)) -> SARRAFO DE MADEIRA NAO APARELHADA *2,5 X 7,5* CM (1 X 3 ") PINUS, MISTA OU EQUIVALENTE DA REGIAO | F146: =INDEX('CPU - PROJ.AUX'!$R:$R,MATCH($A146,'CPU - PROJ.AUX'!$W:$W,0)) -> M | G146: =INDEX('CPU - PROJ.AUX'!T:T,MATCH(A146,'CPU - PROJ.AUX'!W:W,0))*$G$139 -> 2.9596 | H146: =TRUNC(IF(INDEX('CPU - PROJ.AUX'!$H:$H,MATCH($A146,'CPU - PROJ.AUX'!$W:$W,0))=0,INDEX('CPU - PROJ.AUX'!$I:$I,MATCH($A146,'CPU - PROJ.AUX'!$W:$W,0)),INDEX('CPU - PROJ.AUX'!$H:$H,MATCH($A146,'CPU - PROJ.AUX'!$W:$W,0))),2) -> 3.52 | I146: =$I$6 -> 0.1352 | J146: 3.99 | K146: 11.8 | L146: =K146/$K$550 -> 1.698331164e-05 | O146: MATERIAL
A147: 1.7.2.3 5068 | C147: 5068 | D147: SINAPI | E147: =INDEX('CPU - PROJ.AUX'!$P:$P,MATCH($A147,'CPU - PROJ.AUX'!$W:$W,0)) -> PREGO DE ACO POLIDO COM CABECA 17 X 21 (2 X 11) | F147: =INDEX('CPU - PROJ.AUX'!$R:$R,MATCH($A147,'CPU - PROJ.AUX'!$W:$W,0)) -> KG | G147: =INDEX('CPU - PROJ.AUX'!T:T,MATCH(A147,'CPU - PROJ.AUX'!W:W,0))*$G$139 -> 0.0896 | H147: =TRUNC(IF(INDEX('CPU - PROJ.AUX'!$H:$H,MATCH($A147,'CPU - PROJ.AUX'!$W:$W,0))=0,INDEX('CPU - PROJ.AUX'!$I:$I,MATCH($A147,'CPU - PROJ.AUX'!$W:$W,0)),INDEX('CPU - PROJ.AUX'!$H:$H,MATCH($A147,'CPU - PROJ.AUX'!$W:$W,0))),2) -> 22.38 | I147: =$I$6 -> 0.1352 | J147: =TRUNC(H147*(1+I147),2) -> 25.4 | K147: =TRUNC(G147*J147,2) -> 2.27 | L147: 3.267128595e-06 | O147: MATERIAL
A148: 1.7.2.3 6189 | C148: 6189 | D148: SINAPI | E148: =INDEX('CPU - PROJ.AUX'!$P:$P,MATCH($A148,'CPU - PROJ.AUX'!$W:$W,0)) -> TABUA DE MADEIRA NAO APARELHADA *2,5 X 30* CM, CEDRINHO OU EQUIVALENTE DA REGIAO | F148: =INDEX('CPU - PROJ.AUX'!$R:$R,MATCH($A148,'CPU - PROJ.AUX'!$W:$W,0)) -> M | G148: =INDEX('CPU - PROJ.AUX'!T:T,MATCH(A148,'CPU - PROJ.AUX'!W:W,0))*$G$139 -> 3.1136 | H148: =TRUNC(IF(INDEX('CPU - PROJ.AUX'!$H:$H,MATCH($A148,'CPU - PROJ.AUX'!$W:$W,0))=0,INDEX('CPU - PROJ.AUX'!$I:$I,MATCH($A148,'CPU - PROJ.AUX'!$W:$W,0)),INDEX('CPU - PROJ.AUX'!$H:$H,MATCH($A148,'CPU - PROJ.AUX'!$W:$W,0))),2) -> 31.97 | I148: =$I$6 -> 0.1352 | J148: 36.29 | K148: 112.99 | L148: 0.0001626224053 | O148: MATERIAL
A149: 1.7.2.3 88239 | C149: 88239 | D149: SINAPI | E149: =INDEX('CPU - PROJ.AUX'!$P:$P,MATCH($A149,'CPU - PROJ.AUX'!$W:$W,0)) -> AJUDANTE DE CARPINTEIRO COM ENCARGOS COMPLEMENTARES | F149: =INDEX('CPU - PROJ.AUX'!$R:$R,MATCH($A149,'CPU - PROJ.AUX'!$W:$W,0)) -> H | G149: =INDEX('CPU - PROJ.AUX'!T:T,MATCH(A149,'CPU - PROJ.AUX'!W:W,0))*$G$139 -> 0.1253 | H149: =TRUNC(IF(INDEX('CPU - PROJ.AUX'!$H:$H,MATCH($A149,'CPU - PROJ.AUX'!$W:$W,0))=0,INDEX('CPU - PROJ.AUX'!$I:$I,MATCH($A149,'CPU - PROJ.AUX'!$W:$W,0)),INDEX('CPU - PROJ.AUX'!$H:$H,MATCH($A149,'CPU - PROJ.AUX'!$W:$W,0))),2) -> 20.27 | I149: 0.2272 | J149: 24.87 | K149: 3.11 | L149: 4.476110102e-06 | O149: SERVIÇOS
A150: 1.7.2.3 88262 | C150: 88262 | D150: SINAPI | E150: =INDEX('CPU - PROJ.AUX'!$P:$P,MATCH($A150,'CPU - PROJ.AUX'!$W:$W,0)) -> CARPINTEIRO DE FORMAS COM ENCARGOS COMPLEMENTARES | F150: =INDEX('CPU - PROJ.AUX'!$R:$R,MATCH($A150,'CPU - PROJ.AUX'!$W:$W,0)) -> H | G150: =INDEX('CPU - PROJ.AUX'!T:T,MATCH(A150,'CPU - PROJ.AUX'!W:W,0))*$G$139 -> 0.5544 | H150: =TRUNC(IF(INDEX('CPU - PROJ.AUX'!$H:$H,MATCH($A150,'CPU - PROJ.AUX'!$W:$W,0))=0,INDEX('CPU - PROJ.AUX'!$I:$I,MATCH($A150,'CPU - PROJ.AUX'!$W:$W,0)),INDEX('CPU - PROJ.AUX'!$H:$H,MATCH($A150,'CPU - PROJ.AUX'!$W:$W,0))),2) -> 25 | I150: 0.2272 | J150: 30.68 | K150: 17 | L150: 2.446748287e-05 | O150: SERVIÇOS
A151: 1.7.2.3 91692 | C151: 91692 | D151: SINAPI | E151: =INDEX('CPU - PROJ.AUX'!$P:$P,MATCH($A151,'CPU - PROJ.AUX'!$W:$W,0)) -> SERRA CIRCULAR DE BANCADA COM MOTOR ELÉTRICO POTÊNCIA DE 5HP, COM COIFA PARA DISCO 10" - CHP DIURNO. AF_08/2015 | F151: =INDEX('CPU - PROJ.AUX'!$R:$R,MATCH($A151,'CPU - PROJ.AUX'!$W:$W,0)) -> CHP | G151: =INDEX('CPU - PROJ.AUX'!T:T,MATCH(A151,'CPU - PROJ.AUX'!W:W,0))*$G$139 -> 0.0392 | H151: =TRUNC(IF(INDEX('CPU - PROJ.AUX'!$H:$H,MATCH($A151,'CPU - PROJ.AUX'!$W:$W,0))=0,INDEX('CPU - PROJ.AUX'!$I:$I,MATCH($A151,'CPU - PROJ.AUX'!$W:$W,0)),INDEX('CPU - PROJ.AUX'!$H:$H,MATCH($A151,'CPU - PROJ.AUX'!$W:$W,0))),2) -> 34.3 | I151: 0.2272 | J151: 42.09 | K151: 1.64 | L151: 2.360392465e-06 | O151: SERVIÇOS
A152: 1.7.2.3 91693 | C152: 91693 | D152: SINAPI | E152: =INDEX('CPU - PROJ.AUX'!$P:$P,MATCH($A152,'CPU - PROJ.AUX'!$W:$W,0)) -> SERRA CIRCULAR DE BANCADA COM MOTOR ELÉTRICO POTÊNCIA DE 5HP, COM COIFA PARA DISCO 10" - CHI DIURNO. AF_08/2015 | F152: =INDEX('CPU - PROJ.AUX'!$R:$R,MATCH($A152,'CPU - PROJ.AUX'!$W:$W,0)) -> CHI | G152: =INDEX('CPU - PROJ.AUX'!T:T,MATCH(A152,'CPU - PROJ.AUX'!W:W,0))*$G$139 -> 0.1568 | H152: =TRUNC(IF(INDEX('CPU - PROJ.AUX'!$H:$H,MATCH($A152,'CPU - PROJ.AUX'!$W:$W,0))=0,INDEX('CPU - PROJ.AUX'!$I:$I,MATCH($A152,'CPU - PROJ.AUX'!$W:$W,0)),INDEX('CPU - PROJ.AUX'!$H:$H,MATCH($A152,'CPU - PROJ.AUX'!$W:$W,0))),2) -> 33.05 | I152: 0.2272 | J152: 40.55 | K152: 6.35 | L152: 9.139324484e-06 | O152: SERVIÇOS
A153: 1.7.2.3 92801 | C153: 92801 | D153: SINAPI | E153: =INDEX('CPU - PROJETO'!$C:$C,MATCH($C153,'CPU - PROJETO'!$B:$B,0)) -> CORTE E DOBRA DE AÇO CA-50, DIÂMETRO DE 6,3 MM. AF_06/2022 | F153: =INDEX('CPU - PROJETO'!$D:$D,MATCH($C153,'CPU - PROJETO'!$B:$B,0)) -> KG | G153: =INDEX('CPU - PROJETO'!T:T,MATCH(A153,'CPU - PROJETO'!W:W,0)) -> 0.98
A154: 1.7.2.3 32 | C154: 32 | D154: SINAPI | E154: =INDEX('CPU - PROJ.AUX'!$P:$P,MATCH($A154,'CPU - PROJ.AUX'!$W:$W,0)) -> ACO CA-50, 6,3 MM, VERGALHAO | F154: =INDEX('CPU - PROJ.AUX'!$R:$R,MATCH($A154,'CPU - PROJ.AUX'!$W:$W,0)) -> KG | G154: =INDEX('CPU - PROJ.AUX'!T:T,MATCH(A154,'CPU - PROJ.AUX'!W:W,0))*$G$139 -> 1.0486 | H154: =TRUNC(IF(INDEX('CPU - PROJ.AUX'!$H:$H,MATCH($A154,'CPU - PROJ.AUX'!$W:$W,0))=0,INDEX('CPU - PROJ.AUX'!$I:$I,MATCH($A154,'CPU - PROJ.AUX'!$W:$W,0)),INDEX('CPU - PROJ.AUX'!$H:$H,MATCH($A154,'CPU - PROJ.AUX'!$W:$W,0))),2) -> 12.01 | I154: =$I$6 -> 0.1352 | J154: =TRUNC(H154*(1+I154),2) -> 13.63 | K154: =TRUNC(G154*J154,2) -> 14.29 | L154: 2.056707825e-05 | O154: MATERIAL
A155: 1.7.2.3 88238 | C155: 88238 | D155: SINAPI | E155: =INDEX('CPU - PROJ.AUX'!$P:$P,MATCH($A155,'CPU - PROJ.AUX'!$W:$W,0)) -> AJUDANTE DE ARMADOR COM ENCARGOS COMPLEMENTARES | F155: =INDEX('CPU - PROJ.AUX'!$R:$R,MATCH($A155,'CPU - PROJ.AUX'!$W:$W,0)) -> H | G155: =INDEX('CPU - PROJ.AUX'!T:T,MATCH(A155,'CPU - PROJ.AUX'!W:W,0))*$G$139 -> 0.004998 | H155: =TRUNC(IF(INDEX('CPU - PROJ.AUX'!$H:$H,MATCH($A155,'CPU - PROJ.AUX'!$W:$W,0))=0,INDEX('CPU - PROJ.AUX'!$I:$I,MATCH($A155,'CPU - PROJ.AUX'!$W:$W,0)),INDEX('CPU - PROJ.AUX'!$H:$H,MATCH($A155,'CPU - PROJ.AUX'!$W:$W,0))),2) -> 20.43 | I155: 0.2272 | J155: 25.07 | K155: 0.12 | L155: 1.727116438e-07 | O155: SERVIÇOS
A156: 1.7.2.3 88245 | C156: 88245 | D156: SINAPI | E156: =INDEX('CPU - PROJ.AUX'!$P:$P,MATCH($A156,'CPU - PROJ.AUX'!$W:$W,0)) -> ARMADOR COM ENCARGOS COMPLEMENTARES | F156: =INDEX('CPU - PROJ.AUX'!$R:$R,MATCH($A156,'CPU - PROJ.AUX'!$W:$W,0)) -> H | G156: =INDEX('CPU - PROJ.AUX'!T:T,MATCH(A156,'CPU - PROJ.AUX'!W:W,0))*$G$139 -> 0.03038 | H156: =TRUNC(IF(INDEX('CPU - PROJ.AUX'!$H:$H,MATCH($A156,'CPU - PROJ.AUX'!$W:$W,0))=0,INDEX('CPU - PROJ.AUX'!$I:$I,MATCH($A156,'CPU - PROJ.AUX'!$W:$W,0)),INDEX('CPU - PROJ.AUX'!$H:$H,MATCH($A156,'CPU - PROJ.AUX'!$W:$W,0))),2) -> 25.18 | I156: 0.2272 | J156: 30.9 | K156: 0.93 | L156: 1.338515239e-06 | O156: SERVIÇOS
A157: 1.7.2.3 94970 | C157: 94970 | D157: SINAPI | E157: =INDEX('CPU - PROJETO'!$C:$C,MATCH($C157,'CPU - PROJETO'!$B:$B,0)) -> CONCRETO FCK = 20MPA, TRAÇO 1:2,7:3 (CIMENTO/ AREIA MÉDIA/ BRITA 1) - PREPARO MECÂNICO COM BETONEIRA 600 L. AF_07/2016 | F157: =INDEX('CPU - PROJETO'!$D:$D,MATCH($C157,'CPU - PROJETO'!$B:$B,0)) -> M3 | G157: =INDEX('CPU - PROJETO'!T:T,MATCH(A157,'CPU - PROJETO'!W:W,0)) -> 0.036
A158: 1.7.2.3 370 | C158: 370 | D158: SINAPI | E158: =INDEX('CPU - PROJ.AUX'!$P:$P,MATCH($A158,'CPU - PROJ.AUX'!$W:$W,0)) -> AREIA MEDIA - POSTO JAZIDA/FORNECEDOR (RETIRADO NA JAZIDA, SEM TRANSPORTE) | F158: =INDEX('CPU - PROJ.AUX'!$R:$R,MATCH($A158,'CPU - PROJ.AUX'!$W:$W,0)) -> M3 | G158: =INDEX('CPU - PROJ.AUX'!T:T,MATCH(A158,'CPU - PROJ.AUX'!W:W,0))*$G$139 -> 0.0273924 | H158: =TRUNC(IF(INDEX('CPU - PROJ.AUX'!$H:$H,MATCH($A158,'CPU - PROJ.AUX'!$W:$W,0))=0,INDEX('CPU - PROJ.AUX'!$I:$I,MATCH($A158,'CPU - PROJ.AUX'!$W:$W,0)),INDEX('CPU - PROJ.AUX'!$H:$H,MATCH($A158,'CPU - PROJ.AUX'!$W:$W,0))),2) -> 129 | I158: =$I$6 -> 0.1352 | J158: =TRUNC(H158*(1+I158),2) -> 146.44 | K158: =TRUNC(G158*J158,2) -> 4.01 | L158: 5.77144743e-06 | O158: MATERIAL
A159: 1.7.2.3 1379 | C159: 1379 | D159: SINAPI | E159: =INDEX('CPU - PROJ.AUX'!$P:$P,MATCH($A159,'CPU - PROJ.AUX'!$W:$W,0)) -> CIMENTO PORTLAND COMPOSTO CP II-32 | F159: =INDEX('CPU - PROJ.AUX'!$R:$R,MATCH($A159,'CPU - PROJ.AUX'!$W:$W,0)) -> KG | G159: =INDEX('CPU - PROJ.AUX'!T:T,MATCH(A159,'CPU - PROJ.AUX'!W:W,0))*$G$139 -> 11.7057204 | H159: =TRUNC(IF(INDEX('CPU - PROJ.AUX'!$H:$H,MATCH($A159,'CPU - PROJ.AUX'!$W:$W,0))=0,INDEX('CPU - PROJ.AUX'!$I:$I,MATCH($A159,'CPU - PROJ.AUX'!$W:$W,0)),INDEX('CPU - PROJ.AUX'!$H:$H,MATCH($A159,'CPU - PROJ.AUX'!$W:$W,0))),2) -> 0.7 | I159: =$I$6 -> 0.1352 | J159: 0.79 | K159: 9.24 | L159: 1.329879657e-05 | O159: MATERIAL
A160: 1.7.2.3 4721 | C160: 4721 | D160: SINAPI | E160: =INDEX('CPU - PROJ.AUX'!$P:$P,MATCH($A160,'CPU - PROJ.AUX'!$W:$W,0)) -> PEDRA BRITADA N. 1 (9,5 a 19 MM) POSTO PEDREIRA/FORNECEDOR, SEM FRETE | F160: =INDEX('CPU - PROJ.AUX'!$R:$R,MATCH($A160,'CPU - PROJ.AUX'!$W:$W,0)) -> M3 | G160: =INDEX('CPU - PROJ.AUX'!T:T,MATCH(A160,'CPU - PROJ.AUX'!W:W,0))*$G$139 -> 0.0212832 | H160: =TRUNC(IF(INDEX('CPU - PROJ.AUX'!$H:$H,MATCH($A160,'CPU - PROJ.AUX'!$W:$W,0))=0,INDEX('CPU - PROJ.AUX'!$I:$I,MATCH($A160,'CPU - PROJ.AUX'!$W:$W,0)),INDEX('CPU - PROJ.AUX'!$H:$H,MATCH($A160,'CPU - PROJ.AUX'!$W:$W,0))),2) -> 89 | I160: =$I$6 -> 0.1352 | J160: 101.03 | K160: 2.15 | L160: 3.094416951e-06 | O160: MATERIAL
A161: 1.7.2.3 88316 | C161: 88316 | D161: SINAPI | E161: =INDEX('CPU - PROJ.AUX'!$P:$P,MATCH($A161,'CPU - PROJ.AUX'!$W:$W,0)) -> SERVENTE COM ENCARGOS COMPLEMENTARES | F161: =INDEX('CPU - PROJ.AUX'!$R:$R,MATCH($A161,'CPU - PROJ.AUX'!$W:$W,0)) -> H | G161: =INDEX('CPU - PROJ.AUX'!T:T,MATCH(A161,'CPU - PROJ.AUX'!W:W,0))*$G$139 -> 0.0729612 | H161: =TRUNC(IF(INDEX('CPU - PROJ.AUX'!$H:$H,MATCH($A161,'CPU - PROJ.AUX'!$W:$W,0))=0,INDEX('CPU - PROJ.AUX'!$I:$I,MATCH($A161,'CPU - PROJ.AUX'!$W:$W,0)),INDEX('CPU - PROJ.AUX'!$H:$H,MATCH($A161,'CPU - PROJ.AUX'!$W:$W,0))),2) -> 20.42 | I161: 0.2272 | J161: 25.05 | K161: 1.82 | L161: 2.619459931e-06 | O161: SERVIÇOS
A162: 1.7.2.3 88377 | C162: 88377 | D162: SINAPI | E162: =INDEX('CPU - PROJ.AUX'!$P:$P,MATCH($A162,'CPU - PROJ.AUX'!$W:$W,0)) -> OPERADOR DE BETONEIRA ESTACIONÁRIA/MISTURADOR COM ENCARGOS COMPLEMENTARES | F162: =INDEX('CPU - PROJ.AUX'!$R:$R,MATCH($A162,'CPU - PROJ.AUX'!$W:$W,0)) -> H | G162: =INDEX('CPU - PROJ.AUX'!T:T,MATCH(A162,'CPU - PROJ.AUX'!W:W,0))*$G$139 -> 0.0459648 | H162: =TRUNC(IF(INDEX('CPU - PROJ.AUX'!$H:$H,MATCH($A162,'CPU - PROJ.AUX'!$W:$W,0))=0,INDEX('CPU - PROJ.AUX'!$I:$I,MATCH($A162,'CPU - PROJ.AUX'!$W:$W,0)),INDEX('CPU - PROJ.AUX'!$H:$H,MATCH($A162,'CPU - PROJ.AUX'!$W:$W,0))),2) -> 28.14 | I162: 0.2272 | J162: 34.53 | K162: 1.58 | L162: 2.274036643e-06 | O162: SERVIÇOS
A163: 1.7.2.3 89225 | C163: 89225 | D163: SINAPI | E163: =INDEX('CPU - PROJ.AUX'!$P:$P,MATCH($A163,'CPU - PROJ.AUX'!$W:$W,0)) -> BETONEIRA CAPACIDADE NOMINAL DE 600 L, CAPACIDADE DE MISTURA 360 L, MOTOR ELÉTRICO TRIFÁSICO POTÊNCIA DE 4 CV, SEM CARREGADOR - CHP DIURNO. AF_11/2014 | F163: =INDEX('CPU - PROJ.AUX'!$R:$R,MATCH($A163,'CPU - PROJ.AUX'!$W:$W,0)) -> CHP | G163: =INDEX('CPU - PROJ.AUX'!T:T,MATCH(A163,'CPU - PROJ.AUX'!W:W,0))*$G$139 -> 0.0236592 | H163: =TRUNC(IF(INDEX('CPU - PROJ.AUX'!$H:$H,MATCH($A163,'CPU - PROJ.AUX'!$W:$W,0))=0,INDEX('CPU - PROJ.AUX'!$I:$I,MATCH($A163,'CPU - PROJ.AUX'!$W:$W,0)),INDEX('CPU - PROJ.AUX'!$H:$H,MATCH($A163,'CPU - PROJ.AUX'!$W:$W,0))),2) -> 5.41 | I163: 0.2272 | J163: 6.63 | K163: 0.15 | L163: 2.158895548e-07 | O163: SERVIÇOS
A164: 1.7.2.3 89226 | C164: 89226 | D164: SINAPI | E164: =INDEX('CPU - PROJ.AUX'!$P:$P,MATCH($A164,'CPU - PROJ.AUX'!$W:$W,0)) -> BETONEIRA CAPACIDADE NOMINAL DE 600 L, CAPACIDADE DE MISTURA 360 L, MOTOR ELÉTRICO TRIFÁSICO POTÊNCIA DE 4 CV, SEM CARREGADOR - CHI DIURNO. AF_11/2014 | F164: =INDEX('CPU - PROJ.AUX'!$R:$R,MATCH($A164,'CPU - PROJ.AUX'!$W:$W,0)) -> CHI | G164: =INDEX('CPU - PROJ.AUX'!T:T,MATCH(A164,'CPU - PROJ.AUX'!W:W,0))*$G$139 -> 0.0223092 | H164: =TRUNC(IF(INDEX('CPU - PROJ.AUX'!$H:$H,MATCH($A164,'CPU - PROJ.AUX'!$W:$W,0))=0,INDEX('CPU - PROJ.AUX'!$I:$I,MATCH($A164,'CPU - PROJ.AUX'!$W:$W,0)),INDEX('CPU - PROJ.AUX'!$H:$H,MATCH($A164,'CPU - PROJ.AUX'!$W:$W,0))),2) -> 1.62 | I164: 0.2272 | J164: 1.98 | K164: 0.04 | L164: 5.757054793e-08 | O164: SERVIÇOS
A165: 1.7.2.4 | B165: 1.7.2.4 | C165: 93187 | D165: SINAPI | E165: =INDEX('CPU - PROJETO'!$C:$C,MATCH($C165,'CPU - PROJETO'!$B:$B,0)) -> VERGA MOLDADA IN LOCO EM CONCRETO PARA JANELAS COM MAIS DE 1,5 M DE VÃO. AF_03/2016 | F165: =INDEX('CPU - PROJETO'!$D:$D,MATCH($C165,'CPU - PROJETO'!$B:$B,0)) -> M | G165: =INDEX(MEMÓRIA!L:L,MATCH($A165,MEMÓRIA!A:A,0)) -> 5
A166: 1.7.2.4 2692 | C166: 2692 | D166: SINAPI | E166: =INDEX('CPU - PROJETO'!$C:$C,MATCH($C166,'CPU - PROJETO'!$B:$B,0)) -> DESMOLDANTE PROTETOR PARA FORMAS DE MADEIRA, DE BASE OLEOSA EMULSIONADA EM AGUA | F166: =INDEX('CPU - PROJETO'!$D:$D,MATCH($C166,'CPU - PROJETO'!$B:$B,0)) -> L | G166: =INDEX('CPU - PROJETO'!T:T,MATCH(A166,'CPU - PROJETO'!W:W,0)) -> 0.035 | H166: =TRUNC(IF(INDEX('CPU - PROJETO'!$H:$H,MATCH($C166,'CPU - PROJETO'!$B:$B,0))=0,INDEX('CPU - PROJETO'!$I:$I,MATCH($C166,'CPU - PROJETO'!$B:$B,0)),INDEX('CPU - PROJETO'!$H:$H,MATCH($C166,'CPU - PROJETO'!$B:$B,0))),2) -> 7.5 | I166: =$I$6 -> 0.1352 | J166: =TRUNC(H166*(1+I166),2) -> 8.51 | K166: =TRUNC(G166*J166,2) -> 0.29 | L166: 4.173864725e-07 | O166: MATERIAL
A167: 1.7.2.4 4491 | C167: 4491 | D167: SINAPI | E167: =INDEX('CPU - PROJETO'!$C:$C,MATCH($C167,'CPU - PROJETO'!$B:$B,0)) -> PECA DE MADEIRA NATIVA / REGIONAL 7,5 X 7,5CM (3X3) NAO APARELHADA (P/FORMA) | F167: =INDEX('CPU - PROJETO'!$D:$D,MATCH($C167,'CPU - PROJETO'!$B:$B,0)) -> M | G167: =INDEX('CPU - PROJETO'!T:T,MATCH(A167,'CPU - PROJETO'!W:W,0)) -> 1.1 | H167: =TRUNC(IF(INDEX('CPU - PROJETO'!$H:$H,MATCH($C167,'CPU - PROJETO'!$B:$B,0))=0,INDEX('CPU - PROJETO'!$I:$I,MATCH($C167,'CPU - PROJETO'!$B:$B,0)),INDEX('CPU - PROJETO'!$H:$H,MATCH($C167,'CPU - PROJETO'!$B:$B,0))),2) -> 10.05 | I167: =$I$6 -> 0.1352 | J167: 11.4 | K167: 12.54 | L167: 1.804836678e-05 | O167: MATERIAL
A168: 1.7.2.4 39017 | C168: 39017 | D168: SINAPI | E168: =INDEX('CPU - PROJETO'!$C:$C,MATCH($C168,'CPU - PROJETO'!$B:$B,0)) -> ESPACADOR / DISTANCIADOR CIRCULAR COM ENTRADA LATERAL, EM PLASTICO, PARA VERGALHAO *4,2 A 12,5* MM, COBRIMENTO 20 MM | F168: =INDEX('CPU - PROJETO'!$D:$D,MATCH($C168,'CPU - PROJETO'!$B:$B,0)) -> UN | G168: =INDEX('CPU - PROJETO'!T:T,MATCH(A168,'CPU - PROJETO'!W:W,0)) -> 30 | H168: =TRUNC(IF(INDEX('CPU - PROJETO'!$H:$H,MATCH($C168,'CPU - PROJETO'!$B:$B,0))=0,INDEX('CPU - PROJETO'!$I:$I,MATCH($C168,'CPU - PROJETO'!$B:$B,0)),INDEX('CPU - PROJETO'!$H:$H,MATCH($C168,'CPU - PROJETO'!$B:$B,0))),2) -> 0.18 | I168: =$I$6 -> 0.1352 | J168: 0.2 | K168: 6 | L168: 8.63558219e-06 | O168: MATERIAL
A169: 1.7.2.4 88309 | C169: 88309 | D169: SINAPI | E169: =INDEX('CPU - PROJETO'!$C:$C,MATCH($C169,'CPU - PROJETO'!$B:$B,0)) -> PEDREIRO COM ENCARGOS COMPLEMENTARES | F169: =INDEX('CPU - PROJETO'!$D:$D,MATCH($C169,'CPU - PROJETO'!$B:$B,0)) -> H | G169: =INDEX('CPU - PROJETO'!T:T,MATCH(A169,'CPU - PROJETO'!W:W,0)) -> 1.8 | H169: =TRUNC(IF(INDEX('CPU - PROJETO'!$H:$H,MATCH($C169,'CPU - PROJETO'!$B:$B,0))=0,INDEX('CPU - PROJETO'!$I:$I,MATCH($C169,'CPU - PROJETO'!$B:$B,0)),INDEX('CPU - PROJETO'!$H:$H,MATCH($C169,'CPU - PROJETO'!$B:$B,0))),2) -> 25.38 | I169: 0.2272 | J169: =TRUNC(H169*(1+I169),2) -> 31.14 | K169: =TRUNC(G169*J169,2) -> 56.05 | L169: 8.067073029e-05 | O169: SERVIÇOS
A170: 1.7.2.4 88316 | C170: 88316 | D170: SINAPI | E170: =INDEX('CPU - PROJETO'!$C:$C,MATCH($C170,'CPU - PROJETO'!$B:$B,0)) -> SERVENTE COM ENCARGOS COMPLEMENTARES | F170: =INDEX('CPU - PROJETO'!$D:$D,MATCH($C170,'CPU - PROJETO'!$B:$B,0)) -> H | G170: =INDEX('CPU - PROJETO'!T:T,MATCH(A170,'CPU - PROJETO'!W:W,0)) -> 0.9 | H170: =TRUNC(IF(INDEX('CPU - PROJETO'!$H:$H,MATCH($C170,'CPU - PROJETO'!$B:$B,0))=0,INDEX('CPU - PROJETO'!$I:$I,MATCH($C170,'CPU - PROJETO'!$B:$B,0)),INDEX('CPU - PROJETO'!$H:$H,MATCH($C170,'CPU - PROJETO'!$B:$B,0))),2) -> 20.42 | I170: 0.2272 | J170: 25.05 | K170: 22.54 | L170: 3.244100376e-05 | O170: SERVIÇOS
A171: 1.7.2.4 92270 | C171: 92270 | D171: SINAPI | E171: =INDEX('CPU - PROJETO'!$C:$C,MATCH($C171,'CPU - PROJETO'!$B:$B,0)) -> FABRICAÇÃO DE FÔRMA PARA VIGAS, COM MADEIRA SERRADA, E = 25 MM. AF_09/2020 | F171: =INDEX('CPU - PROJETO'!$D:$D,MATCH($C171,'CPU - PROJETO'!$B:$B,0)) -> M2 | G171: =INDEX('CPU - PROJETO'!T:T,MATCH(A171,'CPU - PROJETO'!W:W,0)) -> 2
A172: 1.7.2.4 4517 | C172: 4517 | D172: SINAPI | E172: =INDEX('CPU - PROJ.AUX'!$P:$P,MATCH($A172,'CPU - PROJ.AUX'!$W:$W,0)) -> SARRAFO DE MADEIRA NAO APARELHADA *2,5 X 7,5* CM (1 X 3 ") PINUS, MISTA OU EQUIVALENTE DA REGIAO | F172: =INDEX('CPU - PROJ.AUX'!$R:$R,MATCH($A172,'CPU - PROJ.AUX'!$W:$W,0)) -> M | G172: =INDEX('CPU - PROJ.AUX'!T:T,MATCH(A172,'CPU - PROJ.AUX'!W:W,0))*$G$165 -> 8.456 | H172: =TRUNC(IF(INDEX('CPU - PROJ.AUX'!$H:$H,MATCH($A172,'CPU - PROJ.AUX'!$W:$W,0))=0,INDEX('CPU - PROJ.AUX'!$I:$I,MATCH($A172,'CPU - PROJ.AUX'!$W:$W,0)),INDEX('CPU - PROJ.AUX'!$H:$H,MATCH($A172,'CPU - PROJ.AUX'!$W:$W,0))),2) -> 3.52 | I172: =$I$6 -> 0.1352 | J172: 3.99 | K172: 33.73 | L172: 4.854636454e-05 | O172: MATERIAL
A173: 1.7.2.4 5068 | C173: 5068 | D173: SINAPI | E173: =INDEX('CPU - PROJ.AUX'!$P:$P,MATCH($A173,'CPU - PROJ.AUX'!$W:$W,0)) -> PREGO DE ACO POLIDO COM CABECA 17 X 21 (2 X 11) | F173: =INDEX('CPU - PROJ.AUX'!$R:$R,MATCH($A173,'CPU - PROJ.AUX'!$W:$W,0)) -> KG | G173: =INDEX('CPU - PROJ.AUX'!T:T,MATCH(A173,'CPU - PROJ.AUX'!W:W,0))*$G$165 -> 0.256 | H173: =TRUNC(IF(INDEX('CPU - PROJ.AUX'!$H:$H,MATCH($A173,'CPU - PROJ.AUX'!$W:$W,0))=0,INDEX('CPU - PROJ.AUX'!$I:$I,MATCH($A173,'CPU - PROJ.AUX'!$W:$W,0)),INDEX('CPU - PROJ.AUX'!$H:$H,MATCH($A173,'CPU - PROJ.AUX'!$W:$W,0))),2) -> 22.38 | I173: =$I$6 -> 0.1352 | J173: =TRUNC(H173*(1+I173),2) -> 25.4 | K173: =TRUNC(G173*J173,2) -> 6.5 | L173: 9.355214039e-06 | O173: MATERIAL
A174: 1.7.2.4 6189 | C174: 6189 | D174: SINAPI | E174: =INDEX('CPU - PROJ.AUX'!$P:$P,MATCH($A174,'CPU - PROJ.AUX'!$W:$W,0)) -> TABUA DE MADEIRA NAO APARELHADA *2,5 X 30* CM, CEDRINHO OU EQUIVALENTE DA REGIAO | F174: =INDEX('CPU - PROJ.AUX'!$R:$R,MATCH($A174,'CPU - PROJ.AUX'!$W:$W,0)) -> M | G174: =INDEX('CPU - PROJ.AUX'!T:T,MATCH(A174,'CPU - PROJ.AUX'!W:W,0))*$G$165 -> 8.896 | H174: =TRUNC(IF(INDEX('CPU - PROJ.AUX'!$H:$H,MATCH($A174,'CPU - PROJ.AUX'!$W:$W,0))=0,INDEX('CPU - PROJ.AUX'!$I:$I,MATCH($A174,'CPU - PROJ.AUX'!$W:$W,0)),INDEX('CPU - PROJ.AUX'!$H:$H,MATCH($A174,'CPU - PROJ.AUX'!$W:$W,0))),2) -> 31.97 | I174: =$I$6 -> 0.1352 | J174: 36.29 | K174: 322.83 | L174: 0.0004646374997 | O174: MATERIAL
A175: 1.7.2.4 88239 | C175: 88239 | D175: SINAPI | E175: =INDEX('CPU - PROJ.AUX'!$P:$P,MATCH($A175,'CPU - PROJ.AUX'!$W:$W,0)) -> AJUDANTE DE CARPINTEIRO COM ENCARGOS COMPLEMENTARES | F175: =INDEX('CPU - PROJ.AUX'!$R:$R,MATCH($A175,'CPU - PROJ.AUX'!$W:$W,0)) -> H | G175: =INDEX('CPU - PROJ.AUX'!T:T,MATCH(A175,'CPU - PROJ.AUX'!W:W,0))*$G$165 -> 0.358 | H175: =TRUNC(IF(INDEX('CPU - PROJ.AUX'!$H:$H,MATCH($A175,'CPU - PROJ.AUX'!$W:$W,0))=0,INDEX('CPU - PROJ.AUX'!$I:$I,MATCH($A175,'CPU - PROJ.AUX'!$W:$W,0)),INDEX('CPU - PROJ.AUX'!$H:$H,MATCH($A175,'CPU - PROJ.AUX'!$W:$W,0))),2) -> 20.27 | I175: 0.2272 | J175: 24.87 | K175: 8.9 | L175: 1.280944692e-05 | O175: SERVIÇOS
A176: 1.7.2.4 88262 | C176: 88262 | D176: SINAPI | E176: =INDEX('CPU - PROJ.AUX'!$P:$P,MATCH($A176,'CPU - PROJ.AUX'!$W:$W,0)) -> CARPINTEIRO DE FORMAS COM ENCARGOS COMPLEMENTARES | F176: =INDEX('CPU - PROJ.AUX'!$R:$R,MATCH($A176,'CPU - PROJ.AUX'!$W:$W,0)) -> H | G176: =INDEX('CPU - PROJ.AUX'!T:T,MATCH(A176,'CPU - PROJ.AUX'!W:W,0))*$G$165 -> 1.584 | H176: =TRUNC(IF(INDEX('CPU - PROJ.AUX'!$H:$H,MATCH($A176,'CPU - PROJ.AUX'!$W:$W,0))=0,INDEX('CPU - PROJ.AUX'!$I:$I,MATCH($A176,'CPU - PROJ.AUX'!$W:$W,0)),INDEX('CPU - PROJ.AUX'!$H:$H,MATCH($A176,'CPU - PROJ.AUX'!$W:$W,0))),2) -> 25 | I176: 0.2272 | J176: 30.68 | K176: 48.59 | L176: 6.99338231e-05 | O176: SERVIÇOS
A177: 1.7.2.4 91692 | C177: 91692 | D177: SINAPI | E177: =INDEX('CPU - PROJ.AUX'!$P:$P,MATCH($A177,'CPU - PROJ.AUX'!$W:$W,0)) -> SERRA CIRCULAR DE BANCADA COM MOTOR ELÉTRICO POTÊNCIA DE 5HP, COM COIFA PARA DISCO 10" - CHP DIURNO. AF_08/2015 | F177: =INDEX('CPU - PROJ.AUX'!$R:$R,MATCH($A177,'CPU - PROJ.AUX'!$W:$W,0)) -> CHP | G177: =INDEX('CPU - PROJ.AUX'!T:T,MATCH(A177,'CPU - PROJ.AUX'!W:W,0))*$G$165 -> 0.112 | H177: =TRUNC(IF(INDEX('CPU - PROJ.AUX'!$H:$H,MATCH($A177,'CPU - PROJ.AUX'!$W:$W,0))=0,INDEX('CPU - PROJ.AUX'!$I:$I,MATCH($A177,'CPU - PROJ.AUX'!$W:$W,0)),INDEX('CPU - PROJ.AUX'!$H:$H,MATCH($A177,'CPU - PROJ.AUX'!$W:$W,0))),2) -> 34.3 | I177: 0.2272 | J177: 42.09 | K177: 4.71 | L177: 6.778932019e-06 | O177: SERVIÇOS
A178: 1.7.2.4 91693 | C178: 91693 | D178: SINAPI | E178: =INDEX('CPU - PROJ.AUX'!$P:$P,MATCH($A178,'CPU - PROJ.AUX'!$W:$W,0)) -> SERRA CIRCULAR DE BANCADA COM MOTOR ELÉTRICO POTÊNCIA DE 5HP, COM COIFA PARA DISCO 10" - CHI DIURNO. AF_08/2015 | F178: =INDEX('CPU - PROJ.AUX'!$R:$R,MATCH($A178,'CPU - PROJ.AUX'!$W:$W,0)) -> CHI | G178: =INDEX('CPU - PROJ.AUX'!T:T,MATCH(A178,'CPU - PROJ.AUX'!W:W,0))*$G$165 -> 0.448 | H178: =TRUNC(IF(INDEX('CPU - PROJ.AUX'!$H:$H,MATCH($A178,'CPU - PROJ.AUX'!$W:$W,0))=0,INDEX('CPU - PROJ.AUX'!$I:$I,MATCH($A178,'CPU - PROJ.AUX'!$W:$W,0)),INDEX('CPU - PROJ.AUX'!$H:$H,MATCH($A178,'CPU - PROJ.AUX'!$W:$W,0))),2) -> 33.05 | I178: 0.2272 | J178: 40.55 | K178: 18.16 | L178: =K178/$K$550 -> 2.613702876e-05 | O178: SERVIÇOS
A179: 1.7.2.4 92802 | C179: 92802 | D179: SINAPI | E179: =INDEX('CPU - PROJETO'!$C:$C,MATCH($C179,'CPU - PROJETO'!$B:$B,0)) -> CORTE E DOBRA DE AÇO CA-50, DIÂMETRO DE 8,0 MM. AF_06/2022 | F179: =INDEX('CPU - PROJETO'!$D:$D,MATCH($C179,'CPU - PROJETO'!$B:$B,0)) -> KG | G179: =INDEX('CPU - PROJETO'!T:T,MATCH(A179,'CPU - PROJETO'!W:W,0)) -> 3.95
A180: 1.7.2.4 33 | C180: 33 | D180: SINAPI | E180: =INDEX('CPU - PROJ.AUX'!$P:$P,MATCH($A180,'CPU - PROJ.AUX'!$W:$W,0)) -> ACO CA-50, 8,0 MM, VERGALHAO | F180: =INDEX('CPU - PROJ.AUX'!$R:$R,MATCH($A180,'CPU - PROJ.AUX'!$W:$W,0)) -> KG | G180: =INDEX('CPU - PROJ.AUX'!T:T,MATCH(A180,'CPU - PROJ.AUX'!W:W,0))*$G$165 -> 4.3845 | H180: =TRUNC(IF(INDEX('CPU - PROJ.AUX'!$H:$H,MATCH($A180,'CPU - PROJ.AUX'!$W:$W,0))=0,INDEX('CPU - PROJ.AUX'!$I:$I,MATCH($A180,'CPU - PROJ.AUX'!$W:$W,0)),INDEX('CPU - PROJ.AUX'!$H:$H,MATCH($A180,'CPU - PROJ.AUX'!$W:$W,0))),2) -> 12.08 | I180: =$I$6 -> 0.1352 | J180: 13.71 | K180: 60.11 | L180: 8.651414091e-05 | O180: MATERIAL
A181: 1.7.2.4 88238 | C181: 88238 | D181: SINAPI | E181: =INDEX('CPU - PROJ.AUX'!$P:$P,MATCH($A181,'CPU - PROJ.AUX'!$W:$W,0)) -> AJUDANTE DE ARMADOR COM ENCARGOS COMPLEMENTARES | F181: =INDEX('CPU - PROJ.AUX'!$R:$R,MATCH($A181,'CPU - PROJ.AUX'!$W:$W,0)) -> H | G181: =INDEX('CPU - PROJ.AUX'!T:T,MATCH(A181,'CPU - PROJ.AUX'!W:W,0))*$G$165 -> 0.01027 | H181: =TRUNC(IF(INDEX('CPU - PROJ.AUX'!$H:$H,MATCH($A181,'CPU - PROJ.AUX'!$W:$W,0))=0,INDEX('CPU - PROJ.AUX'!$I:$I,MATCH($A181,'CPU - PROJ.AUX'!$W:$W,0)),INDEX('CPU - PROJ.AUX'!$H:$H,MATCH($A181,'CPU - PROJ.AUX'!$W:$W,0))),2) -> 20.43 | I181: 0.2272 | J181: 25.07 | K181: 0.25 | L181: 3.598159246e-07 | O181: SERVIÇOS
A182: 1.7.2.4 88245 | C182: 88245 | D182: SINAPI | E182: =INDEX('CPU - PROJ.AUX'!$P:$P,MATCH($A182,'CPU - PROJ.AUX'!$W:$W,0)) -> ARMADOR COM ENCARGOS COMPLEMENTARES | F182: =INDEX('CPU - PROJ.AUX'!$R:$R,MATCH($A182,'CPU - PROJ.AUX'!$W:$W,0)) -> H | G182: =INDEX('CPU - PROJ.AUX'!T:T,MATCH(A182,'CPU - PROJ.AUX'!W:W,0))*$G$165 -> 0.06399 | H182: =TRUNC(IF(INDEX('CPU - PROJ.AUX'!$H:$H,MATCH($A182,'CPU - PROJ.AUX'!$W:$W,0))=0,INDEX('CPU - PROJ.AUX'!$I:$I,MATCH($A182,'CPU - PROJ.AUX'!$W:$W,0)),INDEX('CPU - PROJ.AUX'!$H:$H,MATCH($A182,'CPU - PROJ.AUX'!$W:$W,0))),2) -> 25.18 | I182: 0.2272 | J182: 30.9 | K182: 1.97 | L182: 2.835349486e-06 | O182: SERVIÇOS
A183: 1.7.2.4 94970 | C183: 94970 | D183: SINAPI | E183: =INDEX('CPU - PROJETO'!$C:$C,MATCH($C183,'CPU - PROJETO'!$B:$B,0)) -> CONCRETO FCK = 20MPA, TRAÇO 1:2,7:3 (CIMENTO/ AREIA MÉDIA/ BRITA 1) - PREPARO MECÂNICO COM BETONEIRA 600 L. AF_07/2016 | F183: =INDEX('CPU - PROJETO'!$D:$D,MATCH($C183,'CPU - PROJETO'!$B:$B,0)) -> M3 | G183: =INDEX('CPU - PROJETO'!T:T,MATCH(A183,'CPU - PROJETO'!W:W,0)) -> 0.12
A184: 1.7.2.4 370 | C184: 370 | D184: SINAPI | E184: =INDEX('CPU - PROJ.AUX'!$P:$P,MATCH($A184,'CPU - PROJ.AUX'!$W:$W,0)) -> AREIA MEDIA - POSTO JAZIDA/FORNECEDOR (RETIRADO NA JAZIDA, SEM TRANSPORTE) | F184: =INDEX('CPU - PROJ.AUX'!$R:$R,MATCH($A184,'CPU - PROJ.AUX'!$W:$W,0)) -> M3 | G184: =INDEX('CPU - PROJ.AUX'!T:T,MATCH(A184,'CPU - PROJ.AUX'!W:W,0))*$G$165 -> 0.091308 | H184: =TRUNC(IF(INDEX('CPU - PROJ.AUX'!$H:$H,MATCH($A184,'CPU - PROJ.AUX'!$W:$W,0))=0,INDEX('CPU - PROJ.AUX'!$I:$I,MATCH($A184,'CPU - PROJ.AUX'!$W:$W,0)),INDEX('CPU - PROJ.AUX'!$H:$H,MATCH($A184,'CPU - PROJ.AUX'!$W:$W,0))),2) -> 129 | I184: =$I$6 -> 0.1352 | J184: 146.44 | K184: 13.37 | L184: 1.924295565e-05 | O184: MATERIAL
A185: 1.7.2.4 1379 | C185: 1379 | D185: SINAPI | E185: =INDEX('CPU - PROJ.AUX'!$P:$P,MATCH($A185,'CPU - PROJ.AUX'!$W:$W,0)) -> CIMENTO PORTLAND COMPOSTO CP II-32 | F185: =INDEX('CPU - PROJ.AUX'!$R:$R,MATCH($A185,'CPU - PROJ.AUX'!$W:$W,0)) -> KG | G185: =INDEX('CPU - PROJ.AUX'!T:T,MATCH(A185,'CPU - PROJ.AUX'!W:W,0))*$G$165 -> 39.019068 | H185: =TRUNC(IF(INDEX('CPU - PROJ.AUX'!$H:$H,MATCH($A185,'CPU - PROJ.AUX'!$W:$W,0))=0,INDEX('CPU - PROJ.AUX'!$I:$I,MATCH($A185,'CPU - PROJ.AUX'!$W:$W,0)),INDEX('CPU - PROJ.AUX'!$H:$H,MATCH($A185,'CPU - PROJ.AUX'!$W:$W,0))),2) -> 0.7 | I185: =$I$6 -> 0.1352 | J185: 0.79 | K185: 30.82 | L185: 4.435810718e-05 | O185: MATERIAL
A186: 1.7.2.4 4721 | C186: 4721 | D186: SINAPI | E186: =INDEX('CPU - PROJ.AUX'!$P:$P,MATCH($A186,'CPU - PROJ.AUX'!$W:$W,0)) -> PEDRA BRITADA N. 1 (9,5 a 19 MM) POSTO PEDREIRA/FORNECEDOR, SEM FRETE | F186: =INDEX('CPU - PROJ.AUX'!$R:$R,MATCH($A186,'CPU - PROJ.AUX'!$W:$W,0)) -> M3 | G186: =INDEX('CPU - PROJ.AUX'!T:T,MATCH(A186,'CPU - PROJ.AUX'!W:W,0))*$G$165 -> 0.070944 | H186: =TRUNC(IF(INDEX('CPU - PROJ.AUX'!$H:$H,MATCH($A186,'CPU - PROJ.AUX'!$W:$W,0))=0,INDEX('CPU - PROJ.AUX'!$I:$I,MATCH($A186,'CPU - PROJ.AUX'!$W:$W,0)),INDEX('CPU - PROJ.AUX'!$H:$H,MATCH($A186,'CPU - PROJ.AUX'!$W:$W,0))),2) -> 89 | I186: =$I$6 -> 0.1352 | J186: 101.03 | K186: 7.16 | L186: 1.030512808e-05 | O186: MATERIAL
A187: 1.7.2.4 88316 | C187: 88316 | D187: SINAPI | E187: =INDEX('CPU - PROJ.AUX'!$P:$P,MATCH($A187,'CPU - PROJ.AUX'!$W:$W,0)) -> SERVENTE COM ENCARGOS COMPLEMENTARES | F187: =INDEX('CPU - PROJ.AUX'!$R:$R,MATCH($A187,'CPU - PROJ.AUX'!$W:$W,0)) -> H | G187: =INDEX('CPU - PROJ.AUX'!T:T,MATCH(A187,'CPU - PROJ.AUX'!W:W,0))*$G$165 -> 0.243204 | H187: =TRUNC(IF(INDEX('CPU - PROJ.AUX'!$H:$H,MATCH($A187,'CPU - PROJ.AUX'!$W:$W,0))=0,INDEX('CPU - PROJ.AUX'!$I:$I,MATCH($A187,'CPU - PROJ.AUX'!$W:$W,0)),INDEX('CPU - PROJ.AUX'!$H:$H,MATCH($A187,'CPU - PROJ.AUX'!$W:$W,0))),2) -> 20.42 | I187: 0.2272 | J187: 25.05 | K187: 6.09 | L187: 8.765115923e-06 | O187: SERVIÇOS
A188: 1.7.2.4 88377 | C188: 88377 | D188: SINAPI | E188: =INDEX('CPU - PROJ.AUX'!$P:$P,MATCH($A188,'CPU - PROJ.AUX'!$W:$W,0)) -> OPERADOR DE BETONEIRA ESTACIONÁRIA/MISTURADOR COM ENCARGOS COMPLEMENTARES | F188: =INDEX('CPU - PROJ.AUX'!$R:$R,MATCH($A188,'CPU - PROJ.AUX'!$W:$W,0)) -> H | G188: =INDEX('CPU - PROJ.AUX'!T:T,MATCH(A188,'CPU - PROJ.AUX'!W:W,0))*$G$165 -> 0.153216 | H188: =TRUNC(IF(INDEX('CPU - PROJ.AUX'!$H:$H,MATCH($A188,'CPU - PROJ.AUX'!$W:$W,0))=0,INDEX('CPU - PROJ.AUX'!$I:$I,MATCH($A188,'CPU - PROJ.AUX'!$W:$W,0)),INDEX('CPU - PROJ.AUX'!$H:$H,MATCH($A188,'CPU - PROJ.AUX'!$W:$W,0))),2) -> 28.14 | I188: 0.2272 | J188: 34.53 | K188: 5.29 | L188: 7.613704964e-06 | O188: SERVIÇOS
A189: 1.7.2.4 89225 | C189: 89225 | D189: SINAPI | E189: =INDEX('CPU - PROJ.AUX'!$P:$P,MATCH($A189,'CPU - PROJ.AUX'!$W:$W,0)) -> BETONEIRA CAPACIDADE NOMINAL DE 600 L, CAPACIDADE DE MISTURA 360 L, MOTOR ELÉTRICO TRIFÁSICO POTÊNCIA DE 4 CV, SEM CARREGADOR - CHP DIURNO. AF_11/2014 | F189: =INDEX('CPU - PROJ.AUX'!$R:$R,MATCH($A189,'CPU - PROJ.AUX'!$W:$W,0)) -> CHP | G189: =INDEX('CPU - PROJ.AUX'!T:T,MATCH(A189,'CPU - PROJ.AUX'!W:W,0))*$G$165 -> 0.078864 | H189: =TRUNC(IF(INDEX('CPU - PROJ.AUX'!$H:$H,MATCH($A189,'CPU - PROJ.AUX'!$W:$W,0))=0,INDEX('CPU - PROJ.AUX'!$I:$I,MATCH($A189,'CPU - PROJ.AUX'!$W:$W,0)),INDEX('CPU - PROJ.AUX'!$H:$H,MATCH($A189,'CPU - PROJ.AUX'!$W:$W,0))),2) -> 5.41 | I189: 0.2272 | J189: 6.63 | K189: 0.52 | L189: 7.484171231e-07 | O189: SERVIÇOS
A190: 1.7.2.4 89226 | C190: 89226 | D190: SINAPI | E190: =INDEX('CPU - PROJ.AUX'!$P:$P,MATCH($A190,'CPU - PROJ.AUX'!$W:$W,0)) -> BETONEIRA CAPACIDADE NOMINAL DE 600 L, CAPACIDADE DE MISTURA 360 L, MOTOR ELÉTRICO TRIFÁSICO POTÊNCIA DE 4 CV, SEM CARREGADOR - CHI DIURNO. AF_11/2014 | F190: =INDEX('CPU - PROJ.AUX'!$R:$R,MATCH($A190,'CPU - PROJ.AUX'!$W:$W,0)) -> CHI | G190: =INDEX('CPU - PROJ.AUX'!T:T,MATCH(A190,'CPU - PROJ.AUX'!W:W,0))*$G$165 -> 0.074364 | H190: =TRUNC(IF(INDEX('CPU - PROJ.AUX'!$H:$H,MATCH($A190,'CPU - PROJ.AUX'!$W:$W,0))=0,INDEX('CPU - PROJ.AUX'!$I:$I,MATCH($A190,'CPU - PROJ.AUX'!$W:$W,0)),INDEX('CPU - PROJ.AUX'!$H:$H,MATCH($A190,'CPU - PROJ.AUX'!$W:$W,0))),2) -> 1.62 | I190: 0.2272 | J190: 1.98 | K190: 0.14 | L190: 2.014969178e-07 | O190: SERVIÇOS
A191: 1.7.2.5 | B191: 1.7.2.5 | C191: 93189 | D191: SINAPI | E191: =INDEX('CPU - PROJETO'!$C:$C,MATCH($C191,'CPU - PROJETO'!$B:$B,0)) -> VERGA MOLDADA IN LOCO EM CONCRETO PARA PORTAS COM MAIS DE 1,5 M DE VÃO. AF_03/2016 | F191: =INDEX('CPU - PROJETO'!$D:$D,MATCH($C191,'CPU - PROJETO'!$B:$B,0)) -> M | G191: =INDEX(MEMÓRIA!L:L,MATCH($A191,MEMÓRIA!A:A,0)) -> 3.5
A192: 1.7.2.5 2692 | C192: 2692 | D192: SINAPI | E192: =INDEX('CPU - PROJETO'!$C:$C,MATCH($C192,'CPU - PROJETO'!$B:$B,0)) -> DESMOLDANTE PROTETOR PARA FORMAS DE MADEIRA, DE BASE OLEOSA EMULSIONADA EM AGUA | F192: =INDEX('CPU - PROJETO'!$D:$D,MATCH($C192,'CPU - PROJETO'!$B:$B,0)) -> L | G192: =INDEX('CPU - PROJETO'!T:T,MATCH(A192,'CPU - PROJETO'!W:W,0)) -> 0.0245 | H192: =TRUNC(IF(INDEX('CPU - PROJETO'!$H:$H,MATCH($C192,'CPU - PROJETO'!$B:$B,0))=0,INDEX('CPU - PROJETO'!$I:$I,MATCH($C192,'CPU - PROJETO'!$B:$B,0)),INDEX('CPU - PROJETO'!$H:$H,MATCH($C192,'CPU - PROJETO'!$B:$B,0))),2) -> 7.5 | I192: =$I$6 -> 0.1352 | J192: 8.51 | K192: 0.2 | L192: 2.878527397e-07 | O192: MATERIAL
A193: 1.7.2.5 4491 | C193: 4491 | D193: SINAPI | E193: =INDEX('CPU - PROJETO'!$C:$C,MATCH($C193,'CPU - PROJETO'!$B:$B,0)) -> PECA DE MADEIRA NATIVA / REGIONAL 7,5 X 7,5CM (3X3) NAO APARELHADA (P/FORMA) | F193: =INDEX('CPU - PROJETO'!$D:$D,MATCH($C193,'CPU - PROJETO'!$B:$B,0)) -> M | G193: =INDEX('CPU - PROJETO'!T:T,MATCH(A193,'CPU - PROJETO'!W:W,0)) -> 1.3265 | H193: =TRUNC(IF(INDEX('CPU - PROJETO'!$H:$H,MATCH($C193,'CPU - PROJETO'!$B:$B,0))=0,INDEX('CPU - PROJETO'!$I:$I,MATCH($C193,'CPU - PROJETO'!$B:$B,0)),INDEX('CPU - PROJETO'!$H:$H,MATCH($C193,'CPU - PROJETO'!$B:$B,0))),2) -> 10.05 | I193: =$I$6 -> 0.1352 | J193: 11.4 | K193: 15.12 | L193: 2.176166712e-05 | O193: MATERIAL
A194: 1.7.2.5 39017 | C194: 39017 | D194: SINAPI | E194: =INDEX('CPU - PROJETO'!$C:$C,MATCH($C194,'CPU - PROJETO'!$B:$B,0)) -> ESPACADOR / DISTANCIADOR CIRCULAR COM ENTRADA LATERAL, EM PLASTICO, PARA VERGALHAO *4,2 A 12,5* MM, COBRIMENTO 20 MM | F194: =INDEX('CPU - PROJETO'!$D:$D,MATCH($C194,'CPU - PROJETO'!$B:$B,0)) -> UN | G194: =INDEX('CPU - PROJETO'!T:T,MATCH(A194,'CPU - PROJETO'!W:W,0)) -> 21 | H194: =TRUNC(IF(INDEX('CPU - PROJETO'!$H:$H,MATCH($C194,'CPU - PROJETO'!$B:$B,0))=0,INDEX('CPU - PROJETO'!$I:$I,MATCH($C194,'CPU - PROJETO'!$B:$B,0)),INDEX('CPU - PROJETO'!$H:$H,MATCH($C194,'CPU - PROJETO'!$B:$B,0))),2) -> 0.18 | I194: =$I$6 -> 0.1352 | J194: =TRUNC(H194*(1+I194),2) -> 0.2 | K194: =TRUNC(G194*J194,2) -> 4.2 | L194: 6.044907533e-06 | O194: MATERIAL
A195: 1.7.2.5 88309 | C195: 88309 | D195: SINAPI | E195: =INDEX('CPU - PROJETO'!$C:$C,MATCH($C195,'CPU - PROJETO'!$B:$B,0)) -> PEDREIRO COM ENCARGOS COMPLEMENTARES | F195: =INDEX('CPU - PROJETO'!$D:$D,MATCH($C195,'CPU - PROJETO'!$B:$B,0)) -> H | G195: =INDEX('CPU - PROJETO'!T:T,MATCH(A195,'CPU - PROJETO'!W:W,0)) -> 1.225 | H195: =TRUNC(IF(INDEX('CPU - PROJETO'!$H:$H,MATCH($C195,'CPU - PROJETO'!$B:$B,0))=0,INDEX('CPU - PROJETO'!$I:$I,MATCH($C195,'CPU - PROJETO'!$B:$B,0)),INDEX('CPU - PROJETO'!$H:$H,MATCH($C195,'CPU - PROJETO'!$B:$B,0))),2) -> 25.38 | I195: 0.2272 | J195: 31.14 | K195: 38.14 | L195: 5.489351745e-05 | O195: SERVIÇOS
A196: 1.7.2.5 88316 | C196: 88316 | D196: SINAPI | E196: =INDEX('CPU - PROJETO'!$C:$C,MATCH($C196,'CPU - PROJETO'!$B:$B,0)) -> SERVENTE COM ENCARGOS COMPLEMENTARES | F196: =INDEX('CPU - PROJETO'!$D:$D,MATCH($C196,'CPU - PROJETO'!$B:$B,0)) -> H | G196: =INDEX('CPU - PROJETO'!T:T,MATCH(A196,'CPU - PROJETO'!W:W,0)) -> 0.6125 | H196: =TRUNC(IF(INDEX('CPU - PROJETO'!$H:$H,MATCH($C196,'CPU - PROJETO'!$B:$B,0))=0,INDEX('CPU - PROJETO'!$I:$I,MATCH($C196,'CPU - PROJETO'!$B:$B,0)),INDEX('CPU - PROJETO'!$H:$H,MATCH($C196,'CPU - PROJETO'!$B:$B,0))),2) -> 20.42 | I196: 0.2272 | J196: 25.05 | K196: 15.34 | L196: 2.207830513e-05 | O196: SERVIÇOS
A197: 1.7.2.5 92270 | C197: 92270 | D197: SINAPI | E197: =INDEX('CPU - PROJETO'!$C:$C,MATCH($C197,'CPU - PROJETO'!$B:$B,0)) -> FABRICAÇÃO DE FÔRMA PARA VIGAS, COM MADEIRA SERRADA, E = 25 MM. AF_09/2020 | F197: =INDEX('CPU - PROJETO'!$D:$D,MATCH($C197,'CPU - PROJETO'!$B:$B,0)) -> M2 | G197: =INDEX('CPU - PROJETO'!T:T,MATCH(A197,'CPU - PROJETO'!W:W,0)) -> 1.4
A198: 1.7.2.5 4517 | C198: 4517 | D198: SINAPI | E198: =INDEX('CPU - PROJ.AUX'!$P:$P,MATCH($A198,'CPU - PROJ.AUX'!$W:$W,0)) -> SARRAFO DE MADEIRA NAO APARELHADA *2,5 X 7,5* CM (1 X 3 ") PINUS, MISTA OU EQUIVALENTE DA REGIAO | F198: =INDEX('CPU - PROJ.AUX'!$R:$R,MATCH($A198,'CPU - PROJ.AUX'!$W:$W,0)) -> M | G198: =INDEX('CPU - PROJ.AUX'!T:T,MATCH(A198,'CPU - PROJ.AUX'!W:W,0))*$G$191 -> 5.9192 | H198: =TRUNC(IF(INDEX('CPU - PROJ.AUX'!$H:$H,MATCH($A198,'CPU - PROJ.AUX'!$W:$W,0))=0,INDEX('CPU - PROJ.AUX'!$I:$I,MATCH($A198,'CPU - PROJ.AUX'!$W:$W,0)),INDEX('CPU - PROJ.AUX'!$H:$H,MATCH($A198,'CPU - PROJ.AUX'!$W:$W,0))),2) -> 3.52 | I198: =$I$6 -> 0.1352 | J198: 3.99 | K198: 23.61 | L198: 3.398101592e-05 | O198: MATERIAL
A199: 1.7.2.5 5068 | C199: 5068 | D199: SINAPI | E199: =INDEX('CPU - PROJ.AUX'!$P:$P,MATCH($A199,'CPU - PROJ.AUX'!$W:$W,0)) -> PREGO DE ACO POLIDO COM CABECA 17 X 21 (2 X 11) | F199: =INDEX('CPU - PROJ.AUX'!$R:$R,MATCH($A199,'CPU - PROJ.AUX'!$W:$W,0)) -> KG | G199: =INDEX('CPU - PROJ.AUX'!T:T,MATCH(A199,'CPU - PROJ.AUX'!W:W,0))*$G$191 -> 0.1792 | H199: =TRUNC(IF(INDEX('CPU - PROJ.AUX'!$H:$H,MATCH($A199,'CPU - PROJ.AUX'!$W:$W,0))=0,INDEX('CPU - PROJ.AUX'!$I:$I,MATCH($A199,'CPU - PROJ.AUX'!$W:$W,0)),INDEX('CPU - PROJ.AUX'!$H:$H,MATCH($A199,'CPU - PROJ.AUX'!$W:$W,0))),2) -> 22.38 | I199: =$I$6 -> 0.1352 | J199: =TRUNC(H199*(1+I199),2) -> 25.4 | K199: =TRUNC(G199*J199,2) -> 4.55 | L199: 6.548649827e-06 | O199: MATERIAL
A200: 1.7.2.5 6189 | C200: 6189 | D200: SINAPI | E200: =INDEX('CPU - PROJ.AUX'!$P:$P,MATCH($A200,'CPU - PROJ.AUX'!$W:$W,0)) -> TABUA DE MADEIRA NAO APARELHADA *2,5 X 30* CM, CEDRINHO OU EQUIVALENTE DA REGIAO | F200: =INDEX('CPU - PROJ.AUX'!$R:$R,MATCH($A200,'CPU - PROJ.AUX'!$W:$W,0)) -> M | G200: =INDEX('CPU - PROJ.AUX'!T:T,MATCH(A200,'CPU - PROJ.AUX'!W:W,0))*$G$191 -> 6.2272 | H200: =TRUNC(IF(INDEX('CPU - PROJ.AUX'!$H:$H,MATCH($A200,'CPU - PROJ.AUX'!$W:$W,0))=0,INDEX('CPU - PROJ.AUX'!$I:$I,MATCH($A200,'CPU - PROJ.AUX'!$W:$W,0)),INDEX('CPU - PROJ.AUX'!$H:$H,MATCH($A200,'CPU - PROJ.AUX'!$W:$W,0))),2) -> 31.97 | I200: =$I$6 -> 0.1352 | J200: 36.29 | K200: 225.98 | L200: 0.0003252448105 | O200: MATERIAL
A201: 1.7.2.5 88239 | C201: 88239 | D201: SINAPI | E201: =INDEX('CPU - PROJ.AUX'!$P:$P,MATCH($A201,'CPU - PROJ.AUX'!$W:$W,0)) -> AJUDANTE DE CARPINTEIRO COM ENCARGOS COMPLEMENTARES | F201: =INDEX('CPU - PROJ.AUX'!$R:$R,MATCH($A201,'CPU - PROJ.AUX'!$W:$W,0)) -> H | G201: =INDEX('CPU - PROJ.AUX'!T:T,MATCH(A201,'CPU - PROJ.AUX'!W:W,0))*$G$191 -> 0.2506 | H201: =TRUNC(IF(INDEX('CPU - PROJ.AUX'!$H:$H,MATCH($A201,'CPU - PROJ.AUX'!$W:$W,0))=0,INDEX('CPU - PROJ.AUX'!$I:$I,MATCH($A201,'CPU - PROJ.AUX'!$W:$W,0)),INDEX('CPU - PROJ.AUX'!$H:$H,MATCH($A201,'CPU - PROJ.AUX'!$W:$W,0))),2) -> 20.27 | I201: 0.2272 | J201: 24.87 | K201: 6.23 | L201: 8.966612841e-06 | O201: SERVIÇOS
A202: 1.7.2.5 88262 | C202: 88262 | D202: SINAPI | E202: =INDEX('CPU - PROJ.AUX'!$P:$P,MATCH($A202,'CPU - PROJ.AUX'!$W:$W,0)) -> CARPINTEIRO DE FORMAS COM ENCARGOS COMPLEMENTARES | F202: =INDEX('CPU - PROJ.AUX'!$R:$R,MATCH($A202,'CPU - PROJ.AUX'!$W:$W,0)) -> H | G202: =INDEX('CPU - PROJ.AUX'!T:T,MATCH(A202,'CPU - PROJ.AUX'!W:W,0))*$G$191 -> 1.1088 | H202: =TRUNC(IF(INDEX('CPU - PROJ.AUX'!$H:$H,MATCH($A202,'CPU - PROJ.AUX'!$W:$W,0))=0,INDEX('CPU - PROJ.AUX'!$I:$I,MATCH($A202,'CPU - PROJ.AUX'!$W:$W,0)),INDEX('CPU - PROJ.AUX'!$H:$H,MATCH($A202,'CPU - PROJ.AUX'!$W:$W,0))),2) -> 25 | I202: 0.2272 | J202: 30.68 | K202: 34.01 | L202: 4.894935838e-05 | O202: =IF(I202=$I$6,"MATERIAL",IF(I202=$I$5,"SERVIÇOS"," ")) -> SERVIÇOS
... 359 more rows

Sheet RESUMO ELÉTRICA
A3: QUADRO RESUMO
A7: SERVIÇO | B7: DESCRIÇÃO | C7: VALOR (R$) | D7: PERCENTUAL %
A8: 1 | B8: SUBESTAÇÃO FLORESTA (SE-S0) | C8: =SUM(C9:C12) -> 6082847.914 | D8: =C8/$C$24 -> 0.8268828322
A9: 1.2 | B9: Sobressalente | C9: =SOBRESSALENTES!BX85 -> 3723950.095 | D9: =C9/$C$24 -> 0.5062218298
A10: 1.3 | B10: Materiais a serem devolvidos à CHESF | C10: ='MAT. A SEREM DEVOLVIDOS'!I56 -> 1064596.225 | D10: 0.1447177957
A11: 1.1 | B11: Material para execução dos serviços | C11: ='SERVIÇOS ELETR.'!N188 -> 233304.5938 | D11: =C11/$C$24 -> 0.03171467806
A12: 1.4 | B12: Serviços | C12: ='SERVIÇOS ELETR.'!H188 -> 1060997 | D12: =C12/$C$24 -> 0.1442285287
A13: 2 | B13: SUBESTAÇÃO BOM NOME | C13: =SUM(C14:C17) -> 474126.1949 | D13: =C13/$C$24 -> 0.06445119398
A14: 2.1 | B14: Sobressalente | C14: =SOBRESSALENTES!BX84 -> 194039.4011 | D14: =C14/$C$24 -> 0.02637709373
A15: 2.2 | B15: Materiais a serem devolvidos à CHESF | C15: ='MAT. A SEREM DEVOLVIDOS'!I55 -> 10583.21669 | D15: 0.001438648527
A16: 2.3 | B16: Material para execução dos serviços | C16: ='SERVIÇOS ELETR.'!N187 -> 189620.4762 | D16: =C16/$C$24 -> 0.02577639924
A17: 2.4 | B17: Serviços | C17: ='SERVIÇOS ELETR.'!H187 -> 79883.10093 | D17: =C17/$C$24 -> 0.01085905248
A18: 3 | B18: SUBESTAÇÃO PAULO AFONSO | C18: =SUM(C19:C20) -> 43522.01339 | D18: =C18/$C$24 -> 0.005916242886
A19: 3.1 | B19: Material para execução dos serviços | C19: ='SERVIÇOS ELETR.'!N189 -> 0 | D19: =C19/$C$24 -> 0
A20: 3.2 | B20: Serviços | C20: ='SERVIÇOS ELETR.'!H189 -> 43522.01339 | D20: 0.005916242886
A21: 4 | B21: LINHA DE TRANSMISSÃO | C21: =C22 -> 755864.0262 | D21: =C21/$C$24 -> 0.102749731
A22: 4.1 | B22: Sobressalente | C22: =SOBRESSALENTES!BX86 -> 755864.0262 | D22: 0.102749731
B24: T O T A L G E R A L E L É T R I C A | C24: =C21+C18+C13+C8 -> 7356360.148 | D24: =D8+D13+D18+D21 -> 1
B84: Grupo Motor Gerador com 155/170kVA cabinado (Fornecido com Databook, contendo: ensaios de rotinas, tipo, manual de instrução, desenhos elétricos, e mecânicos)

Sheet RESUMO ELÉTRICA (2)
A3: QUADRO SERVIÇOS E FORNECIMENTO - ELÉTRICA
A7: ITEM | B7: ITEM ORÇAMENTO | C7: DESCRIÇÃO | D7: VALOR (R$) | E7: PERCENTUAL % | F7: UND | G7: QUANTIDADE | H7: PREÇO UNIT. SEM BDI (R$) | I7: BDI ADOTADO | J7: PREÇO UNIT. COM BDI (R$) | K7: PREÇO TOTAL COM BDI (R$) | L7: %
A8: 1 | C8: SUBESTAÇÃO FLORESTA II - (SE-S0) | D8: =SUM(D10:D191) -> 8079275.501 | E8: =D8/$D$312 -> 0.8108744187 | K8: =K10+K32+K64+K191 -> 6082847.914 | L8: =K9/$K$312 -> 0.7927295753 | N8: =D8-K8 -> 1996427.587
A9: 1.2 | C9: ELÉTRICA | D9: =SUM(D10:D191) -> 8079275.501 | E9: =D8/$D$312 -> 0.8108744187 | K9: =K10+K32+K64+K191 -> 6082847.914 | L9: =K9/$K$312 -> 0.7927295753 | N9: =D9-K9 -> 1996427.587
A10: 1.2.1 | C10: Sobressalente | D10: 5688573.351 | E10: =D10/$D$312 -> 0.570932209 | K10: =SUM(K11:K31) -> 3723950.095 | L10: =K10/$K$312 -> 0.4853130341 | N10: =D10-K10 -> 1964623.256
A11: 1.2.1.1 | B11: 1.4 | C11: Transformador de corrente, 242 kV, NBI 950 kV, IT 40,0 kA, ID 100,0 kA, 3 núcleos de proteção, relação150/300x300/600x600/1200:5/5/5A, exat. 10B800, 1 núcleo de medição (controle), relação 150/300x300/600x600/1200:5A, exatidão 0,6 C 50, fator térmico para todos enrolamentos 1,0. (Fornecido com Data book, contendo: ensaios de rotinas, tipo, manual de instrução, desenhos elétricos, e mecânicos) | F11: unid. | G11: =INDEX(SOBRESSALENTES!J:J,MATCH('RESUMO ELÉTRICA (2)'!B11,SOBRESSALENTES!A:A,0)) -> 5 | H11: =INDEX(SOBRESSALENTES!$BV:$BV,MATCH(B11,SOBRESSALENTES!$A:$A,0)) -> 89000 | I11: =BDI!$U$26 -> 0.1352 | J11: =H11*(1+I11) -> 101032.8 | K11: =J11*G11 -> 505164 | L11: =K11/$K$312 -> 0.0658340384 | M11: 988311.3012 | N11: =K11-M11 -> -483147.3012
A12: 1.2.1.2 | B12: 1.5 | C12: Transformador de potencial capacitivo monofásico, 242 KV, de relação 242000/R3 – 115/115/R3 - 115/115/R3 - 115/115/R3V, classe de exatidão 0,3OWXY medição e 0,6OWXYZ proteção, 950 KV DE NBI. (Fornecido com Data book, contendo: ensaios de rotinas, tipo, manual de instrução, desenhos elétricos, e mecânicos) | F12: unid. | G12: =INDEX(SOBRESSALENTES!J:J,MATCH('RESUMO ELÉTRICA (2)'!B12,SOBRESSALENTES!A:A,0)) -> 5 | H12: =INDEX(SOBRESSALENTES!$BV:$BV,MATCH(B12,SOBRESSALENTES!$A:$A,0)) -> 57000 | I12: =BDI!$U$26 -> 0.1352 | J12: 64706.4 | K12: =J12*G12 -> 323532 | L12: =K12/$K$312 -> 0.04216337291 | M12: 774610.3689 | N12: =K12-M12 -> -451078.3689
A13: 1.2.1.3 | B13: 1.6 | C13: Para-raios, tipo estação 192 kV, ZnO, In 10 kA (Fornecido com Data book, contendo: ensaios de rotinas, tipo, manual de instrução, desenhos elétricos, e mecânicos) | F13: unid. | G13: =INDEX(SOBRESSALENTES!J:J,MATCH('RESUMO ELÉTRICA (2)'!B13,SOBRESSALENTES!A:A,0)) -> 4 | H13: =INDEX(SOBRESSALENTES!$BV:$BV,MATCH(B13,SOBRESSALENTES!$A:$A,0)) -> 24929.705 | I13: =BDI!$U$26 -> 0.1352 | J13: 28300.20112 | K13: 113200.8045 | L13: 0.0147525677 | M13: 143610.4865 | N13: -30409.68199
A14: 1.2.1.4 | B14: 1.7 | C14: Disjuntor tripolar a gás SF6, uso externo, 1250 A, 60 hz, 50 kA e com acionamento monopolar (incluso sobressalentes) (Fornecido com Data book, contendo: ensaios de rotinas, tipo, manual de instrução, desenhos elétricos, e mecânicos) | F14: unid. | G14: =INDEX(SOBRESSALENTES!J:J,MATCH('RESUMO ELÉTRICA (2)'!B14,SOBRESSALENTES!A:A,0)) -> 2 | H14: =INDEX(SOBRESSALENTES!$BV:$BV,MATCH(B14,SOBRESSALENTES!$A:$A,0)) -> 545881.73 | I14: =BDI!$U$26 -> 0.1352 | J14: 619684.9399 | K14: 1239369.88 | L14: 0.1615172979 | M14: 2060976.438 | N14: -821606.5584
A15: 1.2.1.5 | B15: 1.8 | C15: Chave Seccionadora Tripolar com lâmina de terra, SAV 245 kV, 1250 A, 50 kA (incluso sobressalentes) (Fornecido com Data book, contendo: ensaios de rotinas, tipo, manual de instrução, desenhos elétricos, e mecânicos) | F15: unid. | G15: =INDEX(SOBRESSALENTES!J:J,MATCH('RESUMO ELÉTRICA (2)'!B15,SOBRESSALENTES!A:A,0)) -> 2 | H15: =INDEX(SOBRESSALENTES!$BV:$BV,MATCH(B15,SOBRESSALENTES!$A:$A,0)) -> 145433 | I15: =BDI!$U$26 -> 0.1352 | J15: 165095.5416 | K15: 330191.0832 | L15: 0.04303119868 | M15: 358913.725 | N15: -28722.6418
A16: 1.2.1.6 | B16: 1.9 | C16: Chave Seccionadora Tripolar sem lâmina de terra, SAV 245 kV, 1250 A, 50 kA (incluso sobressalentes) (Fornecido com Data book, contendo: ensaios de rotinas, tipo, manual de instrução, desenhos elétricos, e mecânicos) | F16: unid. | G16: =INDEX(SOBRESSALENTES!J:J,MATCH('RESUMO ELÉTRICA (2)'!B16,SOBRESSALENTES!A:A,0)) -> 2 | H16: =INDEX(SOBRESSALENTES!$BV:$BV,MATCH(B16,SOBRESSALENTES!$A:$A,0)) -> 108934 | I16: =BDI!$U$26 -> 0.1352 | J16: 123661.8768 | K16: 247323.7536 | L16: 0.03223175344 | M16: 285696.5255 | N16: -38372.77189
A17: 1.2.1.7 | B17: 1.10 | C17: Chave Seccionadora Tripolar sem lâmina de terra, SAV-R 245 kV, 1250 A, 50 kA (incluso sobressalentes) (Fornecido com Data book, contendo: ensaios de rotinas, tipo, manual de instrução, desenhos elétricos, e mecânicos) | F17: unid. | G17: =INDEX(SOBRESSALENTES!J:J,MATCH('RESUMO ELÉTRICA (2)'!B17,SOBRESSALENTES!A:A,0)) -> 2 | H17: =INDEX(SOBRESSALENTES!$BV:$BV,MATCH(B17,SOBRESSALENTES!$A:$A,0)) -> 122489 | I17: =BDI!$U$26 -> 0.1352 | J17: 139049.5128 | K17: 278099.0256 | L17: 0.03624245182 | M17: 355432.5587 | N17: -77333.53307
A18: 1.2.1.8 | B18: 11.42 | C18: Retificador 48Vcc + sobressalentes (Fornecido com Data book, contendo: ensaios de rotinas, tipo, manual de instrução, desenhos elétricos, e mecânicos) | G18: =INDEX(SOBRESSALENTES!J:J,MATCH('RESUMO ELÉTRICA (2)'!B18,SOBRESSALENTES!A:A,0)) -> 1 | H18: =INDEX(SOBRESSALENTES!$BV:$BV,MATCH(B18,SOBRESSALENTES!$A:$A,0)) -> 33221.04 | I18: =BDI!$U$26 -> 0.1352 | J18: 37712.52461 | K18: 37712.52461 | L18: 0.004914775782 | M18: 68843.78418 | N18: -31131.25957
A19: 1.2.1.9 | B19: 11.43 | C19: Retificador 125Vcc + sobressalentes (Fornecido com Data book, contendo: ensaios de rotinas, tipo, manual de instrução, desenhos elétricos, e mecânicos) | G19: =INDEX(SOBRESSALENTES!J:J,MATCH('RESUMO ELÉTRICA (2)'!B19,SOBRESSALENTES!A:A,0)) -> 1 | H19: =INDEX(SOBRESSALENTES!$BV:$BV,MATCH(B19,SOBRESSALENTES!$A:$A,0)) -> 65000 | I19: =BDI!$U$26 -> 0.1352 | J19: 73788 | K19: 73788 | L19: 0.009616207857 | M19: 85987.13904 | N19: -12199.13904
A20: 1.2.1.10 | B20: 11.46 | C20: 01 Módulo USCA da USCAMAQ microprocessado, compreendendo conjunto de cartões ou de módulos de controle e supervisão, PLC, um regulador de tensão e um regulador de velocidade (Fornecido com Data book, contendo: ensaios de rotinas, tipo, manual de instrução, desenhos elétricos, e mecânicos) | F20: unid. | G20: =INDEX(SOBRESSALENTES!J:J,MATCH('RESUMO ELÉTRICA (2)'!B20,SOBRESSALENTES!A:A,0)) -> 1 | H20: =INDEX(SOBRESSALENTES!$BV:$BV,MATCH(B20,SOBRESSALENTES!$A:$A,0)) -> 26108.31 | I20: =BDI!$U$26 -> 0.1352 | J20: 29638.15351 | K20: 29638.15351 | L20: 0.003862506704 | M20: 29076.82485 | N20: 561.328665
A21: 1.2.1.11 | B21: 13.1 | C21: Cabo elétrico nu CAA, alumínio, bitola 636 MCM, Grosbeak | F21: m | G21: =INDEX(SOBRESSALENTES!J:J,MATCH('RESUMO ELÉTRICA (2)'!B21,SOBRESSALENTES!A:A,0)) -> 132 | H21: =INDEX(SOBRESSALENTES!$BV:$BV,MATCH(B21,SOBRESSALENTES!$A:$A,0)) -> 61.97249 | I21: =BDI!$U$26 -> 0.1352 | J21: 70.35117065 | K21: 9286.354526 | L21: 0.001210217316 | M21: 9110.476599 | N21: 175.8779266
A22: 1.2.1.12 | B22: 14.1 | C22: Conector derivação "T", anticorona, 230 kV, cabo/cabo, saída 90º, liga de alumínio, para cabo CAA 636 MCM Grosbeak | F22: unid. | G22: =INDEX(SOBRESSALENTES!J:J,MATCH('RESUMO ELÉTRICA (2)'!B22,SOBRESSALENTES!A:A,0)) -> 3 | H22: =INDEX(SOBRESSALENTES!$BV:$BV,MATCH(B22,SOBRESSALENTES!$A:$A,0)) -> 228.1263375 | I22: =BDI!$U$26 -> 0.1352 | J22: 258.9690183 | K22: 776.907055 | L22: 0.0001012481667 | M22: 787.0401031 | N22: -10.13304812
A23: 1.2.1.13 | B23: 14.2 | C23: Conector terminal anticorona, 230 kV, liga de alumínio, para 2 cabos de alumínio CAA 636MCM GROSBEAK, espaçados de 200mm, a barra chata 4 furos NEMA | F23: unid. | G23: =INDEX(SOBRESSALENTES!J:J,MATCH('RESUMO ELÉTRICA (2)'!B23,SOBRESSALENTES!A:A,0)) -> 3 | H23: =INDEX(SOBRESSALENTES!$BV:$BV,MATCH(B23,SOBRESSALENTES!$A:$A,0)) -> 263.4131625 | I23: =BDI!$U$26 -> 0.1352 | J23: 299.0266221 | K23: 897.0798662 | L23: 0.0001169093411 | M23: 910.3046836 | N23: -13.2248174
A24: 1.2.1.14 | B24: 14.3 | C24: Conector paralelo, anticorona, 230 kV, liga de alumínio, tipo universal, para conexão de 2 cabos de alumínio CAA 636MCM GROSBEAK, 2 de entrada e 1 de saída, fornecido com parafusos sextavada | F24: unid. | G24: =INDEX(SOBRESSALENTES!J:J,MATCH('RESUMO ELÉTRICA (2)'!B24,SOBRESSALENTES!A:A,0)) -> 3 | H24: =INDEX(SOBRESSALENTES!$BV:$BV,MATCH(B24,SOBRESSALENTES!$A:$A,0)) -> 112.7668583 | I24: =BDI!$U$26 -> 0.1352 | J24: 128.0129376 | K24: 384.0388127 | L24: 5.004874842e-05 | M24: 376.7653504 | N24: 7.273462363
A25: 1.2.1.15 | B25: 14.4 | C25: Conector, terminal; liga cobre; para cabo de cobre (1/0 AWG-4/0 AWG) e barra de cobre com um furo Ø 11mm; fixação por parafuso cabeça sextavada; porca e arruela | F25: unid. | G25: =INDEX(SOBRESSALENTES!J:J,MATCH('RESUMO ELÉTRICA (2)'!B25,SOBRESSALENTES!A:A,0)) -> 3 | H25: =INDEX(SOBRESSALENTES!$BV:$BV,MATCH(B25,SOBRESSALENTES!$A:$A,0)) -> 90 | I25: =BDI!$U$26 -> 0.1352 | J25: 102.168 | K25: 306.504 | L25: 3.994424802e-05 | M25: 359.2532309 | N25: -52.74923088
A26: 1.2.1.16 | B26: 15.1 | C26: Conjunto de Ferragens para fixação de cabo para-raios, conforme desenho 1635-DEP-2812-60-63-002 | F26: unid. | G26: =INDEX(SOBRESSALENTES!J:J,MATCH('RESUMO ELÉTRICA (2)'!B26,SOBRESSALENTES!A:A,0)) -> 3 | H26: =INDEX(SOBRESSALENTES!$BV:$BV,MATCH(B26,SOBRESSALENTES!$A:$A,0)) -> 675.2651625 | I26: =BDI!$U$26 -> 0.1352 | J26: 766.5610125 | K26: 2299.683037 | L26: 0.0002996995459 | M26: 2256.128434 | N26: 43.55460298
A27: 1.2.1.17 | B27: 15.2 | C27: Cadeia de isoladores - Conjunto de ferragens e grampos, conforme desenho 1630-DEP-1812-60-63-001 | F27: unid. | G27: =INDEX(SOBRESSALENTES!J:J,MATCH('RESUMO ELÉTRICA (2)'!B27,SOBRESSALENTES!A:A,0)) -> 3 | H27: =INDEX(SOBRESSALENTES!$BV:$BV,MATCH(B27,SOBRESSALENTES!$A:$A,0)) -> 1151.110633 | I27: =BDI!$U$26 -> 0.1352 | J27: 1306.740791 | K27: 3920.222373 | L27: 0.0005108916515 | M27: 3845.975737 | N27: 74.24663585
A28: 1.2.1.18 | B28: 15.3 | C28: Espaçador rígido, anti-corona, 230 kV, liga de alumínio, para dois cabos de alumínio de CAA 636MCM GROSBEAK, espaçados de 200mm, fornecido com parafusos sextavada | F28: unid. | G28: =INDEX(SOBRESSALENTES!J:J,MATCH('RESUMO ELÉTRICA (2)'!B28,SOBRESSALENTES!A:A,0)) -> 3 | H28: =INDEX(SOBRESSALENTES!$BV:$BV,MATCH(B28,SOBRESSALENTES!$A:$A,0)) -> 112.3966667 | I28: =BDI!$U$26 -> 0.1352 | J28: 127.592696 | K28: 382.778088 | L28: 4.988444811e-05 | M28: 375.528503 | N28: 7.249585
A29: 1.2.1.19 | B29: 16.3 | C29: Ferramenta especial para retirada, tratamento e armazenagem de gás SF6 – Unidade tratamento Gás SF6 | F29: unid. | G29: =INDEX(SOBRESSALENTES!J:J,MATCH('RESUMO ELÉTRICA (2)'!B29,SOBRESSALENTES!A:A,0)) -> 1 | H29: =INDEX(SOBRESSALENTES!$BV:$BV,MATCH(B29,SOBRESSALENTES!$A:$A,0)) -> 300457.7233 | I29: =BDI!$U$26 -> 0.1352 | J29: 341079.6075 | K29: 341079.6075 | L29: 0.04445021415 | M29: 334619.7665 | N29: 6459.841052
A30: 1.2.1.20 | B30: 17.1 | C30: Isolador de pedestal, 242 kV, NBI 950 kV, com círculo de furação de 127 mm (Fornecido com Data book, contendo: ensaios de rotinas, tipo, manual de instrução, desenhos elétricos, e mecânicos) | F30: unid. | G30: =INDEX(SOBRESSALENTES!J:J,MATCH('RESUMO ELÉTRICA (2)'!B30,SOBRESSALENTES!A:A,0)) -> 3 | H30: =INDEX(SOBRESSALENTES!$BV:$BV,MATCH(B30,SOBRESSALENTES!$A:$A,0)) -> 5909.148525 | I30: =BDI!$U$26 -> 0.1352 | J30: 6708.065406 | K30: 20124.19622 | L30: 0.002622627714 | M30: 21152.36881 | N30: -1028.172597
A31: 1.2.1.21 | B31: 19.1 | C31: Grupo Motor Gerador com 155/170kVA cabinado (Fornecido com Data book, contendo: ensaios de rotinas, tipo, manual de instrução, desenhos elétricos, e mecânicos) | F31: conj. | G31: =INDEX(SOBRESSALENTES!J:J,MATCH('RESUMO ELÉTRICA (2)'!B31,SOBRESSALENTES!A:A,0)) -> 1 | H31: =INDEX(SOBRESSALENTES!$BV:$BV,MATCH(B31,SOBRESSALENTES!$A:$A,0)) -> 146646.845 | I31: =BDI!$U$26 -> 0.1352 | J31: 166473.4984 | K31: 166473.4984 | L31: 0.02169517759 | M31: 163320.5913 | N31: 3152.907168
A32: 1.2.2 | C32: Materiais a serem devolvidos à CHESF | D32: 1070729.469 | E32: =D32/$D$312 -> 0.1074634892 | K32: =SUM(K33:K63) -> 1064596.225 | L32: =K32/$K$312 -> 0.1387404264 | N32: =D32-K32 -> 6133.244352
A33: 1.2.2.1 | C33: SISTEMA VOIP DE FABRICAÇÃO SIEMENS COMPOSTO DE:
A34: 1.2.2.1.1 | B34: 1.1 | C34: OpenScape Branch 250 | F34: unid. | G34: =INDEX('MAT. A SEREM DEVOLVIDOS'!F:F,MATCH(B34,'MAT. A SEREM DEVOLVIDOS'!A:A,0)) -> 1 | H34: =INDEX('MAT. A SEREM DEVOLVIDOS'!G:G,MATCH(B34,'MAT. A SEREM DEVOLVIDOS'!A:A,0)) -> 26728.00692 | I34: =BDI!$U$26 -> 0.1352 | J34: =H34*(1+I34) -> 30341.63346 | K34: =J34*G34 -> 30341.63346 | L34: =K34/$K$312 -> 0.003954185695 | M34: 30507.02537 | N34: =K34-M34 -> -165.3919055
A35: 1.2.2.1.2 | B35: 1.2 | C35: Access Points internos AP3610 | F35: unid. | G35: =INDEX('MAT. A SEREM DEVOLVIDOS'!F:F,MATCH(B35,'MAT. A SEREM DEVOLVIDOS'!A:A,0)) -> 4 | H35: =INDEX('MAT. A SEREM DEVOLVIDOS'!G:G,MATCH(B35,'MAT. A SEREM DEVOLVIDOS'!A:A,0)) -> 4477.910186 | I35: =BDI!$U$26 -> 0.1352 | J35: =H35*(1+I35) -> 5083.323643 | K35: =J35*G35 -> 20333.29457 | L35: 0.002649877853 | M35: 20444.13113 | N35: =K35-M35 -> -110.8365618
A36: 1.2.2.1.3 | B36: 1.3 | C36: Access Points externos AP3865e | F36: unid. | G36: =INDEX('MAT. A SEREM DEVOLVIDOS'!F:F,MATCH(B36,'MAT. A SEREM DEVOLVIDOS'!A:A,0)) -> 6 | H36: =INDEX('MAT. A SEREM DEVOLVIDOS'!G:G,MATCH(B36,'MAT. A SEREM DEVOLVIDOS'!A:A,0)) -> 17218.75895 | I36: =BDI!$U$26 -> 0.1352 | J36: 19546.73516 | K36: 117280.4109 | L36: 0.01528423062 | M36: 117919.7051 | N36: -639.2942115
A37: 1.2.2.1.4 | B37: 1.4 | C37: Aparelhos Telefônicos Openstage 15 SIP | F37: unid. | G37: =INDEX('MAT. A SEREM DEVOLVIDOS'!F:F,MATCH(B37,'MAT. A SEREM DEVOLVIDOS'!A:A,0)) -> 15 | H37: =INDEX('MAT. A SEREM DEVOLVIDOS'!G:G,MATCH(B37,'MAT. A SEREM DEVOLVIDOS'!A:A,0)) -> 12552.09924 | I37: =BDI!$U$26 -> 0.1352 | J37: 14249.14306 | K37: 213737.1459 | L37: 0.02785467585 | M37: 214902.2247 | N37: -1165.078798
A38: 1.2.2.1.5 | B38: 1.5 | C38: Aparelhos Telefônicos Analógicos DA100 | F38: unid. | G38: =INDEX('MAT. A SEREM DEVOLVIDOS'!F:F,MATCH(B38,'MAT. A SEREM DEVOLVIDOS'!A:A,0)) -> 4 | H38: =INDEX('MAT. A SEREM DEVOLVIDOS'!G:G,MATCH(B38,'MAT. A SEREM DEVOLVIDOS'!A:A,0)) -> 906.0036843 | I38: =BDI!$U$26 -> 0.1352 | J38: 1028.495382 | K38: 4113.98153 | L38: 0.0005361427537 | M38: 4136.406797 | N38: -22.42526742
A39: 1.2.2.1.6 | B39: 1.6 | C39: Aparelhos Telefônicos Sem Fio WIFI WL3 | F39: unid. | G39: =INDEX('MAT. A SEREM DEVOLVIDOS'!F:F,MATCH(B39,'MAT. A SEREM DEVOLVIDOS'!A:A,0)) -> 2 | H39: =INDEX('MAT. A SEREM DEVOLVIDOS'!G:G,MATCH(B39,'MAT. A SEREM DEVOLVIDOS'!A:A,0)) -> 4476.908747 | I39: =BDI!$U$26 -> 0.1352 | J39: 5082.18681 | K39: 10164.37362 | L39: 0.001324642618 | M39: 10219.77951 | N39: -55.4058872
A40: 1.2.2.1.7 | B40: 1.7 | C40: Aparelhos Telefônicos Sem Fio SENAO SN356 com baterias adicionais cada | F40: unid. | G40: =INDEX('MAT. A SEREM DEVOLVIDOS'!F:F,MATCH(B40,'MAT. A SEREM DEVOLVIDOS'!A:A,0)) -> 2 | H40: =INDEX('MAT. A SEREM DEVOLVIDOS'!G:G,MATCH(B40,'MAT. A SEREM DEVOLVIDOS'!A:A,0)) -> 5294.710903 | I40: =BDI!$U$26 -> 0.1352 | J40: 6010.555817 | K40: 12021.11163 | L40: 0.001566616633 | M40: 12086.63858 | N40: -65.5269454
A41: 1.2.2.2 | C41: PDH- MULTIPLEX FLEXÍVEL PDH FOX505 ABB, EQUIPADO POR: - 4 (und) Interfaces Elétricas E1; - 12 (und) Interfaces Telefônicas FXO e FXS; - 8 (und) Interfaces de Áudio 2/4 fios E/M; - 8 (und) Interfaces V.24; 8 (und) Interfaces nx64kCod; - 4 (und) Interfaces Ethernet 10/100 Mbps Base T com comutação automática | F41: unid. | G41: 1 | H41: ='MAT. A SEREM DEVOLVIDOS'!G14 -> 129296.6694 | I41: =BDI!$U$26 -> 0.1352 | J41: 146777.5792 | K41: 146777.5792 | L41: 0.01912836382 | M41: 147577.6621 | N41: -800.0829464
A42: 1.2.2.3 | B42: 3.1 | C42: ROTEADOR: Switch Carrier Ethernet: - Modelo: ASR 903 - Tipo: Chassi com 10 slots para montagem em rack de 19” e altura de 3 U - Fabricante: Cisco Networks - Módulos: - Controle e processamento (switch fabric): 02 CISCO ASR 900 Route Switch Processor 2 - 64G, Base Scale (A900-RSP2A-64) - Fontes de alimentação DC: 02 CISCO ASR 900 550W Enhanced DC Power Supply (A900-PWR550-D-E) - Sistema de ventilação: - 01 CISCO ASR 903 FAN Tray With Filter Slot (A903-FAN-E) - 01 CISCO ASR 903 FAN Tray Filter Blank Panel (A903-FAN-F-B) - Interfaces: 02 CISCO ASR 900 8 port SFP Gigabit Ethernet Interface Module (A900-IMA8S) - Módulos SFP: - 02 CISCO 1000BASE-SX SFP transceiver module, MMF, 850nm, DOM (GLC-SX-MMD) - 04 CISCO 1000BASE-T SFP transceiver module for Category 5 copper wire (GLC-TE) - 02 CISCO 1000BASE-LX/LH SFP transceiver module, MMF/SMF, 1310nm, DOM (GLC-LH-SMD) - Software e Licenças: - 01 CISCO Cisco ASR 900 RSP2 IOS XE UNIVERSAL - NO PAYLOAD ENCRYPTION (SASR900R2NPEK9315S) - 01 CISCO ASR 903 Metro Aggregation Services (SLASR903-A) - Acessórios: - 01 CISCO ASR 903 EIA /JIS 19in Rack Mount Kit (A903-RCKMNT-19IN) - 01 CISCO ASR 903 Cable Guide (A903-CABLE-GUIDE) - 04 CISCO ASR 900 Interface Module Type-A Blank Cover (A900-IMA-BLANK) | F42: unid. | G42: =INDEX('MAT. A SEREM DEVOLVIDOS'!F:F,MATCH(B42,'MAT. A SEREM DEVOLVIDOS'!A:A,0)) -> 1 | H42: =INDEX('MAT. A SEREM DEVOLVIDOS'!G:G,MATCH(B42,'MAT. A SEREM DEVOLVIDOS'!A:A,0)) -> 205695.637 | I42: =BDI!$U$26 -> 0.1352 | J42: 233505.6872 | K42: 233505.6872 | L42: 0.03043095386 | M42: 234778.5241 | N42: -1272.836896
A43: 1.2.2.4 | B43: 4.1 | C43: SWITCHES: Switch de Sala de Telecom (-48 Vcc) - Quantidade: 03 unidades - Fabricante: Belden - Modelo: RSPE32 - Software: Versão do software que faça a marcação de pacotes na Camada 3 (L3) - Fontes de Alimentação: 2 x -48 Vcc - Módulos de Interfaces: - SFP: 04 SFP 1000Base-LX (LC – FO Monomodo) e 04 SFP 100Base-FX (LC – FO Multimodo) - Mídia Módulos: RSPM20-4T14T1: 01 unidade (Módulo com 8 portas TP 10/100 MB) RSPM22-4T14Z6: 01 unidade (Módulo com 4 portas TP 10/100 MB PoE e 4 portas FO 100MB Slot-SFP) - Acessório: Trilho DIN - Resumo: Switch Modular Giga Ethernet para montagem em trilho DIN. Equipado com 20 portas 10/100 Base TX, sendo 12 portas PoE, 04 portas Combo Gigabit UTP/tipo SFP Óptica 1000Base-LX (conector LC) e 04 portas tipo SFP Ópticas 100BaseFX (FO multimodo e conector LC) - Código: RSP32-24 04 407 T99-T PP V9 99 HH SE 2S XX.X | F43: cj | G43: =INDEX('MAT. A SEREM DEVOLVIDOS'!F:F,MATCH(B43,'MAT. A SEREM DEVOLVIDOS'!A:A,0)) -> 1 | H43: =INDEX('MAT. A SEREM DEVOLVIDOS'!G:G,MATCH(B43,'MAT. A SEREM DEVOLVIDOS'!A:A,0)) -> 94055.58 | I43: =BDI!$U$26 -> 0.1352 | J43: 106771.8944 | K43: 106771.8944 | L43: 0.01391473857 | M43: 104749.6994 | N43: 2022.19497
A44: 1.2.2.5 | B44: 4.2 | C44: SWITCHES: Switch de Cabana de Relé (125/250 Vcc) - Quantidade: 01 unidade - Fabricante: Belden - Modelo: MACH1032 - Software: Versão do software HiOS mais atual. - Fontes de Alimentação: 125/250 Vcc (Switch) e 125/250 Vcc (PoE) - Módulos de Interfaces: 04 SFP 1000Base-LX (LC – FO Monomodo) e 02 SFP 100Base-FX (LC – FO Multimodo) - Resumo: Switch Ruggedized Fast Ethernet PoE com uplink Gigabit para montagem em rack de 19”. Equipado com 24 portas 10/100 Base TX, sendo 04 portas PoE, 04 portas tipo SFP Óptica 1000Base-LX (conector LC) e 02 portas tipo SFP Ópticas 100BaseFX (FO multimodo e conector LC) - Código: AR1032- 4O TT TT TT TT TT TT TT TT TT TT TT TT ZZ U GG HP | F44: und | G44: =INDEX('MAT. A SEREM DEVOLVIDOS'!F:F,MATCH(B44,'MAT. A SEREM DEVOLVIDOS'!A:A,0)) -> 1 | H44: =INDEX('MAT. A SEREM DEVOLVIDOS'!G:G,MATCH(B44,'MAT. A SEREM DEVOLVIDOS'!A:A,0)) -> 110266.3793 | I44: =BDI!$U$26 -> 0.1352 | J44: 125174.3938 | K44: 125174.3938 | L44: 0.01631299113 | M44: 125856.7181 | N44: -682.3242242
A45: 1.2.2.6 | B45: 5.2 | C45: Bastidor de 24U | F45: unid. | G45: =INDEX('MAT. A SEREM DEVOLVIDOS'!F:F,MATCH(B45,'MAT. A SEREM DEVOLVIDOS'!A:A,0)) -> 1 | H45: =INDEX('MAT. A SEREM DEVOLVIDOS'!G:G,MATCH(B45,'MAT. A SEREM DEVOLVIDOS'!A:A,0)) -> 3046.524935 | I45: =BDI!$U$26 -> 0.1352 | J45: 3458.415106 | K45: 3458.415106 | L45: 0.0004507079541 | M45: 3477.266888 | N45: -18.85178216
A46: 1.2.2.7 | B46: 5.3 | C46: Conj. de Esteiramento (40 metros) com acessórios (tirantes, hastes, perfilado "U", junção reta "U", junção 90, meia-junção, kit de descida e terminal) - SE Floresta II | F46: conj. | G46: =INDEX('MAT. A SEREM DEVOLVIDOS'!F:F,MATCH(B46,'MAT. A SEREM DEVOLVIDOS'!A:A,0)) -> 1 | H46: =INDEX('MAT. A SEREM DEVOLVIDOS'!G:G,MATCH(B46,'MAT. A SEREM DEVOLVIDOS'!A:A,0)) -> 5173.626219 | I46: =BDI!$U$26 -> 0.1352 | J46: 5873.100484 | K46: 5873.100484 | L46: 0.0007653948476 | M46: 5905.114689 | N46: -32.01420521
A47: 1.2.2.8 | B47: 5.4 | C47: DG BR7000 Cook - SE Floresta II | F47: conj. | G47: =INDEX('MAT. A SEREM DEVOLVIDOS'!F:F,MATCH(B47,'MAT. A SEREM DEVOLVIDOS'!A:A,0)) -> 1 | H47: =INDEX('MAT. A SEREM DEVOLVIDOS'!G:G,MATCH(B47,'MAT. A SEREM DEVOLVIDOS'!A:A,0)) -> 7393.816882 | I47: =BDI!$U$26 -> 0.1352 | J47: 8393.460924 | K47: 8393.460924 | L47: 0.001093853538 | M47: 8439.213586 | N47: -45.75266185
A48: 1.2.2.9 | B48: 5.5 | C48: Régua Cook 8x30 - SE Floresta II | F48: unid. | G48: =INDEX('MAT. A SEREM DEVOLVIDOS'!F:F,MATCH(B48,'MAT. A SEREM DEVOLVIDOS'!A:A,0)) -> 10 | H48: =INDEX('MAT. A SEREM DEVOLVIDOS'!G:G,MATCH(B48,'MAT. A SEREM DEVOLVIDOS'!A:A,0)) -> 225.7756421 | I48: =BDI!$U$26 -> 0.1352 | J48: 256.3005089 | K48: 2563.005089 | L48: 0.0003340162313 | M48: 2576.976002 | N48: -13.97091215
A49: 1.2.2.10 | B49: 5.6 | C49: Régua Cook C303 100P - SE Floresta II | F49: unid. | G49: =INDEX('MAT. A SEREM DEVOLVIDOS'!F:F,MATCH(B49,'MAT. A SEREM DEVOLVIDOS'!A:A,0)) -> 1 | H49: =INDEX('MAT. A SEREM DEVOLVIDOS'!G:G,MATCH(B49,'MAT. A SEREM DEVOLVIDOS'!A:A,0)) -> 1788.345864 | I49: =BDI!$U$26 -> 0.1352 | J49: 2030.130225 | K49: 2030.130225 | L49: 0.0002645708546 | M49: 2041.196442 | N49: -11.06621721
A50: 1.2.2.11 | B50: 5.7 | C50: Barra de Aterramento - SE Floresta II | F50: unid. | G50: =INDEX('MAT. A SEREM DEVOLVIDOS'!F:F,MATCH(B50,'MAT. A SEREM DEVOLVIDOS'!A:A,0)) -> 1 | H50: =INDEX('MAT. A SEREM DEVOLVIDOS'!G:G,MATCH(B50,'MAT. A SEREM DEVOLVIDOS'!A:A,0)) -> 182.2404571 | I50: =BDI!$U$26 -> 0.1352 | J50: 206.8793669 | K50: 206.8793669 | L50: 2.696095562e-05 | M50: 208.007064 | N50: -1.127697121
A51: 1.2.2.12 | B51: 5.8 | C51: Cabo CI 50mm X 20P - SE Floresta II | F51: m | G51: =INDEX('MAT. A SEREM DEVOLVIDOS'!F:F,MATCH(B51,'MAT. A SEREM DEVOLVIDOS'!A:A,0)) -> 100 | H51: =INDEX('MAT. A SEREM DEVOLVIDOS'!G:G,MATCH(B51,'MAT. A SEREM DEVOLVIDOS'!A:A,0)) -> 10.52 | I51: =BDI!$U$26 -> 0.1352 | J51: 11.942304 | K51: 1194.2304 | L51: 0.0001556346256 | M51: 1720.598646 | N51: -526.368246
A52: 1.2.2.13 | B52: 5.9 | C52: Cabo CI 50mm X 10P - SE Floresta II | F52: m | G52: =INDEX('MAT. A SEREM DEVOLVIDOS'!F:F,MATCH(B52,'MAT. A SEREM DEVOLVIDOS'!A:A,0)) -> 100 | H52: =INDEX('MAT. A SEREM DEVOLVIDOS'!G:G,MATCH(B52,'MAT. A SEREM DEVOLVIDOS'!A:A,0)) -> 5.54 | I52: =BDI!$U$26 -> 0.1352 | J52: 6.289008 | K52: 628.9008 | L52: 8.195967927e-05 | M52: 1275.363229 | N52: -646.4624293
A53: 1.2.2.14 | B53: 5.10 | C53: Conector IEC mc 0,40/2,5 (p/3 DID) - SE Floresta II | F53: unid. | G53: =INDEX('MAT. A SEREM DEVOLVIDOS'!F:F,MATCH(B53,'MAT. A SEREM DEVOLVIDOS'!A:A,0)) -> 300 | H53: =INDEX('MAT. A SEREM DEVOLVIDOS'!G:G,MATCH(B53,'MAT. A SEREM DEVOLVIDOS'!A:A,0)) -> 18.87916053 | I53: =BDI!$U$26 -> 0.1352 | J53: 21.43162304 | K53: 6429.486911 | L53: 0.0008379043008 | M53: 6464.533973 | N53: -35.04706142
A54: 1.2.2.15 | B54: 5.11 | C54: Balluns G.703/ETH Utilizado em FTD | F54: unid. | G54: =INDEX('MAT. A SEREM DEVOLVIDOS'!F:F,MATCH(B54,'MAT. A SEREM DEVOLVIDOS'!A:A,0)) -> 2 | H54: =INDEX('MAT. A SEREM DEVOLVIDOS'!G:G,MATCH(B54,'MAT. A SEREM DEVOLVIDOS'!A:A,0)) -> 1257.440532 | I54: =BDI!$U$26 -> 0.1352 | J54: 1427.446492 | K54: 2854.892983 | L54: 0.0003720556776 | M54: 2870.454973 | N54: -15.5619898
A55: 1.2.2.16 | B55: 5.12 | C55: Patch-panel Cat.6 Furukawa, com 24 portas (tomadas). Utilizado em FTD | F55: unid. | G55: =INDEX('MAT. A SEREM DEVOLVIDOS'!F:F,MATCH(B55,'MAT. A SEREM DEVOLVIDOS'!A:A,0)) -> 3 | H55: =INDEX('MAT. A SEREM DEVOLVIDOS'!G:G,MATCH(B55,'MAT. A SEREM DEVOLVIDOS'!A:A,0)) -> 1082.35 | I55: =BDI!$U$26 -> 0.1352 | J55: =H55*(1+I55) -> 1228.68372 | K55: =J55*G55 -> 3686.05116 | L55: 0.0004803739649 | M55: 5226.127389 | N55: =K55-M55 -> -1540.076229
A56: 1.2.2.17 | B56: 5.13 | C56: Patch-panel descarregado com 12 posições para Keystone. Utilizado em FTD | F56: unid. | G56: =INDEX('MAT. A SEREM DEVOLVIDOS'!F:F,MATCH(B56,'MAT. A SEREM DEVOLVIDOS'!A:A,0)) -> 1 | H56: =INDEX('MAT. A SEREM DEVOLVIDOS'!G:G,MATCH(B56,'MAT. A SEREM DEVOLVIDOS'!A:A,0)) -> 772.2346907 | I56: =BDI!$U$26 -> 0.1352 | J56: =H56*(1+I56) -> 876.6408208 | K56: =J56*G56 -> 876.6408208 | L56: 0.0001142456815 | M56: 881.4193802 | N56: =K56-M56 -> -4.778559334
A57: 1.2.2.18 | B57: 5.14 | C57: Organizadores de cabos de 19", Utilizado em FTD | F57: unid. | G57: =INDEX('MAT. A SEREM DEVOLVIDOS'!F:F,MATCH(B57,'MAT. A SEREM DEVOLVIDOS'!A:A,0)) -> 5 | H57: =INDEX('MAT. A SEREM DEVOLVIDOS'!G:G,MATCH(B57,'MAT. A SEREM DEVOLVIDOS'!A:A,0)) -> 60.9 | I57: =BDI!$U$26 -> 0.1352 | J57: 69.13368 | K57: 345.6684 | L57: 4.504823527e-05 | M57: 357.5044297 | N57: -11.83602972
A58: 1.2.2.19 | B58: 5.19 | C58: Patch-cords - Cordões de manobra - UTP, com conectores RJ-45/RJ-54, EIA/TIA 568A, Cat.6 na cor vermelha. Utilizado em BNO e FTD | F58: unid. | G58: 4 | H58: =INDEX('MAT. A SEREM DEVOLVIDOS'!G:G,MATCH(B58,'MAT. A SEREM DEVOLVIDOS'!A:A,0)) -> 33.41 | I58: =BDI!$U$26 -> 0.1352 | J58: 37.927032 | K58: 151.708128 | L58: 1.977092335e-05 | M58: 518.6341136 | N58: -366.9259856 | P58: 2X (UND)
A59: 1.2.2.20 | B59: 5.20 | C59: Patch-cords - Cordões de manobra - UTP, com conectores RJ-45/RJ-54, EIA/TIA 568A, Cat.6 na cor branca. Utilizado em BNO e FTD | F59: unid. | G59: 4 | H59: =INDEX('MAT. A SEREM DEVOLVIDOS'!G:G,MATCH(B59,'MAT. A SEREM DEVOLVIDOS'!A:A,0)) -> 33.41 | I59: =BDI!$U$26 -> 0.1352 | J59: 37.927032 | K59: 151.708128 | L59: 1.977092335e-05 | M59: 529.7419673 | N59: -378.0338393 | P59: 2X (UND)
A60: 1.2.2.21 | B60: 5.23 | C60: Cartucho cassete com 200 etiquetas cada na cor branca e preta, com rótulos de 25.4 X 38 X 12.7 mm cada, para Rotuladora Panduit LS8. Utilizado em FTD | F60: unid. | G60: =INDEX('MAT. A SEREM DEVOLVIDOS'!F:F,MATCH(B60,'MAT. A SEREM DEVOLVIDOS'!A:A,0)) -> 2 | H60: =INDEX('MAT. A SEREM DEVOLVIDOS'!G:G,MATCH(B60,'MAT. A SEREM DEVOLVIDOS'!A:A,0)) -> 263.2119693 | I60: =BDI!$U$26 -> 0.1352 | J60: 298.7982276 | K60: 597.5964552 | L60: 7.7880031e-05 | M60: 600.8539468 | N60: -3.25749161
A61: 1.2.2.22 | B61: 5.24 | C61: Aparelhos telefônicos analógicos Siemens Mod. EUROSET 3005. Utilizado em FTD | F61: unid. | G61: =INDEX('MAT. A SEREM DEVOLVIDOS'!F:F,MATCH(B61,'MAT. A SEREM DEVOLVIDOS'!A:A,0)) -> 10 | H61: =INDEX('MAT. A SEREM DEVOLVIDOS'!G:G,MATCH(B61,'MAT. A SEREM DEVOLVIDOS'!A:A,0)) -> 401.0870333 | I61: =BDI!$U$26 -> 0.1352 | J61: 455.3140002 | K61: 4553.140002 | L61: 0.0005933748125 | M61: 4577.959118 | N61: -24.81911535
A62: 1.2.2.23 | B62: 5.25 | C62: Kyestone RJ-45 Cat.6 EIA/TIA 568A blindado. Utilizado em BNO e FTD | F62: unid. | G62: 3 | H62: =INDEX('MAT. A SEREM DEVOLVIDOS'!G:G,MATCH(B62,'MAT. A SEREM DEVOLVIDOS'!A:A,0)) -> 104.493784 | I62: =BDI!$U$26 -> 0.1352 | J62: 118.6213436 | K62: 355.8640308 | L62: 4.637695139e-05 | M62: 715.6076833 | N62: -359.7436525 | P62: 2X (UND)
A63: 1.2.2.24 | B63: 5.26 | C63: Conectores plug RJ-45 macho, Cat.6 EIA/TIA 568A blindado Utilizado em FTD | F63: unid. | G63: =INDEX('MAT. A SEREM DEVOLVIDOS'!F:F,MATCH(B63,'MAT. A SEREM DEVOLVIDOS'!A:A,0)) -> 6 | H63: =INDEX('MAT. A SEREM DEVOLVIDOS'!G:G,MATCH(B63,'MAT. A SEREM DEVOLVIDOS'!A:A,0)) -> 3.5 | I63: =BDI!$U$26 -> 0.1352 | J63: 3.9732 | K63: 23.8392 | L63: 3.106774846e-06 | M63: 46.37265712 | N63: -22.53345712
A64: 1.2.3 | C64: Material para execução dos serviços | D64: 258975.6803 | E64: =D64/$D$312 -> 0.0259920279 | K64: =SUM(K65:K190) -> 233304.5938 | L64: =K64/$K$312 -> 0.03040474695 | N64: =D64-K64 -> 25671.08653
A65: 1.2.3.1 | B65: 1 | C65: Fornecimento e aplicação do Relé de supervisão de tensão dos motores das chaves seccionadoras, que estão alarmando intermitentemente “falta de tensão / defeito motor” no SAGE.
A66: 1.2.3.1.1 | B66: 1.1 | C66: Fornecimento de relé, cabos, e miscelânia
A67: 1.2.3.1.1.1 | B67: 1.1.1 | C67: Relé de sobrecorrente RTT Falta de fase, assimetria modular, sequência de fase, mínima e máxima tensão, retardo ajustável no ligamento e no desligamento. Contatos Auxiliares: 2NAF Tensão de Emprego nos Contatos Auxiliares: 250VCA Máxima Corrente de Operação dos Contatos Auxiliares: 3A Vida Mecânica Útil de Operações dos Contatos: 10.000.000 | F67: unid. | G67: =INDEX('SERVIÇOS ELETR.'!E:E,MATCH(B67,'SERVIÇOS ELETR.'!A:A,0)) -> 1 | H67: =INDEX('SERVIÇOS ELETR.'!F:F,MATCH(B67,'SERVIÇOS ELETR.'!A:A,0)) -> 265.9233333 | I67: =BDI!$U$26 -> 0.1352 | J67: =H67*(1+I67) -> 301.876168 | K67: =J67*G67 -> 301.876168 | L67: =K67/$K$312 -> 3.934113919e-05 | M67: 296.1588163 | N67: =K67-M67 -> 5.717351667
A68: 1.2.3.2 | B68: 2 | C68: Retirada da corrosão nos paineis central e dos polos B dos disjuntores 14D1, 14P2 e 14S2
A69: 1.2.3.2.1.1 | B69: 2.1.1 | C69: Tinta de fundo N2288 oxibar | F69: gl | G69: =INDEX('SERVIÇOS ELETR.'!E:E,MATCH(B69,'SERVIÇOS ELETR.'!A:A,0)) -> 1 | H69: =INDEX('SERVIÇOS ELETR.'!F:F,MATCH(B69,'SERVIÇOS ELETR.'!A:A,0)) -> 752.2066667 | I69: =BDI!$U$26 -> 0.1352 | J69: =H69*(1+I69) -> 853.905008 | K69: =J69*G69 -> 853.905008 | L69: 0.0001112827024 | M69: 837.7325647 | N69: =K69-M69 -> 16.17244333
A70: 1.2.3.2.1.2 | B70: 2.1.2 | C70: Tinta esmalte sintético Cinza Alumínio para paineis elétricos | F70: gl | G70: =INDEX('SERVIÇOS ELETR.'!E:E,MATCH(B70,'SERVIÇOS ELETR.'!A:A,0)) -> 1 | H70: =INDEX('SERVIÇOS ELETR.'!F:F,MATCH(B70,'SERVIÇOS ELETR.'!A:A,0)) -> 151.4066667 | I70: =BDI!$U$26 -> 0.1352 | J70: 171.876848 | K70: 171.876848 | L70: 2.23993535e-05 | M70: 168.6216047 | N70: 3.255243333
A71: 1.2.3.2.1.3 | B71: 2.1.3 | C71: Lixa para ferro Nr.100 | F71: un | G71: =INDEX('SERVIÇOS ELETR.'!E:E,MATCH(B71,'SERVIÇOS ELETR.'!A:A,0)) -> 5 | H71: =INDEX('SERVIÇOS ELETR.'!F:F,MATCH(B71,'SERVIÇOS ELETR.'!A:A,0)) -> 2.96 | I71: =BDI!$U$26 -> 0.1352 | J71: 3.360192 | K71: 16.80096 | L71: 2.189536558e-06 | M71: 27.47126667 | N71: -10.67030667
A72: 1.2.3.2.1.4 | B72: 2.1.4 | C72: Rolo lã 5cm | F72: un | G72: =INDEX('SERVIÇOS ELETR.'!E:E,MATCH(B72,'SERVIÇOS ELETR.'!A:A,0)) -> 2 | H72: =INDEX('SERVIÇOS ELETR.'!F:F,MATCH(B72,'SERVIÇOS ELETR.'!A:A,0)) -> 10.91666667 | I72: =BDI!$U$26 -> 0.1352 | J72: 12.3926 | K72: 24.7852 | L72: 3.230059562e-06 | M72: 24.31578333 | N72: 0.4694166667
A73: 1.2.3.2.1.5 | B73: 2.1.5 | C73: Diluente para tinta | F73: lt | G73: =INDEX('SERVIÇOS ELETR.'!E:E,MATCH(B73,'SERVIÇOS ELETR.'!A:A,0)) -> 5 | H73: =INDEX('SERVIÇOS ELETR.'!F:F,MATCH(B73,'SERVIÇOS ELETR.'!A:A,0)) -> 36.88 | I73: =BDI!$U$26 -> 0.1352 | J73: 41.866176 | K73: 209.33088 | L73: 2.728044198e-05 | M73: 128.0755 | N73: 81.25538
A74: 1.2.3.3 | B74: 3 | C74: Mobília das salas de comando e do encarregado ainda não foram disponibilizadas. Os OPI’s estão trabalhando com mobília provisória. Composta por: 6 cadeiras tipo giroflex encosto alto e rodas, 3 armários duas postas com prateleiras internas, 1 armários roupeiro com 9 posições, 1 geladeira com 270 ltr, 1 gaveteiro volante com 4 gavetas chave cada, 5 birô 1200x600mm com gaveta chave metálico.
A75: 1.2.3.3.1 | B75: 3.1 | C75: Fornecimento de mobila | N75: =K75-M75 -> 0
A76: 1.2.3.3.1.1 | B76: 3.1.1 | C76: Cadeira giroflex encosto alto, rodas, e suporte para braços | F76: unid. | G76: =INDEX('SERVIÇOS ELETR.'!E:E,MATCH(B76,'SERVIÇOS ELETR.'!A:A,0)) -> 6 | H76: =INDEX('SERVIÇOS ELETR.'!F:F,MATCH(B76,'SERVIÇOS ELETR.'!A:A,0)) -> 564.728 | I76: =BDI!$U$26 -> 0.1352 | J76: =H76*(1+I76) -> 641.0792256 | K76: =J76*G76 -> 3846.475354 | L76: 0.0005012807844 | M76: 3773.625442 | N76: 72.849912
A77: 1.2.3.3.1.2 | B77: 3.1.2 | C77: Armário com duas portas e 4 prateleiras internas | F77: unid. | G77: =INDEX('SERVIÇOS ELETR.'!E:E,MATCH(B77,'SERVIÇOS ELETR.'!A:A,0)) -> 3 | H77: =INDEX('SERVIÇOS ELETR.'!F:F,MATCH(B77,'SERVIÇOS ELETR.'!A:A,0)) -> 1155.3025 | I77: =BDI!$U$26 -> 0.1352 | J77: 1311.499398 | K77: 3934.498194 | L77: 0.0005127521067 | M77: 3859.981183 | N77: 74.51701125
A78: 1.2.3.3.1.3 | B78: 3.1.3 | C78: Armário roupero com 9 posições com chave em chaparatada | F78: unid. | G78: =INDEX('SERVIÇOS ELETR.'!E:E,MATCH(B78,'SERVIÇOS ELETR.'!A:A,0)) -> 1 | H78: =INDEX('SERVIÇOS ELETR.'!F:F,MATCH(B78,'SERVIÇOS ELETR.'!A:A,0)) -> 1465.795 | I78: =BDI!$U$26 -> 0.1352 | J78: 1663.970484 | K78: 1663.970484 | L78: 0.0002168521445 | M78: 1632.455892 | N78: 31.5145925
A79: 1.2.3.3.1.4 | B79: 3.1.4 | C79: Geladeira/congelador uma porta com 300 ltrs 220Vca Consumo A, Frost free. | F79: unid. | G79: =INDEX('SERVIÇOS ELETR.'!E:E,MATCH(B79,'SERVIÇOS ELETR.'!A:A,0)) -> 1 | H79: =INDEX('SERVIÇOS ELETR.'!F:F,MATCH(B79,'SERVIÇOS ELETR.'!A:A,0)) -> 2418.95 | I79: =BDI!$U$26 -> 0.1352 | J79: 2745.99204 | K79: 2745.99204 | L79: 0.0003578634768 | M79: 2672.238509 | N79: 73.7535312
A80: 1.2.3.3.1.5 | B80: 3.1.5 | C80: Gaveteiro volante de 4 gavetas e chave | F80: unid. | G80: =INDEX('SERVIÇOS ELETR.'!E:E,MATCH(B80,'SERVIÇOS ELETR.'!A:A,0)) -> 1 | H80: =INDEX('SERVIÇOS ELETR.'!F:F,MATCH(B80,'SERVIÇOS ELETR.'!A:A,0)) -> 728.2666667 | I80: =BDI!$U$26 -> 0.1352 | J80: 826.72832 | K80: 826.72832 | L80: 0.0001077409791 | M80: 811.0705867 | N80: 15.65773333
A81: 1.2.3.3.1.6 | B81: 3.1.6 | C81: Mesa de trabalho Birô com 1200x600 com três gavetas e chave | F81: unid. | G81: =INDEX('SERVIÇOS ELETR.'!E:E,MATCH(B81,'SERVIÇOS ELETR.'!A:A,0)) -> 5 | H81: =INDEX('SERVIÇOS ELETR.'!F:F,MATCH(B81,'SERVIÇOS ELETR.'!A:A,0)) -> 621.735 | I81: =BDI!$U$26 -> 0.1352 | J81: 705.793572 | K81: 3528.96786 | L81: 0.0004599025378 | M81: 3462.131347 | N81: 66.8365125
A82: 1.2.3.4 | B82: 4 | C82: Aquisição de mobílias da guarita Subestação E0. Composta por: 2 cadeiras tipo giroflex encosto alto e rodas, 1 armários roupeiro com 9 posições, 1 gaveteiro volante com 4 gavetas cada.
A83: 1.2.3.4.1 | B83: 4.1 | C83: Fornecimento de mobila
A84: 1.2.3.4.1.1 | B84: 4.1.1 | C84: Cadeira giroflex encosto alto, rodas, e suporte para braços | F84: unid. | G84: =INDEX('SERVIÇOS ELETR.'!E:E,MATCH(B84,'SERVIÇOS ELETR.'!A:A,0)) -> 2 | H84: =INDEX('SERVIÇOS ELETR.'!F:F,MATCH(B84,'SERVIÇOS ELETR.'!A:A,0)) -> 564.728 | I84: =BDI!$U$26 -> 0.1352 | J84: =H84*(1+I84) -> 641.0792256 | K84: =J84*G84 -> 1282.158451 | L84: 0.0001670935948 | M84: 1257.875147 | N84: =K84-M84 -> 24.283304
A85: 1.2.3.4.1.2 | B85: 4.1.2 | C85: Armário roupero com 9 posições com chave em chaparatada | F85: unid. | G85: =INDEX('SERVIÇOS ELETR.'!E:E,MATCH(B85,'SERVIÇOS ELETR.'!A:A,0)) -> 1 | H85: =INDEX('SERVIÇOS ELETR.'!F:F,MATCH(B85,'SERVIÇOS ELETR.'!A:A,0)) -> 1465.795 | I85: =BDI!$U$26 -> 0.1352 | J85: 1663.970484 | K85: 1663.970484 | L85: 0.0002168521445 | M85: 1632.455892 | N85: 31.5145925
A86: 1.2.3.4.1.3 | B86: 4.1.3 | C86: Gaveteiro volante de 4 gavetas e chave | F86: unid. | G86: =INDEX('SERVIÇOS ELETR.'!E:E,MATCH(B86,'SERVIÇOS ELETR.'!A:A,0)) -> 1 | H86: =INDEX('SERVIÇOS ELETR.'!F:F,MATCH(B86,'SERVIÇOS ELETR.'!A:A,0)) -> 728.2666667 | I86: =BDI!$U$26 -> 0.1352 | J86: 826.72832 | K86: 826.72832 | L86: 0.0001077409791 | M86: 811.0705867 | N86: 15.65773333
A87: 1.2.3.5 | B87: 7 | C87: Colocar dois exaustores no painel do SAGE QE0 e repor tampa inferior
A88: 1.2.3.5.1 | B88: 7.1 | C88: Fornecimento de exaustores, chapa, cabos, terminais e miscelâneas
A89: 1.2.3.5.1.1 | B89: 7.1.1 | C89: Exaustor 16x16cm 125Vcc com grelha de acabamento | F89: unid. | G89: =INDEX('SERVIÇOS ELETR.'!E:E,MATCH(B89,'SERVIÇOS ELETR.'!A:A,0)) -> 2 | H89: =INDEX('SERVIÇOS ELETR.'!F:F,MATCH(B89,'SERVIÇOS ELETR.'!A:A,0)) -> 202.49 | I89: =BDI!$U$26 -> 0.1352 | J89: =H89*(1+I89) -> 229.866648 | K89: =J89*G89 -> 459.733296 | L89: 5.99134132e-05 | M89: 451.026226 | N89: =K89-M89 -> 8.70707
A90: 1.2.3.5.1.2 | B90: 7.1.2 | C90: Placa em Aço 1/8" espessura dimenssões 65x25 cm com aba 3cm, na cor cinza alumíno paineis elétricos. | F90: unid. | G90: =INDEX('SERVIÇOS ELETR.'!E:E,MATCH(B90,'SERVIÇOS ELETR.'!A:A,0)) -> 1 | H90: =INDEX('SERVIÇOS ELETR.'!F:F,MATCH(B90,'SERVIÇOS ELETR.'!A:A,0)) -> 1064.04 | I90: =BDI!$U$26 -> 0.1352 | J90: 1207.898208 | K90: 1207.898208 | L90: 0.0001574158432 | M90: 1185.021348 | N90: 22.87686
A91: 1.2.3.6 | B91: 8 | C91: Dar continuidade na construção das bases para postes de iluminação do pátio
A92: 1.2.3.6.1 | B92: 8.1 | C92: Fornecimento
A93: 1.2.3.6.1.1 | B93: 8.1.1 | C93: Luminária, uso externo; fechada; refletor de alumínio estampado anodizado tipo assimétrico fixação do tipo encaixe liso ø 48mm; para lâmpada vapor de sódio 250 W; corpo, pescoço e base de alumínio injetado em alta pressão; soquete porcelana reforçado; rosca E-40; grau de proteção IP64 equipamento embutido no pescoço, composto de Reator, Ignitor e Capacitor 33uF; (sem base para relé fotoelétrico). REF.FAB.: IP 251 SR TECNOWATT ou Similar. | F93: un | G93: =INDEX('SERVIÇOS ELETR.'!E:E,MATCH(B93,'SERVIÇOS ELETR.'!A:A,0)) -> 1 | H93: =INDEX('SERVIÇOS ELETR.'!F:F,MATCH(B93,'SERVIÇOS ELETR.'!A:A,0)) -> 439.72 | I93: =BDI!$U$26 -> 0.1352 | J93: =H93*(1+I93) -> 499.170144 | K93: =J93*G93 -> 499.170144 | L93: 6.505290644e-05 | M93: 489.716164 | N93: =K93-M93 -> 9.45398
A94: 1.2.3.6.1.2 | B94: 8.1.2 | C94: Cabo em cobre PP duplo isolamento #3#2,5mm². 1000kV | F94: m | G94: =INDEX('SERVIÇOS ELETR.'!E:E,MATCH(B94,'SERVIÇOS ELETR.'!A:A,0)) -> 20 | H94: =INDEX('SERVIÇOS ELETR.'!F:F,MATCH(B94,'SERVIÇOS ELETR.'!A:A,0)) -> 18.642 | I94: =BDI!$U$26 -> 0.1352 | J94: 21.1623984 | K94: 423.247968 | L94: 5.515856827e-05 | M94: 415.231908 | N94: 8.01606
A95: 1.2.3.6.1.3 | B95: 8.1.3 | C95: Lâmpada vapor de sódio; alta pressão, com tubo de descarga de óxido de alumínio sintetizado, encapsulado por um bulbo ovóide; tamanho 2; base E-40; 250W/220V; vida média 28.000h; IRC 4; fluxo luminoso 25.000 lm. REF.FAB.: SON-250-E PHILIPS;NAV-E/250 OSRAM | F95: un | G95: =INDEX('SERVIÇOS ELETR.'!E:E,MATCH(B95,'SERVIÇOS ELETR.'!A:A,0)) -> 1 | H95: =INDEX('SERVIÇOS ELETR.'!F:F,MATCH(B95,'SERVIÇOS ELETR.'!A:A,0)) -> 64.77 | I95: =BDI!$U$26 -> 0.1352 | J95: 73.526904 | K95: 73.526904 | L95: 9.582181275e-06 | M95: 82.96322533 | N95: -9.436321333
A96: 1.2.3.7 | B96: 13 | C96: Fornecimento de peças sobressalentes do sistema de CFTV
A97: 1.2.3.7.1 | B97: 13.1 | C97: Fornecimento de equipamentos
A98: 1.2.3.7.1.2 | B98: 13.1.2 | C98: Disco rígido para uso exclusivo em CFTV, 2TB, 3.5", SATA, 5400 RPM, 64 Mb de Cache - WD Purple WD20PURZ OU SIMILAR | F98: un | G98: =INDEX('SERVIÇOS ELETR.'!E:E,MATCH(B98,'SERVIÇOS ELETR.'!A:A,0)) -> 2 | H98: =INDEX('SERVIÇOS ELETR.'!F:F,MATCH(B98,'SERVIÇOS ELETR.'!A:A,0)) -> 702.2733333 | I98: =BDI!$U$26 -> 0.1352 | J98: =H98*(1+I98) -> 797.220688 | K98: =J98*G98 -> 1594.441376 | L98: 0.0002077909645 | M98: 1564.243623 | N98: =K98-M98 -> 30.19775333
A99: 1.2.3.7.1.3 | B99: 13.1.3 | C99: Desktop, para sistema de CFTV. Xenon, 3 hd purple 2TB, 8GB RAM, 3.0GHz, Servidor de vídeo e Imagem Modelo ML110 G6 HP/DELL | F99: un | G99: =INDEX('SERVIÇOS ELETR.'!E:E,MATCH(B99,'SERVIÇOS ELETR.'!A:A,0)) -> 1 | H99: =INDEX('SERVIÇOS ELETR.'!F:F,MATCH(B99,'SERVIÇOS ELETR.'!A:A,0)) -> 12321.73667 | I99: =BDI!$U$26 -> 0.1352 | J99: 13987.63546 | K99: 13987.63546 | L99: 0.001822898168 | M99: 13722.71813 | N99: 264.9173383
A100: 1.2.3.7.1.4 | B100: 13.1.4 | C100: Nobreak 2,2kVa, entrada e saída 220Vca 60hz, 53Ax49Lx33P (tamanho máximo) | F100: un | G100: =INDEX('SERVIÇOS ELETR.'!E:E,MATCH(B100,'SERVIÇOS ELETR.'!A:A,0)) -> 2 | H100: =INDEX('SERVIÇOS ELETR.'!F:F,MATCH(B100,'SERVIÇOS ELETR.'!A:A,0)) -> 5517.4075 | I100: =BDI!$U$26 -> 0.1352 | J100: 6263.360994 | K100: 12526.72199 | L100: 0.001632508842 | M100: 12289.47347 | N100: 237.2485225
A101: 1.2.3.7.1.5 | B101: 13.1.5 | C101: Monitor para PC 21,5" LED - Widescreen Full HD HDMI VGA - BIVOLT | F101: un | G101: =INDEX('SERVIÇOS ELETR.'!E:E,MATCH(B101,'SERVIÇOS ELETR.'!A:A,0)) -> 1 | H101: =INDEX('SERVIÇOS ELETR.'!F:F,MATCH(B101,'SERVIÇOS ELETR.'!A:A,0)) -> 842.44 | I101: =BDI!$U$26 -> 0.1352 | J101: 956.337888 | K101: 956.337888 | L101: 0.0001246319715 | M101: 994.1183187 | N101: -37.78043067
A102: 1.2.3.7.1.6 | B102: 13.1.6 | C102: Distribuidor interno óptico-Dio OI.02269 Fibracem | F102: un | G102: =INDEX('SERVIÇOS ELETR.'!E:E,MATCH(B102,'SERVIÇOS ELETR.'!A:A,0)) -> 1 | H102: =INDEX('SERVIÇOS ELETR.'!F:F,MATCH(B102,'SERVIÇOS ELETR.'!A:A,0)) -> 339.15 | I102: =BDI!$U$26 -> 0.1352 | J102: 385.00308 | K102: 385.00308 | L102: 5.017441376e-05 | M102: 744.3228333 | N102: -359.3197533
A103: 1.2.3.7.1.7 | B103: 13.1.7 | C103: Ke-board KBD300A Pelco | F103: un | G103: =INDEX('SERVIÇOS ELETR.'!E:E,MATCH(B103,'SERVIÇOS ELETR.'!A:A,0)) -> 1 | H103: =INDEX('SERVIÇOS ELETR.'!F:F,MATCH(B103,'SERVIÇOS ELETR.'!A:A,0)) -> 16196.05 | I103: =BDI!$U$26 -> 0.1352 | J103: 18385.75596 | K103: 18385.75596 | L103: 0.002396070512 | M103: 18037.54088 | N103: 348.215075
A104: 1.2.3.7.1.8 | B104: 13.1.8 | C104: Conversor Ethernet/FO AX-CV-FO-ETH Axiom | F104: un | G104: =INDEX('SERVIÇOS ELETR.'!E:E,MATCH(B104,'SERVIÇOS ELETR.'!A:A,0)) -> 2 | H104: =INDEX('SERVIÇOS ELETR.'!F:F,MATCH(B104,'SERVIÇOS ELETR.'!A:A,0)) -> 300.4966667 | I104: =BDI!$U$26 -> 0.1352 | J104: 341.123816 | K104: 682.247632 | L104: 8.891195098e-05 | M104: 669.3262753 | N104: 12.92135667
A105: 1.2.3.7.1.9 | B105: 13.1.9 | C105: Patch Panel 24P HP/DELL | F105: un | G105: =INDEX('SERVIÇOS ELETR.'!E:E,MATCH(B105,'SERVIÇOS ELETR.'!A:A,0)) -> 1 | H105: =INDEX('SERVIÇOS ELETR.'!F:F,MATCH(B105,'SERVIÇOS ELETR.'!A:A,0)) -> 1082.35 | I105: =BDI!$U$26 -> 0.1352 | J105: 1228.68372 | K105: 1228.68372 | L105: 0.000160124655 | M105: 305.1166767 | N105: 923.5670433
A106: 1.2.3.7.1.10 | B106: 13.1.10 | C106: Fonte de alimentação chaveada - 220Vca/12Vcc/5A ABLRPM12083 Schneider | F106: un | G106: =INDEX('SERVIÇOS ELETR.'!E:E,MATCH(B106,'SERVIÇOS ELETR.'!A:A,0)) -> 1 | H106: =INDEX('SERVIÇOS ELETR.'!F:F,MATCH(B106,'SERVIÇOS ELETR.'!A:A,0)) -> 314.3133333 | I106: =BDI!$U$26 -> 0.1352 | J106: 356.808496 | K106: 356.808496 | L106: 4.650003608e-05 | M106: 350.0507593 | N106: 6.757736667
A107: 1.2.3.7.1.11 | B107: 13.1.11 | C107: Terminados óptico para 4 fibras-Dio Fibracem | F107: un | G107: =INDEX('SERVIÇOS ELETR.'!E:E,MATCH(B107,'SERVIÇOS ELETR.'!A:A,0)) -> 1 | H107: =INDEX('SERVIÇOS ELETR.'!F:F,MATCH(B107,'SERVIÇOS ELETR.'!A:A,0)) -> 79.9 | I107: =BDI!$U$26 -> 0.1352 | J107: 90.70248 | K107: 90.70248 | L107: 1.182053858e-05 | M107: 110.2563 | N107: -19.55382
A108: 1.2.3.7.1.12 | B108: 13.1.12 | C108: Detetor de Intrusão Infravermelho D101 Decibel | F108: un | G108: =INDEX('SERVIÇOS ELETR.'!E:E,MATCH(B108,'SERVIÇOS ELETR.'!A:A,0)) -> 1 | H108: =INDEX('SERVIÇOS ELETR.'!F:F,MATCH(B108,'SERVIÇOS ELETR.'!A:A,0)) -> 532.61 | I108: =BDI!$U$26 -> 0.1352 | J108: 604.618872 | K108: 604.618872 | L108: 7.879520718e-05 | M108: 809.760133 | N108: -205.141261
A109: 1.2.3.7.1.13 | B109: 13.1.13 | C109: Iluminador infravermelho 120° 100 Raymax | F109: un | G109: =INDEX('SERVIÇOS ELETR.'!E:E,MATCH(B109,'SERVIÇOS ELETR.'!A:A,0)) -> 1 | H109: =INDEX('SERVIÇOS ELETR.'!F:F,MATCH(B109,'SERVIÇOS ELETR.'!A:A,0)) -> 4314.335 | I109: =BDI!$U$26 -> 0.1352 | J109: 4897.633092 | K109: 4897.633092 | L109: 0.0006382698788 | M109: 4804.874889 | N109: 92.7582025
A110: 1.2.3.7.1.14 | B110: 13.1.14 | C110: Câmara Móvel Dome-Ip Spectra IV Pelco | F110: un | G110: =INDEX('SERVIÇOS ELETR.'!E:E,MATCH(B110,'SERVIÇOS ELETR.'!A:A,0)) -> 1 | H110: =INDEX('SERVIÇOS ELETR.'!F:F,MATCH(B110,'SERVIÇOS ELETR.'!A:A,0)) -> 3801.1 | I110: =BDI!$U$26 -> 0.1352 | J110: 4315.00872 | K110: 4315.00872 | L110: 0.0005623410413 | M110: 10582.45536 | N110: -6267.446639
A111: 1.2.3.7.1.15 | B111: 13.1.15 | C111: Câmara Fixa-IP 13VDIR Pelco | F111: un | G111: =INDEX('SERVIÇOS ELETR.'!E:E,MATCH(B111,'SERVIÇOS ELETR.'!A:A,0)) -> 1 | H111: =INDEX('SERVIÇOS ELETR.'!F:F,MATCH(B111,'SERVIÇOS ELETR.'!A:A,0)) -> 2635.26 | I111: =BDI!$U$26 -> 0.1352 | J111: 2991.547152 | K111: 2991.547152 | L111: 0.0003898647372 | M111: 2934.889062 | N111: 56.65809
A112: 1.2.3.7.1.16 | B112: 13.1.16 | C112: Detetor de presença externo. Sensor IVP-1 | F112: un | G112: =INDEX('SERVIÇOS ELETR.'!E:E,MATCH(B112,'SERVIÇOS ELETR.'!A:A,0)) -> 1 | H112: =INDEX('SERVIÇOS ELETR.'!F:F,MATCH(B112,'SERVIÇOS ELETR.'!A:A,0)) -> 559.98 | I112: =BDI!$U$26 -> 0.1352 | J112: 635.689296 | K112: 635.689296 | L112: 8.284437039e-05 | M112: 623.649726 | N112: 12.03957
A113: 1.2.3.7.1.17 | B113: 13.1.17 | C113: Detetor de presença interno. Sensores IVP-2/IVP-3 | F113: un | G113: =INDEX('SERVIÇOS ELETR.'!E:E,MATCH(B113,'SERVIÇOS ELETR.'!A:A,0)) -> 1 | H113: =INDEX('SERVIÇOS ELETR.'!F:F,MATCH(B113,'SERVIÇOS ELETR.'!A:A,0)) -> 133.1066667 | I113: =BDI!$U$26 -> 0.1352 | J113: 151.102688 | K113: 151.102688 | L113: 1.969202114e-05 | M113: 148.2408947 | N113: 2.861793333
A114: 1.2.3.7.1.18 | B114: 13.1.18 | C114: KIT par extensor KVM USB VGA VIA CAT6 - 250 m. | F114: un | G114: =INDEX('SERVIÇOS ELETR.'!E:E,MATCH(B114,'SERVIÇOS ELETR.'!A:A,0)) -> 1 | H114: =INDEX('SERVIÇOS ELETR.'!F:F,MATCH(B114,'SERVIÇOS ELETR.'!A:A,0)) -> 8326.102467 | I114: =BDI!$U$26 -> 0.1352 | J114: 9451.79152 | K114: 9451.79152 | L114: 0.001231777415 | M114: 9272.780317 | N114: 179.011203
A115: 1.2.3.7.1.19 | B115: 13.1.19 | C115: Mesa controladora usb interface, vms, nvr, dvr ds-1005k hikvision | F115: un | G115: =INDEX('SERVIÇOS ELETR.'!E:E,MATCH(B115,'SERVIÇOS ELETR.'!A:A,0)) -> 1 | H115: =INDEX('SERVIÇOS ELETR.'!F:F,MATCH(B115,'SERVIÇOS ELETR.'!A:A,0)) -> 2857.55 | I115: =BDI!$U$26 -> 0.1352 | J115: 3243.89076 | K115: 3243.89076 | L115: 0.0004227506886 | M115: 3182.453435 | N115: 61.437325
A116: 1.2.3.8 | B116: 16 | C116: Forneceimento de notebook industrial e software de acesso ao equipamento de teleproteção DIP 5000 para realização de manutenções corretivas
A117: 1.2.3.8.1 | B117: 16.1 | C117: Fornecimento de notebook industrial e licenças de softwares
A118: 1.2.3.8.1.1 | B118: 16.1.1 | C118: Notebook I5 de 8° geração ou mais recente, com Memória RAM: 4GB HD de 500GB, Porta Serial RS-232 ou conversor USB-Serial. Tela 15"com resolução mínima HD. | F118: unid. | G118: =INDEX('SERVIÇOS ELETR.'!E:E,MATCH(B118,'SERVIÇOS ELETR.'!A:A,0)) -> 2 | H118: =INDEX('SERVIÇOS ELETR.'!F:F,MATCH(B118,'SERVIÇOS ELETR.'!A:A,0)) -> 3853.35 | I118: =BDI!$U$26 -> 0.1352 | J118: =H118*(1+I118) -> 4374.32292 | K118: =J118*G118 -> 8748.64584 | L118: 0.001140141986 | M118: 8582.95179 | N118: =K118-M118 -> 165.69405
A119: 1.2.3.9 | B119: 17 | C119: Conclusão de infraestrutura da Rede LAN interna do Prédio de Apoio e da infraestrutura de interligação com a rede existente (tubulações e caixas R2); execução do cabeamento e fazer o marco de encaminhamento da tubulação no percurso para o Prédio de Apoio, lançamento e conexão dos cabos, fusão e certificação dos cabos ópticos .
A120: 1.2.3.9.1 | B120: 17.1 | C120: Fornecimento de eletrodutos e acessórios, materiais para construção civil, marcos de sinalização, cabos de rede, cabos de alimentação, fibras ópticas e acessórios para conectorização dos cabos de rede, cabos de alimentação, cabo telefônico CTP APL, fibras ópticas e acessórios para conectorização dos cabos
A121: 1.2.3.9.1.1 | B121: 17.1.1 | C121: Luminária pendente para 2 lâmpadas fluorescentes de 40W, corpo fabricado em chapa de aço tratado e pintado na cor branca, refletor fabricado em chapa de alumínio anodizado de alto brilho (99,85%), equipada com soquetes antivibratórios e reator duplo, partida rápida, alto fator de potência, 220V, 60Hz. Ref. Fab.: 4012.228.300 ITAIM ILUMINAÇÃO ou similar. | F121: un | G121: =INDEX('SERVIÇOS ELETR.'!E:E,MATCH(B121,'SERVIÇOS ELETR.'!A:A,0)) -> 12 | H121: =INDEX('SERVIÇOS ELETR.'!F:F,MATCH(B121,'SERVIÇOS ELETR.'!A:A,0))/G121 -> 19.23166667 | I121: =BDI!$U$26 -> 0.1352 | J121: =H121*(1+I121) -> 21.831788 | K121: =J121*G121 -> 261.981456 | L121: 3.414197614e-05 | M121: 188.77215 | N121: =K121-M121 -> 73.209306
A122: 1.2.3.9.1.2 | B122: 17.1.2 | C122: Luminária, com refletor de chapa de alumínio, fechada à prova de tempo, gases, vapores e pó; tipo arandela 30º. “corpo e grade de proteção fabricada em alumínio silício fundida com esmaltação na cor cinza martelado, caixa de ligações com quatro entradas rosqueadas nas laterais eletroduto de diâmetro DN 25 e dois bujões seladores, globo de vidro temperado resistente a choques térmicos e mecânicos, rosqueado ao corpo e vedado com junta em neoprene "W" (NBR 5407) para assegurar fechamento hermético, soquete de porcelana reforçado E-27, para 1 (uma) lâmpada fluorescente compacta de 25W ,Tensão nominal 220 V grau de proteção IP54. Ref. Fab.: AIW/2 – PL254A45- e refletor RAX-1 da BLINDA ou similar. | F122: un | G122: =INDEX('SERVIÇOS ELETR.'!E:E,MATCH(B122,'SERVIÇOS ELETR.'!A:A,0)) -> 8 | H122: =INDEX('SERVIÇOS ELETR.'!F:F,MATCH(B122,'SERVIÇOS ELETR.'!A:A,0)) -> 467.5633333 | I122: =BDI!$U$26 -> 0.1352 | J122: 530.777896 | K122: 4246.223168 | L122: 0.000553376763 | M122: 4165.802275 | N122: 80.42089333
A123: 1.2.3.9.1.3 | B123: 17.1.3 | C123: Luminária, tipo plafonier; para 1 (uma) lâmpada até 100W; com soquete de porcelana; rosca E-27; globo em vidro opaco; tipo “drops”; suporte de fixação adequado para instalação aparafusada a caixa estampada octogonal, Tensão nominal 220V | F123: un | G123: =INDEX('SERVIÇOS ELETR.'!E:E,MATCH(B123,'SERVIÇOS ELETR.'!A:A,0)) -> 5 | H123: =INDEX('SERVIÇOS ELETR.'!F:F,MATCH(B123,'SERVIÇOS ELETR.'!A:A,0)) -> 27.79333333 | I123: =BDI!$U$26 -> 0.1352 | J123: 31.550992 | K123: 157.75496 | L123: 2.055895926e-05 | M123: 154.7671767 | N123: 2.987783333
A124: 1.2.3.9.1.4 | B124: 17.1.4 | C124: Lâmpada fluorescente tubular, tensão nominal 220V/ 60 Hz, base bipino , índice de reprodução de cores de 70 a 79%, temperatura de cor 5250 K, fluxo luminoso 2700 lm, vida útil 7500 horas, potência 40 watts. Ref. Fab.: OSRAM ou similar | F124: un | G124: =INDEX('SERVIÇOS ELETR.'!E:E,MATCH(B124,'SERVIÇOS ELETR.'!A:A,0)) -> 24 | H124: =INDEX('SERVIÇOS ELETR.'!F:F,MATCH(B124,'SERVIÇOS ELETR.'!A:A,0)) -> 27.67 | I124: =BDI!$U$26 -> 0.1352 | J124: 31.410984 | K124: 753.863616 | L124: 9.824509713e-05 | M124: 739.585896 | N124: 14.27772
A125: 1.2.3.9.1.5 | B125: 17.1.5 | C125: Lâmpada fluorescente compacta, com reator incorporado, com fator de potência maior ou igual a 0,95, tensão nominal 220V/ 60 Hz, base E27, índice de reprodução de cores de 80 a 89%, temperatura de cor 4000 K, fluxo luminoso 1200 lm, vida útil 6000 horas, potência 23 watts. Ref. Fab.: OSRAM ou similar. | F125: un | G125: =INDEX('SERVIÇOS ELETR.'!E:E,MATCH(B125,'SERVIÇOS ELETR.'!A:A,0)) -> 13 | H125: =INDEX('SERVIÇOS ELETR.'!F:F,MATCH(B125,'SERVIÇOS ELETR.'!A:A,0)) -> 26.93 | I125: =BDI!$U$26 -> 0.1352 | J125: 30.570936 | K125: 397.422168 | L125: 5.179289552e-05 | M125: 389.895233 | N125: 7.526935
A126: 1.2.3.9.1.6 | B126: 17.1.6 | C126: Cabo, elétrico força 0,6/1kv; 3x1mm2; cobre; tempera mole; seção nominal 1,5mm2; formação 7 fios; classe de encordoamento 2; isolação PVC; cobertura PVC preta; temperatura máxima 70°C; normas ABNT NBR-6880 e 7288/82. REF. FAB.: SINTENAX-ANTIFLAM da PRYSMIAN ou similar. | F126: m | G126: =INDEX('SERVIÇOS ELETR.'!E:E,MATCH(B126,'SERVIÇOS ELETR.'!A:A,0)) -> 5 | H126: =INDEX('SERVIÇOS ELETR.'!F:F,MATCH(B126,'SERVIÇOS ELETR.'!A:A,0)) -> 5.88 | I126: =BDI!$U$26 -> 0.1352 | J126: 6.674976 | K126: 33.37488 | L126: 4.349484784e-06 | M126: 38.06997833 | N126: -4.695098333
A127: 1.2.3.9.1.7 | B127: 17.1.7 | C127: Cabo, elétrico força 0,6/1kv; 3x4mm2; cobre; tempera mole; seção nominal 4mm2; formação 7 fios; classe de encordoamento 2; isolação PVC; cobertura PVC preta; temperatura máxima 70°C; normas ABNT NBR-6880 e 7288/82. REF. FAB.: SINTENAX-ANTIFLAM da PRYSMIAN ou similar. | F127: m | G127: =INDEX('SERVIÇOS ELETR.'!E:E,MATCH(B127,'SERVIÇOS ELETR.'!A:A,0)) -> 200 | H127: =INDEX('SERVIÇOS ELETR.'!F:F,MATCH(B127,'SERVIÇOS ELETR.'!A:A,0)) -> 13.64 | I127: =BDI!$U$26 -> 0.1352 | J127: 15.484128 | K127: 3096.8256 | L127: 0.0004035848467 | M127: 3239.382067 | N127: -142.5564667
A128: 1.2.3.9.1.8 | B128: 17.1.8 | C128: Interruptor simples, 10A, 250V, montado com condulete, fabricado em liga de alumínio fundido, tipo E, com 1 entrada sem rosca, para eletroduto DN25. Ref. Fab.: DAISA ou similar | F128: un | G128: =INDEX('SERVIÇOS ELETR.'!E:E,MATCH(B128,'SERVIÇOS ELETR.'!A:A,0)) -> 6 | H128: =INDEX('SERVIÇOS ELETR.'!F:F,MATCH(B128,'SERVIÇOS ELETR.'!A:A,0)) -> 7.64 | I128: =BDI!$U$26 -> 0.1352 | J128: 8.672928 | K128: 52.037568 | L128: 6.781645664e-06 | M128: 76.667108 | N128: -24.62954
A129: 1.2.3.9.1.9 | B129: 17.1.9 | C129: Tomada monofásica universal, 2 polos + terra, 25A, 250V, montada com condulete, fabricado em liga de alumínio fundido, tipo E, com 1 entrada sem rosca, para eletroduto DN250. Ref. Fab.: DAISA ou similar | F129: un | G129: =INDEX('SERVIÇOS ELETR.'!E:E,MATCH(B129,'SERVIÇOS ELETR.'!A:A,0)) -> 11 | H129: =INDEX('SERVIÇOS ELETR.'!F:F,MATCH(B129,'SERVIÇOS ELETR.'!A:A,0)) -> 22.79 | I129: =BDI!$U$26 -> 0.1352 | J129: 25.871208 | K129: 284.583288 | L129: 3.708749458e-05 | M129: 181.922895 | N129: 102.660393
A130: 1.2.3.9.1.10 | B130: 17.1.10 | C130: Tomada monofásica universal, 2 polos + terra, 25A, 250V, montada com condulete (2 TOMADAS), fabricado em liga de alumínio fundido, tipo E, com 1 entrada sem rosca, para eletroduto DN250. Ref. Fab.: DAISA ou similar | F130: un | G130: =INDEX('SERVIÇOS ELETR.'!E:E,MATCH(B130,'SERVIÇOS ELETR.'!A:A,0)) -> 9 | H130: =INDEX('SERVIÇOS ELETR.'!F:F,MATCH(B130,'SERVIÇOS ELETR.'!A:A,0)) -> 13.31 | I130: =BDI!$U$26 -> 0.1352 | J130: 15.109512 | K130: 135.985608 | L130: 1.772193137e-05 | M130: 133.410123 | N130: 2.575485
A131: 1.2.3.9.1.11 | B131: 17.1.11 | C131: Fio sólido, fabricado em cobre nu; têmpera mole; encordoamento classe 1, seção nominal 2,5mm²; isolamento na cor vermelha de PVC a 70º C- composto termoplástico extrudado á base de policloreto de vinila, com especiais característica de não propagação e auto-extinção do fogo; BWF; 750V; fabricado segundo NBR NM 247-3, produto deve ser certificado com a marca de conformidade – INMETRO .Ref. Fab.: Pirastic BWF antiflam da PRYSMIAN ou similar | F131: m | G131: =INDEX('SERVIÇOS ELETR.'!E:E,MATCH(B131,'SERVIÇOS ELETR.'!A:A,0)) -> 300 | H131: =INDEX('SERVIÇOS ELETR.'!F:F,MATCH(B131,'SERVIÇOS ELETR.'!A:A,0)) -> 2.67 | I131: =BDI!$U$26 -> 0.1352 | J131: 3.030984 | K131: 909.2952 | L131: =K131/$K$312 -> 0.0001185012691 | M131: 1081.564186 | N131: -172.2689865
A132: 1.2.3.9.1.12 | B132: 17.1.12 | C132: Fio sólido, fabricado em cobre nu; têmpera mole; encordoamento classe 1, seção nominal 2,5mm²; isolamento na cor azul de PVC a 70º C- composto termoplástico extrudado á base de policloreto de vinila, com especiais característica de não propagação e auto-extinção do fogo; BWF; 750V; fabricado segundo NBR NM 247-3, produto deve ser certificado com a marca de conformidade – INMETRO . Ref. Fab.: Pirastic BWF antiflam da PRYSMIAN ou similar. | F132: m | G132: =INDEX('SERVIÇOS ELETR.'!E:E,MATCH(B132,'SERVIÇOS ELETR.'!A:A,0)) -> 300 | H132: =INDEX('SERVIÇOS ELETR.'!F:F,MATCH(B132,'SERVIÇOS ELETR.'!A:A,0)) -> 2.67 | I132: =BDI!$U$26 -> 0.1352 | J132: 3.030984 | K132: 909.2952 | L132: 0.0001185012691 | M132: 1081.564186 | N132: -172.2689865
A133: 1.2.3.9.1.13 | B133: 17.1.13 | C133: Fio sólido, fabricado em cobre nu; têmpera mole; encordoamento classe 1, seção nominal 2,5mm²; isolamento na cor branca de PVC a 70º C- composto termoplástico extrudado á base de policloreto de vinila, com especiais característica de não propagação e auto-extinção do fogo; BWF; 750V; fabricado segundo NBR NM 247-3, produto deve ser certificado com a marca de conformidade – INMETRO . Ref. Fab.: Pirastic BWF antiflam da PRYSMIAN ou similar. | F133: m | G133: =INDEX('SERVIÇOS ELETR.'!E:E,MATCH(B133,'SERVIÇOS ELETR.'!A:A,0)) -> 300 | H133: =INDEX('SERVIÇOS ELETR.'!F:F,MATCH(B133,'SERVIÇOS ELETR.'!A:A,0)) -> 2.6 | I133: =BDI!$U$26 -> 0.1352 | J133: 2.95152 | K133: 885.456 | L133: 0.0001153944943 | M133: 1081.564186 | N133: -196.1081865
A134: 1.2.3.9.1.14 | B134: 17.1.14 | C134: Fio sólido, fabricado em cobre nu; têmpera mole; encordoamento classe 1, seção nominal 2,5mm²; isolamento na cor preta de PVC a 70º C- composto termoplástico extrudado á base de policloreto de vinila, com especiais característica de não propagação e auto-extinção do fogo; BWF;; 750V; fabricado segundo NBR NM 247-3, produto deve ser certificado com a marca de conformidade – INMETRO .Ref. Fab.: Pirastic BWF antiflam da PRYSMIAN ou similar. | F134: m | G134: =INDEX('SERVIÇOS ELETR.'!E:E,MATCH(B134,'SERVIÇOS ELETR.'!A:A,0)) -> 150 | H134: =INDEX('SERVIÇOS ELETR.'!F:F,MATCH(B134,'SERVIÇOS ELETR.'!A:A,0)) -> 2.6 | I134: =BDI!$U$26 -> 0.1352 | J134: 2.95152 | K134: 442.728 | L134: 5.769724714e-05 | M134: 540.7820932 | N134: -98.05409325
A135: 1.2.3.9.1.15 | B135: 17.1.15 | C135: Fio sólido, fabricado em cobre nu; têmpera mole; encordoamento classe 1, seção nominal 2,5mm²; isolamento na cor verde/amarelo de PVC a 70º C- composto termoplástico extrudado á base de policloreto de vinila, com especiais característica de não propagação e auto-extinção do fogo; BWF; 750V; fabricado segundo NBR NM 247-3, produto deve ser certificado com a marca de conformidade – INMETRO .Ref. Fab.: Pirastic BWF antiflam da PRYSMIAN ou similar. | F135: m | G135: =INDEX('SERVIÇOS ELETR.'!E:E,MATCH(B135,'SERVIÇOS ELETR.'!A:A,0)) -> 300 | H135: =INDEX('SERVIÇOS ELETR.'!F:F,MATCH(B135,'SERVIÇOS ELETR.'!A:A,0)) -> 2.6 | I135: =BDI!$U$26 -> 0.1352 | J135: 2.95152 | K135: 885.456 | L135: 0.0001153944943 | M135: 1081.564186 | N135: -196.1081865
A136: 1.2.3.9.1.16 | B136: 17.1.16 | C136: Fio sólido, fabricado em cobre nu; têmpera mole; encordoamento classe 1, seção nominal 2,5mm²; isolamento na cor CINZA de PVC a 70º C- composto termoplástico extrudado á base de policloreto de vinila, com especiais característica de não propagação e auto-extinção do fogo; BWF; 750V; fabricado segundo NBR NM 247-3, produto deve ser certificado com a marca de conformidade – INMETRO .Ref. Fab.: Pirastic BWF antiflam da PRYSMIAN ou similar. | F136: m | G136: =INDEX('SERVIÇOS ELETR.'!E:E,MATCH(B136,'SERVIÇOS ELETR.'!A:A,0)) -> 150 | H136: =INDEX('SERVIÇOS ELETR.'!F:F,MATCH(B136,'SERVIÇOS ELETR.'!A:A,0)) -> 2.6 | I136: =BDI!$U$26 -> 0.1352 | J136: 2.95152 | K136: 442.728 | L136: 5.769724714e-05 | M136: 540.7820932 | N136: -98.05409325
A137: 1.2.3.9.1.17 | B137: 17.1.17 | C137: Eletroduto, rígido, aço carbono, com costura, DN50 , diâmetro externo 60,30mm, espessura da parede 3,35mm, extremidades rosqueadas, com luva, rosca cilíndrica BSP, galvanização por imersão a quente, vara de 3000mm, norma ABNT NBR-5598. Ref. Fab.: CARBINOX ou similar | F137: br | G137: =INDEX('SERVIÇOS ELETR.'!E:E,MATCH(B137,'SERVIÇOS ELETR.'!A:A,0)) -> 1 | H137: =INDEX('SERVIÇOS ELETR.'!F:F,MATCH(B137,'SERVIÇOS ELETR.'!A:A,0)) -> 301.67 | I137: =BDI!$U$26 -> 0.1352 | J137: 342.455784 | K137: 342.455784 | L137: 4.462956037e-05 | M137: 335.969879 | N137: 6.485905
A138: 1.2.3.9.1.18 | B138: 17.1.18 | C138: Eletroduto, rígido, aço carbono, com costura, DN25 diâmetro externo 26,9mm, espessura da parede 2,25mm, extremidades rosqueadas, com luva, rosca cilíndrica BSP, galvanização por imersão a quente, vara de 3000mm, norma ABNT NBR-5598. Ref. Fab.: CARBINOX ou similar. | F138: br | G138: =INDEX('SERVIÇOS ELETR.'!E:E,MATCH(B138,'SERVIÇOS ELETR.'!A:A,0)) -> 40 | H138: =INDEX('SERVIÇOS ELETR.'!F:F,MATCH(B138,'SERVIÇOS ELETR.'!A:A,0)) -> 137.44 | I138: =BDI!$U$26 -> 0.1352 | J138: 156.021888 | K138: 6240.87552 | L138: 0.0008133240664 | M138: 6122.67712 | N138: 118.1984
A139: 1.2.3.9.1.19 | B139: 17.1.19 | C139: Arruela, fabricada em liga de alumínio, para eletroduto rígido DN50 , rosca BSP. Ref. Fab.: DAISA ou similar | F139: un | G139: =INDEX('SERVIÇOS ELETR.'!E:E,MATCH(B139,'SERVIÇOS ELETR.'!A:A,0)) -> 2 | H139: =INDEX('SERVIÇOS ELETR.'!F:F,MATCH(B139,'SERVIÇOS ELETR.'!A:A,0)) -> 2.69 | I139: =BDI!$U$26 -> 0.1352 | J139: 3.053688 | K139: 6.107376 | L139: 7.959261272e-07 | M139: 7.394968 | N139: -1.287592
A140: 1.2.3.9.1.20 | B140: 17.1.20 | C140: Arruela, fabricada em liga de alumínio, para eletroduto rígido DN25 , rosca BSP. Ref. Fab.: DAISA ou similar | F140: un | G140: =INDEX('SERVIÇOS ELETR.'!E:E,MATCH(B140,'SERVIÇOS ELETR.'!A:A,0)) -> 5 | H140: =INDEX('SERVIÇOS ELETR.'!F:F,MATCH(B140,'SERVIÇOS ELETR.'!A:A,0)) -> 1.03 | I140: =BDI!$U$26 -> 0.1352 | J140: 1.169256 | K140: 5.84628 | L140: 7.618995456e-07 | M140: 18.48742 | N140: -12.64114
A141: 1.2.3.9.1.21 | B141: 17.1.21 | C141: Bucha isolada sextavada, fabricada em ferro fundido nodular, galvanização por imersão a quente, para eletroduto rígido DN50, rosca BSP, com terminal de aterramento, Ref. Fab.: DAISA ou similar | F141: un | G141: =INDEX('SERVIÇOS ELETR.'!E:E,MATCH(B141,'SERVIÇOS ELETR.'!A:A,0)) -> 2 | H141: =INDEX('SERVIÇOS ELETR.'!F:F,MATCH(B141,'SERVIÇOS ELETR.'!A:A,0)) -> 7.85 | I141: =BDI!$U$26 -> 0.1352 | J141: 8.91132 | K141: 17.82264 | L141: 2.322684052e-06 | M141: 17.48509 | N141: 0.33755
A142: 1.2.3.9.1.22 | B142: 17.1.22 | C142: Bucha isolada sextavada, fabricada em ferro fundido nodular, galvanização por imersão a quente, para eletroduto rígido DN25 , rosca BSP. Ref. Fab.: DAISA ou similar | F142: un | G142: =INDEX('SERVIÇOS ELETR.'!E:E,MATCH(B142,'SERVIÇOS ELETR.'!A:A,0)) -> 5 | H142: =INDEX('SERVIÇOS ELETR.'!F:F,MATCH(B142,'SERVIÇOS ELETR.'!A:A,0)) -> 5.853333333 | I142: =BDI!$U$26 -> 0.1352 | J142: 6.644704 | K142: 33.22352 | L142: 4.32975923e-06 | M142: 32.59428667 | N142: 0.6292333333
A143: 1.2.3.9.1.23 | B143: 17.1.23 | C143: União fabricada em liga de alumínio, macho-fêmea; extremidade macho roscada; rosca BSP; extremidade fêmea sem rosca; para eletroduto rigido DN 40 ; instalação a prova de tempo, gases, vapores e pó. Ref. Fab.: DAISA ou similar | F143: un | G143: =INDEX('SERVIÇOS ELETR.'!E:E,MATCH(B143,'SERVIÇOS ELETR.'!A:A,0)) -> 2 | H143: =INDEX('SERVIÇOS ELETR.'!F:F,MATCH(B143,'SERVIÇOS ELETR.'!A:A,0)) -> 77.06074167 | I143: =BDI!$U$26 -> 0.1352 | J143: 87.47935394 | K143: 174.9587079 | L143: 2.280098798e-05 | M143: 171.645096 | N143: 3.313611892
A144: 1.2.3.9.1.24 | B144: 17.1.24 | C144: União fabricada em liga de alumínio, macho-fêmea; extremidade macho roscada; rosca BSP; extremidade fêmea sem rosca; para eletroduto rigido DN25 ; instalação a prova de tempo, gases, vapores e pó. Ref. Fab.: DAISA ou similar | F144: un | G144: =INDEX('SERVIÇOS ELETR.'!E:E,MATCH(B144,'SERVIÇOS ELETR.'!A:A,0)) -> 6 | H144: =INDEX('SERVIÇOS ELETR.'!F:F,MATCH(B144,'SERVIÇOS ELETR.'!A:A,0)) -> 56.86948333 | I144: =BDI!$U$26 -> 0.1352 | J144: 64.55823748 | K144: 387.3494249 | L144: 5.048019438e-05 | M144: 380.0132615 | N144: 7.33616335
A145: 1.2.3.9.1.25 | B145: 17.1.25 | C145: Luva, fabricada em liga de alumínio, para eletroduto rígido DN50, rosca BSP. Ref. Fab.: DAISA ou similar. | F145: un | G145: =INDEX('SERVIÇOS ELETR.'!E:E,MATCH(B145,'SERVIÇOS ELETR.'!A:A,0)) -> 1 | H145: =INDEX('SERVIÇOS ELETR.'!F:F,MATCH(B145,'SERVIÇOS ELETR.'!A:A,0)) -> 20.16333333 | I145: =BDI!$U$26 -> 0.1352 | J145: 22.889416 | K145: 22.889416 | L145: 2.982996991e-06 | M145: 22.45590433 | N145: 0.4335116667
A146: 1.2.3.9.1.26 | B146: 17.1.26 | C146: Luva, fabricada em liga de alumínio, para eletroduto rígido DN25, rosca BSP. Ref. Fab.: DAISA ou similar. | F146: un | G146: =INDEX('SERVIÇOS ELETR.'!E:E,MATCH(B146,'SERVIÇOS ELETR.'!A:A,0)) -> 40 | H146: =INDEX('SERVIÇOS ELETR.'!F:F,MATCH(B146,'SERVIÇOS ELETR.'!A:A,0)) -> 10.69333333 | I146: =BDI!$U$26 -> 0.1352 | J146: 12.139072 | K146: 485.56288 | L146: 6.327957909e-05 | M146: 476.3666133 | N146: 9.196266667
A147: 1.2.3.9.1.27 | B147: 17.1.27 | C147: Condulete tipo “T”, fabricado em liga de alumínio fundido, com tampa aparafusada e junta de vedação, com duas entradas, com rosca BSP, para eletroduto rígido DN25 instalação a prova de tempo, gases, vapores e pó. Ref. Fab.: Dailet, DAISA ou similar | F147: un | G147: =INDEX('SERVIÇOS ELETR.'!E:E,MATCH(B147,'SERVIÇOS ELETR.'!A:A,0)) -> 5 | H147: =INDEX('SERVIÇOS ELETR.'!F:F,MATCH(B147,'SERVIÇOS ELETR.'!A:A,0)) -> 23.16 | I147: =BDI!$U$26 -> 0.1352 | J147: 26.291232 | K147: 131.45616 | L147: 1.713164415e-05 | M147: 286.8705583 | N147: -155.4143983
A148: 1.2.3.9.1.28 | B148: 17.1.28 | C148: Condulete tipo L , fabricado em liga de alumínio fundido, com tampa aparafusada e junta de vedação, com entradas com rosca BSP, para eletroduto DN25, instalação a prova de tempo, gases, vapores e pó. Ref. Fab.: Dailet, DAISA ou similar | F148: un | G148: =INDEX('SERVIÇOS ELETR.'!E:E,MATCH(B148,'SERVIÇOS ELETR.'!A:A,0)) -> 5 | H148: =INDEX('SERVIÇOS ELETR.'!F:F,MATCH(B148,'SERVIÇOS ELETR.'!A:A,0)) -> 40.46333333 | I148: =BDI!$U$26 -> 0.1352 | J148: 45.933976 | K148: 229.66988 | L148: 2.993106338e-05 | M148: 225.3200717 | N148: 4.349808333
A149: 1.2.3.9.1.29 | B149: 17.1.29 | C149: Parafuso de cabeça sextava, em aço galvanizado a fogo, , M8x50, completo com porca sextava, arruela lisa e de pressão. Ref. Fab.: REAL PERFIL ou similar. | F149: un | G149: =INDEX('SERVIÇOS ELETR.'!E:E,MATCH(B149,'SERVIÇOS ELETR.'!A:A,0)) -> 100 | H149: =INDEX('SERVIÇOS ELETR.'!F:F,MATCH(B149,'SERVIÇOS ELETR.'!A:A,0)) -> 0.83 | I149: =BDI!$U$26 -> 0.1352 | J149: 0.942216 | K149: 94.2216 | L149: 1.227915772e-05 | M149: 178.3404933 | N149: -84.11889333
A150: 1.2.3.9.1.30 | B150: 17.1.30 | C150: Fixador, fabricado em chapa de aço carbono zincado eletroliticamente, para fixação eletroduto, DN 50, fornecido com parafusos M6 de aperto e furo de fixação de diâmetro 6mm. Ref. Fab.: MOPA ou similar. | F150: un | G150: =INDEX('SERVIÇOS ELETR.'!E:E,MATCH(B150,'SERVIÇOS ELETR.'!A:A,0)) -> 40 | H150: =INDEX('SERVIÇOS ELETR.'!F:F,MATCH(B150,'SERVIÇOS ELETR.'!A:A,0)) -> 18 | I150: =BDI!$U$26 -> 0.1352 | J150: 20.4336 | K150: 817.344 | L150: 0.0001065179947 | M150: 801.864 | N150: 15.48
A151: 1.2.3.9.1.31 | B151: 17.1.31 | C151: Bucha elástica fabricada em NYLON S10, fornecido com parafuso com rosca soberba, cabeça redonda com fenda fabricado em aço cadmiado e arruela lisa. REF. Fab.: FISHER DO BRASIL ou similar. | F151: un | G151: =INDEX('SERVIÇOS ELETR.'!E:E,MATCH(B151,'SERVIÇOS ELETR.'!A:A,0)) -> 50 | H151: =INDEX('SERVIÇOS ELETR.'!F:F,MATCH(B151,'SERVIÇOS ELETR.'!A:A,0)) -> 0.5066666667 | I151: =BDI!$U$26 -> 0.1352 | J151: 0.575168 | K151: 28.7584 | L151: 3.74785537e-06 | M151: 28.21373333 | N151: 0.5446666667
A152: 1.2.3.9.1.32 | B152: 17.1.32 | C152: Caixa de ligação de passagem redonda com rosca BSP, para instalação abrigada, fabricado em liga de alumínio fundido, com tampa lisa aparafusada e junta de vedação, com quatro entradas em X, para eletroduto rígido DN25. Ref. Fab.: Dailet Múltiplo Redondo,DAISA ou similar. | F152: un | G152: =INDEX('SERVIÇOS ELETR.'!E:E,MATCH(B152,'SERVIÇOS ELETR.'!A:A,0)) -> 20 | H152: =INDEX('SERVIÇOS ELETR.'!F:F,MATCH(B152,'SERVIÇOS ELETR.'!A:A,0)) -> 35.8434 | I152: =BDI!$U$26 -> 0.1352 | J152: 40.68942768 | K152: 813.7885536 | L152: 0.0001060546414 | M152: 798.3758916 | N152: 15.412662
A153: 1.2.3.9.1.33 | B153: 17.1.33 | C153: Conector, fabricado em polietileno, para 600 V, 25 A , com 12 bornes , na cor branca , para ligação de fios de cobre de bitola até 6 mm2. REF. FAB.: codigo 112 - SINDAL ou similar | F153: un | G153: =INDEX('SERVIÇOS ELETR.'!E:E,MATCH(B153,'SERVIÇOS ELETR.'!A:A,0)) -> 12 | H153: =INDEX('SERVIÇOS ELETR.'!F:F,MATCH(B153,'SERVIÇOS ELETR.'!A:A,0)) -> 28.04666667 | I153: =BDI!$U$26 -> 0.1352 | J153: 31.838576 | K153: 382.062912 | L153: 4.979124487e-05 | M153: 374.826872 | N153: 7.23604
A154: 1.2.3.9.1.34 | B154: 17.1.34 | C154: Prensa cabo, fabricado em alumínio fundido com bucha de neoprene , tamanho nominal 20, rosca BSP para cabos de diâmetro 10/12,5 mm. Ref. Fab.: CL-2/A-5062 da BLINDA ou similar | F154: un | G154: =INDEX('SERVIÇOS ELETR.'!E:E,MATCH(B154,'SERVIÇOS ELETR.'!A:A,0)) -> 12 | H154: =INDEX('SERVIÇOS ELETR.'!F:F,MATCH(B154,'SERVIÇOS ELETR.'!A:A,0)) -> 8.82 | I154: =BDI!$U$26 -> 0.1352 | J154: 10.012464 | K154: 120.149568 | L154: 1.565814522e-05 | M154: 117.874008 | N154: 2.27556
A155: 1.2.3.9.1.35 | B155: 17.1.35 | C155: Plugue macho tipo prolongador monobloco, corpo fabricado em termoplástico na cor cinza. 2P+T, pinos cilíndrico em linha, com conectores aparafusados para ligação de cabos, 10 A , 250 Vca. REF. FAB.: PIAL LEGRAND ou similar | F155: un | G155: =INDEX('SERVIÇOS ELETR.'!E:E,MATCH(B155,'SERVIÇOS ELETR.'!A:A,0)) -> 12 | H155: =INDEX('SERVIÇOS ELETR.'!F:F,MATCH(B155,'SERVIÇOS ELETR.'!A:A,0)) -> 2.6 | I155: =BDI!$U$26 -> 0.1352 | J155: 2.95152 | K155: 35.41824 | L155: 4.615779771e-06 | M155: 71.900472 | N155: -36.482232
A156: 1.2.3.9.1.36 | B156: 17.1.36 | C156: Tomada femea tipo prolongador monobloco, corpo fabricado em termoplástico na cor cinza 2P+T, para conexão de pinos cilíndrico em linha , com conectores aparafusados para ligação de cabos, 10 A , 250 Vca. REF. FAB.: PIAL LEGRAND ou similar. | F156: un | G156: =INDEX('SERVIÇOS ELETR.'!E:E,MATCH(B156,'SERVIÇOS ELETR.'!A:A,0)) -> 12 | H156: =INDEX('SERVIÇOS ELETR.'!F:F,MATCH(B156,'SERVIÇOS ELETR.'!A:A,0)) -> 10.06 | I156: =BDI!$U$26 -> 0.1352 | J156: 11.420112 | K156: 137.041344 | L156: 1.785951711e-05 | M156: 134.445864 | N156: 2.59548
A157: 1.2.3.9.1.37 | B157: 17.1.37 | C157: Tomada femea RJ45 tipo prolongador monobloco, corpo fabricado em termoplástico na cor cinza, para conexão de terminais de ethernet. REF. FAB.: PIAL LEGRAND ou similar. | F157: un | G157: =INDEX('SERVIÇOS ELETR.'!E:E,MATCH(B157,'SERVIÇOS ELETR.'!A:A,0)) -> 15 | H157: =INDEX('SERVIÇOS ELETR.'!F:F,MATCH(B157,'SERVIÇOS ELETR.'!A:A,0)) -> 54.63333333 | I157: =BDI!$U$26 -> 0.1352 | J157: 62.01976 | K157: 930.2964 | L157: 0.0001212381898 | M157: 912.67715 | N157: 17.61925
A158: 1.2.3.9.1.38 | B158: 17.1.38 | C158: Relé fotoelétrico; para iluminação pública; 220V – 50/60Hz; 1000 W/1800VA; corrente nominal da base 10A; célula tipo CDS com encapsulamento blindado de resposta instantânea, contato de carga tipo NF ABNT 5123 REF. FAB.: RM-74/N 220 ILUMATIC ou similar | F158: un | G158: =INDEX('SERVIÇOS ELETR.'!E:E,MATCH(B158,'SERVIÇOS ELETR.'!A:A,0)) -> 1 | H158: =INDEX('SERVIÇOS ELETR.'!F:F,MATCH(B158,'SERVIÇOS ELETR.'!A:A,0)) -> 31.0575 | I158: =BDI!$U$26 -> 0.1352 | J158: 35.256474 | K158: 35.256474 | L158: 4.594698085e-06 | M158: 34.58873775 | N158: 0.66773625
A159: 1.2.3.9.1.39 | B159: 17.1.39 | C159: Base fixação e instalação de relé fotoelétrico dotado de indicador de carga ativa, com tomada em baquelite encaixe padrão NEMA, cabos de ligação isolados em PVC 750V seção 1.5 mm² - comprimento. 500mm, corpo em polipropileno com rosca gás 1/2”,suporte de fixação em aço galvanizado a fogo – ABNT 5123 REF.FAB.: BRM-1+ICA 220V DA ILUMATIC OU SIMILAR | F159: un | G159: =INDEX('SERVIÇOS ELETR.'!E:E,MATCH(B159,'SERVIÇOS ELETR.'!A:A,0)) -> 1 | H159: =INDEX('SERVIÇOS ELETR.'!F:F,MATCH(B159,'SERVIÇOS ELETR.'!A:A,0)) -> 13.6075 | I159: =BDI!$U$26 -> 0.1352 | J159: 15.447234 | K159: 15.447234 | L159: 2.013116129e-06 | M159: 15.15467275 | N159: 0.29256125
A160: 1.2.3.9.1.40 | B160: 17.1.40 | C160: Quadro QLF para distribuição de iluminação normal e de tomadas de força, instalação interna, montagem aparente, com porta, trinco e espelho interno, com os equipamentos a seguir discriminados: Barramento geral trifásico + neutro, em barras retangulares de cobre eletrolítico, dimensionado para: - Tensão nominal -----------------------------------380/220 Vca - Corrente nominal ----------------------------------100A - Corrente de curto circuito------------------------5 kA - Freqüência ------------------------------------------ 60 Hz - Barramento ------------------------------------------ 3 fases, neutro e terra | F160: un | G160: =INDEX('SERVIÇOS ELETR.'!E:E,MATCH(B160,'SERVIÇOS ELETR.'!A:A,0)) -> 1 | H160: =INDEX('SERVIÇOS ELETR.'!F:F,MATCH(B160,'SERVIÇOS ELETR.'!A:A,0)) -> 788.8533333 | I160: =BDI!$U$26 -> 0.1352 | J160: 895.506304 | K160: 895.506304 | L160: 0.0001167042711 | M160: 878.5459573 | N160: 16.96034667
A161: 1.2.3.9.1.41 | B161: 17.1.41 | C161: Chave rotativa Pacco, tripolar, tipo interruptora com duas posições Liga – Desliga: - Tensão nominal -----------------------------------380 Vca - Corrente nominal ---------------------------------60A | F161: un | G161: =INDEX('SERVIÇOS ELETR.'!E:E,MATCH(B161,'SERVIÇOS ELETR.'!A:A,0)) -> 1 | H161: =INDEX('SERVIÇOS ELETR.'!F:F,MATCH(B161,'SERVIÇOS ELETR.'!A:A,0)) -> 299.81 | I161: =BDI!$U$26 -> 0.1352 | J161: 340.344312 | K161: 340.344312 | L161: 4.435438889e-05 | M161: 385.1362815 | N161: -44.79196953
A162: 1.2.3.9.1.42 | B162: 17.1.42 | C162: Disjuntor monopolar, tipo seco, em caixa moldado, equipado com proteção termomagnética, providos de alavanca frontal, com indicação de disparo aberto ou fechado, com: - Tensão nominal ---------------------------------------220 Vca - Corrente nominal -------------------------------------20A - Corrente de curto circuito ------------------------- 5kA | F162: un | G162: =INDEX('SERVIÇOS ELETR.'!E:E,MATCH(B162,'SERVIÇOS ELETR.'!A:A,0)) -> 8 | H162: =INDEX('SERVIÇOS ELETR.'!F:F,MATCH(B162,'SERVIÇOS ELETR.'!A:A,0)) -> 9.55 | I162: =BDI!$U$26 -> 0.1352 | J162: 10.84116 | K162: 86.72928 | L162: 1.130274277e-05 | M162: 123.39796 | N162: -36.66868
A163: 1.2.3.9.1.43 | B163: 17.1.43 | C163: Disjuntor monopolar, tipo seco, em caixa moldado, equipado com proteção termomagnética, providos de alavanca frontal, com indicação de disparo aberto ou fechado, com: - Tensão nominal ---------------------------------------220 Vca - Corrente nominal -------------------------------------10 A - Corrente de curto circuito -------------------------- 5kA | F163: un | G163: =INDEX('SERVIÇOS ELETR.'!E:E,MATCH(B163,'SERVIÇOS ELETR.'!A:A,0)) -> 6 | H163: =INDEX('SERVIÇOS ELETR.'!F:F,MATCH(B163,'SERVIÇOS ELETR.'!A:A,0)) -> 12 | I163: =BDI!$U$26 -> 0.1352 | J163: 13.6224 | K163: 81.7344 | L163: 1.065179947e-05 | M163: 88.850986 | N163: -7.116586
A164: 1.2.3.9.1.44 | B164: 17.1.44 | C164: Disjuntor monopolar, tipo seco, em caixa moldado, equipado com proteção termomagnética, providos de alavanca frontal, com indicação de disparo aberto ou fechado, com: - Tensão nominal ---------------------------------------220 Vca - Corrente nominal -------------------------------------30 A - Corrente de curto circuito -------------------------- 5kA | F164: un | G164: =INDEX('SERVIÇOS ELETR.'!E:E,MATCH(B164,'SERVIÇOS ELETR.'!A:A,0)) -> 3 | H164: =INDEX('SERVIÇOS ELETR.'!F:F,MATCH(B164,'SERVIÇOS ELETR.'!A:A,0)) -> 10 | I164: =BDI!$U$26 -> 0.1352 | J164: 11.352 | K164: 34.056 | L164: 4.43824978e-06 | M164: 52.655736 | N164: -18.599736
A165: 1.2.3.9.1.45 | B165: 17.1.45 | C165: Cabo de energia Tripolar, 0,6/1kV; encordoamento classe 2, seção nominal 4mm², veias nas cores azul, preta e verde; isolamento na cor preta de PVC a 70º C- composto termoplástico extrutado á base de policloreto de vinila, com especiais característica de não propagação e auto-extinção do fogo; fabricado segundo NBR NM 280, produto deve ser certificado com a marca de conformidade – INMETRO. Ref. Fab.: Sintenax antiflam da PRYSMIAN ou similar. | F165: m | G165: =INDEX('SERVIÇOS ELETR.'!E:E,MATCH(B165,'SERVIÇOS ELETR.'!A:A,0)) -> 100 | H165: =INDEX('SERVIÇOS ELETR.'!F:F,MATCH(B165,'SERVIÇOS ELETR.'!A:A,0)) -> 8.1 | I165: =BDI!$U$26 -> 0.1352 | J165: 9.19512 | K165: 919.512 | L165: 0.0001198327441 | M165: 1511.662133 | N165: -592.1501333
A166: 1.2.3.9.1.46 | B166: 17.1.46 | C166: Cabo GIGALAN CAT.6 F/UTP INDOOR/OUTDOOR CM, ethernet 24AWGx4P. Condutor de cobre nú, coberto por polietileno termoplástico adequado. Os condutores são trançados em pares. Capa externa em material não propagante a chama. | F166: m | G166: =INDEX('SERVIÇOS ELETR.'!E:E,MATCH(B166,'SERVIÇOS ELETR.'!A:A,0)) -> 300 | H166: =INDEX('SERVIÇOS ELETR.'!F:F,MATCH(B166,'SERVIÇOS ELETR.'!A:A,0)) -> 7.04 | I166: =BDI!$U$26 -> 0.1352 | J166: 7.991808 | K166: 2397.5424 | L166: 0.0003124527845 | M166: 4230.9463 | N166: -1833.4039
A167: 1.2.3.9.1.47 | B167: 17.1.47 | C167: Conector plug RJ-45 macho, Cat.6 EIA/TIA 568A blindado | F167: un | G167: =INDEX('SERVIÇOS ELETR.'!E:E,MATCH(B167,'SERVIÇOS ELETR.'!A:A,0)) -> 50 | H167: =INDEX('SERVIÇOS ELETR.'!F:F,MATCH(B167,'SERVIÇOS ELETR.'!A:A,0)) -> 3.5 | I167: =BDI!$U$26 -> 0.1352 | J167: 3.9732 | K167: 198.66 | L167: 2.588979038e-05 | M167: 5211.744767 | N167: -5013.084767
A168: 1.2.3.9.1.48 | B168: 17.1.48 | C168: Abraçadeira de nylon com 100x3mm (tipo Hellerman) | F168: un | G168: =INDEX('SERVIÇOS ELETR.'!E:E,MATCH(B168,'SERVIÇOS ELETR.'!A:A,0)) -> 200 | H168: =INDEX('SERVIÇOS ELETR.'!F:F,MATCH(B168,'SERVIÇOS ELETR.'!A:A,0)) -> 0.09386666667 | I168: =BDI!$U$26 -> 0.1352 | J168: 0.10655744 | K168: 21.311488 | L168: 2.777358085e-06 | M168: 20.90786133 | N168: 0.4036266667
A169: 1.2.3.9.1.49 | B169: 17.1.49 | C169: Cabo GIGALAN CAT.6 F/UTP INDOOR/OUTDOOR CM, ethernet 24AWGx4P. Condutor de cobre nú, coberto por polietileno termoplástico adequado. Os condutores são trançados em pares. Capa externa em material não propagante a chama. | F169: m | G169: =INDEX('SERVIÇOS ELETR.'!E:E,MATCH(B169,'SERVIÇOS ELETR.'!A:A,0)) -> 300 | H169: =INDEX('SERVIÇOS ELETR.'!F:F,MATCH(B169,'SERVIÇOS ELETR.'!A:A,0)) -> 7.04 | I169: =BDI!$U$26 -> 0.1352 | J169: 7.991808 | K169: 2397.5424 | L169: 0.0003124527845 | M169: 4230.9463 | N169: -1833.4039
A170: 1.2.3.10 | B170: 20 | C170: Fornecimento e instalação de chaves de teste, botoeiras com chave e sinaleiros, implantação do esquema de testes no painel de teleproteção, conforme o padrão da Chesf.
A171: 1.2.3.10.1 | B171: 20.1 | C171: Fornecimento de chaves de teste, botoeiras de pulso com chave, sinaleiros, cabos, conectores e miscelâneas.
A172: 1.2.3.10.1.1 | B172: 20.1.1 | C172: Chave teste. CORRENTE NOMINAL: 20A Nº CONTATOS: 28, 2 POSIÇÕES ESTÁVEIS “NORMAL” E “TESTE” GRAVAÇÃO: “NORMAL” – “TESTE” MODELO: CA10 FABRICANTE / FORNECEDOR: KRAUS & NAIMER DO BRASIL LTDA | F172: unid. | G172: =INDEX('SERVIÇOS ELETR.'!E:E,MATCH(B172,'SERVIÇOS ELETR.'!A:A,0)) -> 1 | H172: =INDEX('SERVIÇOS ELETR.'!F:F,MATCH(B172,'SERVIÇOS ELETR.'!A:A,0)) -> 673.15 | I172: =BDI!$U$26 -> 0.1352 | J172: =H172*(1+I172) -> 764.15988 | K172: =J172*G172 -> 764.15988 | L172: =K172/$K$312 -> 9.958692798e-05 | M172: 749.687155 | N172: =K172-M172 -> 14.472725
A173: 1.2.3.10.1.2 | B173: 20.1.2 | C173: BOTOEIRAS DE COMANDO COM CHAVE YALE, 2 CONTATOS “NA” FURAÇÃO: 22,5MM, ARO PRETO CROMADO MODELO: KF2A-727.2RA FABRICANTE / FORNECEDOR: EATON ou similar | F173: unid. | G173: =INDEX('SERVIÇOS ELETR.'!E:E,MATCH(B173,'SERVIÇOS ELETR.'!A:A,0)) -> 1 | H173: =INDEX('SERVIÇOS ELETR.'!F:F,MATCH(B173,'SERVIÇOS ELETR.'!A:A,0)) -> 380.0166667 | I173: =BDI!$U$26 -> 0.1352 | J173: 431.39492 | K173: 431.39492 | L173: =K173/$K$312 -> 5.622029624e-05 | M173: 423.2245617 | N173: 8.170358333
A174: 1.2.3.10.1.3 | B174: 20.1.3 | C174: SINALEIRO de 125VCC (OU 250VCC) COR: VERMELHO, ARO PRETO COM LÂMPADA: BA9S FURAÇÃO: 22MM MODELO: XB5 AVG4 FABRICANTE / FORNECEDOR: SCHNEIDER ou similar | F174: unid. | G174: =INDEX('SERVIÇOS ELETR.'!E:E,MATCH(B174,'SERVIÇOS ELETR.'!A:A,0)) -> 1 | H174: =INDEX('SERVIÇOS ELETR.'!F:F,MATCH(B174,'SERVIÇOS ELETR.'!A:A,0)) -> 58.10333333 | I174: =BDI!$U$26 -> 0.1352 | J174: 65.958904 | K174: 65.958904 | L174: =K174/$K$312 -> 8.595903546e-06 | M174: 64.70968233 | N174: 1.249221667
A175: 1.2.3.10.1.4 | B175: 20.1.4 | C175: SINALEIRO 125VCC (OU 250VCC) COR: LARANJA, ARO PRETO COM LÂMPADA: BA9S FURAÇÃO: 22MM MODELO: XB5 AVG5 FABRICANTE / FORNECEDOR: SCHNEIDER ou similar | F175: unid. | G175: =INDEX('SERVIÇOS ELETR.'!E:E,MATCH(B175,'SERVIÇOS ELETR.'!A:A,0)) -> 1 | H175: =INDEX('SERVIÇOS ELETR.'!F:F,MATCH(B175,'SERVIÇOS ELETR.'!A:A,0)) -> 29.79333333 | I175: =BDI!$U$26 -> 0.1352 | J175: 33.821392 | K175: 33.821392 | L175: =K175/$K$312 -> 4.40767517e-06 | M175: 33.18083533 | N175: 0.6405566667
A176: 1.2.3.11 | B176: 21 | C176: Troca de cabos inadequadamentes instalados (cabos internos instalados ao tempo) na instalação do Rack CFTV da Chesf e migração do sistema do Rack do Ministério para o da Chesf
A177: 1.2.3.11.1 | B177: 21.1 | C177: Fornecimento de eletrodutos e acessórios, cabos de rede, cabos de alimentação, fibras ópticas e acessórios para conectorização dos cabos
A178: 1.2.3.11.1.1 | B178: 21.1.1 | C178: Cabo GIGALAN CAT.6 F/UTP INDOOR/OUTDOOR CM, ethernet 24AWGx4P. Condutor de cobre nú, coberto por polietileno termoplástico adequado. Os condutores são trançados em pares. Capa externa em material não propagante a chama. | F178: m | G178: =INDEX('SERVIÇOS ELETR.'!E:E,MATCH(B178,'SERVIÇOS ELETR.'!A:A,0)) -> 300 | H178: =INDEX('SERVIÇOS ELETR.'!F:F,MATCH(B178,'SERVIÇOS ELETR.'!A:A,0)) -> 7.04 | I178: =BDI!$U$26 -> 0.1352 | J178: =H178*(1+I178) -> 7.991808 | K178: =J178*G178 -> 2397.5424 | L178: =K178/$K$312 -> 0.0003124527845 | M178: 5930.4525 | N178: =K178-M178 -> -3532.9101
A179: 1.2.3.11.1.2 | B179: 21.1.2 | C179: Conector plug RJ-45 macho, Cat.6 EIA/TIA 568A blindado | F179: un | G179: =INDEX('SERVIÇOS ELETR.'!E:E,MATCH(B179,'SERVIÇOS ELETR.'!A:A,0)) -> 30 | H179: =INDEX('SERVIÇOS ELETR.'!F:F,MATCH(B179,'SERVIÇOS ELETR.'!A:A,0)) -> 3.5 | I179: =BDI!$U$26 -> 0.1352 | J179: 3.9732 | K179: 119.196 | L179: =K179/$K$312 -> 1.553387423e-05 | M179: 3127.04686 | N179: -3007.85086
A180: 1.2.3.12 | B180: 24 | C180: Fornecimento de baterias de 48Vcc.
A181: 1.2.3.12.1 | B181: 24.1 | C181: Fornecimento de banco de baterias 48vdc, composto por 24 elementos selados de 1,9 vdc, cabos e estrutura autoportante para acomodação dos elementos.
A182: 1.2.3.12.1.1 | B182: 24.1.1 | C182: Bateria para banco de bateria 48Vcc, com 2Vcc (elemento), capacidade 250Ah, IEC60896-21/22 DIN4074. Ou similar tipo 5 PZV250. | F182: unid. | G182: =INDEX('SERVIÇOS ELETR.'!E:E,MATCH(B182,'SERVIÇOS ELETR.'!A:A,0)) -> 48 | H182: =INDEX('SERVIÇOS ELETR.'!F:F,MATCH(B182,'SERVIÇOS ELETR.'!A:A,0)) -> 1031.356333 | I182: =BDI!$U$26 -> 0.1352 | J182: =H182*(1+I182) -> 1170.79571 | K182: =J182*G182 -> 56198.19406 | L182: =K182/$K$312 -> 0.007323867231 | M182: 55133.83432 | N182: =K182-M182 -> 1064.359736
A183: 1.2.3.13 | B183: 25 | C183: Fornecimento e instalação de Extensores KVM para alocar a estação de trabalho do CFTV na mesa de comando
A184: 1.2.3.13.1 | B184: 25.1 | C184: Fornecimento de extensor KVM e cabos de rede
A185: 1.2.3.13.1.1 | B185: 25.1.1 | C185: KIT extensor KVM USB VGA VIA CAT6 - 250M. ATEN CE800B (CE800BR + CE800BL) ou similar | F185: un | G185: =INDEX('SERVIÇOS ELETR.'!E:E,MATCH(B185,'SERVIÇOS ELETR.'!A:A,0)) -> 1 | H185: =INDEX('SERVIÇOS ELETR.'!F:F,MATCH(B185,'SERVIÇOS ELETR.'!A:A,0)) -> 8326.102467 | I185: =BDI!$U$26 -> 0.1352 | J185: =H185*(1+I185) -> 9451.79152 | K185: =J185*G185 -> 9451.79152 | L185: =K185/$K$312 -> 0.001231777415 | M185: 9272.780317 | N185: =K185-M185 -> 179.011203
A186: 1.2.3.13.1.2 | B186: 25.1.2 | C186: Cabo GIGALAN CAT.6 F/UTP INDOOR/OUTDOOR CM, ethernet 24AWGx4P. Condutor de cobre nú, coberto por polietileno termoplástico adequado. Os condutores são trançados em pares. Capa externa em material não propagante a chama. | F186: m | G186: =INDEX('SERVIÇOS ELETR.'!E:E,MATCH(B186,'SERVIÇOS ELETR.'!A:A,0)) -> 300 | H186: =INDEX('SERVIÇOS ELETR.'!F:F,MATCH(B186,'SERVIÇOS ELETR.'!A:A,0)) -> 7.04 | I186: =BDI!$U$26 -> 0.1352 | J186: 7.991808 | K186: 2397.5424 | L186: =K186/$K$312 -> 0.0003124527845 | M186: 5930.4525 | N186: -3532.9101
A187: 1.2.3.13.1.3 | B187: 25.1.3 | C187: Conector plug RJ-45 macho, Cat.6 EIA/TIA 568A blindado | F187: un | G187: =INDEX('SERVIÇOS ELETR.'!E:E,MATCH(B187,'SERVIÇOS ELETR.'!A:A,0)) -> 30 | H187: =INDEX('SERVIÇOS ELETR.'!F:F,MATCH(B187,'SERVIÇOS ELETR.'!A:A,0)) -> 3.5 | I187: =BDI!$U$26 -> 0.1352 | J187: 3.9732 | K187: 119.196 | L187: =K187/$K$312 -> 1.553387423e-05 | M187: 3127.04686 | N187: -3007.85086
A188: 1.2.3.14 | B188: 26 | C188: Fornecimento e instalação de câmeras, Dahua, modelo: PTZ DH‐SD65F230F‐HNI 2MP 30x Starlight PTZ Network Câmera.
A189: 1.2.3.14.1 | B189: 26.1 | C189: Fornecimento de câmera
A190: 1.2.3.14.1.1 | B190: 26.1.1 | C190: Câmera PTZ DH‐SD65F230F‐HNI | F190: unid. | G190: =INDEX('SERVIÇOS ELETR.'!E:E,MATCH(B190,'SERVIÇOS ELETR.'!A:A,0)) -> 2 | H190: =INDEX('SERVIÇOS ELETR.'!F:F,MATCH(B190,'SERVIÇOS ELETR.'!A:A,0)) -> 8269 | I190: =BDI!$U$26 -> 0.1352 | J190: =H190*(1+I190) -> 9386.9688 | K190: =J190*G190 -> 18773.9376 | L190: =K190/$K$312 -> 0.002446659162 | M190: 18418.3706 | N190: =K190-M190 -> 355.567
A191: 1.2.4 | C191: Serviços | D191: 1060997 | E191: =D191/$D$312 -> 0.1064866925 | K191: =SUM(K192:K230) -> 1060997 | L191: =K191/$K$312 -> 0.1382713679 | N191: =D191-K191 -> 0
A192: 1.2.4.1 | B192: 1 | C192: Fornecimento e aplicação do Relé de supervisão de tensão dos motores das chaves seccionadoras, que estão alarmando intermitentemente “falta de tensão / defeito motor” no SAGE.
A193: 1.2.4.1.1 | B193: 1.2 | C193: Instalação de relé de supervisão de tensão | F193: serv. | G193: 1 | H193: =INDEX('SERVIÇOS ELETR.'!F:F,MATCH(B193,'SERVIÇOS ELETR.'!A:A,0)) -> 6267.207072 | I193: =BDI!$E$26 -> 0.2272 | J193: =H193*(1+I193) -> 7691.116519 | K193: =J193*G193 -> 7691.116519 | L193: =K193/$K$312 -> 0.001002322533 | M193: 7691.116519 | N193: =K193-M193 -> 0
A194: 1.2.4.2 | B194: 2 | C194: Retirada da corrosão nos paineis central e dos polos B dos disjuntores 14D1, 14P2 e 14S2
A195: 1.2.4.2.1 | B195: 2.2 | C195: Serviço de Retirada da corrosão em disjuntores | F195: serv. | G195: 1 | H195: =INDEX('SERVIÇOS ELETR.'!F:F,MATCH(B195,'SERVIÇOS ELETR.'!A:A,0)) -> 19304.71659 | I195: =BDI!$E$26 -> 0.2272 | J195: =H195*(1+I195) -> 23690.7482 | K195: =J195*G195 -> 23690.7482 | L195: =K195/$K$312 -> 0.003087428294 | M195: 23690.7482 | N195: =K195-M195 -> 0
A196: 1.2.4.2.2 | B196: 2.3 | C196: Transporte, armazenamento de tintas e produtos químicos | F196: serv. | G196: 1 | H196: =INDEX('SERVIÇOS ELETR.'!F:F,MATCH(B196,'SERVIÇOS ELETR.'!A:A,0)) -> 2757.816656 | I196: =BDI!$E$26 -> 0.2272 | J196: 3384.3926 | K196: 3384.3926 | L196: =K196/$K$312 -> 0.0004410611849 | M196: 3384.3926 | N196: 0
A197: 1.2.4.3 | B197: 3 | C197: Mobília das salas de comando e do encarregado ainda não foram disponibilizadas. Os OPI’s estão trabalhando com mobília provisória. Composta por: 6 cadeiras tipo giroflex encosto alto e rodas, 3 armários duas postas com prateleiras internas, 1 armários roupeiro com 9 posições, 1 geladeira com 270 ltr, 1 gaveteiro volante com 4 gavetas chave cada, 5 birô 1200x600mm com gaveta chave metálico.
A198: 1.2.4.3.1 | B198: 3.2 | C198: Transporte e montagem no local | F198: serv. | G198: 1 | H198: =INDEX('SERVIÇOS ELETR.'!F:F,MATCH(B198,'SERVIÇOS ELETR.'!A:A,0)) -> 4235.94864 | I198: =BDI!$E$26 -> 0.2272 | J198: =H198*(1+I198) -> 5198.356171 | K198: =J198*G198 -> 5198.356171 | L198: =K198/$K$312 -> 0.000677460745 | M198: 5198.356171 | N198: =K198-M198 -> 0
A199: 1.2.4.4 | B199: 4 | C199: Aquisição de mobílias da guarita Subestação E0. Composta por: 2 cadeiras tipo giroflex encosto alto e rodas, 1 armários roupeiro com 9 posições, 1 gaveteiro volante com 4 gavetas cada.
A200: 1.2.4.4.1 | B200: 4.2 | C200: Transporte e montagem no local | F200: serv. | G200: 1 | H200: =INDEX('SERVIÇOS ELETR.'!F:F,MATCH(B200,'SERVIÇOS ELETR.'!A:A,0)) -> 2541.569184 | I200: =BDI!$E$26 -> 0.2272 | J200: =H200*(1+I200) -> 3119.013703 | K200: =J200*G200 -> 3119.013703 | L200: =K200/$K$312 -> 0.000406476447 | M200: 3119.013703 | N200: =K200-M200 -> 0
A201: 1.2.4.5 | B201: 5 | C201: Realização de treinamento para serviços auxiliares (Retificadores e intertravamento do QPCSA) | F201: unid. | G201: 1 | H201: =INDEX('SERVIÇOS ELETR.'!F:F,MATCH(B201,'SERVIÇOS ELETR.'!A:A,0)) -> 66212.4736 | I201: =BDI!$E$26 -> 0.2272 | J201: 81255.9476 | K201: 81255.9476 | L201: =K201/$K$312 -> 0.01058944655 | M201: 81255.9476 | N201: 0
A202: 1.2.4.6 | B202: 7 | C202: Colocar dois exaustores no painel do SAGE QE0 e repor tampa inferior
A203: 1.2.4.6.1 | B203: 7.2 | C203: Transporte, adequação da chaparia do painel e instalação dos exaustores | F203: serv. | G203: 1 | H203: =INDEX('SERVIÇOS ELETR.'!F:F,MATCH(B203,'SERVIÇOS ELETR.'!A:A,0)) -> 8731.527168 | I203: =BDI!$E$26 -> 0.2272 | J203: =H203*(1+I203) -> 10715.33014 | K203: =J203*G203 -> 10715.33014 | L203: =K203/$K$312 -> 0.001396444434 | M203: 10715.33014 | N203: =K203-M203 -> 0
A204: 1.2.4.7 | B204: 8 | C204: Dar continuidade na construção das bases para postes de iluminação do pátio
A205: 1.2.4.7.1 | B205: 8.2 | C205: Transporte e Instalação de poste com luminária no pátio | F205: serv. | G205: 1 | H205: =INDEX('SERVIÇOS ELETR.'!F:F,MATCH(B205,'SERVIÇOS ELETR.'!A:A,0)) -> 7355.209008 | I205: =BDI!$E$26 -> 0.2272 | J205: =H205*(1+I205) -> 9026.312495 | K205: =J205*G205 -> 9026.312495 | L205: =K205/$K$312 -> 0.00117632809 | M205: 9026.312495 | N205: =K205-M205 -> 0
... 107 more rows

Sheet MAT. A SEREM DEVOLVIDOS
A1: ATESTADO DE RECEBIMENTO PROVISÓRIO ENTRE CHESF E CODEVASF - ARP 002 2019 FTD - CCT 013/2014 - FLORESTA
A2: ANEXO III – PENDÊNCIAS DE FORNECIMENTO – EQUIPAMENTOS E MATERIAIS DE TELECOMUNICAÇÕES EMPRESTADOS PELA CHESF | F2: BDI | G2: =BDI!U26 -> 0.1352
A3: ITEM | B3: DESCRIÇÃO | C3: REFER. | D3: FABRICANTE | E3: UNID. | F3: QUANT. | G3: PREÇO UNIT, MÉDIO (R$) SEM BDI | H3: PREÇO MÉDIO TOTAL(R$) SEM BDI | I3: PREÇO TOTAL (R$) COM BDI FORNECIMENTO | J3: Sistema de Referência | K3: Código | L3: Descrição | M3: Valor R$ | N3: Data | O3: COTAÇÕES EMPRESAS (R$)
A4: 1. SISTEMA VOIP DE FABRICAÇÃO SIEMENS COMPOSTO DE: | O4: EMPRESA JPW | P4: JPW Sem bdi | Q4: VECTOR | R4: Vector sem bdi | S4: GMC ENG. | T4: GMC Sem bdi | V4: JPW Sem bdi | W4: Vector sem bdi | X4: GMC Sem bdi | Z4: CV | AA4: Média | AB4: Mediana | AC4: Menor
A5: 1.1 | B5: OpenScape Branch 250 | C5: VOIP | D5: SIEMENS | E5: unid. | F5: 1 | G5: =AVERAGE(P5,R5,T5) -> 26728.00692 | H5: =G5*F5 -> 26728.00692 | I5: =H5*(1+$G$2) -> 30341.63346 | O5: 22000 | P5: =O5*(1-$G$2) -> 19025.6 | Q5: 29601 | R5: =Q5*(1-$G$2) -> 25598.9448 | S5: 41118.728 | T5: =S5*(1-$G$2) -> 35559.47597 | V5: =P5 -> 19025.6 | W5: =R5 -> 25598.9448 | X5: =T5 -> 35559.47597 | Z5: =_xlfn.STDEV.S(V5:X5)/AVERAGE(V5:X5) -> 0.311454687 | AA5: =AVERAGE(V5:X5) -> 26728.00692 | AB5: =MEDIAN(V5:X5) -> 25598.9448 | AC5: =SMALL(AA5:AB5,1) -> 25598.9448
A6: 1.2 | B6: Access Points internos AP3610 | C6: VOIP | D6: SIEMENS | E6: unid. | F6: 4 | G6: =AVERAGE(P6,R6,T6) -> 4477.910186 | H6: 17911.64074 | I6: =H6*(1+$G$2) -> 20333.29457 | O6: 1620 | P6: =O6*(1-$G$2) -> 1400.976 | Q6: 4359.42 | R6: =Q6*(1-$G$2) -> 3770.026416 | S6: 9554.496 | T6: 8262.728141 | V6: =P6 -> 1400.976 | W6: =R6 -> 3770.026416 | X6: =T6 -> 8262.728141 | Z6: 0.7783132126 | AA6: 4477.910186 | AB6: 3770.026416 | AC6: =SMALL(AA6:AB6,1) -> 3770.026416
A7: 1.3 | B7: Access Points externos AP3865e | C7: VOIP | D7: SIEMENS | E7: unid. | F7: 6 | G7: 17218.75895 | H7: 103312.5537 | I7: 117280.4109 | O7: 4150 | P7: 3588.92 | Q7: 9043.11 | R7: 7820.481528 | S7: 46538.94 | T7: 40246.87531 | V7: 3588.92 | W7: 7820.481528 | X7: 40246.87531 | Z7: 1.164709561 | AA7: 17218.75895 | AB7: 7820.481528 | AC7: 7820.481528
A8: 1.4 | B8: Aparelhos Telefônicos Openstage 15 SIP | C8: VOIP | D8: SIEMENS | E8: unid. | F8: 15 | G8: 12552.09924 | H8: 188281.4886 | I8: 213737.1459 | O8: 1279.96 | P8: 1106.909408 | Q8: 6379.02 | R8: 5516.576496 | S8: 35884.38 | T8: 31032.81182 | V8: 1106.909408 | W8: 5516.576496 | X8: 31032.81182 | Z8: 1.287109237 | AA8: 12552.09924 | AB8: 5516.576496 | AC8: 5516.576496
A9: 1.5 | B9: Aparelhos Telefônicos Analógicos DA100 | C9: VOIP | D9: SIEMENS | E9: unid. | F9: 4 | G9: 906.0036843 | H9: 3624.014737 | I9: 4113.98153 | O9: 320 | P9: 276.736 | Q9: 430.56 | R9: 372.348288 | S9: 2392.376 | T9: 2068.926765 | V9: 276.736 | W9: 372.348288 | X9: 2068.926765 | Z9: 1.112859631 | AA9: 906.0036843 | AB9: 372.348288 | AC9: 372.348288
A10: 1.6 | B10: Aparelhos Telefônicos Sem Fio WIFI WL3 | C10: VOIP | D10: SIEMENS | E10: unid. | F10: 2 | G10: 4476.908747 | H10: 8953.817494 | I10: 10164.37362 | O10: 2755 | P10: 2382.524 | Q10: 2477.07 | R10: 2142.170136 | S10: 10298.372 | T10: 8906.032106 | V10: =P10 -> 2382.524 | W10: =R10 -> 2142.170136 | X10: =T10 -> 8906.032106 | Z10: 0.857202084 | AA10: 4476.908747 | AB10: 2382.524 | AC10: 2382.524
A11: 1.7 | B11: Aparelhos Telefônicos Sem Fio SENAO SN356 com baterias adicionais cada | C11: VOIP | D11: SIEMENS | E11: unid. | F11: 2 | G11: 5294.710903 | H11: 10589.42181 | I11: 12021.11163 | O11: 3241 | P11: 2802.8168 | Q11: 4360.77 | R11: 3771.193896 | S11: 10765.636 | T11: 9310.122013 | V11: 2802.8168 | W11: 3771.193896 | X11: 9310.122013 | Z11: 0.6631135676 | AA11: 5294.710903 | AB11: 3771.193896 | AC11: 3771.193896
A13: 2 | B13: PDH- MULTIPLEX FLEXÍVEL PDH FOX505 ABB, EQUIPADO POR:
A14: 2.1 | B14: Interfaces Elétricas E1 | C14: PDH | D14: ABB | E14: unid. | F14: 4 | G14: =AVERAGE(P14,R14,T14) -> 129296.6694 | H14: =G14 -> 129296.6694 | I14: =H14*(1+$G$2) -> 146777.5792 | O14: 96880.27 | P14: =O14*(1-$G$2) -> 83782.0575 | Q14: 172224 | R14: =Q14*(1-$G$2) -> 148939.3152 | S14: 179427.192 | T14: 155168.6356 | V14: 83782.0575 | W14: 148939.3152 | X14: 155168.6356 | Z14: =_xlfn.STDEV.S(V14:X14)/AVERAGE(V14:X14) -> 0.3058058407 | AA14: =AVERAGE(V14:X14) -> 129296.6694 | AB14: =MEDIAN(V14:X14) -> 148939.3152 | AC14: 129296.6694
A15: 2.2 | B15: Interfaces Telefônicas FXO e FXS | C15: PDH | D15: ABB | E15: unid. | F15: 12 | G15: 0 | P15: 0 | R15: 0 | T15: 0
A16: 2.3 | B16: Interfaces de Áudio 2/4 fios E/M | C16: PDH | D16: ABB | E16: unid. | F16: 8 | G16: 0 | P16: 0 | R16: 0 | T16: 0
A17: 2.4 | B17: Interfaces V.24 | C17: PDH | D17: ABB | E17: unid. | F17: 8 | G17: 0 | P17: 0 | R17: 0 | T17: 0
A18: 2.5 | B18: Interfaces nx64kCod | C18: PDH | D18: ABB | E18: unid. | F18: 8 | G18: 0 | P18: 0 | R18: 0 | T18: 0
A19: 2.6 | B19: Interfaces Ethernet 10/100 Mbps Base T com comutação automática | C19: PDH | D19: ABB | E19: unid. | F19: 4 | G19: 0 | P19: 0 | R19: 0 | T19: 0
A21: 3 | B21: ROTEADOR
A22: 3.1 | B22: Switch Carrier Ethernet: - Modelo: ASR 903 - Tipo: Chassi com 10 slots para montagem em rack de 19” e altura de 3 U - Fabricante: Cisco Networks - Módulos: - Controle e processamento (switch fabric): 02 CISCO ASR 900 Route Switch Processor 2 - 64G, Base Scale (A900-RSP2A-64) - Fontes de alimentação DC: 02 CISCO ASR 900 550W Enhanced DC Power Supply (A900-PWR550-D-E) - Sistema de ventilação: - 01 CISCO ASR 903 FAN Tray With Filter Slot (A903-FAN-E) - 01 CISCO ASR 903 FAN Tray Filter Blank Panel (A903-FAN-F-B) - Interfaces: 02 CISCO ASR 900 8 port SFP Gigabit Ethernet Interface Module (A900-IMA8S) - Módulos SFP: - 02 CISCO 1000BASE-SX SFP transceiver module, MMF, 850nm, DOM (GLC-SX-MMD) - 04 CISCO 1000BASE-T SFP transceiver module for Category 5 copper wire (GLC-TE) - 02 CISCO 1000BASE-LX/LH SFP transceiver module, MMF/SMF, 1310nm, DOM (GLC-LH-SMD) - Software e Licenças: - 01 CISCO Cisco ASR 900 RSP2 IOS XE UNIVERSAL - NO PAYLOAD ENCRYPTION (SASR900R2NPEK9315S) - 01 CISCO ASR 903 Metro Aggregation Services (SLASR903-A) . - Acessórios: - 01 CISCO ASR 903 EIA /JIS 19in Rack Mount Kit (A903-RCKMNT-19IN) - 01 CISCO ASR 903 Cable Guide (A903-CABLE-GUIDE) - 04 CISCO ASR 900 Interface Module Type-A Blank Cover (A900-IMA-BLANK) | D22: CISCO | E22: unid. | F22: 1 | G22: =AVERAGE(P22,R22,T22) -> 205695.637 | H22: =G22*F22 -> 205695.637 | I22: =H22*(1+$G$2) -> 233505.6872 | O22: 169309.44 | P22: =O22*(1-$G$2) -> 146418.8037 | Q22: 227805.85 | R22: =Q22*(1-$G$2) -> 197006.4991 | S22: 316444.968 | T22: =S22*(1-$G$2) -> 273661.6083 | V22: =P22 -> 146418.8037 | W22: =R22 -> 197006.4991 | X22: =T22 -> 273661.6083 | Z22: =_xlfn.STDEV.S(V22:X22)/AVERAGE(V22:X22) -> 0.3114547276 | AA22: =AVERAGE(V22:X22) -> 205695.637 | AB22: =MEDIAN(V22:X22) -> 197006.4991 | AC22: =SMALL(AA22:AB22,1) -> 197006.4991
A24: 4 | B24: SWITCHES
A25: 4.1 | B25: Switch de Sala de Telecom (-48 Vcc) - Quantidade: 03 unidades - Fabricante: Belden - Modelo: RSPE32 - Software: Versão do software que faça a marcação de pacotes na Camada 3 (L3) - Fontes de Alimentação: 2 x -48 Vcc - Módulos de Interfaces: - SFP: 04 SFP 1000Base-LX (LC – FO Monomodo) e 04 SFP 100Base-FX (LC – FO Multimodo) - Mídia Módulos: RSPM20-4T14T1: 01 unidade (Módulo com 8 portas TP 10/100 MB) RSPM22-4T14Z6: 01 unidade (Módulo com 4 portas TP 10/100 MB PoE e 4 portas FO 100MB Slot-SFP) - Acessório: Trilho DIN - Resumo: Switch Modular Giga Ethernet para montagem em trilho DIN. Equipado com 20 portas 10/100 Base TX, sendo 12 portas PoE, 04 portas Combo Gigabit UTP/tipo SFP Óptica 1000Base-LX (conector LC) e 04 portas tipo SFP Ópticas 100BaseFX (FO multimodo e conector LC) - Código: RSP32-24 04 407 T99-T PP V9 99 HH SE 2S XX.X | D25: BELDEN | F25: 1 | G25: =MEDIAN(O25:Q25) -> 94055.58 | H25: =G25*F25 -> 94055.58 | I25: =H25*(1+$G$2) -> 106771.8944 | O25: 94055.58 | P25: =O25*(1-$G$2) -> 81339.26558 | Q25: 104919 | R25: =Q25*(1-$G$2) -> 90733.9512 | S25: 175793.002 | T25: =S25*(1-$G$2) -> 152025.7881 | V25: =P25 -> 81339.26558 | W25: =R25 -> 90733.9512 | X25: =T25 -> 152025.7881 | Z25: =_xlfn.STDEV.S(V25:X25)/AVERAGE(V25:X25) -> 0.3553298881 | AA25: =AVERAGE(V25:X25) -> 108033.0016 | AB25: =MEDIAN(V25:X25) -> 90733.9512 | AC25: =SMALL(AA25:AB25,1) -> 90733.9512
A26: 4.2 | B26: Switch de Cabana de Relé (125/250 Vcc) - Quantidade: 01 unidade - Fabricante: Belden - Modelo: MACH1032 - Software: Versão do software HiOS mais atual. - Fontes de Alimentação: 125/250 Vcc (Switch) e 125/250 Vcc (PoE) - Módulos de Interfaces: 04 SFP 1000Base-LX (LC – FO Monomodo) e 02 SFP 100Base-FX (LC – FO Multimodo) - Resumo: Switch Ruggedized Fast Ethernet PoE com uplink Gigabit para montagem em rack de 19”. Equipado com 24 portas 10/100 Base TX, sendo 04 portas PoE, 04 portas tipo SFP Óptica 1000Base-LX (conector LC) e 02 portas tipo SFP Ópticas 100BaseFX (FO multimodo e conector LC) - Código: AR1032- 4O TT TT TT TT TT TT TT TT TT TT TT TT ZZ U GG HP | D26: BELDEN | F26: 1 | G26: =AVERAGE(P26,R26,T26) -> 110266.3793 | H26: =G26*F26 -> 110266.3793 | I26: 125174.3938 | O26: 96000 | P26: =O26*(1-$G$2) -> 83020.8 | Q26: 107088 | R26: 92609.7024 | S26: 179427.192 | T26: 155168.6356 | V26: 83020.8 | W26: 92609.7024 | X26: 155168.6356 | Z26: =_xlfn.STDEV.S(V26:X26)/AVERAGE(V26:X26) -> 0.3553299054 | AA26: =AVERAGE(V26:X26) -> 110266.3793 | AB26: =MEDIAN(V26:X26) -> 92609.7024 | AC26: 92609.7024
A28: 5 | B28: MATERIAIS DE INSTALAÇÃO
A29: 5.1 | B29: DIO (completos com pigtails e organizador de cabos) Furukawa de 12FO para instalação na Cabana II (SMF) da SE Bom Nome | E29: unid. | F29: 2 | G29: =AVERAGE(P29,R29,T29) -> 1666.420018 | H29: =G29*F29 -> 3332.840036 | I29: =H29*(1+$G$2) -> 3783.440009 | O29: 1670 | P29: =O29*(1-$G$2) -> 1444.216 | Q29: 1862.89 | R29: =Q29*(1-$G$2) -> 1611.027272 | S29: 2247.938 | T29: 1944.016782 | V29: 1444.216 | W29: 1611.027272 | X29: 1944.016782 | Z29: =_xlfn.STDEV.S(V29:X29)/AVERAGE(V29:X29) -> 0.1527004621 | AA29: =AVERAGE(V29:X29) -> 1666.420018 | AB29: =MEDIAN(V29:X29) -> 1611.027272 | AC29: =SMALL(AA29:AB29,1) -> 1611.027272
A30: 5.2 | B30: Bastidor de 24U | E30: unid. | F30: 1 | G30: 3046.524935 | H30: 3046.524935 | I30: 3458.415106 | O30: 3250 | P30: 2810.6 | Q30: 3625.38 | R30: 3135.228624 | S30: 3693.046 | T30: 3193.746181 | V30: 2810.6 | W30: 3135.228624 | X30: 3193.746181 | Z30: =_xlfn.STDEV.S(V30:X30)/AVERAGE(V30:X30) -> 0.06774975759 | AA30: =AVERAGE(V30:X30) -> 3046.524935 | AB30: =MEDIAN(V30:X30) -> 3135.228624 | AC30: =SMALL(AA30:AB30,1) -> 3046.524935
A31: 5.3 | B31: Conj. de Esteiramento (40 metros) com acessórios (tirantes, hastes, perfilado "U", junção reta "U", junção 90, meia-junção, kit de descida e terminal) - SE Floresta II | E31: conj. | F31: 1 | G31: 5173.626219 | H31: 5173.626219 | I31: 5873.100484 | O31: 4258.8 | P31: 3683.01024 | Q31: 5730.22 | R31: 4955.494256 | S31: 7958.342 | T31: 6882.374162 | V31: 3683.01024 | W31: 4955.494256 | X31: 6882.374162 | Z31: 0.3113478666 | AA31: 5173.626219 | AB31: 4955.494256 | AC31: 4955.494256
A32: 5.4 | B32: DG BR7000 Cook - SE Floresta II | E32: conj. | F32: 1 | G32: 7393.816882 | H32: 7393.816882 | I32: 8393.460924 | O32: 4720 | P32: 4081.856 | Q32: 6350.76 | R32: 5492.137248 | S32: 14578.466 | T32: 12607.4574 | V32: 4081.856 | W32: 5492.137248 | X32: 12607.4574 | Z32: 0.6180671257 | AA32: 7393.816882 | AB32: 5492.137248 | AC32: 5492.137248
A33: 5.5 | B33: Régua Cook 8x30 - SE Floresta II | E33: unid. | F33: 10 | G33: 225.7756421 | H33: 2257.756421 | I33: 2563.005089 | O33: 212.8 | P33: 184.02944 | Q33: 286.33 | R33: 247.618184 | S33: 284.088 | T33: 245.6793024 | V33: 184.02944 | W33: 247.618184 | X33: 245.6793024 | Z33: 0.1601867524 | AA33: 225.7756421 | AB33: 245.6793024 | AC33: 225.7756421
A34: 5.6 | B34: Régua Cook C303 100P - SE Floresta II | E34: unid. | F34: 1 | G34: 1788.345864 | H34: 1788.345864 | I34: 2030.130225 | O34: 1472 | P34: 1272.9856 | Q34: 1980.58 | R34: 1712.805584 | S34: 2751.21 | T34: 2379.246408 | V34: 1272.9856 | W34: 1712.805584 | X34: 2379.246408 | Z34: 0.3114529707 | AA34: 1788.345864 | AB34: 1712.805584 | AC34: 1712.805584
A35: 5.7 | B35: Barra de Aterramento - SE Floresta II | E35: unid. | F35: 1 | G35: 182.2404571 | H35: 182.2404571 | I35: 206.8793669 | O35: 160 | P35: 138.368 | Q35: 215.28 | R35: 186.174144 | S35: 256.914 | T35: 222.1792272 | V35: 138.368 | W35: 186.174144 | X35: 222.1792272 | Z35: 0.2307053944 | AA35: 182.2404571 | AB35: 186.174144 | AC35: 182.2404571
A36: 5.8 | B36: Cabo CI 50mm X 20P - SE Floresta II | E36: m | F36: 100 | G36: =M36 -> 10.52 | H36: 1052 | I36: 1194.2304 | J36: SINAPI | K36: 11920 | L36: CABO TELEFONICO CI 50, 20 PARES, USO INTERNO | M36: 10.52 | N36: 2023-01-01
A37: 5.9 | B37: Cabo CI 50mm X 10P - SE Floresta II | E37: m | F37: 100 | G37: =M37 -> 5.54 | H37: 554 | I37: 628.9008 | J37: SINAPI | K37: 11919 | L37: CABO TELEFONICO CI 50, 10 PARES, USO INTERNO | M37: 5.54 | N37: =N36 -> 2023-01-01
A38: 5.10 | B38: Conector IEC mc 0,40/2,5 (p/3 DID) - SE Floresta II | E38: unid. | F38: 300 | G38: 18.87916053 | H38: 5663.74816 | I38: 6429.486911 | O38: 13.58 | P38: 11.743984 | Q38: 18.27 | R38: 15.799896 | S38: 33.642 | T38: 29.0936016 | V38: 11.743984 | W38: 15.799896 | X38: 29.0936016 | Z38: =_xlfn.STDEV.S(V38:X38)/AVERAGE(V38:X38) -> 0.4807123411 | AA38: =AVERAGE(V38:X38) -> 18.87916053 | AB38: =MEDIAN(V38:X38) -> 15.799896 | AC38: =SMALL(AA38:AB38,1) -> 15.799896
A39: 5.11 | B39: Balluns G.703/ETH Utilizado em FTD | E39: unid. | F39: 2 | G39: 1257.440532 | H39: 2514.881063 | I39: 2854.892983 | O39: 1035.01 | P39: 895.076648 | Q39: 1392.6 | R39: 1204.32048 | S39: 1934.464 | T39: 1672.924467 | V39: 895.076648 | W39: 1204.32048 | X39: 1672.924467 | Z39: =_xlfn.STDEV.S(V39:X39)/AVERAGE(V39:X39) -> 0.311454234 | AA39: =AVERAGE(V39:X39) -> 1257.440532 | AB39: =MEDIAN(V39:X39) -> 1204.32048 | AC39: =SMALL(AA39:AB39,1) -> 1204.32048
A40: 5.12 | B40: Patch-panel Cat.6 Furukawa, com 24 portas (tomadas). Utilizado em FTD | E40: unid. | F40: 3 | G40: =M40 -> 1082.35 | H40: 3247.05 | I40: 3686.05116 | J40: SINAPI | K40: 39596 | L40: PATCH PANEL, 24 PORTAS, CATEGORIA 6, COM RACKS DE 19" DE LARGURA E 1 U DE ALTURA | M40: 1082.35 | N40: =N37 -> 2023-01-01
A41: 5.13 | B41: Patch-panel descarregado com 12 posições para Keystone. Utilizado em FTD | E41: unid. | F41: 1 | G41: 772.2346907 | H41: 772.2346907 | I41: 876.6408208 | O41: 678 | P41: 586.3344 | Q41: 912.25 | R41: 788.9138 | S41: 1088.64 | T41: 941.455872 | V41: 586.3344 | W41: 788.9138 | X41: 941.455872 | Z41: =_xlfn.STDEV.S(V41:X41)/AVERAGE(V41:X41) -> 0.2306906169 | AA41: =AVERAGE(V41:X41) -> 772.2346907 | AB41: =MEDIAN(V41:X41) -> 788.9138 | AC41: =SMALL(AA41:AB41,1) -> 772.2346907
A42: 5.14 | B42: Organizadores de cabos de 19", Utilizado em FTD | E42: unid. | F42: 5 | G42: =M42 -> 60.9 | H42: 304.5 | I42: 345.6684 | J42: SEDOP | K42: L00006 | L42: Organizador horizontal de cabos fechado p/ CB 19" 1 U/A | M42: 60.9 | N42: 2023-02-01
A43: 5.15 | B43: DIO A270 Furukawa com 01 (um) BEO, acessórios para 24 fibras incluindo os respectivos pigtails com conectores SC. Utilizado em BNO | E43: unid. | F43: 1 | G43: 4145.924996 | H43: 4145.924996 | I43: 4706.454056 | O43: 3640 | P43: 3147.872 | Q43: 4897.62 | R43: 4235.461776 | S43: 5844.636 | T43: 5054.441213 | V43: 3147.872 | W43: 4235.461776 | X43: 5054.441213 | Z43: =_xlfn.STDEV.S(V43:X43)/AVERAGE(V43:X43) -> 0.230692317 | AA43: =AVERAGE(V43:X43) -> 4145.924996 | AB43: =MEDIAN(V43:X43) -> 4235.461776 | AC43: =SMALL(AA43:AB43,1) -> 4145.924996
A44: 5.16 | B44: Espelhos de liga de alumínio (Daisa), para caixas de terminais de 1" com 2 furos cada. Utilizado em BNO | E44: unid. | F44: 14 | G44: 11.73591253 | H44: 164.3027755 | I44: 186.5165107 | O44: 11.4 | P44: 9.85872 | Q44: 15.34 | R44: 13.266032 | S44: 13.972 | T44: 12.0829856 | V44: 9.85872 | W44: 13.266032 | X44: 12.0829856 | Z44: 0.1474080336 | AA44: 11.73591253 | AB44: 12.0829856 | AC44: 11.73591253
A45: 5.17 | B45: Suportes metálicos com duas posições para fixação de tomadas fêmea RJ-45 (Keystoner) em caixas de terminais de 1"(tipo condulete). Utilizado em BNO | E45: unid. | F45: 14 | G45: 10.931072 | H45: 153.035008 | I45: 173.7253411 | O45: 9.85 | P45: 8.51828 | Q45: 13.25 | R45: 11.4586 | S45: 14.82 | T45: 12.816336 | V45: 8.51828 | W45: 11.4586 | X45: 12.816336 | Z45: 0.2009914114 | AA45: 10.931072 | AB45: 11.4586 | AC45: 10.931072
A46: 5.18 | B46: Bandejas fixa para bastidor de 19". Utilizado em BNO | E46: unid. | F46: 2 | G46: =M46 -> 161.15 | H46: 322.3 | I46: 365.87496 | J46: ORSE | K46: 13766 | L46: Bandeja Fixa P/Rack 19" X 500 mm um | M46: 161.15 | N46: 2022-11-01
A47: 5.19 | B47: Patch-cords - Cordões de manobra - UTP, com conectores RJ-45/RJ-54, EIA/TIA 568A, Cat.6 na cor vermelha. Utilizado em BNO e FTD | E47: unid. | F47: 8 | G47: =M47 -> 33.41 | H47: 267.28 | I47: 303.416256 | J47: SINAPI | K47: 39607 | L47: PATCH CORD (CABO DE REDE), CATEGORIA 6 (CAT 6) UTP, 23 AWG, 4 PARES, EXTENSAO DE 2,50 M | M47: 33.41 | N47: =N37 -> 2023-01-01
A48: 5.20 | B48: Patch-cords - Cordões de manobra - UTP, com conectores RJ-45/RJ-54, EIA/TIA 568A, Cat.6 na cor branca. Utilizado em BNO e FTD | E48: unid. | F48: 8 | G48: =M48 -> 33.41 | H48: 267.28 | I48: 303.416256 | J48: =J47 -> SINAPI | K48: =K47 -> 39607 | L48: =L47 -> PATCH CORD (CABO DE REDE), CATEGORIA 6 (CAT 6) UTP, 23 AWG, 4 PARES, EXTENSAO DE 2,50 M | M48: =M47 -> 33.41 | N48: =N47 -> 2023-01-01
A49: 5.21 | B49: Cordões ópticos MM de 1,5m, com conectores MTRJ/SC-SPC. Utilizado em BNO | E49: unid. | F49: 2 | G49: 154.3913027 | H49: 308.7826053 | I49: 350.5300136 | O49: 144 | P49: 124.5312 | Q49: 193.75 | R49: 167.555 | S49: 197.835 | T49: 171.087708 | V49: 124.5312 | W49: 167.555 | X49: 171.087708 | Z49: =_xlfn.STDEV.S(V49:X49)/AVERAGE(V49:X49) -> 0.1678842181 | AA49: =AVERAGE(V49:X49) -> 154.3913027 | AB49: =MEDIAN(V49:X49) -> 167.555 | AC49: =SMALL(AA49:AB49,1) -> 154.3913027
A50: 5.22 | B50: Cordões ópticos SM de 1,5m, com conectores SC/SC-SPC. Utilizado em BNO | E50: unid. | F50: 2 | G50: 157.41522 | H50: 314.83044 | I50: 357.3955155 | O50: 136 | P50: 117.6128 | Q50: 182.99 | R50: 158.249752 | S50: 227.085 | T50: 196.383108 | V50: 117.6128 | W50: 158.249752 | X50: 196.383108 | Z50: 0.2502412697 | AA50: 157.41522 | AB50: 158.249752 | AC50: 157.41522
A51: 5.23 | B51: Cartucho cassete com 200 etiquetas cada na cor branca e preta, com rótulos de 25.4 X 38 X 12.7 mm cada, para Rotuladora Panduit LS8. Utilizado em FTD | E51: unid. | F51: 2 | G51: 263.2119693 | H51: 526.4239387 | I51: 597.5964552 | O51: 210 | P51: 181.608 | Q51: 282.56 | R51: 244.357888 | S51: 420.525 | T51: 363.67002 | V51: 181.608 | W51: 244.357888 | X51: 363.67002 | Z51: 0.3513662155 | AA51: 263.2119693 | AB51: 244.357888 | AC51: 244.357888
A52: 5.24 | B52: Aparelhos telefônicos analógicos Siemens Mod. EUROSET 3005. Utilizado em FTD | E52: unid. | F52: 10 | G52: 401.0870333 | H52: 4010.870333 | I52: 4553.140002 | O52: 320 | P52: 276.736 | Q52: 430.56 | R52: 372.348288 | S52: 640.815 | T52: 554.176812 | V52: 276.736 | W52: 372.348288 | X52: 554.176812 | Z52: 0.3513835918 | AA52: 401.0870333 | AB52: 372.348288 | AC52: 372.348288
A53: 5.25 | B53: Kyestone RJ-45 Cat.6 EIA/TIA 568A blindado. Utilizado em BNO e FTD | E53: unid. | F53: 6 | G53: 104.493784 | H53: 626.962704 | I53: 711.7280616 | O53: 76 | P53: 65.7248 | Q53: 102.26 | R53: 88.434448 | S53: 184.23 | T53: 159.322104 | V53: 65.7248 | W53: 88.434448 | X53: 159.322104 | Z53: 0.4672193431 | AA53: 104.493784 | AB53: 88.434448 | AC53: 88.434448
A54: 5.26 | B54: Conectores plug RJ-45 macho, Cat.6 EIA/TIA 568A blindado Utilizado em FTD | E54: unid. | F54: 6 | G54: =M54 -> 3.5 | H54: 21 | I54: 23.8392 | J54: ORSE | K54: 13777 | L54: Conector RJ 45 Blindado P/Cameras e CAT 6 um | M54: 3.5 | N54: 2022-11-01
B55: SE Bom Nome | G55: TOTAL | H55: =(H53/2)+H50+H49+(H48/2)+(H47/2)+H46+H45+H44+H43+H29 -> 9322.777213 | I55: =(I53/2)+I50+I49+(I48/2)+(I47/2)+I46+I45+I44+I43+I29 -> 10583.21669
B56: SE Floresta | G56: TOTAL | H56: =SUM(H5:H11)+H14+H22+H26+SUM(H30:H42)+(H47/2)+(H48/2)+H54+(H53/2)+H52+H51+H25 -> 937804.9902 | I56: =SUM(I5:I11)+I14+I22+I26+SUM(I30:I42)+(I47/2)+(I48/2)+I54+(I53/2)+I52+I51+I25 -> 1064596.225
B57: TOTAL (R$) | H57: =SUM(H29:H54)+SUM(H25:H26)+H14+SUM(H5:H11)+H22 -> 947127.7674 | I57: =I56+I55 -> 1075179.442
B60: Aparelhos telefônicos analógicos Siemens Mod. EUROSET 3005 | I60: =SUM(I5:I35)+I38+I39+I41+I43+I44+I45+I49+I50+I51+I52+I53 -> 1068328.044
B61: Cotação Google shopping - 15/03/2023
K63: Cotação 1 | L63: Cotação 2 | M63: Cotação 3 | N63: Cotação 4 | O63: Cotação 5 | P63: Cotação 6
K64: 170.93 | L64: 91 | M64: 139 | N64: =809.1/10 -> 80.91 | O64: 193.6 | P64: 215
J66: CV= | K66: =_xlfn.STDEV.S(K64:P64)/AVERAGE(K64:P64) -> 0.3681352625
J67: Média= | K67: =AVERAGE(K64:Q64) -> 148.4066667
J68: Mediana= | K68: =MEDIAN(K64:Q64) -> 154.965
J69: Menor = | K69: =SMALL(K67:K68,1) -> 148.4066667
J71: Desv Pad= | K71: =_xlfn.STDEV.S(K64:Q64) -> 54.63372719
J72: Limite Sup= | K72: =K67+K71 -> 203.0403939
J73: Limite Inferior= | K73: =K67-K71 -> 93.77293948
J76: Cotações | K76: Valor | L76: CV | M76: CV (-maior)
J77: 1 | K77: 170.93 | L77: =_xlfn.STDEV.S(K77:K82)/AVERAGE(K77:K82) -> 0.3681352625 | M77: =STDEVA(K77:K82-LARGE(K77:K82,1)) -> 
J78: 2 | K78: 91
J79: 3 | K79: 139
J80: 4 | K80: =809.1/10 -> 80.91
J81: 5 | K81: 193.6
J82: 6 | K82: 215

Sheet SOBRESSALENTES
A1: ANEXO IV – PENDÊNCIAS DE FORNECIMENTO – SOBRESSALENTES, TREINAMENTOS E FERRAMENTAS ESPECIAIS
A2: ATESTADO DE RECEBIMENTO PROVISÓRIO ENTRE CHESF E CODEVASF - CCT 012/2014 - ENTRADA DE LINHA NA SUBESTAÇÃO BOM NOME
A3: ATESTADO DE RECEBIMENTO PROVISÓRIO ENTRE CHESF E CODEVASF - CCT 013/2014 - SE FLORESTA
K4: BDI
A5: ANEXO VI – RESERVA TÉCNICA, SOBRESSALENTES E FERRAMENTAS ESPECIAIS PARA A LT SEECIONAMENTO PAULO AFONSO BOM NOME (C2), 230 kV | K5: =BDI!U26 -> 0.1352
A7: ITEM | B7: DESCRIÇÃO DO EQUIPAMENTO OU COMPONENTE | C7: REFERÊNCIA | E7: MODELO | F7: FABRICANTE | G7: APLICAÇÃO | H7: LOCAL DE APLICAÇÃO | I7: UNID. | J7: QUANT. | BR7: VALOR MÁXIMO UNIT. ENTRE AS COTAÇÕES | BS7: VALOR MÁXIMO TOTAL DAS COTAÇÕES | BT7: VALOR MÍNIMO UNIT. ENTRE AS COTAÇÕES | BU7: VALOR MÍNIMO TOTAL DAS COTAÇÕES | BV7: =CF9 -> Valor a ser usado | BW7: Valor a ser usado x quantitativo | BX7: VALOR TOTAL COM BDI DE FORNECNIMENTO | BY7: OBSERVAÇÃO
L8: PROELETRIC | M8: SF6 SERVIÇOS | N8: ENERVAC | O8: CENTELHA PE | P8: GKE | Q8: ARTECHE | R8: SIEMENS | S8: BONOMI | T8: BALESTRO | U8: GE | V8: VIEIRA VARELA | W8: CORDEIRO | X8: JN | Y8: WEG | Z8: ZTT | AA8: CROSSFOX | AB8: LIDER SUPPLY | AC8: POLIMETAL | AD8: DELTA | AE8: EMP. ALINE | AF8: MAXXWELD | AG8: ELETRIL | AH8: PPC SANTANA | AI8: FISCHER | AJ8: SEDIVER | AK8: ELECTRISA | AL8: MAGAZINE ELE | AM8: MACLEAN | AN8: NOLUZ ELETRICA | AO8: FORJASUL | AP8: APS-ABB | AQ8: RTR | AR8: RITZ - SP | AS8: RITZ-MG | AT8: PELEGRINE | AU8: CONPREN | AV8: EMPAC | AW8: BRAMETAL | AX8: SIGMA CHAVES | AY8: SAE TOWERS | AZ8: SOLUÇÃO CABOS | BA8: GSL | BB8: INCOMISA | BC8: MAQUIGERAL | BD8: SADEL | BE8: PLP | BF8: FURUKAWA | BG8: TEXPI | BH8: ADELCO | BI8: PROTECO | BJ8: SILMAQUINAS | BK8: SOTREQ CAT | BL8: AKP METALÚRGICA | BM8: MCR COMERCIAL | BN8: Chicago | BO8: STEMAC | BP8: TRACEL
A9: 1. | B9: RESERVA TÉCNICA SE | CA9: CV (todos) | CB9: CV (-MAIOR) | CC9: Média (- MAIOR) | CD9: Mediana (- MAIOR) | CE9: Menor entre média e mediana | CF9: Valor a ser usado
A10: 1.1 | B10: Transformador de corrente, 242 kV, NBI 950 kV, IT 40,0 kA, ID 100,0 kA, 3 núcleos de proteção, relação150/300x300/600x600/1200:5/5/5A, exat. 10B800, 1 núcleo de medição (controle), relação 150/300x300/600x600/1200:5A, exatidão 0,6 C 50, fator térmico para todos enrolamentos 1,0. (Fornecido com Data book, contendo: ensaios de rotinas, tipo, manual de instrução, desenhos elétricos, e mecânicos) | C10: ARP 001 2019 BNO -ANEXO II | D10: RESERVA TÉCNICA SE | E10: CA-245 | F10: ARTECHE | G10: PÁTIO SE | H10: SE BOM NOME | I10: unid. | J10: 1 | Q10: 131046 | U10: 89000 | V10: 78129 | AP10: 411755 | BR10: =MAX(L10:BP10) -> 411755 | BS10: =BR10*J10 -> 411755 | BT10: =MIN(L10:BP10) -> 78129 | BU10: =BT10*J10 -> 78129 | BV10: =CF10 -> 89000 | BW10: =BV10*J10 -> 89000 | BX10: =BW10*(1+$K$5) -> 101032.8 | BY10: COTAÇÃO FINALIZADA - 3 COTAÇÕES | BZ10: =LARGE(L10:BP10,1) -> 411755 | CA10: =_xlfn.STDEV.S(L10:BP10)/AVERAGE(L10:BP10) -> 0.8893260861 | CB10: =_xlfn.STDEV.S(IF(NOT($L10:$BP10=$BZ10)*ISNUMBER($L10:$BP10),$L10:$BP10,""))/AVERAGE(IF(NOT($L10:$BP10=$BZ10)*ISNUMBER($L10:$BP10),$L10:$BP10,"")) -> 0.2811818586 | CC10: =AVERAGE(IF(NOT($L10:$BP10=$BZ10)*ISNUMBER($L10:$BP10),$L10:$BP10,"")) -> 99391.66667 | CD10: =MEDIAN(IF(NOT($L10:$BP10=$BZ10)*ISNUMBER($L10:$BP10),$L10:$BP10,"")) -> 89000 | CE10: =SMALL(CC10:CD10,1) -> 89000 | CF10: =IF(CB10>50%,SMALL(L10:BP10,1),CE10) -> 89000
A11: 1.2 | B11: Transformador de potencial capacitivo monofásico, 242 KV, de relação 242000/R3 – 115/115/R3 - 115/115/R3 - 115/115/R3V, classe de exatidão 0,3OWXY medição e 0,6OWXYZ proteção, 950 KV DE NBI. (Fornecido com Data book, contendo: ensaios de rotinas, tipo, manual de instrução, desenhos elétricos, e mecânicos) | C11: ARP 001 2019 BNO -ANEXO II | D11: RESERVA TÉCNICA SE | E11: DFK-245 | F11: ARTECHE | G11: PÁTIO SE | H11: SE BOM NOME | I11: unid. | J11: 1 | Q11: 69680 | U11: 57000 | V11: 53793 | AP11: 375950 | BR11: 375950 | BS11: 375950 | BT11: 53793 | BU11: 53793 | BV11: =CF11 -> 57000 | BW11: 57000 | BX11: 64706.4 | BY11: COTAÇÃO FINALIZADA - 3 COTAÇÕES | BZ11: =LARGE(L11:BP11,1) -> 375950 | CA11: =_xlfn.STDEV.S(L11:BP11)/AVERAGE(L11:BP11) -> 1.136150674 | CB11: =_xlfn.STDEV.S(IF(NOT($L11:$BP11=$BZ11)*ISNUMBER($L11:$BP11),$L11:$BP11,""))/AVERAGE(IF(NOT($L11:$BP11=$BZ11)*ISNUMBER($L11:$BP11),$L11:$BP11,"")) -> 0.1396502279 | CC11: =AVERAGE(IF(NOT($L11:$BP11=$BZ11)*ISNUMBER($L11:$BP11),$L11:$BP11,"")) -> 60157.66667 | CD11: =MEDIAN(IF(NOT($L11:$BP11=$BZ11)*ISNUMBER($L11:$BP11),$L11:$BP11,"")) -> 57000 | CE11: =SMALL(CC11:CD11,1) -> 57000 | CF11: 57000
A12: 1.3 | B12: Para-raios, tipo estação 192 kV, ZnO, In 10 kA (Fornecido com Data book, contendo: ensaios de rotinas, tipo, manual de instrução, desenhos elétricos, e mecânicos) | C12: ARP 001 2019 BNO -ANEXO II | D12: RESERVA TÉCNICA SE | E12: RVLQC-192VY | F12: TOSHIBA | G12: PÁTIO SE | H12: SE BOM NOME | I12: unid. | J12: 1 | S12: 32297.17 | T12: 17562.24 | AL12: 46852.33 | BQ12: 1 | BR12: 46852.33 | BS12: 46852.33 | BT12: 17562.24 | BU12: 17562.24 | BV12: 24929.705 | BW12: 24929.705 | BX12: 28300.20112 | BY12: COTAÇÃO FINALIZADA - 3 COTAÇÕES | BZ12: 46852.33 | CA12: 0.4542924244 | CB12: =_xlfn.STDEV.S(IF(NOT($L12:$BP12=$BZ12)*ISNUMBER($L12:$BP12),$L12:$BP12,""))/AVERAGE(IF(NOT($L12:$BP12=$BZ12)*ISNUMBER($L12:$BP12),$L12:$BP12,"")) -> 0.417941926 | CC12: =AVERAGE(IF(NOT($L12:$BP12=$BZ12)*ISNUMBER($L12:$BP12),$L12:$BP12,"")) -> 24929.705 | CD12: =MEDIAN(IF(NOT($L12:$BP12=$BZ12)*ISNUMBER($L12:$BP12),$L12:$BP12,"")) -> 24929.705 | CE12: 24929.705 | CF12: 24929.705
A13: 1.4 | B13: Transformador de corrente, 242 kV, NBI 950 kV, IT 40,0 kA, ID 100,0 kA, 3 núcleos de proteção, relação150/300x300/600x600/1200:5/5/5A, exat. 10B800, 1 núcleo de medição (controle), relação 150/300x300/600x600/1200:5A, exatidão 0,6 C 50, fator térmico para todos enrolamentos 1,0. (Fornecido com Data book, contendo: ensaios de rotinas, tipo, manual de instrução, desenhos elétricos, e mecânicos) | C13: ARP 002 2019 FTD -ANEXO IV | D13: RESERVA TÉCNICA SE | E13: CA-245 | F13: ARTECHE | G13: PÁTIO SE | H13: SE FLORESTA | I13: unid. | J13: 5 | Q13: 131046 | U13: 89000 | V13: 78129 | AP13: 411755 | BR13: 411755 | BS13: 2058775 | BT13: 78129 | BU13: 390645 | BV13: 89000 | BW13: 445000 | BX13: 505164 | BY13: COTAÇÃO FINALIZADA - 3 COTAÇÕES | BZ13: 411755 | CA13: 0.8893260861 | CB13: =_xlfn.STDEV.S(IF(NOT($L13:$BP13=$BZ13)*ISNUMBER($L13:$BP13),$L13:$BP13,""))/AVERAGE(IF(NOT($L13:$BP13=$BZ13)*ISNUMBER($L13:$BP13),$L13:$BP13,"")) -> 0.2811818586 | CC13: =AVERAGE(IF(NOT($L13:$BP13=$BZ13)*ISNUMBER($L13:$BP13),$L13:$BP13,"")) -> 99391.66667 | CD13: =MEDIAN(IF(NOT($L13:$BP13=$BZ13)*ISNUMBER($L13:$BP13),$L13:$BP13,"")) -> 89000 | CE13: 89000 | CF13: 89000
A14: 1.5 | B14: Transformador de potencial capacitivo monofásico, 242 KV, de relação 242000/R3 – 115/115/R3 - 115/115/R3 - 115/115/R3V, classe de exatidão 0,3OWXY medição e 0,6OWXYZ proteção, 950 KV DE NBI. (Fornecido com Data book, contendo: ensaios de rotinas, tipo, manual de instrução, desenhos elétricos, e mecânicos) | C14: ARP 002 2019 FTD -ANEXO IV | D14: RESERVA TÉCNICA SE | E14: DFK-245 | F14: ARTECHE | G14: PÁTIO SE | H14: SE FLORESTA | I14: unid. | J14: 5 | Q14: 69680 | U14: 57000 | V14: 53793 | AP14: 375950 | BR14: 375950 | BS14: 1879750 | BT14: 53793 | BU14: 268965 | BV14: 57000 | BW14: 285000 | BX14: 323532 | BY14: COTAÇÃO FINALIZADA - 3 COTAÇÕES | BZ14: 375950 | CA14: 1.136150674 | CB14: =_xlfn.STDEV.S(IF(NOT($L14:$BP14=$BZ14)*ISNUMBER($L14:$BP14),$L14:$BP14,""))/AVERAGE(IF(NOT($L14:$BP14=$BZ14)*ISNUMBER($L14:$BP14),$L14:$BP14,"")) -> 0.1396502279 | CC14: =AVERAGE(IF(NOT($L14:$BP14=$BZ14)*ISNUMBER($L14:$BP14),$L14:$BP14,"")) -> 60157.66667 | CD14: =MEDIAN(IF(NOT($L14:$BP14=$BZ14)*ISNUMBER($L14:$BP14),$L14:$BP14,"")) -> 57000 | CE14: 57000 | CF14: 57000
A15: 1.6 | B15: Para-raios, tipo estação 192 kV, ZnO, In 10 kA (Fornecido com Data book, contendo: ensaios de rotinas, tipo, manual de instrução, desenhos elétricos, e mecânicos) | C15: ARP 002 2019 FTD -ANEXO IV | E15: RVLQC-192VY | F15: TOSHIBA | G15: PÁTIO SE | H15: SE FLORESTA | I15: unid. | J15: 4 | S15: 32297.17 | T15: 17562.24 | AL15: 46852.33 | BQ15: 1 | BR15: 46852.33 | BS15: 187409.32 | BT15: 17562.24 | BU15: 70248.96 | BV15: 24929.705 | BW15: 99718.82 | BX15: 113200.8045 | BY15: COTAÇÃO FINALIZADA - 3 COTAÇÕES | BZ15: 46852.33 | CA15: 0.4542924244 | CB15: =_xlfn.STDEV.S(IF(NOT($L15:$BP15=$BZ15)*ISNUMBER($L15:$BP15),$L15:$BP15,""))/AVERAGE(IF(NOT($L15:$BP15=$BZ15)*ISNUMBER($L15:$BP15),$L15:$BP15,"")) -> 0.417941926 | CC15: =AVERAGE(IF(NOT($L15:$BP15=$BZ15)*ISNUMBER($L15:$BP15),$L15:$BP15,"")) -> 24929.705 | CD15: =MEDIAN(IF(NOT($L15:$BP15=$BZ15)*ISNUMBER($L15:$BP15),$L15:$BP15,"")) -> 24929.705 | CE15: 24929.705 | CF15: 24929.705
A16: 1.7 | B16: Disjuntor tripolar a gás SF6, uso externo, 1250 A, 60 hz, 50 kA e com acionamento monopolar (incluso sobressalentes) (Fornecido com Data book, contendo: ensaios de rotinas, tipo, manual de instrução, desenhos elétricos, e mecânicos) | C16: ARP 002 2019 FTD -ANEXO IV | D16: RESERVA TÉCNICA SE | E16: 3AP1 FI 245 kV | F16: SIEMENS | G16: PÁTIO SE | H16: SE FLORESTA E SE BOM NOME | I16: unid. | J16: 2 | R16: 433112.1 | U16: =470000+188651.36 -> 658651.36 | AL16: 1684087 | BR16: 1684087 | BS16: 3368174 | BT16: 433112.1 | BU16: 866224.2 | BV16: 545881.73 | BW16: 1091763.46 | BX16: 1239369.88 | BY16: Com TRÊS cotação após a especificação da CHESF, equipamento + sobressalentes, em decorrência da especificação de sobressalentes definido em e-mail (02/12/2020) | BZ16: =LARGE(L16:BP16,1) -> 1684087 | CA16: 0.7205887591 | CB16: =_xlfn.STDEV.S(IF(NOT($L16:$BP16=$BZ16)*ISNUMBER($L16:$BP16),$L16:$BP16,""))/AVERAGE(IF(NOT($L16:$BP16=$BZ16)*ISNUMBER($L16:$BP16),$L16:$BP16,"")) -> 0.2921518186 | CC16: =AVERAGE(IF(NOT($L16:$BP16=$BZ16)*ISNUMBER($L16:$BP16),$L16:$BP16,"")) -> 545881.73 | CD16: =MEDIAN(IF(NOT($L16:$BP16=$BZ16)*ISNUMBER($L16:$BP16),$L16:$BP16,"")) -> 545881.73 | CE16: 545881.73 | CF16: 545881.73
A17: 1.8 | B17: Chave Seccionadora Tripolar com lâmina de terra, SAV 245 kV, 1250 A, 50 kA (incluso sobressalentes) (Fornecido com Data book, contendo: ensaios de rotinas, tipo, manual de instrução, desenhos elétricos, e mecânicos) | C17: ARP 002 2019 FTD -ANEXO IV | D17: RESERVA TÉCNICA SE | E17: EVL-245-3150-950-MO-LT-MO | F17: SIEMENS | G17: PÁTIO SE | H17: SE FLORESTA E SE BOM NOME | I17: unid. | J17: 2 | R17: 192541.19 | Y17: 180866 | AX17: 110000 | BR17: 192541.19 | BS17: 385082.38 | BT17: 110000 | BU17: 220000 | BV17: 145433 | BW17: 290866 | BX17: 330191.0832 | BY17: Com TRÊS cotação após a especificação da CHESF, equipamento + sobressalentes, em decorrência da especificação de sobressalentes definido em e-mail (02/12/2020) | BZ17: 192541.19 | CA17: 0.2772069107 | CB17: =_xlfn.STDEV.S(IF(NOT($L17:$BP17=$BZ17)*ISNUMBER($L17:$BP17),$L17:$BP17,""))/AVERAGE(IF(NOT($L17:$BP17=$BZ17)*ISNUMBER($L17:$BP17),$L17:$BP17,"")) -> 0.3445561128 | CC17: =AVERAGE(IF(NOT($L17:$BP17=$BZ17)*ISNUMBER($L17:$BP17),$L17:$BP17,"")) -> 145433 | CD17: =MEDIAN(IF(NOT($L17:$BP17=$BZ17)*ISNUMBER($L17:$BP17),$L17:$BP17,"")) -> 145433 | CE17: 145433 | CF17: 145433
A18: 1.9 | B18: Chave Seccionadora Tripolar sem lâmina de terra, SAV 245 kV, 1250 A, 50 kA (incluso sobressalentes) (Fornecido com Data book, contendo: ensaios de rotinas, tipo, manual de instrução, desenhos elétricos, e mecânicos) | C18: ARP 002 2019 FTD -ANEXO IV | D18: RESERVA TÉCNICA SE | E18: EVL-245-3150-950-MO | F18: SIEMENS | G18: PÁTIO SE | H18: SE FLORESTA E SE BOM NOME | I18: unid. | J18: 2 | R18: 166925.74 | Y18: 135868 | AX18: 82000 | BR18: 166925.74 | BS18: 333851.48 | BT18: 82000 | BU18: 164000 | BV18: 108934 | BW18: 217868 | BX18: 247323.7536 | BY18: Com TRÊS cotação após a especificação da CHESF, equipamento + sobressalentes, em decorrência da especificação de sobressalentes definido em e-mail (02/12/2020) | BZ18: 166925.74 | CA18: 0.3350136798 | CB18: =_xlfn.STDEV.S(IF(NOT($L18:$BP18=$BZ18)*ISNUMBER($L18:$BP18),$L18:$BP18,""))/AVERAGE(IF(NOT($L18:$BP18=$BZ18)*ISNUMBER($L18:$BP18),$L18:$BP18,"")) -> 0.3496651926 | CC18: =AVERAGE(IF(NOT($L18:$BP18=$BZ18)*ISNUMBER($L18:$BP18),$L18:$BP18,"")) -> 108934 | CD18: =MEDIAN(IF(NOT($L18:$BP18=$BZ18)*ISNUMBER($L18:$BP18),$L18:$BP18,"")) -> 108934 | CE18: 108934 | CF18: 108934
A19: 1.10 | B19: Chave Seccionadora Tripolar sem lâmina de terra, SAV-R 245 kV, 1250 A, 50 kA (incluso sobressalentes) (Fornecido com Data book, contendo: ensaios de rotinas, tipo, manual de instrução, desenhos elétricos, e mecânicos) | C19: ARP 002 2019 FTD -ANEXO IV | D19: RESERVA TÉCNICA SE | E19: EVR-245-3150-950-MO | F19: SIEMENS | G19: PÁTIO SE | H19: SE FLORESTA E SE BOM NOME | I19: unid. | J19: 2 | R19: 233740.54 | Y19: 124978 | AX19: 120000 | BR19: 233740.54 | BS19: 467481.08 | BT19: 120000 | BU19: 240000 | BV19: 122489 | BW19: 244978 | BX19: 278099.0256 | BY19: Com TRÊS cotação após a especificação da CHESF, equipamento + sobressalentes, em decorrência da especificação de sobressalentes definido em e-mail (02/12/2020) | BZ19: 233740.54 | CA19: 0.4028211256 | CB19: =_xlfn.STDEV.S(IF(NOT($L19:$BP19=$BZ19)*ISNUMBER($L19:$BP19),$L19:$BP19,""))/AVERAGE(IF(NOT($L19:$BP19=$BZ19)*ISNUMBER($L19:$BP19),$L19:$BP19,"")) -> 0.02873709114 | CC19: =AVERAGE(IF(NOT($L19:$BP19=$BZ19)*ISNUMBER($L19:$BP19),$L19:$BP19,"")) -> 122489 | CD19: =MEDIAN(IF(NOT($L19:$BP19=$BZ19)*ISNUMBER($L19:$BP19),$L19:$BP19,"")) -> 122489 | CE19: 122489 | CF19: 122489
A21: 11.42 | B21: Retificador 48Vcc + sobressalentes (Fornecido com Data book, contendo: ensaios de rotinas, tipo, manual de instrução, desenhos elétricos, e mecânicos) | J21: 1 | BH21: =73500*1.0325+(8912.99+11121.13)*1.065 -> 97225.0878 | BI21: =26580.25+4120.48+2520.31 -> 33221.04 | BP21: 55000 | BR21: =MAX(L21:BP21) -> 97225.0878 | BS21: =BR21*J21 -> 97225.0878 | BT21: =MIN(L21:BP21) -> 33221.04 | BU21: =BT21*J21 -> 33221.04 | BV21: 33221.04 | BW21: =BV21*J21 -> 33221.04 | BX21: 37712.52461 | BY21: COTAÇÃO FINALIZADA - 3 COTAÇÕES | CA21: 0.5264348179 | CB21: =_xlfn.STDEV.S(IF(NOT($L21:$BP21=$BZ21)*ISNUMBER($L21:$BP21),$L21:$BP21,""))/AVERAGE(IF(NOT($L21:$BP21=$BZ21)*ISNUMBER($L21:$BP21),$L21:$BP21,"")) -> 0.5264348179 | CC21: =AVERAGE(IF(NOT($L21:$BP21=$BZ21)*ISNUMBER($L21:$BP21),$L21:$BP21,"")) -> 61815.37593 | CD21: =MEDIAN(IF(NOT($L21:$BP21=$BZ21)*ISNUMBER($L21:$BP21),$L21:$BP21,"")) -> 55000 | CE21: =SMALL(CC21:CD21,1) -> 55000 | CF21: =IF(CB21>50%,SMALL(L21:BP21,1),CE21) -> 33221.04
A22: 11.43 | B22: Retificador 125Vcc + sobressalentes (Fornecido com Data book, contendo: ensaios de rotinas, tipo, manual de instrução, desenhos elétricos, e mecânicos) | J22: 1 | BH22: =79000*1.0325+(8912.99+11121.13)*1.065 -> 102903.8378 | BI22: =55599.09+4307.02+3815.64 -> 63721.75 | BP22: 65000 | BR22: =MAX(L22:BP22) -> 102903.8378 | BS22: =BR22*J22 -> 102903.8378 | BT22: =MIN(L22:BP22) -> 63721.75 | BU22: =BT22*J22 -> 63721.75 | BV22: 65000 | BW22: =BV22*J22 -> 65000 | BX22: 73788 | BY22: COTAÇÃO FINALIZADA - 3 COTAÇÕES | CA22: 0.2883355823 | CB22: =_xlfn.STDEV.S(IF(NOT($L22:$BP22=$BZ22)*ISNUMBER($L22:$BP22),$L22:$BP22,""))/AVERAGE(IF(NOT($L22:$BP22=$BZ22)*ISNUMBER($L22:$BP22),$L22:$BP22,"")) -> 0.2883355823 | CC22: =AVERAGE(IF(NOT($L22:$BP22=$BZ22)*ISNUMBER($L22:$BP22),$L22:$BP22,"")) -> 77208.52927 | CD22: =MEDIAN(IF(NOT($L22:$BP22=$BZ22)*ISNUMBER($L22:$BP22),$L22:$BP22,"")) -> 65000 | CE22: 65000 | CF22: =IF(CB22>50%,SMALL(L22:BP22,1),CE22) -> 65000
A23: 11.46 | B23: 01 Módulo USCA da USCAMAQ microprocessado, compreendendo conjunto de cartões ou de módulos de controle e supervisão, PLC, um regulador de tensão e um regulador de velocidade (Fornecido com Data book, contendo: ensaios de rotinas, tipo, manual de instrução, desenhos elétricos, e mecânicos) | C23: ARP 002 2019 FTD -ANEXO IV | D23: COMPONENTES ESPECÍFICOS | F23: Maquigeral/Batistella (**) | G23: SUBESTAÇÃO E TELECOMUNICAÇÃO | H23: SE FLORESTA | I23: unid. | J23: 1 | BC23: 26108.31 | BQ23: 2 | BR23: =MAX(L23:BP23) -> 26108.31 | BS23: =BR23*J23 -> 26108.31 | BT23: =MIN(L23:BP23) -> 26108.31 | BU23: =BT23*J23 -> 26108.31 | BV23: 26108.31 | BW23: =BV23*J23 -> 26108.31 | BX23: 29638.15351 | BY23: Item descontinuado, Novo sistema oferecido com o retrofit, definido pela Chesf em, 02/12/2010. | CC23: =AVERAGE(IF(NOT($L23:$BP23=$BZ23)*ISNUMBER($L23:$BP23),$L23:$BP23,"")) -> 26108.31 | CD23: =MEDIAN(IF(NOT($L23:$BP23=$BZ23)*ISNUMBER($L23:$BP23),$L23:$BP23,"")) -> 26108.31 | CE23: 26108.31 | CF23: =IF(CB23>50%,SMALL(L23:BP23,1),CE23) -> 26108.31
A25: 13. | B25: CABO ELÉTRICO | D25: CABO ELÉTRICO
A26: 13.1 | B26: Cabo elétrico nu CAA, alumínio, bitola 636 MCM, Grosbeak | C26: ARP 002 2019 FTD -ANEXO IV | D26: CABO ELÉTRICO | F26: ALCOA ou Similar | G26: BARRAMENTO 230 kV | H26: SE FLORESTA | I26: m | J26: 132 | W26: 41.17 | Z26: 53.96996 | AA26: 79.9 | AL26: 72.85 | BR26: =MAX(L26:BP26) -> 79.9 | BS26: =BR26*J26 -> 10546.8 | BT26: =MIN(L26:BP26) -> 41.17 | BU26: =BT26*J26 -> 5434.44 | BV26: =CF26 -> 61.97249 | BW26: =BV26*J26 -> 8180.36868 | BX26: =BW26*(1+$K$5) -> 9286.354526 | BY26: COTAÇÃO FINALIZADA - 3 COTAÇÕES | CA26: 0.2850980834 | CB26: =_xlfn.STDEV.S(IF(NOT($L26:$BP26=$BZ26)*ISNUMBER($L26:$BP26),$L26:$BP26,""))/AVERAGE(IF(NOT($L26:$BP26=$BZ26)*ISNUMBER($L26:$BP26),$L26:$BP26,"")) -> 0.2850980834 | CC26: =AVERAGE(IF(NOT($L26:$BP26=$BZ26)*ISNUMBER($L26:$BP26),$L26:$BP26,"")) -> 61.97249 | CD26: =MEDIAN(IF(NOT($L26:$BP26=$BZ26)*ISNUMBER($L26:$BP26),$L26:$BP26,"")) -> 63.40998 | CE26: 61.97249 | CF26: =IF(CB26>50%,SMALL(L26:BP26,1),CE26) -> 61.97249
A27: 13.2 | B27: Fio aço-cobre (Copperweld), seção nominal de 21,15 mm², diâmetro nominal 5,19 mm (equivalente à bitola 4 AWG). | C27: ARP 002 2019 FTD -ANEXO VI | D27: CABO ELÉTRICO | F27: COPPERWELD | G27: LINHA DE TRANSMISSÃO | H27: LINHA DE TRANSMISSÃO | I27: m | J27: 34 | AA27: 14.7 | AB27: =10.2*(1+3.25/100) -> 10.5315 | AL27: 12.29 | BQ27: 1 | BR27: 14.7 | BS27: 499.8 | BT27: 10.5315 | BU27: 358.071 | BV27: 12.29 | BW27: 417.86 | BX27: 474.354672 | BY27: COTAÇÃO FINALIZADA - 3 COTAÇÕES | CA27: 0.1673215177 | CB27: =_xlfn.STDEV.S(IF(NOT($L27:$BP27=$BZ27)*ISNUMBER($L27:$BP27),$L27:$BP27,""))/AVERAGE(IF(NOT($L27:$BP27=$BZ27)*ISNUMBER($L27:$BP27),$L27:$BP27,"")) -> 0.1673215177 | CC27: =AVERAGE(IF(NOT($L27:$BP27=$BZ27)*ISNUMBER($L27:$BP27),$L27:$BP27,"")) -> 12.50716667 | CD27: =MEDIAN(IF(NOT($L27:$BP27=$BZ27)*ISNUMBER($L27:$BP27),$L27:$BP27,"")) -> 12.29 | CE27: 12.29 | CF27: =IF(CB27>50%,SMALL(L27:BP27,1),CE27) -> 12.29
A28: 13.3 | B28: Condutor CAA 954 kCM Rail | C28: ARP 002 2019 FTD -ANEXO VI | D28: CABO ELÉTRICO | F28: NEXANS | G28: LINHA DE TRANSMISSÃO | H28: LINHA DE TRANSMISSÃO | I28: m | J28: 1700 | W28: 51.55 | Z28: 29.36346 | AA28: 76.4 | AL28: 99.65 | BR28: 99.65 | BS28: 169405 | BT28: 29.36346 | BU28: 49917.882 | BV28: 63.975 | BW28: 108757.5 | BX28: 123461.514 | BY28: COTAÇÃO FINALIZADA - 3 COTAÇÕES | CA28: 0.4737873129 | CB28: =_xlfn.STDEV.S(IF(NOT($L28:$BP28=$BZ28)*ISNUMBER($L28:$BP28),$L28:$BP28,""))/AVERAGE(IF(NOT($L28:$BP28=$BZ28)*ISNUMBER($L28:$BP28),$L28:$BP28,"")) -> 0.4737873129 | CC28: =AVERAGE(IF(NOT($L28:$BP28=$BZ28)*ISNUMBER($L28:$BP28),$L28:$BP28,"")) -> 64.240865 | CD28: =MEDIAN(IF(NOT($L28:$BP28=$BZ28)*ISNUMBER($L28:$BP28),$L28:$BP28,"")) -> 63.975 | CE28: 63.975 | CF28: 63.975
A29: 13.4 | B29: Condutor CAA 176 kCM Dotterel | C29: ARP 002 2019 FTD -ANEXO VI | D29: CABO ELÉTRICO | F29: NEXANS | G29: LINHA DE TRANSMISSÃO | H29: LINHA DE TRANSMISSÃO | I29: m | J29: 560 | W29: 21.92 | Z29: 54.7384 | AA29: 42.5 | AL29: 58.42 | BR29: 58.42 | BS29: 32715.2 | BT29: 21.92 | BU29: 12275.2 | BV29: 44.3946 | BW29: 24860.976 | BX29: 28222.17996 | BY29: COTAÇÃO FINALIZADA - 3 COTAÇÕES | CA29: 0.3706764862 | CB29: =_xlfn.STDEV.S(IF(NOT($L29:$BP29=$BZ29)*ISNUMBER($L29:$BP29),$L29:$BP29,""))/AVERAGE(IF(NOT($L29:$BP29=$BZ29)*ISNUMBER($L29:$BP29),$L29:$BP29,"")) -> 0.3706764862 | CC29: =AVERAGE(IF(NOT($L29:$BP29=$BZ29)*ISNUMBER($L29:$BP29),$L29:$BP29,"")) -> 44.3946 | CD29: =MEDIAN(IF(NOT($L29:$BP29=$BZ29)*ISNUMBER($L29:$BP29),$L29:$BP29,"")) -> 48.6192 | CE29: 44.3946 | CF29: 44.3946
A30: 13.5 | B30: Cabo OPGW 15,6mm | C30: ARP 002 2019 FTD -ANEXO VI | D30: CABO ELÉTRICO | F30: PRISMYAN | G30: LINHA DE TRANSMISSÃO | H30: LINHA DE TRANSMISSÃO | I30: m | J30: 5000 | Z30: 32.924 | AZ30: 46.3 | BF30: 37.542 | BR30: 46.3 | BS30: 231500 | BT30: 32.924 | BU30: 164620 | BV30: 37.542 | BW30: 187710 | BX30: 213088.392 | BY30: COTAÇÃO FINALIZADA - 3 COTAÇÕES | CA30: 0.1745527391 | CB30: =_xlfn.STDEV.S(IF(NOT($L30:$BP30=$BZ30)*ISNUMBER($L30:$BP30),$L30:$BP30,""))/AVERAGE(IF(NOT($L30:$BP30=$BZ30)*ISNUMBER($L30:$BP30),$L30:$BP30,"")) -> 0.1745527391 | CC30: =AVERAGE(IF(NOT($L30:$BP30=$BZ30)*ISNUMBER($L30:$BP30),$L30:$BP30,"")) -> 38.922 | CD30: =MEDIAN(IF(NOT($L30:$BP30=$BZ30)*ISNUMBER($L30:$BP30),$L30:$BP30,"")) -> 37.542 | CE30: 37.542 | CF30: 37.542
A31: 13.6 | B31: Condutor CAA 336 kCM Linnet | C31: ARP 002 2019 FTD -ANEXO VI | D31: CABO ELÉTRICO | F31: NEXANS | G31: LINHA DE TRANSMISSÃO | H31: LINHA DE TRANSMISSÃO | I31: m | J31: 920 | W31: 23.58 | Z31: 54.976 | AA31: 34.65 | AL31: 63.65 | BR31: 63.65 | BS31: 58558 | BT31: 23.58 | BU31: 21693.6 | BV31: 44.214 | BW31: 40676.88 | BX31: 46176.39418 | BY31: COTAÇÃO FINALIZADA - 3 COTAÇÕES | CA31: 0.4151590417 | CB31: =_xlfn.STDEV.S(IF(NOT($L31:$BP31=$BZ31)*ISNUMBER($L31:$BP31),$L31:$BP31,""))/AVERAGE(IF(NOT($L31:$BP31=$BZ31)*ISNUMBER($L31:$BP31),$L31:$BP31,"")) -> 0.4151590417 | CC31: =AVERAGE(IF(NOT($L31:$BP31=$BZ31)*ISNUMBER($L31:$BP31),$L31:$BP31,"")) -> 44.214 | CD31: =MEDIAN(IF(NOT($L31:$BP31=$BZ31)*ISNUMBER($L31:$BP31),$L31:$BP31,"")) -> 44.813 | CE31: 44.214 | CF31: 44.214
A33: 14. | B33: CONECTORES
A34: 14.1 | B34: Conector derivação "T", anticorona, 230 kV, cabo/cabo, saída 90º, liga de alumínio, para cabo CAA 636 MCM Grosbeak | C34: ARP 002 2019 FTD -ANEXO IV | D34: CONECTORES | E34: SNNT39A39A | F34: FRAMATONE ou Similar | G34: BARRAMENTO 230 kV | H34: SE FLORESTA | I34: unid. | J34: 3 | AD34: 161 | AE34: 325 | AF34: =180.39*(1+3.25/100) -> 186.252675 | BL34: 270 | BR34: =MAX(L34:BP34) -> 325 | BS34: =BR34*J34 -> 975 | BT34: =MIN(L34:BP34) -> 161 | BU34: =BT34*J34 -> 483 | BV34: =CF34 -> 228.1263375 | BW34: =BV34*J34 -> 684.3790125 | BX34: =BW34*(1+$K$5) -> 776.907055 | BY34: COTAÇÃO FINALIZADA - 3 COTAÇÕES | CA34: 0.3212132256 | CB34: =_xlfn.STDEV.S(IF(NOT($L34:$BP34=$BZ34)*ISNUMBER($L34:$BP34),$L34:$BP34,""))/AVERAGE(IF(NOT($L34:$BP34=$BZ34)*ISNUMBER($L34:$BP34),$L34:$BP34,"")) -> 0.3212132256 | CC34: =AVERAGE(IF(NOT($L34:$BP34=$BZ34)*ISNUMBER($L34:$BP34),$L34:$BP34,"")) -> 235.5631687 | CD34: =MEDIAN(IF(NOT($L34:$BP34=$BZ34)*ISNUMBER($L34:$BP34),$L34:$BP34,"")) -> 228.1263375 | CE34: 228.1263375 | CF34: =IF(CB34>50%,SMALL(L34:BP34,1),CE34) -> 228.1263375
A35: 14.2 | B35: Conector terminal anticorona, 230 kV, liga de alumínio, para 2 cabos de alumínio CAA 636MCM GROSBEAK, espaçados de 200mm, a barra chata 4 furos NEMA | C35: ARP 002 2019 FTD -ANEXO IV | D35: CONECTORES | E35: SN2A39A-4N | F35: Framatome ou Similar | G35: BARRAMENTO 230 kV | H35: SE FLORESTA | I35: unid. | J35: 3 | AD35: 228 | AE35: 335 | AF35: =252.81*(1+3.25/100) -> 261.026325 | BL35: 265.8 | BR35: 335 | BS35: 1005 | BT35: 228 | BU35: 684 | BV35: 263.4131625 | BW35: 790.2394875 | BX35: 897.0798662 | BY35: COTAÇÃO FINALIZADA - 3 COTAÇÕES | CA35: 0.1650011022 | CB35: =_xlfn.STDEV.S(IF(NOT($L35:$BP35=$BZ35)*ISNUMBER($L35:$BP35),$L35:$BP35,""))/AVERAGE(IF(NOT($L35:$BP35=$BZ35)*ISNUMBER($L35:$BP35),$L35:$BP35,"")) -> 0.1650011022 | CC35: =AVERAGE(IF(NOT($L35:$BP35=$BZ35)*ISNUMBER($L35:$BP35),$L35:$BP35,"")) -> 272.4565812 | CD35: =MEDIAN(IF(NOT($L35:$BP35=$BZ35)*ISNUMBER($L35:$BP35),$L35:$BP35,"")) -> 263.4131625 | CE35: 263.4131625 | CF35: 263.4131625
A36: 14.3 | B36: Conector paralelo, anticorona, 230 kV, liga de alumínio, tipo universal, para conexão de 2 cabos de alumínio CAA 636MCM GROSBEAK, 2 de entrada e 1 de saída, fornecido com parafusos sextavada | C36: ARP 002 2019 FTD -ANEXO IV | D36: CONECTORES | E36: SCP39A | F36: Framatome ou Similar | G36: BARRAMENTO 230 kV | H36: SE FLORESTA | I36: unid. | J36: 3 | AD36: 116 | AE36: 140 | AF36: =79.71*(1+3.25/100) -> 82.300575 | BR36: 140 | BS36: 420 | BT36: 82.300575 | BU36: 246.901725 | BV36: 112.7668583 | BW36: 338.300575 | BX36: 384.0388127 | BY36: COTAÇÃO FINALIZADA - 3 COTAÇÕES | CA36: 0.2570371239 | CB36: =_xlfn.STDEV.S(IF(NOT($L36:$BP36=$BZ36)*ISNUMBER($L36:$BP36),$L36:$BP36,""))/AVERAGE(IF(NOT($L36:$BP36=$BZ36)*ISNUMBER($L36:$BP36),$L36:$BP36,"")) -> 0.2570371239 | CC36: =AVERAGE(IF(NOT($L36:$BP36=$BZ36)*ISNUMBER($L36:$BP36),$L36:$BP36,"")) -> 112.7668583 | CD36: =MEDIAN(IF(NOT($L36:$BP36=$BZ36)*ISNUMBER($L36:$BP36),$L36:$BP36,"")) -> 116 | CE36: 112.7668583 | CF36: 112.7668583
A37: 14.4 | B37: Conector, terminal; liga cobre; para cabo de cobre (1/0 AWG-4/0 AWG) e barra de cobre com um furo Ø 11mm; fixação por parafuso cabeça sextavada; porca e arruela | C37: ARP 002 2019 FTD -ANEXO IV | D37: CONECTORES | E37: vA28 | F37: Framatome | G37: BARRAMENTO 230 kV | H37: SE FLORESTA | I37: unid. | J37: 3 | AC37: 163.17 | AD37: 54.9 | AE37: 148 | AF37: =78.99*(1+3.25/100) -> 81.557175 | BL37: 90 | BR37: 163.17 | BS37: 489.51 | BT37: 54.9 | BU37: 164.7 | BV37: 90 | BW37: 270 | BX37: 306.504 | BY37: COTAÇÃO FINALIZADA - 3 COTAÇÕES | CA37: 0.4283471415 | CB37: =_xlfn.STDEV.S(IF(NOT($L37:$BP37=$BZ37)*ISNUMBER($L37:$BP37),$L37:$BP37,""))/AVERAGE(IF(NOT($L37:$BP37=$BZ37)*ISNUMBER($L37:$BP37),$L37:$BP37,"")) -> 0.4283471415 | CC37: =AVERAGE(IF(NOT($L37:$BP37=$BZ37)*ISNUMBER($L37:$BP37),$L37:$BP37,"")) -> 107.525435 | CD37: =MEDIAN(IF(NOT($L37:$BP37=$BZ37)*ISNUMBER($L37:$BP37),$L37:$BP37,"")) -> 90 | CE37: 90 | CF37: 90
A38: 14.5 | B38: Conector de cobre fundido estanhado para ligação do fio contrapeso de aço-cobre (COPPERWELD) diâmetro 5,19mm - 4AWG à estrutura | C38: ARP 002 2019 FTD -ANEXO VI | D38: CONECTORES | E38: 3SE3-020-1AA | F38: COPPERWELD | G38: LINHA DE TRANSMISSÃO | H38: LINHA DE TRANSMISSÃO | I38: unid. | J38: 3 | AD38: 94.4 | AF38: =17.67*(1+3.25/100) -> 18.244275 | AL38: 24.63 | BQ38: 2 | BR38: 94.4 | BS38: 283.2 | BT38: 18.244275 | BU38: 54.732825 | BV38: 18.244275 | BW38: 54.732825 | BX38: 62.13270294 | BY38: COTAÇÃO FINALIZADA - 3 COTAÇÕES | CA38: 0.9232455845 | CB38: =_xlfn.STDEV.S(IF(NOT($L38:$BP38=$BZ38)*ISNUMBER($L38:$BP38),$L38:$BP38,""))/AVERAGE(IF(NOT($L38:$BP38=$BZ38)*ISNUMBER($L38:$BP38),$L38:$BP38,"")) -> 0.9232455845 | CC38: =AVERAGE(IF(NOT($L38:$BP38=$BZ38)*ISNUMBER($L38:$BP38),$L38:$BP38,"")) -> 45.75809167 | CD38: =MEDIAN(IF(NOT($L38:$BP38=$BZ38)*ISNUMBER($L38:$BP38),$L38:$BP38,"")) -> 24.63 | CE38: 24.63 | CF38: 18.244275
A39: 14.6 | B39: Conector paralelo para cabo aço-cobre (Copperweld) para ligação dos fios aos postes (aterramento) | C39: ARP 002 2019 FTD -ANEXO VI | D39: CONECTORES | E39: 1464-D1-LOE | F39: COPPERWELD | G39: LINHA DE TRANSMISSÃO | H39: LINHA DE TRANSMISSÃO | I39: unid. | J39: 3 | AA39: 39.9 | AF39: =34.35*(1+3.25/100) -> 35.466375 | AL39: 39.06 | BQ39: 1 | BR39: 39.9 | BS39: 119.7 | BT39: 35.466375 | BU39: 106.399125 | BV39: 38.142125 | BW39: 114.426375 | BX39: 129.8968209 | BY39: COTAÇÃO FINALIZADA - 3 COTAÇÕES | CA39: 0.06174333455 | CB39: =_xlfn.STDEV.S(IF(NOT($L39:$BP39=$BZ39)*ISNUMBER($L39:$BP39),$L39:$BP39,""))/AVERAGE(IF(NOT($L39:$BP39=$BZ39)*ISNUMBER($L39:$BP39),$L39:$BP39,"")) -> 0.06174333455 | CC39: =AVERAGE(IF(NOT($L39:$BP39=$BZ39)*ISNUMBER($L39:$BP39),$L39:$BP39,"")) -> 38.142125 | CD39: =MEDIAN(IF(NOT($L39:$BP39=$BZ39)*ISNUMBER($L39:$BP39),$L39:$BP39,"")) -> 39.06 | CE39: 38.142125 | CF39: 38.142125
A40: 14.7 | B40: Conector paralelo à compressão de cobre BURNDY YGHC2C2 | C40: ARP 002 2019 FTD -ANEXO VI | D40: CONECTORES | E40: YGHC2C2 | F40: BURNDY | G40: LINHA DE TRANSMISSÃO | H40: LINHA DE TRANSMISSÃO | I40: unid. | J40: 3 | P40: 27.3 | AF40: =4.98*(1+3.25/100) -> 5.14185 | BL40: 12 | BR40: 27.3 | BS40: 81.9 | BT40: 5.14185 | BU40: 15.42555 | BV40: 5.14185 | BW40: 15.42555 | BX40: 17.51108436 | BY40: COTAÇÃO FINALIZADA - 3 COTAÇÕES | CA40: 0.7657596518 | CB40: =_xlfn.STDEV.S(IF(NOT($L40:$BP40=$BZ40)*ISNUMBER($L40:$BP40),$L40:$BP40,""))/AVERAGE(IF(NOT($L40:$BP40=$BZ40)*ISNUMBER($L40:$BP40),$L40:$BP40,"")) -> 0.7657596518 | CC40: =AVERAGE(IF(NOT($L40:$BP40=$BZ40)*ISNUMBER($L40:$BP40),$L40:$BP40,"")) -> 14.81395 | CD40: =MEDIAN(IF(NOT($L40:$BP40=$BZ40)*ISNUMBER($L40:$BP40),$L40:$BP40,"")) -> 12 | CE40: 12 | CF40: 5.14185
A41: 14.8 | B41: Conector "T" para Cabos CAA Linnet / CAA Rail | C41: ARP 002 2019 FTD -ANEXO VI | D41: CONECTORES | E41: SAE F77.500.072 | F41: Desenho TSL-135-04-019 Conectores (pág. 2) | G41: LINHA DE TRANSMISSÃO | H41: LINHA DE TRANSMISSÃO | I41: unid. | J41: 3 | AD41: 161 | AE41: 325 | AF41: =208.2*(1+3.25/100) -> 214.9665 | BR41: 325 | BS41: 975 | BT41: 161 | BU41: 483 | BV41: 214.9665 | BW41: 644.8995 | BX41: 732.0899124 | BY41: COTAÇÃO FINALIZADA - 3 COTAÇÕES | CA41: 0.3577148826 | CB41: =_xlfn.STDEV.S(IF(NOT($L41:$BP41=$BZ41)*ISNUMBER($L41:$BP41),$L41:$BP41,""))/AVERAGE(IF(NOT($L41:$BP41=$BZ41)*ISNUMBER($L41:$BP41),$L41:$BP41,"")) -> 0.3577148826 | CC41: =AVERAGE(IF(NOT($L41:$BP41=$BZ41)*ISNUMBER($L41:$BP41),$L41:$BP41,"")) -> 233.6555 | CD41: =MEDIAN(IF(NOT($L41:$BP41=$BZ41)*ISNUMBER($L41:$BP41),$L41:$BP41,"")) -> 214.9665 | CE41: 214.9665 | CF41: 214.9665
A42: 14.9 | B42: Conector passante para cabos CAA Grosbeak / CAA Rail | C42: ARP 002 2019 FTD -ANEXO VI | D42: CONECTORES | E42: SAE F77.500.075 | F42: Desenho TSL-135-04-019 Conectores (pág. 5) | G42: LINHA DE TRANSMISSÃO | H42: LINHA DE TRANSMISSÃO | I42: unid. | J42: 3 | AD42: 167 | AE42: 335 | AF42: =121.35*(1+3.25/100) -> 125.293875 | BR42: 335 | BS42: 1005 | BT42: 125.293875 | BU42: 375.881625 | BV42: 125.293875 | BW42: 375.881625 | BX42: 426.7008207 | BY42: COTAÇÃO FINALIZADA - 3 COTAÇÕES | CA42: 0.5309021462 | CB42: =_xlfn.STDEV.S(IF(NOT($L42:$BP42=$BZ42)*ISNUMBER($L42:$BP42),$L42:$BP42,""))/AVERAGE(IF(NOT($L42:$BP42=$BZ42)*ISNUMBER($L42:$BP42),$L42:$BP42,"")) -> 0.5309021462 | CC42: =AVERAGE(IF(NOT($L42:$BP42=$BZ42)*ISNUMBER($L42:$BP42),$L42:$BP42,"")) -> 209.0979583 | CD42: =MEDIAN(IF(NOT($L42:$BP42=$BZ42)*ISNUMBER($L42:$BP42),$L42:$BP42,"")) -> 167 | CE42: 167 | CF42: 125.293875
A43: 14.10 | B43: Conector paralelo para cabos CAA Rail / CAA Rail | C43: ARP 002 2019 FTD -ANEXO VI | D43: CONECTORES | E43: SAE F77.500.074 | F43: Desenho TSL-135-04-019 Conectores (pág. 4) | G43: LINHA DE TRANSMISSÃO | H43: LINHA DE TRANSMISSÃO | I43: unid. | J43: 3 | AD43: 228 | AE43: 414 | AF43: =101.61*(1+3.25/100) -> 104.912325 | BR43: 414 | BS43: 1242 | BT43: 104.912325 | BU43: 314.736975 | BV43: 104.912325 | BW43: 314.736975 | BX43: 357.289414 | BY43: COTAÇÃO FINALIZADA - 3 COTAÇÕES | CA43: 0.6250022196 | CB43: =_xlfn.STDEV.S(IF(NOT($L43:$BP43=$BZ43)*ISNUMBER($L43:$BP43),$L43:$BP43,""))/AVERAGE(IF(NOT($L43:$BP43=$BZ43)*ISNUMBER($L43:$BP43),$L43:$BP43,"")) -> 0.6250022196 | CC43: =AVERAGE(IF(NOT($L43:$BP43=$BZ43)*ISNUMBER($L43:$BP43),$L43:$BP43,"")) -> 248.970775 | CD43: =MEDIAN(IF(NOT($L43:$BP43=$BZ43)*ISNUMBER($L43:$BP43),$L43:$BP43,"")) -> 228 | CE43: 228 | CF43: 104.912325
A44: 14.11 | B44: Conector "T" paralelo para cabos CAA Rail/ CAA Rail | C44: ARP 002 2019 FTD -ANEXO VI | D44: CONECTORES | E44: SAE F77.500.073 | F44: Desenho TSL-135-04-019 Conectores (pág. 3) | G44: LINHA DE TRANSMISSÃO | H44: LINHA DE TRANSMISSÃO | I44: unid. | J44: 3 | AD44: 116 | AE44: 140 | AF44: =208.2*(1+3.25/100) -> 214.9665 | BR44: 214.9665 | BS44: 644.8995 | BT44: 116 | BU44: 348 | BV44: 140 | BW44: 420 | BX44: 476.784 | BY44: COTAÇÃO FINALIZADA - 3 COTAÇÕES | CA44: 0.3288399091 | CB44: =_xlfn.STDEV.S(IF(NOT($L44:$BP44=$BZ44)*ISNUMBER($L44:$BP44),$L44:$BP44,""))/AVERAGE(IF(NOT($L44:$BP44=$BZ44)*ISNUMBER($L44:$BP44),$L44:$BP44,"")) -> 0.3288399091 | CC44: =AVERAGE(IF(NOT($L44:$BP44=$BZ44)*ISNUMBER($L44:$BP44),$L44:$BP44,"")) -> 156.9888333 | CD44: =MEDIAN(IF(NOT($L44:$BP44=$BZ44)*ISNUMBER($L44:$BP44),$L44:$BP44,"")) -> 140 | CE44: 140 | CF44: 140
A46: 15. | B46: FERRAGENS/CADEIAS/ACESSÓRIOS
A47: 15.1 | B47: Conjunto de Ferragens para fixação de cabo para-raios, conforme desenho 1635-DEP-2812-60-63-002 | C47: ARP 002 2019 FTD -ANEXO IV | D47: FERRAGENS/CADEIAS/ACESSÓRIOS | F47: Forjasul | G47: BARRAMENTO 230 kV | H47: SE FLORESTA | I47: unid. | J47: 3 | AI47: 627.77 | AO47: =700.01*1.0325 -> 722.760325 | BQ47: 1 | BR47: =MAX(L47:BP47) -> 722.760325 | BS47: =BR47*J47 -> 2168.280975 | BT47: =MIN(L47:BP47) -> 627.77 | BU47: =BT47*J47 -> 1883.31 | BV47: =CF47 -> 675.2651625 | BW47: =BV47*J47 -> 2025.795488 | BX47: =BW47*(1+$K$5) -> 2299.683037 | BY47: COTAÇÃO FINALIZADA - 3 COTAÇÕES | CA47: 0.09946952203 | CB47: =_xlfn.STDEV.S(IF(NOT($L47:$BP47=$BZ47)*ISNUMBER($L47:$BP47),$L47:$BP47,""))/AVERAGE(IF(NOT($L47:$BP47=$BZ47)*ISNUMBER($L47:$BP47),$L47:$BP47,"")) -> 0.09946952203 | CC47: =AVERAGE(IF(NOT($L47:$BP47=$BZ47)*ISNUMBER($L47:$BP47),$L47:$BP47,"")) -> 675.2651625 | CD47: =MEDIAN(IF(NOT($L47:$BP47=$BZ47)*ISNUMBER($L47:$BP47),$L47:$BP47,"")) -> 675.2651625 | CE47: 675.2651625 | CF47: 675.2651625
A48: 15.2 | B48: Cadeia de isoladores - Conjunto de ferragens e grampos, conforme desenho 1630-DEP-1812-60-63-001 | C48: ARP 002 2019 FTD -ANEXO IV | D48: FERRAGENS/CADEIAS/ACESSÓRIOS | F48: Forjasul | G48: BARRAMENTO 230 kV | H48: SE FLORESTA | I48: unid. | J48: 3 | AG48: 1152.23 | AI48: 1018.2 | AO48: =1242.52*1.0325 -> 1282.9019 | BQ48: 1 | BR48: 1282.9019 | BS48: 3848.7057 | BT48: 1018.2 | BU48: 3054.6 | BV48: 1151.110633 | BW48: 3453.3319 | BX48: 3920.222373 | BY48: COTAÇÃO FINALIZADA - 3 COTAÇÕES | CA48: 0.1149798258 | CB48: =_xlfn.STDEV.S(IF(NOT($L48:$BP48=$BZ48)*ISNUMBER($L48:$BP48),$L48:$BP48,""))/AVERAGE(IF(NOT($L48:$BP48=$BZ48)*ISNUMBER($L48:$BP48),$L48:$BP48,"")) -> 0.1149798258 | CC48: =AVERAGE(IF(NOT($L48:$BP48=$BZ48)*ISNUMBER($L48:$BP48),$L48:$BP48,"")) -> 1151.110633 | CD48: =MEDIAN(IF(NOT($L48:$BP48=$BZ48)*ISNUMBER($L48:$BP48),$L48:$BP48,"")) -> 1152.23 | CE48: 1151.110633 | CF48: 1151.110633
A49: 15.3 | B49: Espaçador rígido, anti-corona, 230 kV, liga de alumínio, para dois cabos de alumínio de CAA 636MCM GROSBEAK, espaçados de 200mm, fornecido com parafusos sextavada | C49: ARP 002 2019 FTD -ANEXO IV | D49: FERRAGENS/CADEIAS/ACESSÓRIOS | E49: S2GBP39A-20 | F49: FRAMATONE ou Similar | G49: BARRAMENTO 230 kV | H49: SE FLORESTA | I49: unid. | J49: 3 | AE49: 54 | AF49: 117.96 | AL49: 165.23 | BQ49: 2 | BR49: 165.23 | BS49: 495.69 | BT49: 54 | BU49: 162 | BV49: 112.3966667 | BW49: 337.19 | BX49: 382.778088 | BY49: COTAÇÃO FINALIZADA - 3 COTAÇÕES | CA49: 0.4966633383 | CB49: =_xlfn.STDEV.S(IF(NOT($L49:$BP49=$BZ49)*ISNUMBER($L49:$BP49),$L49:$BP49,""))/AVERAGE(IF(NOT($L49:$BP49=$BZ49)*ISNUMBER($L49:$BP49),$L49:$BP49,"")) -> 0.4966633383 | CC49: =AVERAGE(IF(NOT($L49:$BP49=$BZ49)*ISNUMBER($L49:$BP49),$L49:$BP49,"")) -> 112.3966667 | CD49: =MEDIAN(IF(NOT($L49:$BP49=$BZ49)*ISNUMBER($L49:$BP49),$L49:$BP49,"")) -> 117.96 | CE49: 112.3966667 | CF49: 112.3966667
A50: 15.4 | B50: Adaptação 1 para ancoragem do cabo CAA Linnet nas estruturas tipo AF2s | C50: ARP 002 2019 FTD -ANEXO VI | D50: FERRAGENS/CADEIAS/ACESSÓRIOS | E50: Des. AF2s 35.06-D11000 e 35.06-D11001 | G50: LINHA DE TRANSMISSÃO | H50: LINHA DE TRANSMISSÃO | I50: conj. | J50: 3 | AW50: 15847.62 | BA50: =10*30.7 -> 307 | BQ50: 2 | BR50: 15847.62 | BS50: 47542.86 | BT50: 307 | BU50: 921 | BV50: 307 | BW50: 921 | BX50: 1045.5192 | BY50: COTAÇÃO FINALIZADA - 3 COTAÇÕES | CA50: 1.360462553 | CB50: =_xlfn.STDEV.S(IF(NOT($L50:$BP50=$BZ50)*ISNUMBER($L50:$BP50),$L50:$BP50,""))/AVERAGE(IF(NOT($L50:$BP50=$BZ50)*ISNUMBER($L50:$BP50),$L50:$BP50,"")) -> 1.360462553 | CC50: =AVERAGE(IF(NOT($L50:$BP50=$BZ50)*ISNUMBER($L50:$BP50),$L50:$BP50,"")) -> 8077.31 | CD50: =MEDIAN(IF(NOT($L50:$BP50=$BZ50)*ISNUMBER($L50:$BP50),$L50:$BP50,"")) -> 8077.31 | CE50: 8077.31 | CF50: 307
A51: 15.5 | B51: Cadeia de suspensão Simples do Jumper - SJ -1xCAA Rail | C51: ARP 002 2019 FTD -ANEXO VI | D51: FERRAGENS/CADEIAS/ACESSÓRIOS | E51: F01.600.478 | F51: Desenho 716-LT-30-DF-4-015 (página 3) | G51: LINHA DE TRANSMISSÃO | H51: LINHA DE TRANSMISSÃO | I51: conj. | J51: 6 | AI51: 609.04 | AO51: =638.74*1.0325 -> 659.49905 | BD51: =2030.7*(1+3.25/100) -> 2096.69775 | BR51: 2096.69775 | BS51: 12580.1865 | BT51: 609.04 | BU51: 3654.24 | BV51: 609.04 | BW51: 3654.24 | BX51: 4148.293248 | BY51: COTAÇÃO FINALIZADA - 3 COTAÇÕES | CA51: 0.7530318702 | CB51: =_xlfn.STDEV.S(IF(NOT($L51:$BP51=$BZ51)*ISNUMBER($L51:$BP51),$L51:$BP51,""))/AVERAGE(IF(NOT($L51:$BP51=$BZ51)*ISNUMBER($L51:$BP51),$L51:$BP51,"")) -> 0.7530318702 | CC51: =AVERAGE(IF(NOT($L51:$BP51=$BZ51)*ISNUMBER($L51:$BP51),$L51:$BP51,"")) -> 1121.7456 | CD51: =MEDIAN(IF(NOT($L51:$BP51=$BZ51)*ISNUMBER($L51:$BP51),$L51:$BP51,"")) -> 659.49905 | CE51: 659.49905 | CF51: 609.04
A52: 15.6 | B52: Cadeia de ancoragem dupla - 40kA do cabo condutor Rail | C52: ARP 002 2019 FTD -ANEXO VI | D52: FERRAGENS/CADEIAS/ACESSÓRIOS | E52: F11.600.260 | F52: Desenho TSL-135-04-016-CAD-1xRail 40kA (página 2) | G52: LINHA DE TRANSMISSÃO | H52: LINHA DE TRANSMISSÃO | I52: conj. | J52: 4 | AI52: 7252.64 | AO52: =4194.29*1.0325 -> 4330.604425 | BD52: =4693.1*(1+3.25/100) -> 4845.62575 | BM52: =7745.26+1549.05 -> 9294.31 | BR52: 9294.31 | BS52: 37177.24 | BT52: 4330.604425 | BU52: 17322.4177 | BV52: 6049.132875 | BW52: 24196.5315 | BX52: 27467.90256 | BY52: COTAÇÃO FINALIZADA - 3 COTAÇÕES | CA52: 0.3568498423 | CB52: =_xlfn.STDEV.S(IF(NOT($L52:$BP52=$BZ52)*ISNUMBER($L52:$BP52),$L52:$BP52,""))/AVERAGE(IF(NOT($L52:$BP52=$BZ52)*ISNUMBER($L52:$BP52),$L52:$BP52,"")) -> 0.3568498423 | CC52: =AVERAGE(IF(NOT($L52:$BP52=$BZ52)*ISNUMBER($L52:$BP52),$L52:$BP52,"")) -> 6430.795044 | CD52: =MEDIAN(IF(NOT($L52:$BP52=$BZ52)*ISNUMBER($L52:$BP52),$L52:$BP52,"")) -> 6049.132875 | CE52: 6049.132875 | CF52: 6049.132875
A53: 15.7 | B53: Cadeia de ancoragem dupla - 40kA do cabo condutor Grosbeak | C53: ARP 002 2019 FTD -ANEXO VI | D53: FERRAGENS/CADEIAS/ACESSÓRIOS | E53: F11.600.242 | F53: Desenho 716-LT-30-DF-4-019 (página 2) | G53: LINHA DE TRANSMISSÃO | H53: LINHA DE TRANSMISSÃO | I53: conj. | J53: 3 | AI53: 1836.09 | AO53: =4050.53*1.0325 -> 4182.172225 | BD53: =4693.1*(1+3.25/100) -> 4845.62575 | BM53: =4896.61+734.5 -> 5631.11 | BR53: 5631.11 | BS53: 16893.33 | BT53: 1836.09 | BU53: 5508.27 | BV53: 4123.749494 | BW53: 12371.24848 | BX53: 14043.84128 | BY53: COTAÇÃO FINALIZADA - 3 COTAÇÕES | CA53: 0.3967399709 | CB53: =_xlfn.STDEV.S(IF(NOT($L53:$BP53=$BZ53)*ISNUMBER($L53:$BP53),$L53:$BP53,""))/AVERAGE(IF(NOT($L53:$BP53=$BZ53)*ISNUMBER($L53:$BP53),$L53:$BP53,"")) -> 0.3967399709 | CC53: =AVERAGE(IF(NOT($L53:$BP53=$BZ53)*ISNUMBER($L53:$BP53),$L53:$BP53,"")) -> 4123.749494 | CD53: =MEDIAN(IF(NOT($L53:$BP53=$BZ53)*ISNUMBER($L53:$BP53),$L53:$BP53,"")) -> 4513.898988 | CE53: 4123.749494 | CF53: 4123.749494
A54: 15.8 | B54: Conjunto de ancoragem do cabo pára-raios 3/8" EHS | C54: ARP 002 2019 FTD -ANEXO VI | D54: FERRAGENS/CADEIAS/ACESSÓRIOS | E54: F13.600.328 | F54: Desenho 716-LT-30-DF-4-024(página 2) | G54: LINHA DE TRANSMISSÃO | H54: LINHA DE TRANSMISSÃO | I54: conj. | J54: 3 | AI54: 1385.65 | AO54: =700.01*1.0325 -> 722.760325 | BD54: =2797.8*(1+3.25/100) -> 2888.7285 | BE54: 1118.7602 | BM54: =647.72+97.16 -> 744.88 | BR54: 2888.7285 | BS54: 8666.1855 | BT54: 722.760325 | BU54: 2168.280975 | BV54: 722.760325 | BW54: 2168.280975 | BX54: 2461.432563 | BY54: COTAÇÃO FINALIZADA - 3 COTAÇÕES | CA54: 0.6497570757 | CB54: =_xlfn.STDEV.S(IF(NOT($L54:$BP54=$BZ54)*ISNUMBER($L54:$BP54),$L54:$BP54,""))/AVERAGE(IF(NOT($L54:$BP54=$BZ54)*ISNUMBER($L54:$BP54),$L54:$BP54,"")) -> 0.6497570757 | CC54: =AVERAGE(IF(NOT($L54:$BP54=$BZ54)*ISNUMBER($L54:$BP54),$L54:$BP54,"")) -> 1372.155805 | CD54: =MEDIAN(IF(NOT($L54:$BP54=$BZ54)*ISNUMBER($L54:$BP54),$L54:$BP54,"")) -> 1118.7602 | CE54: 1118.7602 | CF54: 722.760325
A55: 15.9 | B55: Conjunto de ancoragem do cabo pára-raios CAA Dotterel | C55: ARP 002 2019 FTD -ANEXO VI | D55: FERRAGENS/CADEIAS/ACESSÓRIOS | E55: F13.600.329 | F55: Desenho 716-LT-30-DF-4-025(página 2) | G55: LINHA DE TRANSMISSÃO | H55: LINHA DE TRANSMISSÃO | I55: conj. | J55: 3 | AI55: 2503.89 | AO55: =1271.78*1.0325 -> 1313.11285 | BD55: =2797.8*(1+3.25/100) -> 2888.7285 | BE55: 1322.3624 | BR55: 2888.7285 | BS55: 8666.1855 | BT55: 1313.11285 | BU55: 3939.33855 | BV55: 1913.1262 | BW55: 5739.3786 | BX55: 6515.342587 | BY55: COTAÇÃO FINALIZADA - 3 COTAÇÕES | CA55: 0.4042232676 | CB55: =_xlfn.STDEV.S(IF(NOT($L55:$BP55=$BZ55)*ISNUMBER($L55:$BP55),$L55:$BP55,""))/AVERAGE(IF(NOT($L55:$BP55=$BZ55)*ISNUMBER($L55:$BP55),$L55:$BP55,"")) -> 0.4042232676 | CC55: =AVERAGE(IF(NOT($L55:$BP55=$BZ55)*ISNUMBER($L55:$BP55),$L55:$BP55,"")) -> 2007.023438 | CD55: =MEDIAN(IF(NOT($L55:$BP55=$BZ55)*ISNUMBER($L55:$BP55),$L55:$BP55,"")) -> 1913.1262 | CE55: 1913.1262 | CF55: 1913.1262
A56: 15.10 | B56: Cadeia de ancoragem simples - 40kA do cabo condutor Linnet | C56: ARP 002 2019 FTD -ANEXO VI | D56: FERRAGENS/CADEIAS/ACESSÓRIOS | E56: F10.600.204 | F56: Desenho TSL-135-04-018-CAS-1xlINNET 40kA (página 2) | G56: LINHA DE TRANSMISSÃO | H56: LINHA DE TRANSMISSÃO | I56: conj. | J56: 3 | AI56: 3551.22 | AO56: =1596.42*1.0325 -> 1648.30365 | BD56: =2120.9*(1+3.25/100) -> 2189.82925 | BM56: =3456.83+518.52 -> 3975.35 | BR56: 3975.35 | BS56: 11926.05 | BT56: 1648.30365 | BU56: 4944.91095 | BV56: 2841.175725 | BW56: 8523.527175 | BX56: 9675.908049 | BY56: COTAÇÃO FINALIZADA - 3 COTAÇÕES | CA56: 0.3875746154 | CB56: =_xlfn.STDEV.S(IF(NOT($L56:$BP56=$BZ56)*ISNUMBER($L56:$BP56),$L56:$BP56,""))/AVERAGE(IF(NOT($L56:$BP56=$BZ56)*ISNUMBER($L56:$BP56),$L56:$BP56,"")) -> 0.3875746154 | CC56: =AVERAGE(IF(NOT($L56:$BP56=$BZ56)*ISNUMBER($L56:$BP56),$L56:$BP56,"")) -> 2841.175725 | CD56: =MEDIAN(IF(NOT($L56:$BP56=$BZ56)*ISNUMBER($L56:$BP56),$L56:$BP56,"")) -> 2870.524625 | CE56: 2841.175725 | CF56: 2841.175725
A57: 15.11 | B57: Emenda Preformada p/ cabo condutor CAA Rail | C57: ARP 002 2019 FTD -ANEXO VI | D57: FERRAGENS/CADEIAS/ACESSÓRIOS | E57: F45.500 | G57: LINHA DE TRANSMISSÃO | H57: LINHA DE TRANSMISSÃO | I57: unid. | J57: 3 | AL57: 2189.56 | AM57: 410 | BD57: =1353.8*(1+3.25/100) -> 1397.7985 | BE57: 877.6953 | BR57: 2189.56 | BS57: 6568.68 | BT57: 410 | BU57: 1230 | BV57: 410 | BW57: 1230 | BX57: 1396.296 | BY57: COTAÇÃO FINALIZADA - 3 COTAÇÕES | CA57: 0.6257608231 | CB57: =_xlfn.STDEV.S(IF(NOT($L57:$BP57=$BZ57)*ISNUMBER($L57:$BP57),$L57:$BP57,""))/AVERAGE(IF(NOT($L57:$BP57=$BZ57)*ISNUMBER($L57:$BP57),$L57:$BP57,"")) -> 0.6257608231 | CC57: =AVERAGE(IF(NOT($L57:$BP57=$BZ57)*ISNUMBER($L57:$BP57),$L57:$BP57,"")) -> 1218.76345 | CD57: =MEDIAN(IF(NOT($L57:$BP57=$BZ57)*ISNUMBER($L57:$BP57),$L57:$BP57,"")) -> 1137.7469 | CE57: 1137.7469 | CF57: 410
A58: 15.12 | B58: Emenda Preformada p/ cabo CAA Dotterel | C58: ARP 002 2019 FTD -ANEXO VI | D58: FERRAGENS/CADEIAS/ACESSÓRIOS | E58: F45.500.384 | F58: Desenho 716-LT-30-DF-4-027(página 4) | G58: LINHA DE TRANSMISSÃO | H58: LINHA DE TRANSMISSÃO | I58: unid. | J58: 3 | AL58: 2365.22 | AM58: 112.54 | BD58: =361*(1+3.25/100) -> 372.7325 | BE58: 139.1375 | BR58: 2365.22 | BS58: 7095.66 | BT58: 112.54 | BU58: 337.62 | BV58: 112.54 | BW58: 337.62 | BX58: 383.266224 | BY58: COTAÇÃO FINALIZADA - 3 COTAÇÕES | CA58: 1.451494078 | CB58: =_xlfn.STDEV.S(IF(NOT($L58:$BP58=$BZ58)*ISNUMBER($L58:$BP58),$L58:$BP58,""))/AVERAGE(IF(NOT($L58:$BP58=$BZ58)*ISNUMBER($L58:$BP58),$L58:$BP58,"")) -> 1.451494078 | CC58: =AVERAGE(IF(NOT($L58:$BP58=$BZ58)*ISNUMBER($L58:$BP58),$L58:$BP58,"")) -> 747.4075 | CD58: =MEDIAN(IF(NOT($L58:$BP58=$BZ58)*ISNUMBER($L58:$BP58),$L58:$BP58,"")) -> 255.935 | CE58: 255.935 | CF58: 112.54
A59: 15.13 | B59: Emenda / Reparo Preformado p/ cabo pára-raios aço galvanizado 3/8" EHS | C59: ARP 002 2019 FTD -ANEXO VI | D59: FERRAGENS/CADEIAS/ACESSÓRIOS | E59: F45.500.379 | F59: Desenho 716-LT-30-DF-4-027(página 3) | G59: LINHA DE TRANSMISSÃO | H59: LINHA DE TRANSMISSÃO | I59: unid. | J59: 3 | AM59: 16 | BD59: =112.8*(1+3.25/100) -> 116.466 | BE59: 33.743 | BR59: 116.466 | BS59: 349.398 | BT59: 16 | BU59: 48 | BV59: 16 | BW59: 48 | BX59: 54.4896 | BY59: COTAÇÃO FINALIZADA - 3 COTAÇÕES | CA59: 0.9678372501 | CB59: =_xlfn.STDEV.S(IF(NOT($L59:$BP59=$BZ59)*ISNUMBER($L59:$BP59),$L59:$BP59,""))/AVERAGE(IF(NOT($L59:$BP59=$BZ59)*ISNUMBER($L59:$BP59),$L59:$BP59,"")) -> 0.9678372501 | CC59: =AVERAGE(IF(NOT($L59:$BP59=$BZ59)*ISNUMBER($L59:$BP59),$L59:$BP59,"")) -> 55.403 | CD59: =MEDIAN(IF(NOT($L59:$BP59=$BZ59)*ISNUMBER($L59:$BP59),$L59:$BP59,"")) -> 33.743 | CE59: 33.743 | CF59: 16
A60: 15.14 | B60: Emenda Preformada p/ cabo CAA Grosbeak | C60: ARP 002 2019 FTD -ANEXO VI | D60: FERRAGENS/CADEIAS/ACESSÓRIOS | E60: F45.500.382 | F60: Desenho 716-LT-30-DF-4-027(página 2) | G60: LINHA DE TRANSMISSÃO | H60: LINHA DE TRANSMISSÃO | I60: unid. | J60: 3 | AM60: 330 | BD60: =1353.8*(1+3.25/100) -> 1397.7985 | BE60: 543.9245 | BR60: 1397.7985 | BS60: 4193.3955 | BT60: 330 | BU60: 990 | BV60: 330 | BW60: 990 | BX60: 1123.848 | BY60: COTAÇÃO FINALIZADA - 3 COTAÇÕES | CA60: 0.7460728495 | CB60: =_xlfn.STDEV.S(IF(NOT($L60:$BP60=$BZ60)*ISNUMBER($L60:$BP60),$L60:$BP60,""))/AVERAGE(IF(NOT($L60:$BP60=$BZ60)*ISNUMBER($L60:$BP60),$L60:$BP60,"")) -> 0.7460728495 | CC60: =AVERAGE(IF(NOT($L60:$BP60=$BZ60)*ISNUMBER($L60:$BP60),$L60:$BP60,"")) -> 757.241 | CD60: =MEDIAN(IF(NOT($L60:$BP60=$BZ60)*ISNUMBER($L60:$BP60),$L60:$BP60,"")) -> 543.9245 | CE60: 543.9245 | CF60: 330
A61: 15.15 | B61: Emenda Preformada p/ cabo CAA Linnet | C61: ARP 002 2019 FTD -ANEXO VI | D61: FERRAGENS/CADEIAS/ACESSÓRIOS | G61: LINHA DE TRANSMISSÃO | H61: LINHA DE TRANSMISSÃO | I61: unid. | J61: 3 | AM61: 180 | AY61: 1207.37 | BD61: =676.9*(1+3.25/100) -> 698.89925 | BQ61: 1 | BR61: 1207.37 | BS61: 3622.11 | BT61: 180 | BU61: 540 | BV61: 180 | BW61: 540 | BX61: 613.008 | BY61: COTAÇÃO FINALIZADA - 3 COTAÇÕES | CA61: 0.7386781279 | CB61: =_xlfn.STDEV.S(IF(NOT($L61:$BP61=$BZ61)*ISNUMBER($L61:$BP61),$L61:$BP61,""))/AVERAGE(IF(NOT($L61:$BP61=$BZ61)*ISNUMBER($L61:$BP61),$L61:$BP61,"")) -> 0.7386781279 | CC61: =AVERAGE(IF(NOT($L61:$BP61=$BZ61)*ISNUMBER($L61:$BP61),$L61:$BP61,"")) -> 695.4230833 | CD61: =MEDIAN(IF(NOT($L61:$BP61=$BZ61)*ISNUMBER($L61:$BP61),$L61:$BP61,"")) -> 698.89925 | CE61: 695.4230833 | CF61: 180
A62: 15.16 | B62: Amortecedor p/ cabo CAA Rail | C62: ARP 002 2019 FTD -ANEXO VI | D62: FERRAGENS/CADEIAS/ACESSÓRIOS | E62: VSD-0102 | G62: LINHA DE TRANSMISSÃO | H62: LINHA DE TRANSMISSÃO | I62: unid. | J62: 3 | AO62: =258.75*1.0325 -> 267.159375 | BD62: =812.3*(1+3.25/100) -> 838.69975 | BE62: 311.5191 | BR62: 838.69975 | BS62: 2516.09925 | BT62: 267.159375 | BU62: 801.478125 | BV62: 267.159375 | BW62: 801.478125 | BX62: 909.8379675 | BY62: COTAÇÃO FINALIZADA - 3 COTAÇÕES | CA62: 0.6729636549 | CB62: =_xlfn.STDEV.S(IF(NOT($L62:$BP62=$BZ62)*ISNUMBER($L62:$BP62),$L62:$BP62,""))/AVERAGE(IF(NOT($L62:$BP62=$BZ62)*ISNUMBER($L62:$BP62),$L62:$BP62,"")) -> 0.6729636549 | CC62: =AVERAGE(IF(NOT($L62:$BP62=$BZ62)*ISNUMBER($L62:$BP62),$L62:$BP62,"")) -> 472.4594083 | CD62: =MEDIAN(IF(NOT($L62:$BP62=$BZ62)*ISNUMBER($L62:$BP62),$L62:$BP62,"")) -> 311.5191 | CE62: 311.5191 | CF62: 267.159375
A63: 15.17 | B63: Amortecedor p/ cabo CAA Grosbeak | C63: ARP 002 2019 FTD -ANEXO VI | D63: FERRAGENS/CADEIAS/ACESSÓRIOS | E63: VSD-4032 | F63: Desenho 716-LT-30-DF-4-053 | G63: LINHA DE TRANSMISSÃO | H63: LINHA DE TRANSMISSÃO | I63: unid. | J63: 3 | AO63: =628.75*1.0325 -> 649.184375 | BD63: =812.3*(1+3.25/100) -> 838.69975 | BE63: 311.5191 | BR63: 838.69975 | BS63: 2516.09925 | BT63: 311.5191 | BU63: 934.5573 | BV63: 599.801075 | BW63: 1799.403225 | BX63: 2042.682541 | BY63: COTAÇÃO FINALIZADA - 3 COTAÇÕES | CA63: 0.4452096867 | CB63: =_xlfn.STDEV.S(IF(NOT($L63:$BP63=$BZ63)*ISNUMBER($L63:$BP63),$L63:$BP63,""))/AVERAGE(IF(NOT($L63:$BP63=$BZ63)*ISNUMBER($L63:$BP63),$L63:$BP63,"")) -> 0.4452096867 | CC63: =AVERAGE(IF(NOT($L63:$BP63=$BZ63)*ISNUMBER($L63:$BP63),$L63:$BP63,"")) -> 599.801075 | CD63: =MEDIAN(IF(NOT($L63:$BP63=$BZ63)*ISNUMBER($L63:$BP63),$L63:$BP63,"")) -> 649.184375 | CE63: 599.801075 | CF63: 599.801075
A64: 15.18 | B64: Amortecedor p/ cabo pára-raios CAA Dotterel | C64: ARP 002 2019 FTD -ANEXO VI | D64: FERRAGENS/CADEIAS/ACESSÓRIOS | E64: VSD-2016 | F64: Desenho 716-LT-30-DF-4-051 | G64: LINHA DE TRANSMISSÃO | H64: LINHA DE TRANSMISSÃO | I64: unid. | J64: 3 | AF64: 249.69 | AO64: =421.25*1.0325 -> 434.940625 | BD64: =541.5*(1+3.25/100) -> 559.09875 | BE64: 164.4173 | BR64: 559.09875 | BS64: 1677.29625 | BT64: 164.4173 | BU64: 493.2519 | BV64: 164.4173 | BW64: 493.2519 | BX64: 559.9395569 | BY64: COTAÇÃO FINALIZADA - 3 COTAÇÕES | CA64: 0.5066166496 | CB64: =_xlfn.STDEV.S(IF(NOT($L64:$BP64=$BZ64)*ISNUMBER($L64:$BP64),$L64:$BP64,""))/AVERAGE(IF(NOT($L64:$BP64=$BZ64)*ISNUMBER($L64:$BP64),$L64:$BP64,"")) -> 0.5066166496 | CC64: =AVERAGE(IF(NOT($L64:$BP64=$BZ64)*ISNUMBER($L64:$BP64),$L64:$BP64,"")) -> 352.0366687 | CD64: =MEDIAN(IF(NOT($L64:$BP64=$BZ64)*ISNUMBER($L64:$BP64),$L64:$BP64,"")) -> 342.3153125 | CE64: 342.3153125 | CF64: 164.4173
A65: 15.19 | B65: Amortecedor p/ cabo pára-raios aço galvanizado 3/8" EHS | C65: ARP 002 2019 FTD -ANEXO VI | D65: FERRAGENS/CADEIAS/ACESSÓRIOS | E65: C-D12388 | F65: 716-LT-30-DF-4-046 | G65: LINHA DE TRANSMISSÃO | H65: LINHA DE TRANSMISSÃO | I65: unid. | J65: 3 | AO65: =258.75*1.0325 -> 267.159375 | BD65: =541.5*(1+3.25/100) -> 559.09875 | BE65: 44.2647 | BR65: 559.09875 | BS65: 1677.29625 | BT65: 44.2647 | BU65: 132.7941 | BV65: 44.2647 | BW65: 132.7941 | BX65: 150.7478623 | BY65: COTAÇÃO FINALIZADA - 3 COTAÇÕES | CA65: 0.8897670457 | CB65: =_xlfn.STDEV.S(IF(NOT($L65:$BP65=$BZ65)*ISNUMBER($L65:$BP65),$L65:$BP65,""))/AVERAGE(IF(NOT($L65:$BP65=$BZ65)*ISNUMBER($L65:$BP65),$L65:$BP65,"")) -> 0.8897670457 | CC65: =AVERAGE(IF(NOT($L65:$BP65=$BZ65)*ISNUMBER($L65:$BP65),$L65:$BP65,"")) -> 290.174275 | CD65: =MEDIAN(IF(NOT($L65:$BP65=$BZ65)*ISNUMBER($L65:$BP65),$L65:$BP65,"")) -> 267.159375 | CE65: 267.159375 | CF65: 44.2647
A66: 15.20 | B66: Esfera de Sinalização p/ cabo pára-raios aço galvanizado 3/8" EHS | C66: ARP 002 2019 FTD -ANEXO VI | D66: FERRAGENS/CADEIAS/ACESSÓRIOS | E66: 6104 | F66: Desenho 716-LT-30-DF-4-047 | G66: LINHA DE TRANSMISSÃO | H66: LINHA DE TRANSMISSÃO | I66: unid. | J66: 3 | X66: 1452.72 | AO66: =997.51*1.0325 -> 1029.929075 | AQ66: 1340 | AR66: 2583 | AS66: 1737.99 | BE66: 1387.2764 | BR66: 2583 | BS66: 7749 | BT66: 1029.929075 | BU66: 3089.787225 | BV66: 1419.9982 | BW66: 4259.9946 | BX66: 4835.94587 | BY66: COTAÇÃO FINALIZADA - 3 COTAÇÕES | CA66: 0.3383171442 | CB66: =_xlfn.STDEV.S(IF(NOT($L66:$BP66=$BZ66)*ISNUMBER($L66:$BP66),$L66:$BP66,""))/AVERAGE(IF(NOT($L66:$BP66=$BZ66)*ISNUMBER($L66:$BP66),$L66:$BP66,"")) -> 0.3383171442 | CC66: =AVERAGE(IF(NOT($L66:$BP66=$BZ66)*ISNUMBER($L66:$BP66),$L66:$BP66,"")) -> 1588.485913 | CD66: =MEDIAN(IF(NOT($L66:$BP66=$BZ66)*ISNUMBER($L66:$BP66),$L66:$BP66,"")) -> 1419.9982 | CE66: 1419.9982 | CF66: 1419.9982
A67: 15.21 | B67: Esfera de sinalização p/ cabo para-raios CAA Dotterel (ESP-6101) | C67: ARP 002 2019 FTD -ANEXO VI | D67: FERRAGENS/CADEIAS/ACESSÓRIOS | E67: ESP-6101 | F67: Desenho 716-LT-30-DF-4-047 | G67: LINHA DE TRANSMISSÃO | H67: LINHA DE TRANSMISSÃO | I67: unid. | J67: 3 | X67: 1452.72 | AO67: =997.51*1.0325 -> 1029.929075 | AQ67: 1340 | AR67: 2583 | AS67: 2809.94 | BE67: 1387.2764 | BR67: 2809.94 | BS67: 8429.82 | BT67: 1029.929075 | BU67: 3089.787225 | BV67: 1419.9982 | BW67: 4259.9946 | BX67: 4835.94587 | BY67: COTAÇÃO FINALIZADA - 3 COTAÇÕES | CA67: 0.4175404553 | CB67: =_xlfn.STDEV.S(IF(NOT($L67:$BP67=$BZ67)*ISNUMBER($L67:$BP67),$L67:$BP67,""))/AVERAGE(IF(NOT($L67:$BP67=$BZ67)*ISNUMBER($L67:$BP67),$L67:$BP67,"")) -> 0.4175404553 | CC67: =AVERAGE(IF(NOT($L67:$BP67=$BZ67)*ISNUMBER($L67:$BP67),$L67:$BP67,"")) -> 1767.144246 | CD67: =MEDIAN(IF(NOT($L67:$BP67=$BZ67)*ISNUMBER($L67:$BP67),$L67:$BP67,"")) -> 1419.9982 | CE67: 1419.9982 | CF67: 1419.9982
A69: 16. | B69: INSTRUMENTOS DE TESTES E FERRAMENTAS ESPECIAIS
A70: 16.3 | B70: Ferramenta especial para retirada, tratamento e armazenagem de gás SF6 – Unidade tratamento Gás SF6 | C70: ARP 002 2019 FTD -ANEXO IV | D70: INSTRUMENTOS DE TESTES E FERRAMENTAS ESPECIAIS | F70: Toshiba | G70: DISJUNTOR TRIPOLAR | H70: SE FLORESTA | I70: unid. | J70: 1 | L70: 314723 | N70: 273828 | AK70: 312822.17 | BR70: =MAX(L70:BP70) -> 314723 | BS70: =BR70*J70 -> 314723 | BT70: =MIN(L70:BP70) -> 273828 | BU70: =BT70*J70 -> 273828 | BV70: =CF70 -> 300457.7233 | BW70: =BV70*J70 -> 300457.7233 | BX70: =BW70*(1+$K$5) -> 341079.6075 | BY70: COTAÇÃO FINALIZADA - 3 COTAÇÕES | CA70: 0.07682143179 | CB70: =_xlfn.STDEV.S(IF(NOT($L70:$BP70=$BZ70)*ISNUMBER($L70:$BP70),$L70:$BP70,""))/AVERAGE(IF(NOT($L70:$BP70=$BZ70)*ISNUMBER($L70:$BP70),$L70:$BP70,"")) -> 0.07682143179 | CC70: =AVERAGE(IF(NOT($L70:$BP70=$BZ70)*ISNUMBER($L70:$BP70),$L70:$BP70,"")) -> 300457.7233 | CD70: =MEDIAN(IF(NOT($L70:$BP70=$BZ70)*ISNUMBER($L70:$BP70),$L70:$BP70,"")) -> 312822.17 | CE70: 300457.7233 | CF70: 300457.7233
A72: 17. | B72: ISOLADOR
A73: 17.1 | B73: Isolador de pedestal, 242 kV, NBI 950 kV, com círculo de furação de 127 mm (Fornecido com Data book, contendo: ensaios de rotinas, tipo, manual de instrução, desenhos elétricos, e mecânicos) | C73: ARP 002 2019 FTD -ANEXO IV | D73: ISOLADOR | F73: ALCOA Santana | G73: BARRAMENTO 230 kV | H73: SE FLORESTA | I73: unid. | J73: 3 | AH73: 7394.17 | AL73: 5689.56 | BG73: =5384.19*1.0975 -> 5909.148525 | BQ73: 1 | BR73: =MAX(L73:BP73) -> 7394.17 | BS73: =BR73*J73 -> 22182.51 | BT73: =MIN(L73:BP73) -> 5689.56 | BU73: =BT73*J73 -> 17068.68 | BV73: =CF73 -> 5909.148525 | BW73: =BV73*J73 -> 17727.44557 | BX73: =BW73*(1+$K$5) -> 20124.19622 | BY73: COTAÇÃO FINALIZADA - 3 COTAÇÕES | CA73: 0.1464691474 | CB73: =_xlfn.STDEV.S(IF(NOT($L73:$BP73=$BZ73)*ISNUMBER($L73:$BP73),$L73:$BP73,""))/AVERAGE(IF(NOT($L73:$BP73=$BZ73)*ISNUMBER($L73:$BP73),$L73:$BP73,"")) -> 0.1464691474 | CC73: =AVERAGE(IF(NOT($L73:$BP73=$BZ73)*ISNUMBER($L73:$BP73),$L73:$BP73,"")) -> 6330.959508 | CD73: =MEDIAN(IF(NOT($L73:$BP73=$BZ73)*ISNUMBER($L73:$BP73),$L73:$BP73,"")) -> 5909.148525 | CE73: 5909.148525 | CF73: 5909.148525
A74: 17.2 | B74: Isolador Composto Polimérico, 242 kV, NBI 950 kV (Fornecido com Data book, contendo: ensaios de rotinas, tipo, manual de instrução, desenhos elétricos, e mecânicos) | C74: ARP 002 2019 FTD -ANEXO VI | D74: ISOLADOR | E74: DCA-775-OT015-10 | F74: Desenho 716-LT-30-DF-3-108 (Electrovidro) | G74: LINHA DE TRANSMISSÃO | H74: LINHA DE TRANSMISSÃO | I74: unid. | J74: 14 | S74: 6324.22303 | T74: 991.2181 | AJ74: 542 | BR74: =MAX(L74:BP74) -> 6324.22303 | BS74: =BR74*J74 -> 88539.12242 | BT74: =MIN(L74:BP74) -> 542 | BU74: =BT74*J74 -> 7588 | BV74: 542 | BW74: =BV74*J74 -> 7588 | BX74: =BW74*(1+$K$5) -> 8613.8976 | BY74: COTAÇÃO FINALIZADA - 3 COTAÇÕES | CA74: 1.228087469 | CB74: =_xlfn.STDEV.S(IF(NOT($L74:$BP74=$BZ74)*ISNUMBER($L74:$BP74),$L74:$BP74,""))/AVERAGE(IF(NOT($L74:$BP74=$BZ74)*ISNUMBER($L74:$BP74),$L74:$BP74,"")) -> 1.228087469 | CC74: =AVERAGE(IF(NOT($L74:$BP74=$BZ74)*ISNUMBER($L74:$BP74),$L74:$BP74,"")) -> 2619.147043 | CD74: =MEDIAN(IF(NOT($L74:$BP74=$BZ74)*ISNUMBER($L74:$BP74),$L74:$BP74,"")) -> 991.2181 | CE74: 991.2181 | CF74: 542
A76: 18. | B76: ESTRUTURA METÁLICA/CONCRETO
A77: 18.1 | B77: Estrutura tipo HAG - Concreto | C77: ARP 002 2019 FTD -ANEXO VI | D77: ESTRUTURA METÁLICA/CONCRETO | E77: 1626-LMT-2826-60-08-057 | G77: LINHA DE TRANSMISSÃO | H77: LINHA DE TRANSMISSÃO | I77: conj. | J77: 1 | AT77: 18827.4 | AU77: 35462.12 | AV77: 36982.79 | BR77: =MAX(L77:BP77) -> 36982.79 | BS77: =BR77*J77 -> 36982.79 | BT77: =MIN(L77:BP77) -> 18827.4 | BU77: =BT77*J77 -> 18827.4 | BV77: =CF77 -> 30424.10333 | BW77: =BV77*J77 -> 30424.10333 | BX77: =BW77*(1+$K$5) -> 34537.4421 | BY77: COTAÇÃO FINALIZADA - 3 COTAÇÕES | CA77: =_xlfn.STDEV.S(L77:BP77)/AVERAGE(L77:BP77) -> 0.3310460803 | CB77: =_xlfn.STDEV.S(IF(NOT($L77:$BP77=$BZ77)*ISNUMBER($L77:$BP77),$L77:$BP77,""))/AVERAGE(IF(NOT($L77:$BP77=$BZ77)*ISNUMBER($L77:$BP77),$L77:$BP77,"")) -> 0.3310460803 | CC77: =AVERAGE(IF(NOT($L77:$BP77=$BZ77)*ISNUMBER($L77:$BP77),$L77:$BP77,"")) -> 30424.10333 | CD77: =MEDIAN(IF(NOT($L77:$BP77=$BZ77)*ISNUMBER($L77:$BP77),$L77:$BP77,"")) -> 35462.12 | CE77: 30424.10333 | CF77: 30424.10333
A78: 18.2 | B78: Estrutura metálica tipo AF2s | C78: ARP 002 2019 FTD -ANEXO VI | D78: ESTRUTURA METÁLICA/CONCRETO | E78: 716-LT-30-DF-1-029 | G78: LINHA DE TRANSMISSÃO | H78: LINHA DE TRANSMISSÃO | I78: conj. | J78: 1 | AW78: 307620 | AY78: =17137.84*9 -> 154240.56 | BA78: =19.1*10000 -> 191000 | BR78: =MAX(L78:BP78) -> 307620 | BS78: =BR78*J78 -> 307620 | BT78: =MIN(L78:BP78) -> 154240.56 | BU78: =BT78*J78 -> 154240.56 | BV78: 191000 | BW78: =BV78*J78 -> 191000 | BX78: =BW78*(1+$K$5) -> 216823.2 | BY78: COTAÇÃO FINALIZADA - 3 COTAÇÕES | CA78: 0.3679800666 | CB78: =_xlfn.STDEV.S(IF(NOT($L78:$BP78=$BZ78)*ISNUMBER($L78:$BP78),$L78:$BP78,""))/AVERAGE(IF(NOT($L78:$BP78=$BZ78)*ISNUMBER($L78:$BP78),$L78:$BP78,"")) -> 0.3679800666 | CC78: =AVERAGE(IF(NOT($L78:$BP78=$BZ78)*ISNUMBER($L78:$BP78),$L78:$BP78,"")) -> 217620.1867 | CD78: =MEDIAN(IF(NOT($L78:$BP78=$BZ78)*ISNUMBER($L78:$BP78),$L78:$BP78,"")) -> 191000 | CE78: 191000 | CF78: 191000
A81: 19. | B81: GRUPO MOTOR GERADOR - Segunda fonte de energia
A82: 19.1 | B82: Grupo Motor Gerador com 155/170kVA cabinado (Fornecido com Data book, contendo: ensaios de rotinas, tipo, manual de instrução, desenhos elétricos, e mecânicos) | C82: ARP 002 2019 FTD -ANEXO VI | D82: ESTRUTURA METÁLICA/CONCRETO | E82: 1626-LMT-2826-60-08-057 | G82: LINHA DE TRANSMISSÃO | H82: LINHA DE TRANSMISSÃO | I82: conj. | J82: 1 | BJ82: 100999.98 | BK82: 169436 | BN82: 158641.4 | BO82: 157510 | BR82: =MAX(L82:BP82) -> 169436 | BS82: =BR82*J82 -> 169436 | BT82: =MIN(L82:BP82) -> 100999.98 | BU82: =BT82*J82 -> 100999.98 | BV82: =CF82 -> 146646.845 | BW82: =BV82*J82 -> 146646.845 | BX82: =BW82*(1+$K$5) -> 166473.4984 | BY82: COTAÇÃO FINALIZADA - 3 COTAÇÕES | CA82: 0.2107260865 | CB82: =_xlfn.STDEV.S(IF(NOT($L82:$BP82=$BZ82)*ISNUMBER($L82:$BP82),$L82:$BP82,""))/AVERAGE(IF(NOT($L82:$BP82=$BZ82)*ISNUMBER($L82:$BP82),$L82:$BP82,"")) -> 0.2107260865 | CC82: =AVERAGE(IF(NOT($L82:$BP82=$BZ82)*ISNUMBER($L82:$BP82),$L82:$BP82,"")) -> 146646.845 | CD82: =MEDIAN(IF(NOT($L82:$BP82=$BZ82)*ISNUMBER($L82:$BP82),$L82:$BP82,"")) -> 158075.7 | CE82: 146646.845 | CF82: 146646.845
BS84: SE Bom Nome | BW84: =BW10+BW11+BW12 -> 170929.705 | BX84: =BX10+BX11+BX12 -> 194039.4011
BS85: SE Floresta | BW85: =BW82+BW73+BW70+BW49+BW48+BW47+BW37+BW36+BW35+BW34+BW26+BW23+BW19+BW18+BW17+BW16+BW15+BW14+BW13+BW22+BW21 -> 3280435.249 | BX85: =BX82+BX73+BX70+BX49+BX48+BX47+BX37+BX36+BX35+BX34+BX26+BX23+BX19+BX18+BX17+BX16+BX15+BX14+BX13+BX22+BX21 -> 3723950.095
BS86: linha de Transmissão | BW86: =BW78+BW77+BW74+SUM(BW27:BW31)+SUM(BW38:BW44)+SUM(BW50:BW67) -> 665842.1655 | BX86: =BX78+BX77+BX74+SUM(BX27:BX31)+SUM(BX38:BX44)+SUM(BX50:BX67) -> 755864.0262
A87: SOMATÓRIO TOTAL | BR87: =SUM(BR10:BR79) -> 4908725.294 | BS87: =SUM(BS10:BS79) -> 11218190.83 | BT87: =SUM(BT10:BT79) -> 1637873.588 | BU87: =SUM(BU10:BU79) -> 3276992.755 | BV87: =SUM(BV10:BV79) -> 1942333.797 | BW87: =SUM(BW10:BW82) -> 4117207.12 | BX87: =SUM(BX10:BX82) -> 4673853.522

Sheet SERVIÇOS ELETR.
A1: ATESTADO DE RECEBIMENTO PROVISÓRIO ENTRE CHESF E CODEVASF (ARP 002/2019) ‐ CCT 013/2014 ‐ FLORESTA
A2: ANEXO II – RELAÇÃO ESPECÍFICA DAS “NÃO CONFORMIDADES” OU “PENDÊNCIAS” E PRAZOS PARA SANEAMENTO PELA USUÁRIA LT PFA/BNO/FTD 230 KV ANEXO V ‐ PENDÊNCIAS DE ORDEM GERAL DA SE FTD / SECCIONADORA E0 | F2: =((N10*(1-E5))+(O10*(1-E5)))/2 -> 6113.126208
A3: PENDÊNCIAS SUBESTAÇÃO FLORESTA 230 kV (FTD II)
A4: ANEXO A
E5: =BDI!E26 -> 0.2272 | F5: BDI Serviço | G5: =BDI!U26 -> 0.1352 | H5: BDI Material
A6: ITEM | B6: Nº DO ANEXO (CHESF) | C6: DESCRIÇÃO | D6: UNID. | E6: QUANT. | F6: Preço médio por unidade sem BDI (Serviço ou fornecedor) | G6: BDI (%) | H6: Preço total com BDI (Serviço ou fornecedor) | I6: Sistema de Referência | J6: Código | K6: Descrição | L6: Valor R$ | M6: Data | N6: EMPRESA JPW | O6: EMPRESA VECTOR | P6: GMC | Q6: JOTA CARLOS MÓVEIS | R6: Americanas | S6: Madeira Madeira | T6: TEKY | U6: Mercado Livre | V6: Maiart | W6: Shoptime | X6: Eletro Center | Y6: Consul | Z6: Casas Bahia | AA6: SECPOWER | AB6: DIGEL | AC6: DIXEQDIXE | AD6: MOSMANN | AE6: O BAIANÃO | AF6: TELBRA | AG6: TECHNO SPACE | AH6: CARMEHIL | AI6: CASA COMBATE | AJ6: MAGAZINE LUIZA | AK6: LW INFORMAT. | AL6: NAGEM | AM6: KABUM | AN6: DELL | AO6: MS SERVER | AP6: LENOVO | AQ6: HIDRO ELTRO | AR6: SCALA | AS6: KLINT | AT6: AMARAL | AU6: DAISA | AV6: DIMENSIONAL | AW6: RIDEL | AX6: ELÉTRICA BAHIANA | AY6: ECOTECH | AZ6: VIEWTECH | BA6: JH | BB6: J&R | BC6: BRASFIO | BD6: POWERSAFE | BE6: GMC Automação | BF6: NEWMAX (OPT) | BG6: LOJA ELETRICA | BH6: CLARAO LUMINARIAS | BI6: DELTACABLE | BJ6: MAGAZINE ELETRICA | BK6: ENGENTRON | BL6: INSTRUFIBER | BM6: FIBERSUL | BN6: NAVILLE | BO6: LUKMA | BP6: WOHNER | BQ6: CONCORDIA INFORMAT. | BR6: ELETRO FLASH | BS6: MATHEUS ELETRICID. | BT6: MOXOTEC | BU6: PINTO BARBALHO | BV6: VALEMAT | BW6: MCE Microtécnica | BX6: POWERBRAS | BY6: ANIXTER | BZ6: DWH | CA6: FLEXMEDIA | CB6: AXIOM | CC6: CENTRAL CABOS | CD6: MUNDOMAX | CE6: ODERÇO | CF6: DECIBEL | CG6: INOVE CERTO | CH6: BRUBEKI | CI6: KGM | CJ6: ADELTEC | CK6: EMPÓRIO DA SEGURANÇA | CL6: WDC | CM6: SICUR | CN6: 3S SECURITY | CO6: SCHNEIDER | CQ6: CV | CR6: Média | CS6: Mediana | CT6: Menor
A7: 1 | C7: Fornecimento e aplicação do Relé de supervisão de tensão dos motores das chaves seccionadoras, que estão alarmando intermitentemente “falta de tensão / defeito motor” no SAGE. | D7: CJ | E7: 1 | H7: =SUM(H9:H10) -> 7992.992687
A8: 1.1 | C8: Fornecimento de relé, cabos, e miscelânia | D8: unid. | E8: 1
A9: 1.1.1 | B9: II e V | C9: Relé de sobrecorrente RTT Falta de fase, assimetria modular, sequência de fase, mínima e máxima tensão, retardo ajustável no ligamento e no desligamento. Contatos Auxiliares: 2NAF Tensão de Emprego nos Contatos Auxiliares: 250VCA Máxima Corrente de Operação dos Contatos Auxiliares: 3A Vida Mecânica Útil de Operações dos Contatos: 10.000.000 | D9: unid. | E9: 1 | F9: =AVERAGE(N9:CO9) -> 265.9233333 | G9: =$G$5 -> 0.1352 | H9: =E9*F9*(1+G9) -> 301.876168 | AT9: 318.89 | AW9: 128.5 | BG9: 350.38 | CQ9: =_xlfn.STDEV.S(N9:CO9)/AVERAGE(N9:CO9) -> 0.4514424901 | CR9: =AVERAGE(N9:CO9) -> 265.9233333 | CS9: =MEDIAN(N9:CO9) -> 318.89 | CT9: =SMALL(CR9:CS9,1) -> 265.9233333
A10: 1.2 | C10: Instalação de relé de supervisão de tensão | D10: serv. | E10: ‐ | F10: =AVERAGE((N10*(1-$E$5)),(O10*(1-$E$5)),(P10*(1-$E$5))) -> 6267.207072 | G10: =$E$5 -> 0.2272 | H10: =F10*(1+G10) -> 7691.116519 | N10: 6745.14 | O10: 9075.58 | P10: 8508.5 | CQ10: =_xlfn.STDEV.S(N10:CO10)/AVERAGE(N10:CO10) -> 0.1498589042 | CR10: =AVERAGE(N10:CO10) -> 8109.74 | CS10: =MEDIAN(N10:CO10) -> 8508.5 | CT10: =SMALL(CR10:CS10,1) -> 8109.74
A11: 2 | C11: Retirada da corrosão nos paineis central e dos polos B dos disjuntores 14D1, 14P2 e 14S2 | D11: CJ | E11: 1 | H11: =SUM(H12:H18) -> 28351.8397
A12: 2.1.1 | C12: Tinta de fundo N2288 oxibar | D12: gl | E12: 1 | F12: =AVERAGE(N12:CO12) -> 752.2066667 | G12: =$G$5 -> 0.1352 | H12: =F12*(1+G12)*E12 -> 853.905008 | AD12: 716.82 | AE12: =499.9+499.9 -> 999.8 | AT12: 540 | CQ12: 0.3083375373 | CR12: 752.2066667 | CS12: 716.82 | CT12: 716.82
A13: 2.1.2 | C13: Tinta esmalte sintético Cinza Alumínio para paineis elétricos | D13: gl | E13: 1 | F13: =AVERAGE(N13:CO13) -> 151.4066667 | G13: =$G$5 -> 0.1352 | H13: =F13*(1+G13)*E13 -> 171.876848 | AC13: 135.56 | AI13: 144.66 | AT13: 174 | CQ13: 0.1326788847 | CR13: 151.4066667 | CS13: 144.66 | CT13: 144.66
A14: 2.1.3 | C14: Lixa para ferro Nr.100 | D14: un | E14: 5 | F14: =L14 -> 2.96 | G14: =$G$5 -> 0.1352 | H14: =F14*(1+G14)*E14 -> 16.80096 | I14: ORSE | J14: 1336 | K14: Lixa p/ ferro 100 fl | L14: 2.96 | M14: 2022-11-01
A15: 2.1.4 | C15: Rolo lã 5cm | D15: un | E15: 2 | F15: =AVERAGE(N15:CO15) -> 10.91666667 | G15: =$G$5 -> 0.1352 | H15: =F15*(1+G15)*E15 -> 24.7852 | AC15: 9.9 | AI15: 9.23 | AT15: 13.62 | CQ15: 0.2166413828 | CR15: 10.91666667 | CS15: 9.9 | CT15: 9.9
A16: 2.1.5 | C16: Diluente para tinta | D16: lt | E16: 5 | F16: =L16 -> 36.88 | G16: =$G$5 -> 0.1352 | H16: =F16*(1+G16)*E16 -> 209.33088 | I16: FDE | J16: 3.76.37 | K16: DILUENTE P/ FUNDO PRIMER EPOXI | L16: 36.88 | M16: 2023-01-01
A17: 2.2 | B17: II e V | C17: Serviço de Retirada da corrosão em disjuntores | D17: serv. | E17: ‐ | F17: =AVERAGE((N17*(1-$E$5)),(O17*(1-$E$5)),(P17*(1-$E$5))) -> 19304.71659 | G17: =$E$5 -> 0.2272 | H17: =F17*(1+G17) -> 23690.7482 | N17: 21281.46 | O17: 28634.21 | P17: 25025 | CQ17: 0.1471796091 | CR17: 24980.22333 | CS17: 25025 | CT17: 24980.22333
